Workbook

Sheet jednotlivci
B2: Celkové umístění jednotlivců na turnajích v BOWLINGU 2013 | AF2: turnaje
B3: 0 | E3: garáže | AA3: Počet turnajů | AB3: Počet celkových bodů | AD3: Průměer na hru | AE3: Průměr na turnaj
B4: =SUM(B3+1) -> 1 | C4: Podhola Martin | D4: =IF(AA4<2,0,1) -> 0 | E4: Vršovice | F4: 1 | G4: =IF(F4="","",IF(F4>50,"",51-F4)) -> 50 | H4: 857 | J4: =IF(I4="","",IF(I4>50,"",51-I4)) ->  | M4: =IF(L4="","",IF(L4>50,"",51-L4)) ->  | P4: =IF(O4="","",IF(O4>50,"",51-O4)) ->  | S4: =IF(R4="","",IF(R4>50,"",51-R4)) ->  | V4: =IF(U4="","",IF(U4>50,"",51-U4)) ->  | Y4: =IF(X4="","",IF(X4>50,"",51-X4)) ->  | AA4: =COUNT(X4,U4,R4,O4,L4,I4,F4) -> 1 | AB4: =SUM(G4,J4,M4,P4,S4,V4,Y4) -> 50 | AC4: =IF(AB4=0,"",SUM(AB4*1000)+AD4) -> 50171.4 | AD4: =IF(AA4=0,"",AE4/5) -> 171.4 | AE4: =IF(AA4=0,"",(H4+K4+N4+Q4+T4+W4+Z4)/AA4) -> 857
B5: 2 | C5: Mašát Petr | D5: 0 | E5: Kačerov | F5: 2 | G5: 49 | H5: 852 | AA5: 1 | AB5: 49 | AC5: 49170.4 | AD5: 170.4 | AE5: 852
B6: 3 | C6: Krupa Jozef | D6: 0 | E6: Vršovice | F6: 3 | G6: 48 | H6: 844 | AA6: 1 | AB6: 48 | AC6: 48168.8 | AD6: 168.8 | AE6: 844
B7: 4 | C7: Lazur Ladislav | D7: 0 | E7: Hostivař | F7: 4 | G7: 47 | H7: 829 | AA7: 1 | AB7: 47 | AC7: 47165.8 | AD7: 165.8 | AE7: 829
B8: 5 | C8: Kocúr Jaroslav | D8: 0 | E8: Řepy | F8: 5 | G8: 46 | H8: 827 | AA8: 1 | AB8: 46 | AC8: 46165.4 | AD8: 165.4 | AE8: 827
B9: 6 | C9: Kolář Ladislav | D9: 0 | E9: Klíčov | F9: 6 | G9: 45 | H9: 826 | AA9: 1 | AB9: 45 | AC9: 45165.2 | AD9: 165.2 | AE9: 826
B10: 7 | C10: Šafařík Luděk | D10: 0 | E10: Hostivař | F10: 7 | G10: 44 | H10: 812 | AA10: 1 | AB10: 44 | AC10: 44162.4 | AD10: 162.4 | AE10: 812
B11: 8 | C11: Dvořák Petr | D11: 0 | E11: Řepy | F11: 8 | G11: 43 | H11: 799 | AA11: 1 | AB11: 43 | AC11: 43159.8 | AD11: 159.8 | AE11: 799
B12: 9 | C12: Pospíšil Václav | D12: 0 | E12: Řepy | F12: 9 | G12: 42 | H12: 791 | AA12: 1 | AB12: 42 | AC12: 42158.2 | AD12: 158.2 | AE12: 791
B13: 10 | C13: Štěpán Radek | D13: 0 | E13: Klíčov | F13: 10 | G13: 41 | H13: 776 | AA13: =COUNT(F13,I13,L13,O13,R13,U13,X13) -> 1 | AB13: 41 | AC13: 41155.2 | AD13: 155.2 | AE13: 776
B14: 11 | C14: Froněk Martin | D14: 0 | E14: Řepy | F14: 11 | G14: 40 | H14: 772 | AA14: =COUNT(X14,U14,R14,O14,L14,I14,F14) -> 1 | AB14: 40 | AC14: 40154.4 | AD14: 154.4 | AE14: 772
B15: 12 | C15: Erekt Stanislav | D15: 0 | E15: Řepy | F15: 12 | G15: 39 | H15: 761 | AA15: 1 | AB15: 39 | AC15: 39152.2 | AD15: 152.2 | AE15: 761
B16: 13 | C16: Brož Stanislav | D16: 0 | E16: Kačerov | F16: 13 | G16: 38 | H16: 757 | AA16: 1 | AB16: 38 | AC16: 38151.4 | AD16: 151.4 | AE16: 757
B17: 14 | C17: Leibich František | D17: 0 | E17: Vršovice | F17: 14 | G17: 37 | H17: 756 | AA17: 1 | AB17: 37 | AC17: 37151.2 | AD17: 151.2 | AE17: 756
B18: 15 | C18: Novotný Lukáš | D18: 0 | E18: Klíčov | F18: 15 | G18: 36 | H18: 755 | AA18: 1 | AB18: 36 | AC18: 36151 | AD18: 151 | AE18: 755
B19: 16 | C19: Berger Michal | D19: 0 | E19: Hostivař | F19: 16 | G19: 35 | H19: 751 | AA19: 1 | AB19: 35 | AC19: 35150.2 | AD19: 150.2 | AE19: 751
B20: 17 | C20: Turek Stanislav | D20: 0 | E20: Kačerov | F20: 17 | G20: 34 | H20: 749 | AA20: 1 | AB20: 34 | AC20: 34149.8 | AD20: 149.8 | AE20: 749
B21: 18 | C21: Ondřich František | D21: 0 | E21: Kačerov | F21: 18 | G21: 33 | H21: 749 | AA21: 1 | AB21: 33 | AC21: 33149.8 | AD21: 149.8 | AE21: 749
B22: 19 | C22: Holkup Jan | D22: 0 | E22: Vršovice | F22: 19 | G22: 32 | H22: 748 | AA22: 1 | AB22: 32 | AC22: 32149.6 | AD22: 149.6 | AE22: 748
B23: 20 | C23: Carvan Pavel | D23: 0 | E23: Kačerov | F23: 20 | G23: 31 | H23: 748 | AA23: 1 | AB23: 31 | AC23: 31149.6 | AD23: 149.6 | AE23: 748
B24: 21 | C24: Hübner Jiří | D24: 0 | E24: Kačerov | F24: 21 | G24: 30 | H24: 737 | AA24: 1 | AB24: 30 | AC24: 30147.4 | AD24: 147.4 | AE24: 737
B25: 22 | C25: Kalfiřt Petr | D25: 0 | E25: Klíčov | F25: 22 | G25: 29 | H25: 722 | AA25: 1 | AB25: 29 | AC25: 29144.4 | AD25: 144.4 | AE25: 722
B26: 23 | C26: Tomášek Zdeněk | D26: 0 | E26: Kačerov | F26: 23 | G26: 28 | H26: 721 | AA26: 1 | AB26: 28 | AC26: 28144.2 | AD26: 144.2 | AE26: 721
B27: 24 | C27: Kročil Tomáš | D27: 0 | E27: Řepy | F27: 24 | G27: 27 | H27: 721 | AA27: 1 | AB27: 27 | AC27: 27144.2 | AD27: 144.2 | AE27: 721
B28: 25 | C28: Radová Petra | D28: 0 | E28: Kačerov | F28: 25 | G28: 26 | H28: 716 | AA28: 1 | AB28: 26 | AC28: 26143.2 | AD28: 143.2 | AE28: 716
B29: 26 | C29: Růžička Ladislav | D29: 0 | E29: Hostivař | F29: 26 | G29: 25 | H29: 712 | AA29: 1 | AB29: 25 | AC29: 25142.4 | AD29: 142.4 | AE29: 712
B30: 27 | C30: Douša Adam | D30: 0 | E30: Kačerov | F30: 27 | G30: 24 | H30: 712 | AA30: 1 | AB30: 24 | AC30: 24142.4 | AD30: 142.4 | AE30: 712
B31: 28 | C31: Bošek Jan | D31: 0 | E31: Vršovice | F31: 28 | G31: 23 | H31: 710 | AA31: 1 | AB31: 23 | AC31: 23142 | AD31: 142 | AE31: 710
B32: 29 | C32: Křikavová Miroslava | D32: 0 | E32: Řepy | F32: 29 | G32: 22 | H32: 709 | AA32: 1 | AB32: 22 | AC32: 22141.8 | AD32: 141.8 | AE32: 709
B33: 30 | C33: Pecka Jiří | D33: 0 | E33: Klíčov | F33: 30 | G33: 21 | H33: 709 | AA33: 1 | AB33: 21 | AC33: 21141.8 | AD33: 141.8 | AE33: 709
B34: 31 | C34: Erekt Michal | D34: 0 | E34: Řepy | F34: 31 | G34: 20 | H34: 701 | AA34: 1 | AB34: 20 | AC34: 20140.2 | AD34: 140.2 | AE34: 701
B35: 32 | C35: Sladovník Miloš | D35: 0 | E35: Řepy | F35: 32 | G35: 19 | H35: 694 | AA35: 1 | AB35: 19 | AC35: 19138.8 | AD35: 138.8 | AE35: 694
B36: =SUM(B35+1) -> 33 | C36: Čermák Tomáš | D36: =IF(AA36<2,0,1) -> 0 | E36: Hostivař | F36: 33 | G36: =IF(F36="","",IF(F36>50,"",51-F36)) -> 18 | H36: 694 | J36: =IF(I36="","",IF(I36>50,"",51-I36)) ->  | M36: =IF(L36="","",IF(L36>50,"",51-L36)) ->  | P36: =IF(O36="","",IF(O36>50,"",51-O36)) ->  | S36: =IF(R36="","",IF(R36>50,"",51-R36)) ->  | V36: =IF(U36="","",IF(U36>50,"",51-U36)) ->  | Y36: =IF(X36="","",IF(X36>50,"",51-X36)) ->  | AA36: 1 | AB36: =SUM(G36,J36,M36,P36,S36,V36,Y36) -> 18 | AC36: =IF(AB36=0,"",SUM(AB36*1000)+AD36) -> 18138.8 | AD36: =IF(AA36=0,"",AE36/5) -> 138.8 | AE36: =IF(AA36=0,"",(H36+K36+N36+Q36+T36+W36+Z36)/AA36) -> 694
B37: 34 | C37: Skružná Pavla | D37: 0 | E37: Vršovice | F37: 34 | G37: 17 | H37: 686 | AA37: 1 | AB37: 17 | AC37: 17137.2 | AD37: 137.2 | AE37: 686
B38: 35 | C38: Lokvenc Jiří | D38: 0 | E38: Klíčov | F38: 35 | G38: 16 | H38: 684 | AA38: 1 | AB38: 16 | AC38: 16136.8 | AD38: 136.8 | AE38: 684
B39: 36 | C39: Křikava Miroslav | D39: 0 | E39: Řepy | F39: 36 | G39: 15 | H39: 681 | AA39: 1 | AB39: 15 | AC39: 15136.2 | AD39: 136.2 | AE39: 681
B40: 37 | C40: Troller Pavel | D40: 0 | E40: Klíčov | F40: 37 | G40: 14 | H40: 681 | AA40: 1 | AB40: 14 | AC40: 14136.2 | AD40: 136.2 | AE40: 681
B41: 38 | C41: Křápek Roman | D41: 0 | E41: Hostivař | F41: 38 | G41: 13 | H41: 679 | AA41: 1 | AB41: 13 | AC41: 13135.8 | AD41: 135.8 | AE41: 679
B42: 39 | C42: Veselý Vlastimil | D42: 0 | E42: Vršovice | F42: 39 | G42: 12 | H42: 675 | AA42: 1 | AB42: 12 | AC42: 12135 | AD42: 135 | AE42: 675
B43: 40 | C43: Červanka Ivan | D43: 0 | E43: Řepy | F43: 40 | G43: 11 | H43: 668 | AA43: 1 | AB43: 11 | AC43: 11133.6 | AD43: 133.6 | AE43: 668
B44: 41 | C44: Mysliveček Jaroslav | D44: 0 | E44: Hostivař | F44: 41 | G44: 10 | H44: 667 | AA44: 1 | AB44: 10 | AC44: 10133.4 | AD44: 133.4 | AE44: 667
B45: 42 | C45: Alba Vladimír | D45: 0 | E45: Řepy | F45: 42 | G45: 9 | H45: 654 | AA45: 1 | AB45: 9 | AC45: 9130.8 | AD45: 130.8 | AE45: 654
B46: 43 | C46: Růžička Václav | D46: 0 | E46: Řepy | F46: 43 | G46: 8 | H46: 653 | AA46: =COUNT(X46,U46,R46,O46,L46,I46,F46) -> 1 | AB46: 8 | AC46: 8130.6 | AD46: 130.6 | AE46: 653
B47: 44 | C47: Kutina Pavel | D47: 0 | E47: Kačerov | F47: 44 | G47: 7 | H47: 651 | AA47: 1 | AB47: 7 | AC47: 7130.2 | AD47: 130.2 | AE47: 651
B48: 45 | C48: Šafář Vladimír | D48: 0 | E48: Hostivař | F48: 45 | G48: 6 | H48: 622 | AA48: 1 | AB48: 6 | AC48: 6124.4 | AD48: 124.4 | AE48: 622
B49: 46 | C49: Mottl Pavel | D49: 0 | E49: Řepy | F49: 46 | G49: 5 | H49: 621 | AA49: 1 | AB49: 5 | AC49: 5124.2 | AD49: 124.2 | AE49: 621
B50: 47 | C50: Lazurová Jiřina | D50: 0 | E50: Hostivař | F50: 47 | G50: 4 | H50: 606 | AA50: 1 | AB50: 4 | AC50: 4121.2 | AD50: 121.2 | AE50: 606
B51: 48 | C51: Jelínek Jan | D51: 0 | E51: Hostivař | F51: 48 | G51: 3 | H51: 606 | AA51: 1 | AB51: 3 | AC51: 3121.2 | AD51: 121.2 | AE51: 606
B52: 49 | C52: Sehnal Ivan | D52: 0 | E52: Řepy | F52: 49 | G52: 2 | H52: 603 | AA52: 1 | AB52: 2 | AC52: 2120.6 | AD52: 120.6 | AE52: 603
B53: 50 | C53: Neshyba Jaroslav | D53: 0 | E53: Klíčov | F53: 50 | G53: 1 | H53: 587 | AA53: 1 | AB53: 1 | AC53: 1117.4 | AD53: 117.4 | AE53: 587
B54: 51 | C54: Fay Vlastimil | D54: 0 | E54: Vršovice | F54: 51 | H54: 585 | P54: =IF(O54="","",IF(O54>50,"",51-O54)) ->  | AA54: 1 | AB54: 0 | AD54: 117 | AE54: 585
B55: 52 | C55: Novotná Petra | D55: 0 | E55: Klíčov | F55: 52 | H55: 575 | AA55: 1 | AB55: 0 | AD55: 115 | AE55: 575
B56: 53 | C56: Aunický František | D56: 0 | E56: Vršovice | F56: 53 | H56: 530 | AA56: 1 | AB56: 0 | AD56: 106 | AE56: 530
B57: 54 | C57: Doman Marcel | D57: 0 | E57: Klíčov | F57: 54 | H57: 492 | AA57: 1 | AB57: 0 | AD57: 98.4 | AE57: 492
B58: 55 | C58: Leibichová Inke | D58: 0 | E58: Vršovice | F58: 55 | H58: 433 | AA58: 1 | AB58: 0 | AD58: 86.6 | AE58: 433
B59: 56 | C59: Bergerová Marcela | D59: 0 | E59: Hostivař | AA59: 0 | AB59: 0
B60: 57 | C60: Kollár Pavel | D60: 0 | E60: Hostivař | AA60: 0 | AB60: 0
B61: 58 | C61: Tóth Lubomír | D61: 0 | E61: Hostivař | AA61: 0 | AB61: 0
B62: 59 | C62: Zelenková Jitka | D62: 0 | E62: Hostivař | M62: =IF(L62="","",IF(L62>50,"",51-L62)) ->  | P62: =IF(O62="","",IF(O62>50,"",51-O62)) ->  | AA62: 0 | AB62: 0
B63: 60 | C63: Bánovský Jaroslav | D63: 0 | E63: Kačerov | M63: =IF(L63="","",IF(L63>50,"",51-L63)) ->  | P63: =IF(O63="","",IF(O63>50,"",51-O63)) ->  | AA63: 0 | AB63: 0
B64: 61 | C64: Brejcha Jaroslav | D64: 0 | E64: Kačerov | M64: =IF(L64="","",IF(L64>50,"",51-L64)) ->  | P64: =IF(O64="","",IF(O64>50,"",51-O64)) ->  | AA64: 0 | AB64: 0
B65: 62 | C65: Katolický Zdeněk | D65: 0 | E65: Kačerov | AA65: 0 | AB65: 0
B66: 63 | C66: Hájek Lukáš | D66: 0 | E66: Klíčov | M66: =IF(L66="","",IF(L66>50,"",51-L66)) ->  | P66: =IF(O66="","",IF(O66>50,"",51-O66)) ->  | AA66: 0 | AB66: 0
B67: 64 | C67: Křemenák Petr | D67: 0 | E67: Klíčov | M67: =IF(L67="","",IF(L67>50,"",51-L67)) ->  | P67: =IF(O67="","",IF(O67>50,"",51-O67)) ->  | AA67: 0 | AB67: 0
B68: 65 | C68: Novotná Jana | D68: =IF(AA68<2,0,1) -> 0 | E68: Klíčov | G68: =IF(F68="","",IF(F68>50,"",51-F68)) ->  | J68: =IF(I68="","",IF(I68>50,"",51-I68)) ->  | M68: =IF(L68="","",IF(L68>50,"",51-L68)) ->  | P68: =IF(O68="","",IF(O68>50,"",51-O68)) ->  | S68: =IF(R68="","",IF(R68>50,"",51-R68)) ->  | V68: =IF(U68="","",IF(U68>50,"",51-U68)) ->  | Y68: =IF(X68="","",IF(X68>50,"",51-X68)) ->  | AA68: 0 | AB68: =SUM(G68,J68,M68,P68,S68,V68,Y68) -> 0 | AC68: =IF(AB68=0,"",SUM(AB68*1000)+AD68) -> 
B69: 66 | C69: Novotný Josef | D69: 0 | E69: Klíčov | AA69: 0 | AB69: 0
B70: 67 | C70: Pelikán Stanislav | D70: 0 | E70: Klíčov | G70: =IF(F70="","",IF(F70>50,"",51-F70)) ->  | J70: =IF(I70="","",IF(I70>50,"",51-I70)) ->  | M70: =IF(L70="","",IF(L70>50,"",51-L70)) ->  | P70: =IF(O70="","",IF(O70>50,"",51-O70)) ->  | S70: =IF(R70="","",IF(R70>50,"",51-R70)) ->  | AA70: 0 | AB70: 0
B71: =SUM(B70+1) -> 68 | C71: Pipek Pavel | D71: 0 | E71: Klíčov | AA71: 0 | AB71: 0
B72: 69 | C72: Pražák Martin | D72: 0 | E72: Klíčov | AA72: 0 | AB72: 0
B73: 70 | C73: Svoboda Jan | D73: 0 | E73: Klíčov | AA73: 0 | AB73: 0
B74: 71 | C74: Táborský František | D74: 0 | E74: Klíčov | AA74: 0 | AB74: 0
B75: 72 | C75: Vychnerová Michala | D75: 0 | E75: Klíčov | AA75: 0 | AB75: 0
B76: 73 | C76: Plecháček Miroslav | D76: 0 | E76: Řepy | AA76: 0 | AB76: 0
B77: 74 | C77: Tichý Hugo | D77: 0 | E77: Řepy | AA77: 0 | AB77: 0
B78: 75 | C78: Hrabě Jan | D78: 0 | E78: Vršovice | AA78: =COUNT(X78,U78,R78,O78,L78,I78,F78) -> 0 | AB78: 0
B79: 76 | C79: Kazda Jan | D79: 0 | E79: Vršovice | AA79: 0 | AB79: 0
B80: 77 | C80: Kovář Jaroslav | D80: 0 | E80: Vršovice | AA80: 0 | AB80: 0
B81: 78 | C81: Krupa Martin | D81: 0 | E81: Vršovice | AA81: 0 | AB81: 0
B82: 79 | C82: Krupová Martina | D82: 0 | E82: Vršovice | AA82: 0 | AB82: 0
B83: 80 | C83: Kučera Miroslav | D83: 0 | E83: Vršovice | AA83: 0 | AB83: 0
B84: 81 | C84: Pavlíček Rudolf | D84: 0 | E84: Vršovice | AA84: 0 | AB84: 0
B85: 82 | C85: Pospíšil Lukáš | D85: 0 | E85: Vršovice | AA85: 0 | AB85: 0
B86: 83 | C86: Věchtík Antonín | D86: 0 | E86: Vršovice | AA86: 0 | AB86: 0
B87: 84 | C87: Svítil Pavel | D87: 0 | E87: Hostivař | AA87: 0 | AB87: 0
B88: 85 | C88: Žalud Miroslav | D88: 0 | E88: Kačerov | G88: =IF(F88="","",IF(F88>50,"",51-F88)) ->  | J88: =IF(I88="","",IF(I88>50,"",51-I88)) ->  | AA88: 0 | AB88: 0
B89: 86 | C89: Šafář Bohumil | D89: 0 | E89: Klíčov | AA89: 0 | AB89: 0
B90: 87 | C90: Šafrová Martina | D90: 0 | E90: Klíčov | AA90: 0 | AB90: 0
B91: 88 | C91: Táborský Lukáš | D91: 0 | E91: Klíčov | P91: =IF(O91="","",IF(O91>50,"",51-O91)) ->  | AA91: 0 | AB91: 0
B92: 89 | C92: Číhal František | D92: 0 | E92: Řepy | P92: =IF(O92="","",IF(O92>50,"",51-O92)) ->  | AA92: 0 | AB92: 0
D93: 0 | P93: =IF(O93="","",IF(O93>50,"",51-O93)) -> 
D94: 0 | P94: =IF(O94="","",IF(O94>50,"",51-O94)) -> 
D95: 0 | P95: =IF(O95="","",IF(O95>50,"",51-O95)) -> 

Sheet garáže
B1: jméno | C1: 31.1. | D1: 28.2. | E1: 28.3. | F1: 25.4. | J1: kuželky | L1: průměr | N1: garáž | O1: průměr na 1 hru | P1: průměr na turnaj | Q1: zpět
A2: Dejvice | B2: Štěrba Ladislav | C2: =zápis!H5 -> 0 | D2: =zápis!N5 -> 0 | E2: =zápis!T5 -> 0 | F2: =zápis!Z5 -> 0 | G2: =zápis!AF5 -> 0 | H2: =zápis!AL5 -> 0 | I2: =zápis!AR5 -> 0 | J2: =SUM(C2:I2) -> 0 | K2: =zápis!AT5 -> 0 | L2: =IF(K2=0,"",J2/K2) ->  | N2: Kačerov | O2: =zápis!$AU$48 -> 147.84 | P2: =IF(O2="","",SUM(O2*5)) -> 739.2
A3: Dejvice | B3: Jošt Michal | C3: =zápis!H2 -> 0 | D3: =zápis!N2 -> 0 | E3: =zápis!T2 -> 0 | F3: =zápis!Z2 -> 0 | G3: =zápis!AF2 -> 0 | H3: =zápis!AL2 -> 0 | I3: =zápis!AR2 -> 0 | J3: 0 | K3: =zápis!AT2 -> 0 | N3: Řepy | O3: =zápis!$AU$97 -> 141.95 | P3: =IF(O3="","",SUM(O3*5)) -> 709.75
A4: Dejvice | B4: Joštová Alena | C4: =zápis!H4 -> 0 | D4: =zápis!N4 -> 0 | E4: =zápis!T4 -> 0 | F4: =zápis!Z4 -> 0 | G4: =zápis!AF4 -> 0 | H4: =zápis!AL4 -> 0 | I4: =zápis!AR4 -> 0 | J4: 0 | K4: =zápis!AT4 -> 0 | N4: Hostivař | O4: =zápis!$AU$31 -> 139.2444444 | P4: =IF(O4="","",SUM(O4*5)) -> 696.2222222
A5: Dejvice | B5: Pěchočová Soňa | C5: =zápis!H3 -> 0 | D5: =zápis!N3 -> 0 | E5: =zápis!T3 -> 0 | F5: =zápis!Z3 -> 0 | G5: =zápis!AF3 -> 0 | H5: =zápis!AL3 -> 0 | I5: =zápis!AR3 -> 0 | J5: 0 | K5: =zápis!AT3 -> 0 | N5: Vršovice | O5: =zápis!$AU$120 -> 136.48 | P5: =IF(O5="","",SUM(O5*5)) -> 682.4
A6: Dejvice | B6: Novák Antonín | C6: =zápis!H6 -> 0 | D6: =zápis!N6 -> 0 | E6: =zápis!T6 -> 0 | F6: =zápis!Z6 -> 0 | G6: =zápis!AF6 -> 0 | H6: =zápis!AL6 -> 0 | I6: =zápis!AR6 -> 0 | J6: 0 | K6: =zápis!AT6 -> 0 | N6: Klíčov | O6: =zápis!$AU$74 -> 136.14 | P6: =IF(O6="","",SUM(O6*5)) -> 680.7
A7: Hostivař | B7: Lazur Ladislav | C7: =zápis!H19 -> 829 | D7: =zápis!N19 -> 0 | E7: =zápis!T19 -> 0 | F7: =zápis!Z19 -> 0 | G7: =zápis!AF19 -> 0 | H7: =zápis!AL19 -> 0 | I7: =zápis!AR19 -> 0 | J7: 829 | K7: =zápis!AT19 -> 5 | L7: 165.8 | N7: Dejvice
A8: Hostivař | B8: Šafařík Luděk | C8: =zápis!H10 -> 812 | D8: =zápis!N10 -> 0 | E8: =zápis!T10 -> 0 | F8: =zápis!Z10 -> 0 | G8: =zápis!AF10 -> 0 | H8: =zápis!AL10 -> 0 | I8: =zápis!AR10 -> 0 | J8: 812 | K8: =zápis!AT10 -> 5 | L8: 162.4
A9: Hostivař | B9: Berger Michal | C9: =zápis!H24 -> 751 | D9: =zápis!N24 -> 0 | E9: =zápis!T24 -> 0 | F9: =zápis!Z24 -> 0 | G9: =zápis!AF24 -> 0 | H9: =zápis!AL24 -> 0 | I9: =zápis!AR24 -> 0 | J9: 751 | K9: =zápis!AT24 -> 5 | L9: 150.2
A10: Hostivař | B10: Růžička Ladislav | C10: =zápis!H28 -> 712 | D10: =zápis!N28 -> 0 | E10: =zápis!T28 -> 0 | F10: =zápis!Z28 -> 0 | G10: =zápis!AF28 -> 0 | H10: =zápis!AL28 -> 0 | I10: =zápis!AR28 -> 0 | J10: 712 | K10: =zápis!AT28 -> 5 | L10: 142.4
A11: Hostivař | B11: Čermák Tomáš | C11: =zápis!H17 -> 694 | D11: =zápis!N17 -> 0 | E11: =zápis!T17 -> 0 | F11: =zápis!Z17 -> 0 | G11: =zápis!AF17 -> 0 | H11: =zápis!AL17 -> 0 | I11: =zápis!AR17 -> 0 | J11: 694 | K11: =zápis!AT17 -> 5 | L11: 138.8
A12: Hostivař | B12: Křápek Roman | C12: =zápis!H15 -> 679 | D12: =zápis!N15 -> 0 | E12: =zápis!T15 -> 0 | F12: =zápis!Z15 -> 0 | G12: =zápis!AF15 -> 0 | H12: =zápis!AL15 -> 0 | I12: =zápis!AR15 -> 0 | J12: 679 | K12: =zápis!AT15 -> 5 | L12: 135.8
A13: Hostivař | B13: Mysliveček Jaroslav | C13: =zápis!H13 -> 667 | D13: =zápis!N13 -> 0 | E13: =zápis!T13 -> 0 | F13: =zápis!Z13 -> 0 | G13: =zápis!AF13 -> 0 | H13: =zápis!AL13 -> 0 | I13: =zápis!AR13 -> 0 | J13: 667 | K13: =zápis!AT13 -> 5 | L13: 133.4
A14: Hostivař | B14: Šafář Vladimír | C14: =zápis!H26 -> 622 | D14: =zápis!N26 -> 0 | E14: =zápis!T26 -> 0 | F14: =zápis!Z26 -> 0 | G14: =zápis!AF26 -> 0 | H14: =zápis!AL26 -> 0 | I14: =zápis!AR26 -> 0 | J14: 622 | K14: =zápis!AT26 -> 5 | L14: 124.4
A15: Hostivař | B15: Jelínek Jan | C15: =zápis!H12 -> 606 | D15: =zápis!N12 -> 0 | E15: =zápis!T12 -> 0 | F15: =zápis!Z12 -> 0 | G15: =zápis!AF12 -> 0 | H15: =zápis!AL12 -> 0 | I15: =zápis!AR12 -> 0 | J15: 606 | K15: =zápis!AT12 -> 5 | L15: 121.2
A16: Hostivař | B16: Lazurová Jiřina | C16: =zápis!H20 -> 606 | D16: =zápis!N20 -> 0 | E16: =zápis!T20 -> 0 | F16: =zápis!Z20 -> 0 | G16: =zápis!AF20 -> 0 | H16: =zápis!AL20 -> 0 | I16: =zápis!AR20 -> 0 | J16: 606 | K16: =zápis!AT20 -> 5 | L16: 121.2
A17: Hostivař | B17: Kollár Pavel | C17: =zápis!H25 -> 0 | D17: =zápis!N25 -> 0 | E17: =zápis!T25 -> 0 | F17: =zápis!Z25 -> 0 | G17: =zápis!AF25 -> 0 | H17: =zápis!AL25 -> 0 | I17: =zápis!AR25 -> 0
A18: Hostivař | B18: Zelenková Jitka | C18: =zápis!H23 -> 0 | D18: =zápis!N23 -> 0 | E18: =zápis!T23 -> 0 | F18: =zápis!Z23 -> 0 | G18: =zápis!AF23 -> 0 | H18: =zápis!AL23 -> 0 | I18: =zápis!AR23 -> 0
A19: Hostivař | B19: Tóth Lubomír | C19: =zápis!H29 -> 0 | D19: =zápis!N29 -> 0 | E19: =zápis!T29 -> 0 | F19: =zápis!Z29 -> 0 | G19: =zápis!AF29 -> 0 | H19: =zápis!AL29 -> 0 | I19: =zápis!AR29 -> 0
A20: Hostivař | B20: Bergerová Marcela | C20: =zápis!H27 -> 0 | D20: =zápis!N27 -> 0 | E20: =zápis!T27 -> 0 | F20: =zápis!Z27 -> 0 | G20: =zápis!AF27 -> 0 | H20: =zápis!AL27 -> 0 | I20: =zápis!AR27 -> 0
A21: Hostivař | B21: Svítil Pavel | C21: =zápis!H16 -> 0 | D21: =zápis!N16 -> 0 | E21: =zápis!T16 -> 0 | F21: =zápis!Z16 -> 0 | G21: =zápis!AF16 -> 0 | H21: =zápis!AL16 -> 0 | I21: =zápis!AR16 -> 0
A22: Hostivař | B22: Jirkovská Iveta | C22: =zápis!H14 -> 0 | D22: =zápis!N14 -> 0 | E22: =zápis!T14 -> 0 | F22: =zápis!Z14 -> 0 | G22: =zápis!AF14 -> 0 | H22: =zápis!AL14 -> 0 | I22: =zápis!AR14 -> 0
A23: Hostivař | B23: Kačena Martin | C23: =zápis!H21 -> 0 | D23: =zápis!N21 -> 0 | E23: =zápis!T21 -> 0 | F23: =zápis!Z21 -> 0 | G23: =zápis!AF21 -> 0 | H23: =zápis!AL21 -> 0 | I23: =zápis!AR21 -> 0
A24: Hostivař | B24: Sláma Karel | C24: =zápis!H11 -> 0 | D24: =zápis!N11 -> 0 | E24: =zápis!T11 -> 0 | F24: =zápis!Z11 -> 0 | G24: =zápis!AF11 -> 0 | H24: =zápis!AL11 -> 0 | I24: =zápis!AR11 -> 0
A25: Kačerov | B25: Mašát Petr | C25: =zápis!H36 -> 852 | D25: =zápis!N36 -> 0 | E25: =zápis!T36 -> 0 | F25: =zápis!Z36 -> 0 | G25: =zápis!AF36 -> 0 | H25: =zápis!AL36 -> 0 | I25: =zápis!AR36 -> 0 | J25: =SUM(C25:I25) -> 852 | K25: =zápis!AT36 -> 5 | L25: =IF(K25=0,"",J25/K25) -> 170.4
A26: Kačerov | B26: Brož Stanislav | C26: =zápis!H34 -> 757 | D26: =zápis!N34 -> 0 | E26: =zápis!T34 -> 0 | F26: =zápis!Z34 -> 0 | G26: =zápis!AF34 -> 0 | H26: =zápis!AL34 -> 0 | I26: =zápis!AR34 -> 0 | J26: 757 | K26: =zápis!AT34 -> 5 | L26: 151.4
A27: Kačerov | B27: Ondřich František | C27: =zápis!H44 -> 749 | D27: =zápis!N44 -> 0 | E27: =zápis!T44 -> 0 | F27: =zápis!Z44 -> 0 | G27: =zápis!AF44 -> 0 | H27: =zápis!AL44 -> 0 | I27: =zápis!AR44 -> 0 | J27: 749 | K27: =zápis!AT44 -> 5 | L27: 149.8
A28: Kačerov | B28: Turek Stanislav | C28: =zápis!H39 -> 749 | D28: =zápis!N39 -> 0 | E28: =zápis!T39 -> 0 | F28: =zápis!Z39 -> 0 | G28: =zápis!AF39 -> 0 | H28: =zápis!AL39 -> 0 | I28: =zápis!AR39 -> 0 | J28: 749 | K28: =zápis!AT39 -> 5 | L28: 149.8
A29: Kačerov | B29: Carvan Pavel | C29: =zápis!H33 -> 748 | D29: =zápis!N33 -> 0 | E29: =zápis!T33 -> 0 | F29: =zápis!Z33 -> 0 | G29: =zápis!AF33 -> 0 | H29: =zápis!AL33 -> 0 | I29: =zápis!AR33 -> 0 | J29: 748 | K29: =zápis!AT33 -> 5 | L29: 149.6
A30: Kačerov | B30: Hübner Jiří | C30: =zápis!H37 -> 737 | D30: =zápis!N37 -> 0 | E30: =zápis!T37 -> 0 | F30: =zápis!Z37 -> 0 | G30: =zápis!AF37 -> 0 | H30: =zápis!AL37 -> 0 | I30: =zápis!AR37 -> 0 | J30: 737 | K30: =zápis!AT37 -> 5 | L30: 147.4
A31: Kačerov | B31: Tomášek Zdeněk | C31: =zápis!H35 -> 721 | D31: =zápis!N35 -> 0 | E31: =zápis!T35 -> 0 | F31: =zápis!Z35 -> 0 | G31: =zápis!AF35 -> 0 | H31: =zápis!AL35 -> 0 | I31: =zápis!AR35 -> 0 | J31: 721 | K31: =zápis!AT35 -> 5 | L31: 144.2
A32: Kačerov | B32: Radová Petra | C32: =zápis!H45 -> 716 | D32: =zápis!N45 -> 0 | E32: =zápis!T45 -> 0 | F32: =zápis!Z45 -> 0 | G32: =zápis!AF45 -> 0 | H32: =zápis!AL45 -> 0 | I32: =zápis!AR45 -> 0 | J32: 716 | K32: =zápis!AT45 -> 5 | L32: 143.2
A33: Kačerov | B33: Douša Adam | C33: =zápis!H38 -> 712 | D33: =zápis!N38 -> 0 | E33: =zápis!T38 -> 0 | F33: =zápis!Z38 -> 0 | G33: =zápis!AF38 -> 0 | H33: =zápis!AL38 -> 0 | I33: =zápis!AR38 -> 0 | J33: 712 | K33: =zápis!AT38 -> 5 | L33: 142.4
A34: Kačerov | B34: Kutina Pavel | C34: =zápis!H43 -> 651 | D34: =zápis!N43 -> 0 | E34: =zápis!T43 -> 0 | F34: =zápis!Z43 -> 0 | G34: =zápis!AF43 -> 0 | H34: =zápis!AL43 -> 0 | I34: =zápis!AR43 -> 0 | J34: 651 | K34: =zápis!AT43 -> 5 | L34: 130.2
A35: Kačerov | B35: Brejcha Jaroslav | C35: =zápis!H40 -> 0 | D35: =zápis!N40 -> 0 | E35: =zápis!T40 -> 0 | F35: =zápis!Z40 -> 0 | G35: =zápis!AF40 -> 0 | H35: =zápis!AL40 -> 0 | I35: =zápis!AR40 -> 0
A36: Kačerov | B36: Katolický Zdeněk | C36: =zápis!H46 -> 0 | D36: =zápis!N46 -> 0 | E36: =zápis!T46 -> 0 | F36: =zápis!Z46 -> 0 | G36: =zápis!AF46 -> 0 | H36: =zápis!AL46 -> 0 | I36: =zápis!AM46 -> 0
A37: Kačerov | B37: Bánovský Jaroslav | C37: =zápis!H42 -> 0 | D37: =zápis!N42 -> 0 | E37: =zápis!T42 -> 0 | F37: =zápis!Z42 -> 0 | G37: =zápis!AF42 -> 0 | H37: =zápis!AL42 -> 0 | I37: =zápis!AR42 -> 0
A38: Kačerov | B38: Žalud Miroslav | C38: =zápis!H41 -> 0 | D38: =zápis!N41 -> 0 | E38: =zápis!T41 -> 0 | F38: =zápis!Z41 -> 0 | G38: =zápis!AF41 -> 0 | H38: =zápis!AL41 -> 0 | I38: =zápis!AR41 -> 0
A39: Klíčov | B39: Kolář Ladislav | C39: =zápis!H69 -> 826 | D39: =zápis!N69 -> 0 | E39: =zápis!T69 -> 0 | F39: =zápis!Z69 -> 0 | G39: =zápis!AF69 -> 0 | H39: =zápis!AL69 -> 0 | I39: =zápis!AR69 -> 0 | J39: =SUM(C39:I39) -> 826 | K39: =zápis!AT69 -> 5 | L39: =IF(K39=0,"",J39/K39) -> 165.2
A40: Klíčov | B40: Štěpán Radek | C40: =zápis!H70 -> 776 | D40: =zápis!N70 -> 0 | E40: =zápis!T70 -> 0 | F40: =zápis!Z70 -> 0 | G40: =zápis!AF70 -> 0 | H40: =zápis!AL70 -> 0 | I40: =zápis!AR70 -> 0 | J40: 776 | K40: =zápis!AT70 -> 5 | L40: 155.2
A41: Klíčov | B41: Novotný Lukáš | C41: =zápis!H53 -> 755 | D41: =zápis!N53 -> 0 | E41: =zápis!T53 -> 0 | F41: =zápis!Z53 -> 0 | G41: =zápis!AF53 -> 0 | H41: =zápis!AL53 -> 0 | I41: =zápis!AR53 -> 0 | J41: 755 | K41: =zápis!AT53 -> 5 | L41: 151
A42: Klíčov | B42: Kalfiřt Petr | C42: =zápis!H57 -> 722 | D42: =zápis!N57 -> 0 | E42: =zápis!T57 -> 0 | F42: =zápis!Z57 -> 0 | G42: =zápis!AF57 -> 0 | H42: =zápis!AL57 -> 0 | I42: =zápis!AR57 -> 0 | J42: 722 | K42: =zápis!AT57 -> 5 | L42: 144.4
A43: Klíčov | B43: Pecka Jiří | C43: =zápis!H56 -> 709 | D43: =zápis!N56 -> 0 | E43: =zápis!T56 -> 0 | F43: =zápis!Z56 -> 0 | G43: =zápis!AF56 -> 0 | H43: =zápis!AL56 -> 0 | I43: =zápis!AR56 -> 0 | J43: 709 | K43: =zápis!AT56 -> 5 | L43: 141.8
A44: Klíčov | B44: Lokvenc Jiří | C44: =zápis!H62 -> 684 | D44: =zápis!N62 -> 0 | E44: =zápis!T62 -> 0 | F44: =zápis!Z62 -> 0 | G44: =zápis!AF62 -> 0 | H44: =zápis!AL62 -> 0 | I44: =zápis!AR62 -> 0 | J44: 684 | K44: =zápis!AT62 -> 5 | L44: 136.8
A45: Klíčov | B45: Troller Pavel | C45: =zápis!H50 -> 681 | D45: =zápis!N50 -> 0 | E45: =zápis!T50 -> 0 | F45: =zápis!Z50 -> 0 | G45: =zápis!AF50 -> 0 | H45: =zápis!AL50 -> 0 | I45: =zápis!AR50 -> 0 | J45: 681 | K45: =zápis!AT50 -> 5 | L45: 136.2
A46: Klíčov | B46: Neshyba Jaroslav | C46: =zápis!H71 -> 587 | D46: =zápis!N71 -> 0 | E46: =zápis!T71 -> 0 | F46: =zápis!Z71 -> 0 | G46: =zápis!AF71 -> 0 | H46: =zápis!AL71 -> 0 | I46: =zápis!AR71 -> 0 | J46: 587 | K46: =zápis!AT71 -> 5 | L46: 117.4
A47: Klíčov | B47: Novotná Petra | C47: =zápis!H52 -> 575 | D47: =zápis!N52 -> 0 | E47: =zápis!T52 -> 0 | F47: =zápis!Z52 -> 0 | G47: =zápis!AF52 -> 0 | H47: =zápis!AL52 -> 0 | I47: =zápis!AR52 -> 0 | J47: 575 | K47: =zápis!AT52 -> 5 | L47: 115
A48: Klíčov | B48: Doman Marcel | C48: =zápis!H66 -> 492 | D48: =zápis!N66 -> 0 | E48: =zápis!T66 -> 0 | F48: =zápis!Z66 -> 0 | G48: =zápis!AF66 -> 0 | H48: =zápis!AL66 -> 0 | I48: =zápis!AR66 -> 0 | J48: 492 | K48: =zápis!AT66 -> 5 | L48: 98.4
A49: Klíčov | B49: Křemenák Petr | C49: =zápis!H64 -> 0 | D49: =zápis!N64 -> 0 | E49: =zápis!T64 -> 0 | F49: =zápis!Z64 -> 0 | G49: =zápis!AF64 -> 0 | H49: =zápis!AL64 -> 0 | I49: =zápis!AR64 -> 0
A50: Klíčov | B50: Pelikán Stanislav | C50: =zápis!H51 -> 0 | D50: =zápis!N51 -> 0 | E50: =zápis!T51 -> 0 | F50: =zápis!Z51 -> 0 | G50: =zápis!AF51 -> 0 | H50: =zápis!AL51 -> 0 | I50: =zápis!AR51 -> 0
A51: Klíčov | B51: Novotný Josef | C51: =zápis!H60 -> 0 | D51: =zápis!N60 -> 0 | E51: =zápis!T60 -> 0 | F51: =zápis!Z60 -> 0 | G51: =zápis!AF60 -> 0 | H51: =zápis!AL60 -> 0 | I51: =zápis!AR60 -> 0
A52: Klíčov | B52: Křemenák Jakub | C52: =zápis!H68 -> 0 | D52: =zápis!N68 -> 0 | E52: =zápis!T68 -> 0 | F52: =zápis!Z68 -> 0 | G52: =zápis!AF68 -> 0 | H52: =zápis!AL68 -> 0 | I52: =zápis!AR68 -> 0
A53: Klíčov | B53: Novotná Jana | C53: =zápis!H58 -> 0 | D53: =zápis!N58 -> 0 | E53: =zápis!T58 -> 0 | F53: =zápis!Z58 -> 0 | G53: =zápis!AF58 -> 0 | H53: =zápis!AL58 -> 0 | I53: =zápis!AR58 -> 0
A54: Klíčov | B54: Hájek Lukáš | C54: =zápis!H63 -> 0 | D54: =zápis!N63 -> 0 | E54: =zápis!T63 -> 0 | F54: =zápis!Z63 -> 0 | G54: =zápis!AF63 -> 0 | H54: =zápis!AL63 -> 0 | I54: =zápis!AR63 -> 0
A55: Klíčov | B55: Pipek Pavel | C55: =zápis!H72 -> 0 | D55: =zápis!N72 -> 0 | E55: =zápis!T72 -> 0 | F55: =zápis!Z72 -> 0 | G55: =zápis!AF72 -> 0 | H55: =zápis!AL72 -> 0 | I55: =zápis!AR72 -> 0
A56: Klíčov | B56: Vychnerová Michala | C56: =zápis!H65 -> 0 | D56: =zápis!N65 -> 0 | E56: =zápis!T65 -> 0 | F56: =zápis!Z65 -> 0 | G56: =zápis!AF65 -> 0 | H56: =zápis!AL65 -> 0 | I56: =zápis!AR65 -> 0
A57: Klíčov | B57: Svoboda Jan | C57: =zápis!H67 -> 0 | D57: =zápis!N67 -> 0 | E57: =zápis!T67 -> 0 | F57: =zápis!Z67 -> 0 | G57: =zápis!AF67 -> 0 | H57: =zápis!AL67 -> 0 | I57: =zápis!AR67 -> 0
A58: Klíčov | B58: Táborský František | C58: =zápis!H55 -> 0 | D58: =zápis!N55 -> 0 | E58: =zápis!T55 -> 0 | F58: =zápis!Z55 -> 0 | G58: =zápis!AF55 -> 0 | H58: =zápis!AL55 -> 0 | I58: =zápis!AR55 -> 0
A59: Klíčov | B59: Táborský Lukáš | C59: =zápis!H54 -> 0 | D59: =zápis!N54 -> 0 | E59: =zápis!T54 -> 0 | F59: =zápis!Z54 -> 0 | G59: =zápis!AF54 -> 0 | H59: =zápis!AL54 -> 0 | I59: =zápis!AR54 -> 0
A60: Klíčov | B60: Šafrová Martina | C60: =zápis!H61 -> 0 | D60: =zápis!N61 -> 0 | E60: =zápis!T61 -> 0 | F60: =zápis!Z61 -> 0 | G60: =zápis!AF61 -> 0 | H60: =zápis!AL61 -> 0 | I60: =zápis!AR61 -> 0
A61: Klíčov | B61: Šafářová Veronika | C61: =zápis!H59 -> 0 | D61: =zápis!N59 -> 0 | E61: =zápis!T59 -> 0 | F61: =zápis!Z59 -> 0 | G61: =zápis!AF59 -> 0 | H61: =zápis!AL59 -> 0 | I61: =zápis!AR59 -> 0
A62: Řepy | B62: Kocúr Jaroslav | C62: =zápis!H77 -> 827 | D62: =zápis!N77 -> 0 | E62: =zápis!T77 -> 0 | F62: =zápis!Z77 -> 0 | G62: =zápis!AF77 -> 0 | H62: =zápis!AL77 -> 0 | I62: =zápis!AR77 -> 0 | J62: =SUM(C62:I62) -> 827 | K62: =zápis!AT77 -> 5 | L62: =IF(K62=0,"",J62/K62) -> 165.4
A63: Řepy | B63: Dvořák Petr | C63: =zápis!H87 -> 799 | D63: =zápis!N87 -> 0 | E63: =zápis!T87 -> 0 | F63: =zápis!Z87 -> 0 | G63: =zápis!AF87 -> 0 | H63: =zápis!AL87 -> 0 | I63: =zápis!AR87 -> 0 | J63: 799 | K63: =zápis!AT87 -> 5 | L63: 159.8
A64: Řepy | B64: Pospíšil Václav | C64: =zápis!H76 -> 791 | D64: =zápis!N76 -> 0 | E64: =zápis!T76 -> 0 | F64: =zápis!Z76 -> 0 | G64: =zápis!AF76 -> 0 | H64: =zápis!AL76 -> 0 | I64: =zápis!AR76 -> 0 | J64: 791 | K64: =zápis!AT76 -> 5 | L64: 158.2
A65: Řepy | B65: Froněk Martin | C65: =zápis!H88 -> 772 | D65: =zápis!N88 -> 0 | E65: =zápis!T88 -> 0 | F65: =zápis!Z88 -> 0 | G65: =zápis!AF88 -> 0 | H65: =zápis!AL88 -> 0 | I65: =zápis!AR88 -> 0 | J65: 772 | K65: =zápis!AT88 -> 5 | L65: 154.4
A66: Řepy | B66: Erekt Stanislav | C66: =zápis!H93 -> 761 | D66: =zápis!N93 -> 0 | E66: =zápis!T93 -> 0 | F66: =zápis!Z93 -> 0 | G66: =zápis!AF93 -> 0 | H66: =zápis!AL93 -> 0 | I66: =zápis!AR93 -> 0 | J66: 761 | K66: =zápis!AT93 -> 5 | L66: 152.2
A67: Řepy | B67: Kročil Tomáš | C67: =zápis!H83 -> 721 | D67: =zápis!N83 -> 0 | E67: =zápis!T83 -> 0 | F67: =zápis!Z83 -> 0 | G67: =zápis!AF83 -> 0 | H67: =zápis!AL83 -> 0 | I67: =zápis!AR83 -> 0 | J67: 721 | K67: =zápis!AT83 -> 5 | L67: 144.2
A68: Řepy | B68: Křikavová Miroslava | C68: =zápis!H94 -> 709 | D68: =zápis!N94 -> 0 | E68: =zápis!T94 -> 0 | F68: =zápis!Z94 -> 0 | G68: =zápis!AF94 -> 0 | H68: =zápis!AL94 -> 0 | I68: =zápis!AR94 -> 0 | J68: 709 | K68: =zápis!AT94 -> 5 | L68: 141.8
A69: Řepy | B69: Erekt Michal | C69: =zápis!H91 -> 701 | D69: =zápis!N91 -> 0 | E69: =zápis!T91 -> 0 | F69: =zápis!Z91 -> 0 | G69: =zápis!AF91 -> 0 | H69: =zápis!AL91 -> 0 | I69: =zápis!AR91 -> 0 | J69: 701 | K69: =zápis!AT91 -> 5 | L69: 140.2
A70: Řepy | B70: Sladovník Miloš | C70: =zápis!H80 -> 694 | D70: =zápis!N80 -> 0 | E70: =zápis!T80 -> 0 | F70: =zápis!Z80 -> 0 | G70: =zápis!AF80 -> 0 | H70: =zápis!AL80 -> 0 | I70: =zápis!AR80 -> 0 | J70: 694 | K70: =zápis!AT80 -> 5 | L70: 138.8
A71: Řepy | B71: Křikava Miroslav | C71: =zápis!H86 -> 681 | D71: =zápis!N86 -> 0 | E71: =zápis!T86 -> 0 | F71: =zápis!Z86 -> 0 | G71: =zápis!AF86 -> 0 | H71: =zápis!AL86 -> 0 | I71: =zápis!AR86 -> 0 | J71: 681 | K71: =zápis!AT86 -> 5 | L71: 136.2
A72: Řepy | B72: Červenka Ivan | C72: =zápis!H95 -> 668 | D72: =zápis!N95 -> 0 | E72: =zápis!T95 -> 0 | F72: =zápis!Z95 -> 0 | G72: =zápis!AF95 -> 0 | H72: =zápis!AL95 -> 0 | I72: =zápis!AR95 -> 0 | J72: 668 | K72: =zápis!AT95 -> 5 | L72: 133.6
A73: Řepy | B73: Alba Vladimír | C73: =zápis!H84 -> 654 | D73: =zápis!N84 -> 0 | E73: =zápis!T84 -> 0 | F73: =zápis!Z84 -> 0 | G73: =zápis!AF84 -> 0 | H73: =zápis!AL84 -> 0 | I73: =zápis!AR84 -> 0 | J73: 654 | K73: =zápis!AT84 -> 5 | L73: 130.8
A74: Řepy | B74: Růžička Václav | C74: =zápis!H90 -> 653 | D74: =zápis!N90 -> 0 | E74: =zápis!T90 -> 0 | F74: =zápis!Z90 -> 0 | G74: =zápis!AF90 -> 0 | H74: =zápis!AL90 -> 0 | I74: =zápis!AR90 -> 0 | J74: 653 | K74: =zápis!AT90 -> 5 | L74: 130.6
A75: Řepy | B75: Mottl Pavel | C75: =zápis!H81 -> 621 | D75: =zápis!N81 -> 0 | E75: =zápis!T81 -> 0 | F75: =zápis!Z81 -> 0 | G75: =zápis!AF81 -> 0 | H75: =zápis!AL81 -> 0 | I75: =zápis!AR81 -> 0 | J75: 621 | K75: =zápis!AT81 -> 5 | L75: 124.2
A76: Řepy | B76: Sehnal Ivan | C76: =zápis!H78 -> 603 | D76: =zápis!N78 -> 0 | E76: =zápis!T78 -> 0 | F76: =zápis!Z78 -> 0 | G76: =zápis!AF78 -> 0 | H76: =zápis!AL78 -> 0 | I76: =zápis!AR78 -> 0 | J76: 603 | K76: =zápis!AT78 -> 5 | L76: 120.6
A77: Řepy | B77: Tichý Hugo | C77: =zápis!H85 -> 0 | D77: =zápis!N85 -> 0 | E77: =zápis!T85 -> 0 | F77: =zápis!Z85 -> 0 | G77: =zápis!AF85 -> 0 | H77: =zápis!AL85 -> 0 | I77: =zápis!AR85 -> 0
A78: Řepy | B78: Plecháček Miroslav | C78: =zápis!H79 -> 0 | D78: =zápis!N79 -> 0 | E78: =zápis!T79 -> 0 | F78: =zápis!Z79 -> 0 | G78: =zápis!AF79 -> 0 | H78: =zápis!AL79 -> 0 | I78: =zápis!AR79 -> 0
A79: Řepy | B79: Číhal František | C79: =zápis!H82 -> 0 | D79: =zápis!N82 -> 0 | E79: =zápis!T82 -> 0 | F79: =zápis!Z82 -> 0 | G79: =zápis!AF82 -> 0 | H79: =zápis!AL82 -> 0 | I79: =zápis!AR82 -> 0
A80: Řepy | B80: Fidler Slávek | C80: =zápis!H89 -> 0 | D80: =zápis!N89 -> 0 | E80: =zápis!T89 -> 0 | F80: =zápis!Z89 -> 0 | G80: =zápis!AF89 -> 0 | H80: =zápis!AL89 -> 0 | I80: =zápis!AR89 -> 0
A81: Řepy | B81: Piešťanský Josef | C81: =zápis!H92 -> 0 | D81: =zápis!N92 -> 0 | E81: =zápis!T92 -> 0 | F81: =zápis!Z92 -> 0 | G81: =zápis!AF92 -> 0 | H81: =zápis!AL92 -> 0 | I81: =zápis!AR92 -> 0
A82: Vršovice | B82: Podhola Martin | C82: =zápis!H110 -> 857 | D82: =zápis!N110 -> 0 | E82: =zápis!T110 -> 0 | F82: =zápis!Z110 -> 0 | G82: =zápis!AF110 -> 0 | H82: =zápis!AL110 -> 0 | I82: =zápis!AR110 -> 0 | J82: =SUM(C82:I82) -> 857 | K82: =zápis!AT110 -> 5 | L82: =IF(K82=0,"",J82/K82) -> 171.4
A83: Vršovice | B83: Krupa Jozef | C83: =zápis!H99 -> 844 | D83: =zápis!N99 -> 0 | E83: =zápis!T99 -> 0 | F83: =zápis!Z99 -> 0 | G83: =zápis!AF99 -> 0 | H83: =zápis!AL99 -> 0 | I83: =zápis!AR99 -> 0 | J83: 844 | K83: =zápis!AT99 -> 5 | L83: 168.8
A84: Vršovice | B84: Leibich František | C84: =zápis!H107 -> 756 | D84: =zápis!N107 -> 0 | E84: =zápis!T107 -> 0 | F84: =zápis!Z107 -> 0 | G84: =zápis!AF107 -> 0 | H84: =zápis!AL107 -> 0 | I84: =zápis!AR107 -> 0 | J84: 756 | K84: =zápis!AT107 -> 5 | L84: 151.2
A85: Vršovice | B85: Holkup Jan | C85: =zápis!H111 -> 748 | D85: =zápis!N111 -> 0 | E85: =zápis!T111 -> 0 | F85: =zápis!Z111 -> 0 | G85: =zápis!AF111 -> 0 | H85: =zápis!AL111 -> 0 | I85: =zápis!AR111 -> 0 | J85: 748 | K85: =zápis!AT111 -> 5 | L85: 149.6
A86: Vršovice | B86: Bošek Jan | C86: =zápis!H116 -> 710 | D86: =zápis!N116 -> 0 | E86: =zápis!T116 -> 0 | F86: =zápis!Z116 -> 0 | G86: =zápis!AF116 -> 0 | H86: =zápis!AL116 -> 0 | I86: =zápis!AR116 -> 0 | J86: 710 | K86: =zápis!AT116 -> 5 | L86: 142
A87: Vršovice | B87: Skružná Pavla | C87: =zápis!H103 -> 686 | D87: =zápis!N103 -> 0 | E87: =zápis!T103 -> 0 | F87: =zápis!Z103 -> 0 | G87: =zápis!AF103 -> 0 | H87: =zápis!AL103 -> 0 | I87: =zápis!AR103 -> 0 | J87: 686 | K87: =zápis!AT103 -> 5 | L87: 137.2
A88: Vršovice | B88: Veselý Vlastimil | C88: =zápis!H108 -> 675 | D88: =zápis!N108 -> 0 | E88: =zápis!T108 -> 0 | F88: =zápis!Z108 -> 0 | G88: =zápis!AF108 -> 0 | H88: =zápis!AL108 -> 0 | I88: =zápis!AR108 -> 0 | J88: 675 | K88: =zápis!AT108 -> 5 | L88: 135
A89: Vršovice | B89: Fay Vlastimil | C89: =zápis!H115 -> 585 | D89: =zápis!N115 -> 0 | E89: =zápis!T115 -> 0 | F89: =zápis!Z115 -> 0 | G89: =zápis!AF115 -> 0 | H89: =zápis!AL115 -> 0 | I89: =zápis!AR115 -> 0 | J89: 585 | K89: =zápis!AT115 -> 5 | L89: 117
A90: Vršovice | B90: Aunický František | C90: =zápis!H104 -> 530 | D90: =zápis!N104 -> 0 | E90: =zápis!T104 -> 0 | F90: =zápis!Z104 -> 0 | G90: =zápis!AF104 -> 0 | H90: =zápis!AL104 -> 0 | I90: =zápis!AR104 -> 0 | J90: 530 | K90: =zápis!AT104 -> 5 | L90: 106
A91: Vršovice | B91: Leibichová Inke | C91: =zápis!H106 -> 433 | D91: =zápis!N106 -> 0 | E91: =zápis!T106 -> 0 | F91: =zápis!Z106 -> 0 | G91: =zápis!AF106 -> 0 | H91: =zápis!AL106 -> 0 | I91: =zápis!AR106 -> 0 | J91: 433 | K91: =zápis!AT106 -> 5 | L91: 86.6
A92: Vršovice | B92: Věchtík Antonín | C92: =zápis!H109 -> 0 | D92: =zápis!N109 -> 0 | E92: =zápis!T109 -> 0 | F92: =zápis!Z109 -> 0 | G92: =zápis!AF109 -> 0 | H92: =zápis!AL109 -> 0 | I92: =zápis!AR109 -> 0
A93: Vršovice | B93: Kučera Miroslav | C93: =zápis!H113 -> 0 | D93: =zápis!N113 -> 0 | E93: =zápis!T113 -> 0 | F93: =zápis!Z113 -> 0 | G93: =zápis!AF113 -> 0 | H93: =zápis!AL113 -> 0 | I93: =zápis!AR113 -> 0
A94: Vršovice | B94: Kovář Jaroslav | C94: =zápis!H114 -> 0 | D94: =zápis!N114 -> 0 | E94: =zápis!T114 -> 0 | F94: =zápis!Z114 -> 0 | G94: =zápis!AF114 -> 0 | H94: =zápis!AL114 -> 0 | I94: =zápis!AR114 -> 0
A95: Vršovice | B95: Krupová Martina | C95: =zápis!H101 -> 0 | D95: =zápis!N101 -> 0 | E95: =zápis!T101 -> 0 | F95: =zápis!Z101 -> 0 | G95: =zápis!AF101 -> 0 | H95: =zápis!AL101 -> 0 | I95: =zápis!AR101 -> 0
A96: Vršovice | B96: Hrabě Jan | C96: =zápis!H118 -> 0 | D96: =zápis!N118 -> 0 | E96: =zápis!T118 -> 0 | F96: =zápis!Z118 -> 0 | G96: =zápis!AF118 -> 0 | H96: =zápis!AL118 -> 0 | I96: =zápis!AR118 -> 0
A97: Vršovice | B97: Pavlíček Rudolf | C97: =zápis!H117 -> 0 | D97: =zápis!N117 -> 0 | E97: =zápis!T117 -> 0 | F97: =zápis!Z117 -> 0 | G97: =zápis!AF117 -> 0 | H97: =zápis!AL117 -> 0 | I97: =zápis!AR117 -> 0
A98: Vršovice | B98: Krupa Martin | C98: =zápis!H102 -> 0 | D98: =zápis!N102 -> 0 | E98: =zápis!T102 -> 0 | F98: =zápis!Z102 -> 0 | G98: =zápis!AF102 -> 0 | H98: =zápis!AL102 -> 0 | I98: =zápis!AR102 -> 0
A99: Vršovice | B99: Pospíšil Lukáš | C99: =zápis!H100 -> 0 | D99: =zápis!N100 -> 0 | E99: =zápis!T100 -> 0 | F99: =zápis!Z100 -> 0 | G99: =zápis!AF100 -> 0 | H99: =zápis!AL100 -> 0 | I99: =zápis!AR100 -> 0
A100: Vršovice | B100: Kazda Jan | C100: =zápis!H105 -> 0 | D100: =zápis!N105 -> 0 | E100: =zápis!T105 -> 0 | F100: =zápis!Z105 -> 0 | G100: =zápis!AF105 -> 0 | H100: =zápis!AL105 -> 0 | I100: =zápis!AR105 -> 0
A101: Vršovice | B101: Pokorný Josef | C101: =zápis!H112 -> 0 | D101: =zápis!N112 -> 0 | E101: =zápis!T112 -> 0 | F101: =zápis!Z112 -> 0 | G101: =zápis!AF112 -> 0 | H101: =zápis!AL112 -> 0 | I101: =zápis!AR112 -> 0

Sheet stat. celkem
B1: ZE VŠECH TURNAJŮ 2015 jednotlivé turnaje | X1: ZPĚT | Y1: 31.1. 2015 PV-OSZO DP-A | AX1: ZPĚT | AY1: 28.2.2015 KLÍČOV | BX1: ZPĚT | BY1: 28.3.2015 ŘEPY | CX1: ZPĚT | CY1: 25.4.2015 HOSTIVAŘ | DX1: ZPĚT | DY1: _._.2015 KAČEROV | EX1: ZPĚT | EY1: _._.2015 VRŠOVICE | FX1: ZPĚT | FY1: _._.2015 POHÁR GENERÁLNÍHO ŘEDITELE - DP
B2: 25 nejvyšších náhozů | E2: 25 nejnižších náhozů | H2: 25 nejvyšších průměrů | J2: turnaje | K2: umístnění v jednotlivých turnajích | Y2: nejvyšší nához jednotlivce | AB2: nejnižší nához jednotlivce | AE2: 25 nejvyšších náhozů | AH2: 25 nejnižších náhozů | AK2: 25 nejvyšších náhozů na turnaj | AY2: nejvyšší nához jednotlivce | BB2: nejnižší nához jednotlivce | BE2: 25 nejvyšších náhozů | BH2: 25 nejnižších náhozů | BK2: 25 nejvyšších náhozů na turnaj | BY2: nejvyšší nához jednotlivce | CB2: nejnižší nához jednotlivce | CE2: 25 nejvyšších náhozů | CH2: 25 nejnižších náhozů | CK2: 25 nejvyšších náhozů na turnaj | CY2: nejvyšší nához jednotlivce | DB2: nejnižší nához jednotlivce | DE2: 25 nejvyšších náhozů | DH2: 25 nejnižších náhozů | DK2: 25 nejvyšších náhozů na turnaj | DY2: nejvyšší nához jednotlivce | EB2: nejnižší nához jednotlivce | EE2: 25 nejvyšších náhozů | EH2: 25 nejnižších náhozů | EK2: 25 nejvyšších náhozů na turnaj | EY2: nejvyšší nához jednotlivce | FB2: nejnižší nához jednotlivce | FE2: 25 nejvyšších náhozů | FH2: 25 nejnižších náhozů | FK2: 25 nejvyšších náhozů na turnaj | FY2: nejvyšší nához jednotlivce | GB2: nejnižší nához jednotlivce | GE2: 25 nejvyšších náhozů | GH2: 25 nejnižších náhozů | GK2: 25 nejvyšších náhozů na turnaj
J3: jednotlivci | K3: družstva | O3: jednotlivci
K4: PV-OSZO DP-A 31.1.2015 | Q4: klikni | Y4: Lazur Michal | Z4: 223 | AB4: Mašát Petr | AC4: 160 | AE4: Lazur Michal | AF4: 223 | AH4: Liebichová Inke | AI4: 69 | AK4: Podhola Martin | AL4: 857
K5: 1. místo | L5: Vršovice | M5: 3891 | O5: 1. místo | P5: Podhola Martin | Q5: 857 | Y5: Kolář Ladislav | Z5: 217 | AB5: Kocůr Jaroslav | AC5: 154 | AE5: Kolář Ladislav | AF5: 217 | AH5: Aunický Ftantišek | AI5: 77 | AK5: Mašát Petr | AL5: 852
K6: 2. místo | L6: Řepy | M6: 3853 | O6: 2. místo | P6: Mašát Petr | Q6: 852 | Y6: Podhola Martin | Z6: 207 | AB6: Pospíšil Václav | AC6: 144 | AE6: Podhola Martin | AF6: 207 | AH6: Liebichová Inke | AI6: 77 | AK6: Krupa Jozef | AL6: 844
K7: 3. místo | L7: Kačerov | M7: 3835 | O7: 3. místo | P7: Krupa Jozef | Q7: 844 | Y7: Krupa Jozef | Z7: 202 | AB7: Lazur Michal | AC7: 139 | AE7: Froněk Martin | AF7: 202 | AH7: Doman Marcel | AI7: 87 | AK7: Lazur Michal | AL7: 829
K8: KLÍČOV 28.2.2015 | Q8: klikni | Y8: Froněk Martin | Z8: 202 | AB8: Novotný Lukáš | AC8: 139 | AE8: Krupa Jozef | AF8: 202 | AH8: Liebichová Inke | AI8: 89 | AK8: Kocůr Jaroslav | AL8: 827
K9: 1. místo | O9: 1. místo | Y9: Pospíšil Václav | Z9: 199 | AB9: Šafařík Luděk | AC9: 138 | AE9: Pospíšil Václav | AF9: 199 | AH9: Liebichová Inke | AI9: 90 | AK9: Kolář Ladislav | AL9: 826
K10: 2. místo | O10: 2. místo | Y10: Ekert Stanislav | Z10: 194 | AB10: Liebich František | AC10: 137 | AE10: Ekert Stanislav | AF10: 194 | AH10: Doman Marcel | AI10: 90 | AK10: Šafařík Luděk | AL10: 812
K11: 3. místo | O11: 3. místo | Y11: Mašát Petr | Z11: 192 | AB11: Krupa Jozef | AC11: 135 | AE11: Mašát Petr | AF11: 192 | AH11: Holkup Jan | AI11: 91 | AK11: Dvořák Petr | AL11: 799
K12: ŘEPY 28.3.2015 | Q12: klikni | Y12: Růžička Ladislav | Z12: 190 | AB12: Podhola Martin | AC12: 133 | AE12: Růžička Ladislav | AF12: 190 | AH12: Novotná Petra | AI12: 91 | AK12: Pospíšil Václav | AL12: 791
K13: 1. místo | O13: 1. místo | Y13: Holkup Jan | Z13: 190 | AB13: Brož Stanislav | AC13: 132 | AE13: Holkup Jan | AF13: 190 | AH13: Doman Marcel | AI13: 93 | AK13: Štěpánek Radek | AL13: 776
K14: 2. místo | O14: 2. místo | Y14: Dvořák Petr | Z14: 187 | AB14: Štěpánek Radek | AC14: 129 | AE14: Krupa Jozef | AF14: 188 | AH14: Neshyba Jaroslav | AI14: 94 | AK14: Froněk Martin | AL14: 772
K15: 3. místo | O15: 3. místo | Y15: Šafařík Luděk | Z15: 186 | AB15: Ekert Stanislav | AC15: 129 | AE15: Dvořák Petr | AF15: 187 | AH15: Aunický Ftantišek | AI15: 94 | AK15: Ekert Stanislav | AL15: 761
K16: HOSTIVAŘ 25.4.2015 | Q16: klikni | Y16: Berger Michal | Z16: 185 | AB16: Křápek Roman | AC16: 128 | AE16: Šafařík Luděk | AF16: 186 | AH16: Fay Vlastimil | AI16: 97 | AK16: Brož Stanislav | AL16: 757
K17: 1. místo | O17: 1. místo | Y17: Carvan Pavel | Z17: 183 | AB17: Kolář Ladislav | AC17: 128 | AE17: Berger Michal | AF17: 185 | AH17: Neshyba Jaroslav | AI17: 97 | AK17: Liebich František | AL17: 756
K18: 2. místo | O18: 2. místo | Y18: Radová Petra | Z18: 183 | AB18: Troller Pavel | AC18: 128 | AE18: Radová Petra | AF18: 183 | AH18: Kutina Pavel | AI18: 99 | AK18: Novotný Lukáš | AL18: 755
K19: 3. místo | O19: 3. místo | Y19: Kocůr Jaroslav | Z19: 180 | AB19: Hübner Jiří | AC19: 127 | AE19: Carvan Pavel | AF19: 183 | AH19: Doman Marcel | AI19: 99 | AK19: Berger Michal | AL19: 751
K20: KAČEROV _._.20145 | Q20: klikni | Y20: Hübner Jiří | Z20: 177 | AB20: Kalfiřt Petr | AC20: 126 | AE20: Kocůr Jaroslav | AF20: 180 | AH20: Novotná Petra | AI20: 99 | AK20: Ondřich František | AL20: 749
K21: 1. místo | O21: 1. místo | Y21: Turek Stanislav | Z21: 177 | AB21: Pecka Jiří | AC21: 125 | AE21: Podhola Martin | AF21: 179 | AH21: Turek Stanislav | AI21: 100 | AK21: Turek Stanislav | AL21: 749
K22: 2. místo | O22: 2. místo | Y22: Veselý Vlastimil | Z22: 176 | AB22: Dvořák Petr | AC22: 125 | AE22: Šafařík Luděk | AF22: 178 | AH22: Tomášek Zdeněk | AI22: 101 | AK22: Carvan Pavel | AL22: 748
K23: 3. místo | O23: 3. místo | Y23: Sladovník Miloslav | Z23: 176 | AB23: Lokvenc Jiří | AC23: 122 | AE23: Hübner Jiří | AF23: 177 | AH23: Alba Vladimír | AI23: 103 | AK23: Holkup Jan | AL23: 748
K24: VRŠOVICE _._.2015 | Q24: klikni | Y24: Ondřich František | Z24: 175 | AB24: Šafář Ladislav | AC24: 121 | AE24: Turek Stanislav | AF24: 177 | AH24: Lazurová Jiřina | AI24: 103 | AK24: Hübner Jiří | AL24: 737
K25: 1. místo | O25: 1. místo | Y25: Křikavová Miroslava | Z25: 175 | AB25: Ekert Michal | AC25: 121 | AE25: Veselý Vlastimil | AF25: 176 | AH25: Sehnal Ivan | AI25: 104 | AK25: Kalfiřt Petr | AL25: 722
K26: 2. místo | O26: 2. místo | Y26: Brož Stanislav | Z26: 174 | AB26: Douša Adam | AC26: 119 | AE26: Sladovník Miloslav | AF26: 176 | AH26: Růžička Václav | AI26: 104 | AK26: Tomášek Zdeněk | AL26: 721
K27: 3. místo | O27: 3. místo | Y27: Douša Adam | Z27: 173 | AB27: Ondřich František | AC27: 119 | AE27: Podhola Martin | AF27: 176 | AH27: Aunický Ftantišek | AI27: 104 | AK27: Kročil Tomáš | AL27: 721
K28: POHÁR GENERÁLNÍHO ŘEDITELE | Q28: klikni | Y28: Liebich František | Z28: 171 | AB28: Bošek Jan | AC28: 119 | AE28: Kolář Ladislav | AF28: 176 | AH28: Lazurová Jiřina | AI28: 105 | AK28: Radová Petra | AL28: 716
K29: 1. místo | O29: 1. místo | Y29: Štěpánek Radek | Z29: 170 | AB29: Křikava Miroslav | AC29: 119
K30: 2. místo | O30: 2. místo | Y30: Tomášek Zdeněk | Z30: 169 | AB30: Radová Petra | AC30: 118
K31: 3. místo | O31: 3. místo | Y31: Kročil Tomáš | Z31: 169 | AB31: Froněk Martin | AC31: 116
Y32: Kutina Pavel | Z32: 168 | AB32: Berger Michal | AC32: 115
Y33: Čermák Tomáš | Z33: 168 | AB33: Růžička Ladislav | AC33: 115
Y34: Růžička Václav | Z34: 167 | AB34: Veselý Vlastimil | AC34: 115
Y35: Bošek Jan | Z35: 166 | AB35: Carvan Pavel | AC35: 113
Y36: Ekert Michal | Z36: 165 | AB36: Mysliveček Jaroslav | AC36: 113
Y37: Novotný Lukáš | Z37: 163 | AB37: Kročil Tomáš | AC37: 112
Y38: Skružná Pavla | Z38: 161 | AB38: Křikavová Miroslava | AC38: 112
Y39: Červenka Ivan | Z39: 161 | AB39: Jelínek Jan | AC39: 111
Y40: Křápek Roman | Z40: 160 | AB40: Mottl Pavel | AC40: 111
Y41: Mysliveček Jaroslav | Z41: 159 | AB41: Sladovník Miloslav | AC41: 111
Y42: Kalfiřt Petr | Z42: 159 | AB42: Čermák Tomáš | AC42: 110
Y43: Křikava Miroslav | Z43: 156 | AB43: Skružná Pavla | AC43: 109
Y44: Pecka Jiří | Z44: 154 | AB44: Červenka Ivan | AC44: 108
Y45: Lokvenc Jiří | Z45: 148 | AB45: Růžička Václav | AC45: 104
Y46: Troller Pavel | Z46: 148 | AB46: Sehnal Ivan | AC46: 104
Y47: Alba Vladimír | Z47: 148 | AB47: Lazurová Jiřina | AC47: 103
Y48: Mottl Pavel | Z48: 146 | AB48: Alba Vladimír | AC48: 103
Y49: Novotná Petra | Z49: 145 | AB49: Tomášek Zdeněk | AC49: 101
Y50: Neshyba Jaroslav | Z50: 144 | AB50: Turek Stanislav | AC50: 100
Y51: Lazurová Jiřina | Z51: 141 | AB51: Kutina Pavel | AC51: 99
Y52: Jelínek Jan | Z52: 138 | AB52: Fay Vlastimil | AC52: 97
Y53: Fay Vlastimil | Z53: 138 | AB53: Neshyba Jaroslav | AC53: 94
Y54: Aunický Ftantišek | Z54: 133 | AB54: Holkup Jan | AC54: 91
Y55: Sehnal Ivan | Z55: 133 | AB55: Novotná Petra | AC55: 91
Y56: Šafář Ladislav | Z56: 128 | AB56: Doman Marcel | AC56: 87
Y57: Doman Marcel | Z57: 123 | AB57: Aunický Ftantišek | AC57: 77
Y58: Liebichová Inke | Z58: 108 | AB58: Liebichová Inke | AC58: 69

Sheet turnaje
B3: JEDNOTLIVÉ TURNAJE V ROCE 2015
B7: PV OSZO | D7: 31.1.
B9: KLÍČOV | D9: 28.2.
B11: ŘEPY | D11: 28.3.
B13: HOSTIVAŘ | D13: 25.4.
B15: KAČEROV | D15: _._.
J16: jednotlivci
B17: VRŠOVICE | D17: _._.
B19: POHÁR GŘ | D19: _._. | J19: statistika celkem
J22: garáže
B23: PRO PŘÍPAD 11 DRUŽSTEV

Sheet PV OSZO
A1: ZPĚT
D3: Sportovní turnaj v Bowlingu o pohár PV-OSZO DP-Autobusy Praha - dne 31. 1. 2015
C5: Garáž | E5: Jméno | F5: I. | G5: II. | H5: III. | I5: IV. | J5: V. | K5: Body | N5: Jednotlivci. | R5: Družstva. | AG5: pořadí jednotlivců
B6: =IF(F6="","",N6) -> 21 | C6: 1 | D6: KAČEROV I. | E6: Hübner Jiří | F6: 134 | G6: 127 | H6: 138 | I6: 161 | J6: 177 | K6: =SUM(F6:J6) -> 737 | L6: =MAX(F6:J6) -> 177 | M6: =SUM(K6*1000)+L6+0.055 -> 737177.055 | N6: =IF(F6="","",RANK(M6,M6:M70,0)) -> 21 | R6: =IF(F6="","",RANK(Q11,Q11:Q71,0)) -> 3 | T6: =IF(F6="","",RANK(AA6,AA6:AA64,0)) -> 2 | U6: =IF(R6="","",R6) -> 3 | V6: =IF(D6="","",D6) -> KAČEROV I. | W6: =IF(O11="","",O11) -> 3835 | X6: =IF(V6="HOSTIVAŘ I.","GARÁŽ HOSTIVAŘ",IF(V6="VRŠOVICE I.","GARÁŽ VRŠOVICE",IF(V6="KLÍČOV I.","GARÁŽ KLÍČOV",IF(V6="ŘEPY I.","GARÁŽ ŘEPY",IF(V6="KAČEROV I.","GARÁŽ KAČEROV",""))))) -> GARÁŽ KAČEROV | Y6: =MAX(F11:J11,F17:J17)+0.05 -> 872.05 | Z6: =SUM(O11,O17)*1000 -> 7392000 | AA6: =SUM(Y6:Z6) -> 7392872.05 | AB6: =IF(AC17="","",AC17) -> 7392 | AD6: =IF(T6="","",T6) -> 2 | AF6: =COUNT(F6:F10,F12:F16,F18:F22,F24:F28,F30:F34,F36:F40,F42:F46,F48:F52,F54:F58,F60:F64,F66:F70) -> 55 | AG6: 1 | AH6: =IF(AF6<1,"",VLOOKUP(1,B6:N70,4,FALSE)) -> Podhola Martin | AI6: =IF(AF6<1,"",VLOOKUP(1,B6:N70,10,FALSE)) -> 857 | AK6: =COUNT(U6:U16,U18:U28,U30:U40,U42:U52,U54:U64,U66) -> 11 | AL6: POŘADÍ DRUŽSTEV | BA6: HOSTIVAŘ I.
B7: =IF(F7="","",N7) -> 17 | E7: Turek Stanislav | F7: 140 | G7: 163 | H7: 169 | I7: 100 | J7: 177 | K7: =SUM(F7:J7) -> 749 | L7: 177 | M7: =SUM(K7*1000)+L7+0.054 -> 749177.054 | N7: =IF(F7="","",RANK(M7,M6:M70,0)) -> 17 | AG7: =SUM(AG6+1) -> 2 | AH7: =IF(AF6<2,"",VLOOKUP(2,B6:N70,4,FALSE)) -> Mašát Petr | AI7: =IF(AF6<2,"",VLOOKUP(2,B6:N70,10,FALSE)) -> 852 | AL7: 1 | AM7: =IF(AK6<1,"",VLOOKUP(1,U6:W70,2,FALSE)) -> VRŠOVICE I. | AN7: =IF(AK6<1,"",VLOOKUP(1,U6:W70,3,FALSE)) -> 3891 | BA7: VRŠOVICE I.
B8: =IF(F8="","",N8) -> 18 | E8: Ondřich František | F8: 175 | G8: 163 | H8: 149 | I8: 119 | J8: 143 | K8: =SUM(F8:J8) -> 749 | L8: 175 | M8: =SUM(K8*1000)+L8+0.053 -> 749175.053 | N8: =IF(F8="","",RANK(M8,M6:M71,0)) -> 18 | AG8: =SUM(AG7+1) -> 3 | AH8: =IF(AF6<3,"",VLOOKUP(3,B6:N70,4,FALSE)) -> Krupa Jozef | AI8: =IF(AF6<3,"",VLOOKUP(3,B6:N70,10,FALSE)) -> 844 | AL8: 2 | AM8: =IF(AK6<2,"",VLOOKUP(2,U6:W70,2,FALSE)) -> ŘEPY I. | AN8: =IF(AK6<2,"",VLOOKUP(2,U6:W70,3,FALSE)) -> 3853 | BA8: KLÍČOV I.
B9: =IF(F9="","",N9) -> 2 | E9: Mašát Petr | F9: 170 | G9: 166 | H9: 164 | I9: 160 | J9: 192 | K9: =SUM(F9:J9) -> 852 | L9: 192 | M9: =SUM(K9*1000)+L9+0.052 -> 852192.052 | N9: =IF(F9="","",RANK(M9,M6:M70,0)) -> 2 | AG9: 4 | AH9: =IF(AF6<4,"",VLOOKUP(4,B6:N70,4,FALSE)) -> Lazur Michal | AI9: =IF(AF6<4,"",VLOOKUP(4,B6:N70,10,FALSE)) -> 829 | AL9: 3 | AM9: =IF(AK6<3,"",VLOOKUP(3,U6:W70,2,FALSE)) -> KAČEROV I. | AN9: =IF(AK6<3,"",VLOOKUP(3,U6:W70,3,FALSE)) -> 3835 | BA9: ŘEPY I.
B10: =IF(F10="","",N10) -> 20 | E10: Carvan Pavel | F10: 113 | G10: 138 | H10: 155 | I10: 159 | J10: 183 | K10: =SUM(F10:J10) -> 748 | L10: 183 | M10: =SUM(K10*1000)+L10+0.051 -> 748183.051 | N10: =IF(F10="","",RANK(M10,M6:M70,0)) -> 20 | AG10: 5 | AH10: =IF(AF6<5,"",VLOOKUP(5,B6:N70,4,FALSE)) -> Kocůr Jaroslav | AI10: =IF(AF6<5,"",VLOOKUP(5,B6:N70,10,FALSE)) -> 827 | AL10: 4 | AM10: =IF(AK6<4,"",VLOOKUP(4,U6:W70,2,FALSE)) -> HOSTIVAŘ I. | AN10: =IF(AK6<4,"",VLOOKUP(4,U6:W70,3,FALSE)) -> 3783 | BA10: KAČEROV I.
F11: =SUM(F6:F10) -> 732 | G11: =SUM(G6:G10) -> 757 | H11: =SUM(H6:H10) -> 775 | I11: =SUM(I6:I10) -> 699 | J11: =SUM(J6:J10) -> 872 | L11: 872 | O11: =SUM(F11:J11) -> 3835 | P11: =MAX(F11:J11)+0.01 -> 872.01 | Q11: =IF(F6="","",SUM(O11*1000)+P11) -> 3835872.01 | AG11: 6 | AH11: =IF(AF6<6,"",VLOOKUP(6,B6:N70,4,FALSE)) -> Kolář Ladislav | AI11: =IF(AF6<6,"",VLOOKUP(6,B6:N70,10,FALSE)) -> 826 | AL11: 5 | AM11: =IF(AK6<5,"",VLOOKUP(5,U6:W70,2,FALSE)) -> KLÍČOV I. | AN11: =IF(AK6<5,"",VLOOKUP(5,U6:W70,3,FALSE)) -> 3643
B12: =IF(F12="","",N12) -> 27 | C12: 2 | D12: KAČEROV II. | E12: Douša Adam | F12: 132 | G12: 173 | H12: 137 | I12: 151 | J12: 119 | K12: =SUM(F12:J12) -> 712 | L12: 173 | M12: =SUM(K12*1000)+L12+0.05 -> 712173.05 | N12: =IF(F12="","",RANK(M12,M6:M70,0)) -> 27 | R12: =IF(F12="","",RANK(Q17,Q11:Q71,0)) -> 7 | U12: =IF(R12="","",R12) -> 7 | V12: =IF(D12="","",D12) -> KAČEROV II. | W12: =IF(O17="","",O17) -> 3557 | AG12: 7 | AH12: =IF(AF6<7,"",VLOOKUP(7,B6:N70,4,FALSE)) -> Šafařík Luděk | AI12: =IF(AF6<7,"",VLOOKUP(7,B6:N70,10,FALSE)) -> 812 | AL12: 6 | AM12: =IF(AK6<6,"",VLOOKUP(6,U6:W70,2,FALSE)) -> ŘEPY II. | AN12: =IF(AK6<6,"",VLOOKUP(6,U6:W70,3,FALSE)) -> 3576
B13: =IF(F13="","",N13) -> 23 | E13: Tomášek Zdeněk | F13: 101 | G13: 150 | H13: 169 | I13: 168 | J13: 133 | K13: =SUM(F13:J13) -> 721 | L13: 169 | M13: =SUM(K13*1000)+L13+0.049 -> 721169.049 | N13: =IF(F13="","",RANK(M13,M6:M70,0)) -> 23 | AG13: 8 | AH13: =IF(AF6<8,"",VLOOKUP(8,B6:N70,4,FALSE)) -> Dvořák Petr | AI13: =IF(AF6<8,"",VLOOKUP(8,B6:N70,10,FALSE)) -> 799 | AL13: 7 | AM13: =IF(AK6<7,"",VLOOKUP(7,U6:W70,2,FALSE)) -> KAČEROV II. | AN13: =IF(AK6<7,"",VLOOKUP(7,U6:W70,3,FALSE)) -> 3557
B14: =IF(F14="","",N14) -> 44 | E14: Kutina Pavel | F14: 144 | G14: 99 | H14: 122 | I14: 168 | J14: 118 | K14: =SUM(F14:J14) -> 651 | L14: 168 | M14: =SUM(K14*1000)+L14+0.048 -> 651168.048 | N14: =IF(F14="","",RANK(M14,M6:M70,0)) -> 44 | AG14: 9 | AH14: =IF(AF6<9,"",VLOOKUP(9,B6:N70,4,FALSE)) -> Pospíšil Václav | AI14: =IF(AF6<9,"",VLOOKUP(9,B6:N70,10,FALSE)) -> 791 | AL14: 8 | AM14: =IF(AK6<8,"",VLOOKUP(8,U6:W70,2,FALSE)) -> ŘEPY III. | AN14: =IF(AK6<8,"",VLOOKUP(8,U6:W70,3,FALSE)) -> 3226
B15: =IF(F15="","",N15) -> 13 | E15: Brož Stanislav | F15: 132 | G15: 174 | H15: 149 | I15: 140 | J15: 162 | K15: =SUM(F15:J15) -> 757 | L15: 174 | M15: =SUM(K15*1000)+L15+0.047 -> 757174.047 | N15: =IF(F15="","",RANK(M15,M6:M700,0)) -> 13 | AG15: 10 | AH15: =IF(AF6<10,"",VLOOKUP(10,B6:N70,4,FALSE)) -> Štěpánek Radek | AI15: =IF(AF6<10,"",VLOOKUP(10,B6:N70,10,FALSE)) -> 776 | AL15: 9 | AM15: =IF(AK6<9,"",VLOOKUP(9,U6:W70,2,FALSE)) -> HOSTIVAŘ II. | AN15: =IF(AK6<9,"",VLOOKUP(9,U6:W70,3,FALSE)) -> 3195
B16: =IF(F16="","",N16) -> 25 | E16: Radová Petra | F16: 125 | G16: 158 | H16: 118 | I16: 183 | J16: 132 | K16: =SUM(F16:J16) -> 716 | L16: 183 | M16: =SUM(K16*1000)+L16+0.046 -> 716183.046 | N16: =IF(F16="","",RANK(M16,M6:M70,0)) -> 25 | AG16: 11 | AH16: =IF(AF6<11,"",VLOOKUP(11,B6:N70,4,FALSE)) -> Froněk Martin | AI16: =IF(AF6<11,"",VLOOKUP(11,B6:N70,10,FALSE)) -> 772 | AL16: 10 | AM16: =IF(AK6<10,"",VLOOKUP(10,U6:W70,2,FALSE)) -> KLÍČOV II. | AN16: =IF(AK6<10,"",VLOOKUP(10,U6:W70,3,FALSE)) -> 3164
F17: =SUM(F12:F16) -> 634 | G17: =SUM(G12:G16) -> 754 | H17: =SUM(H12:H16) -> 695 | I17: =SUM(I12:I16) -> 810 | J17: =SUM(J12:J16) -> 664 | O17: =SUM(F17:J17) -> 3557 | P17: =MAX(F17:J17)+0.009 -> 810.009 | Q17: =IF(F12="","",SUM(O17*1000)+P17) -> 3557810.009 | AC17: =SUM(O11,O17) -> 7392 | AG17: 12 | AH17: =IF(AF6<12,"",VLOOKUP(12,B6:N70,4,FALSE)) -> Ekert Stanislav | AI17: =IF(AF6<12,"",VLOOKUP(12,B6:N70,10,FALSE)) -> 761 | AL17: 11 | AM17: =IF(AK6<11,"",VLOOKUP(11,U6:W70,2,FALSE)) -> VRŠOVICE II. | AN17: =IF(AK6<11,"",VLOOKUP(11,U6:W70,3,FALSE)) -> 2933
B18: =IF(F18="","",N18) -> 16 | C18: 3 | D18: HOSTIVAŘ I. | E18: Berger Michal | F18: 166 | G18: 185 | H18: 140 | I18: 145 | J18: 115 | K18: =SUM(F18:J18) -> 751 | L18: =MAX(F18:J18) -> 185 | M18: =SUM(K18*1000)+L18+0.045 -> 751185.045 | N18: =IF(F18="","",RANK(M18,M6:M70,0)) -> 16 | R18: =IF(F18="","",RANK(Q23,Q11:Q71,0)) -> 4 | T18: =IF(F18="","",RANK(AA18,AA6:AA64,0)) -> 3 | U18: =IF(R18="","",R18) -> 4 | V18: =IF(D18="","",D18) -> HOSTIVAŘ I. | W18: =IF(O23="","",O23) -> 3783 | X18: =IF(V18="HOSTIVAŘ I.","GARÁŽ HOSTIVAŘ",IF(V18="VRŠOVICE I.","GARÁŽ VRŠOVICE",IF(V18="KLÍČOV I.","GARÁŽ KLÍČOV",IF(V18="ŘEPY I.","GARÁŽ ŘEPY",IF(V18="KAČEROV I.","GARÁŽ KAČEROV",""))))) -> GARÁŽ HOSTIVAŘ | Y18: =MAX(F23:J23,F29:J29)+0.04 -> 852.04 | Z18: =SUM(O23,O29)*1000 -> 6978000 | AA18: =SUM(Y18:Z18) -> 6978852.04 | AB18: =IF(AC29="","",AC29) -> 6978 | AD18: =IF(T18="","",T18) -> 3 | AG18: 13 | AH18: =IF(AF6<13,"",VLOOKUP(13,B6:N70,4,FALSE)) -> Brož Stanislav | AI18: =IF(AF6<13,"",VLOOKUP(13,B6:N70,10,FALSE)) -> 757
B19: =IF(F19="","",N19) -> 38 | E19: Křápek Roman | F19: 130 | G19: 132 | H19: 160 | I19: 128 | J19: 129 | K19: =SUM(F19:J19) -> 679 | L19: =MAX(F19:J19) -> 160 | M19: =SUM(K19*1000)+L19+0.044 -> 679160.044 | N19: =IF(F19="","",RANK(M19,M6:M70,0)) -> 38 | AG19: 14 | AH19: =IF(AF6<14,"",VLOOKUP(14,B6:N70,4,FALSE)) -> Liebich František | AI19: =IF(AF6<14,"",VLOOKUP(14,B6:N70,10,FALSE)) -> 756 | AK19: =COUNT(T6:T64) -> 5 | AL19: POŘEDÍ GARÁŽÍ
B20: =IF(F20="","",N20) -> 26 | E20: Růžička Ladislav | F20: 115 | G20: 190 | H20: 116 | I20: 151 | J20: 140 | K20: =SUM(F20:J20) -> 712 | L20: =MAX(F20:J20) -> 190 | M20: =SUM(K20*1000)+L20+0.043 -> 712190.043 | N20: =IF(F20="","",RANK(M20,M6:M70,0)) -> 26 | AG20: 15 | AH20: =IF(AF6<15,"",VLOOKUP(15,B6:N70,4,FALSE)) -> Novotný Lukáš | AI20: =IF(AF6<15,"",VLOOKUP(15,B6:N70,10,FALSE)) -> 755 | AL20: 1 | AM20: =IF(AK19<1,"",VLOOKUP(1,T6:AB64,5,FALSE)) -> GARÁŽ ŘEPY | AN20: =IF(AK19<1,"",VLOOKUP(1,T6:AB64,9,FALSE)) -> 7429
B21: =IF(F21="","",N21) -> 7 | E21: Šafařík Luděk | F21: 160 | G21: 186 | H21: 178 | I21: 138 | J21: 150 | K21: =SUM(F21:J21) -> 812 | L21: =MAX(F21:J21) -> 186 | M21: =SUM(K21*1000)+L21+0.042 -> 812186.042 | N21: =IF(F21="","",RANK(M21,M6:M70,0)) -> 7 | AG21: 16 | AH21: =IF(AF6<16,"",VLOOKUP(16,B6:N70,4,FALSE)) -> Berger Michal | AI21: =IF(AF6<16,"",VLOOKUP(16,B6:N70,10,FALSE)) -> 751 | AL21: 2 | AM21: =IF(AK19<2,"",VLOOKUP(2,T6:AB64,5,FALSE)) -> GARÁŽ KAČEROV | AN21: =IF(AK19<2,"",VLOOKUP(2,T6:AB64,9,FALSE)) -> 7392
B22: =IF(F22="","",N22) -> 4 | E22: Lazur Michal | F22: 151 | G22: 159 | H22: 139 | I22: 157 | J22: 223 | K22: =SUM(F22:J22) -> 829 | L22: =MAX(F22:J22) -> 223 | M22: =SUM(K22*1000)+L22+0.041 -> 829223.041 | N22: =IF(F22="","",RANK(M22,M6:M70,0)) -> 4 | AG22: 17 | AH22: =IF(AF6<17,"",VLOOKUP(17,B6:N70,4,FALSE)) -> Turek Stanislav | AI22: =IF(AF6<17,"",VLOOKUP(17,B6:N70,10,FALSE)) -> 749 | AL22: 3 | AM22: =IF(AK19<3,"",VLOOKUP(3,T6:AB64,5,FALSE)) -> GARÁŽ HOSTIVAŘ | AN22: =IF(AK19<3,"",VLOOKUP(3,T6:AB64,9,FALSE)) -> 6978
F23: =SUM(F18:F22) -> 722 | G23: =SUM(G18:G22) -> 852 | H23: =SUM(H18:H22) -> 733 | I23: =SUM(I18:I22) -> 719 | J23: =SUM(J18:J22) -> 757 | O23: =SUM(F23:J23) -> 3783 | P23: =MAX(F23:J23)+0.008 -> 852.008 | Q23: =IF(F18="","",SUM(O23*1000)+P23) -> 3783852.008 | AG23: 18 | AH23: =IF(AF6<18,"",VLOOKUP(18,B6:N70,4,FALSE)) -> Ondřich František | AI23: =IF(AF6<18,"",VLOOKUP(18,B6:N70,10,FALSE)) -> 749 | AL23: 4 | AM23: =IF(AK19<4,"",VLOOKUP(4,T6:AB64,5,FALSE)) -> GARÁŽ VRŠOVICE | AN23: =IF(AK19<4,"",VLOOKUP(4,T6:AB64,9,FALSE)) -> 6824
B24: =IF(F24="","",N24) -> 33 | C24: 4 | D24: HOSTIVAŘ II. | E24: Čermák Tomáš | F24: 141 | G24: 110 | H24: 168 | I24: 132 | J24: 143 | K24: =SUM(F24:J24) -> 694 | L24: =MAX(F24:J24) -> 168 | M24: =SUM(K24*1000)+L24+0.04 -> 694168.04 | N24: =IF(F24="","",RANK(M24,M6:M70,0)) -> 33 | R24: =IF(F24="","",RANK(Q29,Q11:Q71,0)) -> 9 | U24: =IF(R24="","",R24) -> 9 | V24: =IF(D24="","",D24) -> HOSTIVAŘ II. | W24: =IF(O29="","",O29) -> 3195 | AG24: 19 | AH24: =IF(AF6<19,"",VLOOKUP(19,B6:N70,4,FALSE)) -> Holkup Jan | AI24: =IF(AF6<19,"",VLOOKUP(19,B6:N70,10,FALSE)) -> 748 | AL24: 5 | AM24: =IF(AK19<5,"",VLOOKUP(5,T6:AB64,5,FALSE)) -> GARÁŽ KLÍČOV | AN24: =IF(AK19<5,"",VLOOKUP(5,T6:AB64,9,FALSE)) -> 6807
B25: =IF(F25="","",N25) -> 41 | E25: Mysliveček Jaroslav | F25: 159 | G25: 113 | H25: 132 | I25: 147 | J25: 116 | K25: =SUM(F25:J25) -> 667 | L25: =MAX(F25:J25) -> 159 | M25: =SUM(K25*1000)+L25+0.039 -> 667159.039 | N25: =IF(F25="","",RANK(M25,M6:M70,0)) -> 41 | AG25: 20 | AH25: =IF(AF6<20,"",VLOOKUP(20,B6:N70,4,FALSE)) -> Carvan Pavel | AI25: =IF(AF6<20,"",VLOOKUP(20,B6:N70,10,FALSE)) -> 748
B26: =IF(F26="","",N26) -> 48 | E26: Jelínek Jan | F26: 114 | G26: 111 | H26: 130 | I26: 138 | J26: 113 | K26: =SUM(F26:J26) -> 606 | L26: =MAX(F26:J26) -> 138 | M26: =SUM(K26*1000)+L26+0.038 -> 606138.038 | N26: =IF(F26="","",RANK(M26,M6:M70,0)) -> 48 | AG26: 21 | AH26: =IF(AF6<21,"",VLOOKUP(21,B6:N70,4,FALSE)) -> Hübner Jiří | AI26: =IF(AF6<21,"",VLOOKUP(21,B6:N70,10,FALSE)) -> 737
B27: =IF(F27="","",N27) -> 47 | E27: Lazurová Jiřina | F27: 141 | G27: 135 | H27: 122 | I27: 103 | J27: 105 | K27: =SUM(F27:J27) -> 606 | L27: =MAX(F27:J27) -> 141 | M27: =SUM(K27*1000)+L27+0.037 -> 606141.037 | N27: =IF(F27="","",RANK(M27,M6:M70,0)) -> 47 | AG27: 22 | AH27: =IF(AF6<22,"",VLOOKUP(22,B6:N70,4,FALSE)) -> Kalfiřt Petr | AI27: =IF(AF6<22,"",VLOOKUP(22,B6:N70,10,FALSE)) -> 722
B28: =IF(F28="","",N28) -> 45 | E28: Šafář Ladislav | F28: 125 | G28: 123 | H28: 125 | I28: 128 | J28: 121 | K28: =SUM(F28:J28) -> 622 | L28: =MAX(F28:J28) -> 128 | M28: =SUM(K28*1000)+L28+0.036 -> 622128.036 | N28: =IF(F28="","",RANK(M28,M6:M70,0)) -> 45 | AG28: 23 | AH28: =IF(AF6<23,"",VLOOKUP(23,B6:N70,4,FALSE)) -> Tomášek Zdeněk | AI28: =IF(AF6<23,"",VLOOKUP(23,B6:N70,10,FALSE)) -> 721
F29: =SUM(F24:F28) -> 680 | G29: =SUM(G24:G28) -> 592 | H29: =SUM(H24:H28) -> 677 | I29: =SUM(I24:I28) -> 648 | J29: =SUM(J24:J28) -> 598 | O29: =SUM(F29:J29) -> 3195 | P29: =MAX(F29:J29)+0.007 -> 680.007 | Q29: =IF(F24="","",SUM(O29*1000)+P29) -> 3195680.007 | AC29: =SUM(O23,O29) -> 6978 | AG29: 24 | AH29: =IF(AF6<24,"",VLOOKUP(24,B6:N70,4,FALSE)) -> Kročil Tomáš | AI29: =IF(AF6<24,"",VLOOKUP(24,B6:N70,10,FALSE)) -> 721
B30: =IF(F30="","",N30) -> 3 | C30: 5 | D30: VRŠOVICE I. | E30: Krupa Jozef | F30: 135 | G30: 202 | H30: 188 | I30: 170 | J30: 149 | K30: =SUM(F30:J30) -> 844 | L30: =MAX(F30:J30) -> 202 | M30: =SUM(K30*1000)+L30+0.035 -> 844202.035 | N30: =IF(F30="","",RANK(M30,M6:M70,0)) -> 3 | R30: =IF(F30="","",RANK(Q35,Q11:Q71,0)) -> 1 | T30: =IF(F30="","",RANK(AA30,AA6:AA64,0)) -> 4 | U30: =IF(R30="","",R30) -> 1 | V30: =IF(D30="","",D30) -> VRŠOVICE I. | W30: =IF(O35="","",O35) -> 3891 | X30: =IF(V30="HOSTIVAŘ I.","GARÁŽ HOSTIVAŘ",IF(V30="VRŠOVICE I.","GARÁŽ VRŠOVICE",IF(V30="KLÍČOV I.","GARÁŽ KLÍČOV",IF(V30="ŘEPY I.","GARÁŽ ŘEPY",IF(V30="KAČEROV I.","GARÁŽ KAČEROV",""))))) -> GARÁŽ VRŠOVICE | Y30: =MAX(F35:J35,F41:J41)+0.03 -> 838.03 | Z30: =SUM(O35,O41)*1000 -> 6824000 | AA30: =SUM(Y30:Z30) -> 6824838.03 | AB30: =IF(AC41="","",AC41) -> 6824 | AD30: =IF(T30="","",T30) -> 4 | AG30: 25 | AH30: =IF(AF6<25,"",VLOOKUP(25,B6:N70,4,FALSE)) -> Radová Petra | AI30: =IF(AF6<25,"",VLOOKUP(25,B6:N70,10,FALSE)) -> 716
B31: =IF(F31="","",N31) -> 1 | E31: Podhola Martin | F31: 133 | G31: 162 | H31: 207 | I31: 176 | J31: 179 | K31: =SUM(F31:J31) -> 857 | L31: =MAX(F31:J31) -> 207 | M31: =SUM(K31*1000)+L31+0.034 -> 857207.034 | N31: =IF(F31="","",RANK(M31,M6:M70,0)) -> 1 | AG31: 26 | AH31: =IF(AF6<26,"",VLOOKUP(26,B6:N70,4,FALSE)) -> Růžička Ladislav | AI31: =IF(AF6<26,"",VLOOKUP(26,B6:N70,10,FALSE)) -> 712
B32: =IF(F32="","",N32) -> 19 | E32: Holkup Jan | F32: 91 | G32: 132 | H32: 172 | I32: 190 | J32: 163 | K32: =SUM(F32:J32) -> 748 | L32: =MAX(F32:J32) -> 190 | M32: =SUM(K32*1000)+L32+0.033 -> 748190.033 | N32: =IF(F32="","",RANK(M32,M6:M70,0)) -> 19 | AG32: 27 | AH32: =IF(AF6<27,"",VLOOKUP(27,B6:N70,4,FALSE)) -> Douša Adam | AI32: =IF(AF6<27,"",VLOOKUP(27,B6:N70,10,FALSE)) -> 712
B33: =IF(F33="","",N33) -> 34 | E33: Skružná Pavla | F33: 161 | G33: 147 | H33: 134 | I33: 135 | J33: 109 | K33: =SUM(F33:J33) -> 686 | L33: =MAX(F33:J33) -> 161 | M33: =SUM(K33*1000)+L33+0.032 -> 686161.032 | N33: =IF(F33="","",RANK(M33,M6:M70,0)) -> 34 | AG33: 28 | AH33: =IF(AF6<28,"",VLOOKUP(28,B6:N70,4,FALSE)) -> Bošek Jan | AI33: =IF(AF6<28,"",VLOOKUP(28,B6:N70,10,FALSE)) -> 710
B34: =IF(F34="","",N34) -> 14 | E34: Liebich František | F34: 159 | G34: 140 | H34: 137 | I34: 149 | J34: 171 | K34: =SUM(F34:J34) -> 756 | L34: =MAX(F34:J34) -> 171 | M34: =SUM(K34*1000)+L34+0.031 -> 756171.031 | N34: =IF(F34="","",RANK(M34,M6:M70,0)) -> 14 | AG34: 29 | AH34: =IF(AF6<29,"",VLOOKUP(29,B6:N70,4,FALSE)) -> Křikavová Miroslava | AI34: =IF(AF6<29,"",VLOOKUP(29,B6:N70,10,FALSE)) -> 709
F35: =SUM(F30:F34) -> 679 | G35: =SUM(G30:G34) -> 783 | H35: =SUM(H30:H34) -> 838 | I35: =SUM(I30:I34) -> 820 | J35: =SUM(J30:J34) -> 771 | O35: =SUM(F35:J35) -> 3891 | P35: =MAX(F35:J35)+0.006 -> 838.006 | Q35: =IF(F30="","",SUM(O35*1000)+P35) -> 3891838.006 | AG35: 30 | AH35: =IF(AF6<30,"",VLOOKUP(30,B6:N70,4,FALSE)) -> Pecka Jiří | AI35: =IF(AF6<30,"",VLOOKUP(30,B6:N70,10,FALSE)) -> 709
B36: =IF(F36="","",N36) -> 53 | C36: 6 | D36: VRŠOVICE II. | E36: Aunický Ftantišek | F36: 77 | G36: 122 | H36: 133 | I36: 104 | J36: 94 | K36: =SUM(F36:J36) -> 530 | L36: =MAX(F36:J36) -> 133 | M36: =SUM(K36*1000)+L36+0.03 -> 530133.03 | N36: =IF(F36="","",RANK(M36,M6:M70,0)) -> 53 | R36: =IF(F36="","",RANK(Q41,Q11:Q71,0)) -> 11 | U36: =IF(R36="","",R36) -> 11 | V36: =IF(D36="","",D36) -> VRŠOVICE II. | W36: =IF(O41="","",O41) -> 2933 | AG36: 31 | AH36: =IF(AF6<31,"",VLOOKUP(31,B6:N70,4,FALSE)) -> Ekert Michal | AI36: =IF(AF6<31,"",VLOOKUP(31,B6:N70,10,FALSE)) -> 701
B37: =IF(F37="","",N37) -> 55 | E37: Liebichová Inke | F37: 90 | G37: 89 | H37: 69 | I37: 77 | J37: 108 | K37: =SUM(F37:J37) -> 433 | L37: =MAX(F37:J37) -> 108 | M37: =SUM(K37*1000)+L37+0.029 -> 433108.029 | N37: =IF(F37="","",RANK(M37,M6:M70,0)) -> 55 | AG37: 32 | AH37: =IF(AF6<32,"",VLOOKUP(32,B6:N70,4,FALSE)) -> Sladovník Miloslav | AI37: =IF(AF6<32,"",VLOOKUP(32,B6:N70,10,FALSE)) -> 694
B38: =IF(F38="","",N38) -> 39 | E38: Veselý Vlastimil | F38: 116 | G38: 119 | H38: 176 | I38: 115 | J38: 149 | K38: =SUM(F38:J38) -> 675 | L38: =MAX(F38:J38) -> 176 | M38: =SUM(K38*1000)+L38+0.028 -> 675176.028 | N38: =IF(F38="","",RANK(M38,M6:M70,0)) -> 39 | AG38: 33 | AH38: =IF(AF6<33,"",VLOOKUP(33,B6:N70,4,FALSE)) -> Čermák Tomáš | AI38: =IF(AF6<33,"",VLOOKUP(33,B6:N70,10,FALSE)) -> 694
B39: =IF(F39="","",N39) -> 51 | E39: Fay Vlastimil | F39: 112 | G39: 127 | H39: 97 | I39: 138 | J39: 111 | K39: =SUM(F39:J39) -> 585 | L39: =MAX(F39:J39) -> 138 | M39: =SUM(K39*1000)+L39+0.027 -> 585138.027 | N39: =IF(F39="","",RANK(M39,M6:M70,0)) -> 51 | AG39: 34 | AH39: =IF(AF6<34,"",VLOOKUP(34,B6:N70,4,FALSE)) -> Skružná Pavla | AI39: =IF(AF6<34,"",VLOOKUP(34,B6:N70,10,FALSE)) -> 686
B40: =IF(F40="","",N40) -> 28 | E40: Bošek Jan | F40: 157 | G40: 119 | H40: 139 | I40: 129 | J40: 166 | K40: =SUM(F40:J40) -> 710 | L40: =MAX(F40:J40) -> 166 | M40: =SUM(K40*1000)+L40+0.026 -> 710166.026 | N40: =IF(F40="","",RANK(M40,M6:M70,0)) -> 28 | AG40: 35 | AH40: =IF(AF6<35,"",VLOOKUP(35,B6:N70,4,FALSE)) -> Lokvenc Jiří | AI40: =IF(AF6<35,"",VLOOKUP(35,B6:N70,10,FALSE)) -> 684
F41: =SUM(F36:F40) -> 552 | G41: =SUM(G36:G40) -> 576 | H41: =SUM(H36:H40) -> 614 | I41: =SUM(I36:I40) -> 563 | J41: =SUM(J36:J40) -> 628 | O41: =SUM(F41:J41) -> 2933 | P41: =MAX(F41:J41)+0.005 -> 628.005 | Q41: =IF(F36="","",SUM(O41*1000)+P41) -> 2933628.005 | AC41: =SUM(O35,O41) -> 6824 | AG41: 36 | AH41: =IF(AF6<36,"",VLOOKUP(36,B6:N70,4,FALSE)) -> Křikava Miroslav | AI41: =IF(AF6<36,"",VLOOKUP(36,B6:N70,10,FALSE)) -> 681
B42: =IF(F42="","",N42) -> 30 | C42: 7 | D42: KLÍČOV I. | E42: Pecka Jiří | F42: 154 | G42: 125 | H42: 148 | I42: 138 | J42: 144 | K42: =SUM(F42:J42) -> 709 | L42: =MAX(F42:J42) -> 154 | M42: =SUM(K42*1000)+L42+0.025 -> 709154.025 | N42: =IF(F42="","",RANK(M42,M6:M70,0)) -> 30 | R42: =IF(F42="","",RANK(Q47,Q11:Q71,0)) -> 5 | T42: =IF(F42="","",RANK(AA42,AA6:AA64,0)) -> 5 | U42: =IF(R42="","",R42) -> 5 | V42: =IF(D42="","",D42) -> KLÍČOV I. | W42: =IF(O47="","",O47) -> 3643 | X42: =IF(V42="HOSTIVAŘ I.","GARÁŽ HOSTIVAŘ",IF(V42="VRŠOVICE I.","GARÁŽ VRŠOVICE",IF(V42="KLÍČOV I.","GARÁŽ KLÍČOV",IF(V42="ŘEPY I.","GARÁŽ ŘEPY",IF(V42="KAČEROV I.","GARÁŽ KAČEROV",""))))) -> GARÁŽ KLÍČOV | Y42: =MAX(F47:J47,F53:J53)+0.02 -> 759.02 | Z42: =SUM(O47,O53)*1000 -> 6807000 | AA42: =SUM(Y42:Z42) -> 6807759.02 | AB42: =IF(AC53="","",AC53) -> 6807 | AD42: =IF(T42="","",T42) -> 5 | AG42: 37 | AH42: =IF(AF6<37,"",VLOOKUP(37,B6:N70,4,FALSE)) -> Troller Pavel | AI42: =IF(AF6<37,"",VLOOKUP(37,B6:N70,10,FALSE)) -> 681
B43: =IF(F43="","",N43) -> 15 | E43: Novotný Lukáš | F43: 145 | G43: 163 | H43: 148 | I43: 160 | J43: 139 | K43: =SUM(F43:J43) -> 755 | L43: =MAX(F43:J43) -> 163 | M43: =SUM(K43*1000)+L43+0.024 -> 755163.024 | N43: =IF(F43="","",RANK(M43,M6:M70,0)) -> 15 | AG43: 38 | AH43: =IF(AF6<38,"",VLOOKUP(38,B6:N70,4,FALSE)) -> Křápek Roman | AI43: =IF(AF6<38,"",VLOOKUP(38,B6:N70,10,FALSE)) -> 679
B44: =IF(F44="","",N44) -> 10 | E44: Štěpánek Radek | F44: 145 | G44: 129 | H44: 167 | I44: 165 | J44: 170 | K44: =SUM(F44:J44) -> 776 | L44: =MAX(F44:J44) -> 170 | M44: =SUM(K44*1000)+L44+0.023 -> 776170.023 | N44: =IF(F44="","",RANK(M44,M6:M70,0)) -> 10 | AG44: 39 | AH44: =IF(AF6<39,"",VLOOKUP(39,B6:N70,4,FALSE)) -> Veselý Vlastimil | AI44: =IF(AF6<39,"",VLOOKUP(39,B6:N70,10,FALSE)) -> 675
B45: =IF(F45="","",N45) -> 22 | E45: Kalfiřt Petr | F45: 133 | G45: 159 | H45: 155 | I45: 149 | J45: 126 | K45: =SUM(F45:J45) -> 722 | L45: =MAX(F45:J45) -> 159 | M45: =SUM(K45*1000)+L45+0.022 -> 722159.022 | N45: =IF(F45="","",RANK(M45,M6:M70,0)) -> 22 | AG45: 40 | AH45: =IF(AF6<40,"",VLOOKUP(40,B6:N70,4,FALSE)) -> Červenka Ivan | AI45: =IF(AF6<40,"",VLOOKUP(40,B6:N70,10,FALSE)) -> 668
B46: =IF(F46="","",N46) -> 37 | E46: Troller Pavel | F46: 132 | G46: 128 | H46: 141 | I46: 132 | J46: 148 | K46: =SUM(F46:J46) -> 681 | L46: =MAX(F46:J46) -> 148 | M46: =SUM(K46*1000)+L46+0.021 -> 681148.021 | N46: =IF(F46="","",RANK(M46,M6:M70,0)) -> 37 | AG46: 41 | AH46: =IF(AF6<41,"",VLOOKUP(41,B6:N70,4,FALSE)) -> Mysliveček Jaroslav | AI46: =IF(AF6<41,"",VLOOKUP(41,B6:N70,10,FALSE)) -> 667
F47: =SUM(F42:F46) -> 709 | G47: =SUM(G42:G46) -> 704 | H47: =SUM(H42:H46) -> 759 | I47: =SUM(I42:I46) -> 744 | J47: =SUM(J42:J46) -> 727 | O47: =SUM(F47:J47) -> 3643 | P47: =MAX(F47:J47)+0.004 -> 759.004 | Q47: =IF(F42="","",SUM(O47*1000)+P47) -> 3643759.004 | AG47: 42 | AH47: =IF(AF6<42,"",VLOOKUP(42,B6:N70,4,FALSE)) -> Alba Vladimír | AI47: =IF(AF6<42,"",VLOOKUP(42,B6:N70,10,FALSE)) -> 654
B48: =IF(F48="","",N48) -> 52 | C48: 8 | D48: KLÍČOV II. | E48: Novotná Petra | F48: 91 | G48: 145 | H48: 110 | I48: 130 | J48: 99 | K48: =SUM(F48:J48) -> 575 | L48: =MAX(F48:J48) -> 145 | M48: =SUM(K48*1000)+L48+0.02 -> 575145.02 | N48: =IF(F48="","",RANK(M48,M6:M70,0)) -> 52 | R48: =IF(F48="","",RANK(Q53,Q11:Q71,0)) -> 10 | U48: =IF(R48="","",R48) -> 10 | V48: =IF(D48="","",D48) -> KLÍČOV II. | W48: =IF(O53="","",O53) -> 3164 | AG48: 43 | AH48: =IF(AF6<43,"",VLOOKUP(43,B6:N70,4,FALSE)) -> Růžička Václav | AI48: =IF(AF6<43,"",VLOOKUP(43,B6:N70,10,FALSE)) -> 653
B49: =IF(F49="","",N49) -> 50 | E49: Neshyba Jaroslav | F49: 139 | G49: 94 | H49: 113 | I49: 97 | J49: 144 | K49: =SUM(F49:J49) -> 587 | L49: =MAX(F49:J49) -> 144 | M49: =SUM(K49*1000)+L49+0.019 -> 587144.019 | N49: =IF(F49="","",RANK(M49,M6:M70,0)) -> 50 | AG49: 44 | AH49: =IF(AF6<44,"",VLOOKUP(44,B6:N70,4,FALSE)) -> Kutina Pavel | AI49: =IF(AF6<44,"",VLOOKUP(44,B6:N70,10,FALSE)) -> 651
B50: =IF(F50="","",N50) -> 54 | E50: Doman Marcel | F50: 93 | G50: 99 | H50: 90 | I50: 87 | J50: 123 | K50: =SUM(F50:J50) -> 492 | L50: =MAX(F50:J50) -> 123 | M50: =SUM(K50*1000)+L50+0.018 -> 492123.018 | N50: =IF(F50="","",RANK(M50,M6:M70,0)) -> 54 | AG50: 45 | AH50: =IF(AF6<45,"",VLOOKUP(45,B6:N70,4,FALSE)) -> Šafář Ladislav | AI50: =IF(AF6<45,"",VLOOKUP(45,B6:N70,10,FALSE)) -> 622
B51: =IF(F51="","",N51) -> 6 | E51: Kolář Ladislav | F51: 128 | G51: 171 | H51: 134 | I51: 176 | J51: 217 | K51: =SUM(F51:J51) -> 826 | L51: =MAX(F51:J51) -> 217 | M51: =SUM(K51*1000)+L51+0.017 -> 826217.017 | N51: =IF(F51="","",RANK(M51,M6:M70,0)) -> 6 | AG51: 46 | AH51: =IF(AF6<46,"",VLOOKUP(46,B6:N70,4,FALSE)) -> Mottl Pavel | AI51: =IF(AF6<46,"",VLOOKUP(46,B6:N70,10,FALSE)) -> 621
B52: =IF(F52="","",N52) -> 35 | E52: Lokvenc Jiří | F52: 122 | G52: 146 | H52: 148 | I52: 141 | J52: 127 | K52: =SUM(F52:J52) -> 684 | L52: =MAX(F52:J52) -> 148 | M52: =SUM(K52*1000)+L52+0.016 -> 684148.016 | N52: =IF(F52="","",RANK(M52,M6:M70,0)) -> 35 | AG52: 47 | AH52: =IF(AF6<47,"",VLOOKUP(47,B6:N70,4,FALSE)) -> Lazurová Jiřina | AI52: =IF(AF6<47,"",VLOOKUP(47,B6:N70,10,FALSE)) -> 606
F53: =SUM(F48:F52) -> 573 | G53: =SUM(G48:G52) -> 655 | H53: =SUM(H48:H52) -> 595 | I53: =SUM(I48:I52) -> 631 | J53: =SUM(J48:J52) -> 710 | O53: =SUM(F53:J53) -> 3164 | P53: =MAX(F53:J53)+0.003 -> 710.003 | Q53: =IF(F48="","",SUM(O53*1000)+P53) -> 3164710.003 | AC53: =SUM(O47,O53) -> 6807 | AG53: 48 | AH53: =IF(AF6<48,"",VLOOKUP(48,B6:N70,4,FALSE)) -> Jelínek Jan | AI53: =IF(AF6<48,"",VLOOKUP(48,B6:N70,10,FALSE)) -> 606
B54: =IF(F54="","",N54) -> 8 | C54: 9 | D54: ŘEPY I. | E54: Dvořák Petr | F54: 187 | G54: 144 | H54: 125 | I54: 175 | J54: 168 | K54: =SUM(F54:J54) -> 799 | L54: =MAX(F54:J54) -> 187 | M54: =SUM(K54*1000)+L54+0.015 -> 799187.015 | N54: =IF(F54="","",RANK(M54,M6:M70,0)) -> 8 | R54: =IF(F54="","",RANK(Q59,Q11:Q71,0)) -> 2 | T54: =IF(F54="","",RANK(AA54,AA6:AA64,0)) -> 1 | U54: =IF(R54="","",R54) -> 2 | V54: =IF(D54="","",D54) -> ŘEPY I. | W54: =IF(O59="","",O59) -> 3853 | X54: =IF(V54="HOSTIVAŘ I.","GARÁŽ HOSTIVAŘ",IF(V54="VRŠOVICE I.","GARÁŽ VRŠOVICE",IF(V54="KLÍČOV I.","GARÁŽ KLÍČOV",IF(V54="ŘEPY I.","GARÁŽ ŘEPY",IF(V54="KAČEROV I.","GARÁŽ KAČEROV",""))))) -> GARÁŽ ŘEPY | Y54: =MAX(F59:J59,F65:J65)+0.01 -> 843.01 | Z54: =SUM(O59,O65)*1000 -> 7429000 | AA54: =SUM(Y54:Z54) -> 7429843.01 | AB54: =IF(AC65="","",AC65) -> 7429 | AD54: =IF(T54="","",T54) -> 1 | AG54: 49 | AH54: =IF(AF6<49,"",VLOOKUP(49,B6:N70,4,FALSE)) -> Sehnal Ivan | AI54: =IF(AF6<49,"",VLOOKUP(49,B6:N70,10,FALSE)) -> 603
B55: =IF(F55="","",N55) -> 12 | E55: Ekert Stanislav | F55: 129 | G55: 149 | H55: 194 | I55: 150 | J55: 139 | K55: =SUM(F55:J55) -> 761 | L55: =MAX(F55:J55) -> 194 | M55: =SUM(K55*1000)+L55+0.014 -> 761194.014 | N55: =IF(F55="","",RANK(M55,M6:M70,0)) -> 12 | AG55: 50 | AH55: =IF(AF6<50,"",VLOOKUP(50,B6:N70,4,FALSE)) -> Neshyba Jaroslav | AI55: =IF(AF6<50,"",VLOOKUP(50,B6:N70,10,FALSE)) -> 587
B56: =IF(F56="","",N56) -> 11 | E56: Froněk Martin | F56: 202 | G56: 170 | H56: 168 | I56: 116 | J56: 116 | K56: =SUM(F56:J56) -> 772 | L56: =MAX(F56:J56) -> 202 | M56: =SUM(K56*1000)+L56+0.013 -> 772202.013 | N56: =IF(F56="","",RANK(M56,M6:M70,0)) -> 11 | AG56: 51 | AH56: =IF(AF6<51,"",VLOOKUP(51,B6:N70,4,FALSE)) -> Fay Vlastimil | AI56: =IF(AF6<51,"",VLOOKUP(51,B6:N70,10,FALSE)) -> 585
B57: =IF(F57="","",N57) -> 32 | E57: Sladovník Miloslav | F57: 130 | G57: 146 | H57: 176 | I57: 131 | J57: 111 | K57: =SUM(F57:J57) -> 694 | L57: =MAX(F57:J57) -> 176 | M57: =SUM(K57*1000)+L57+0.012 -> 694176.012 | N57: =IF(F57="","",RANK(M57,M6:M70,0)) -> 32 | AG57: 52 | AH57: =IF(AF6<52,"",VLOOKUP(52,B6:N70,4,FALSE)) -> Novotná Petra | AI57: =IF(AF6<52,"",VLOOKUP(52,B6:N70,10,FALSE)) -> 575
B58: =IF(F58="","",N58) -> 5 | E58: Kocůr Jaroslav | F58: 163 | G58: 173 | H58: 180 | I58: 154 | J58: 157 | K58: =SUM(F58:J58) -> 827 | L58: =MAX(F58:J58) -> 180 | M58: =SUM(K58*1000)+L58+0.011 -> 827180.011 | N58: =IF(F58="","",RANK(M58,M6:M70,0)) -> 5 | AG58: 53 | AH58: =IF(AF6<53,"",VLOOKUP(53,B6:N70,4,FALSE)) -> Aunický Ftantišek | AI58: =IF(AF6<53,"",VLOOKUP(53,B6:N70,10,FALSE)) -> 530
F59: =SUM(F54:F58) -> 811 | G59: =SUM(G54:G58) -> 782 | H59: =SUM(H54:H58) -> 843 | I59: =SUM(I54:I58) -> 726 | J59: =SUM(J54:J58) -> 691 | O59: =SUM(F59:J59) -> 3853 | P59: =MAX(F59:J59)+0.002 -> 843.002 | Q59: =IF(F54="","",SUM(O59*1000)+P59) -> 3853843.002 | AG59: 54 | AH59: =IF(AF6<54,"",VLOOKUP(54,B6:N70,4,FALSE)) -> Doman Marcel | AI59: =IF(AF6<54,"",VLOOKUP(54,B6:N70,10,FALSE)) -> 492
B60: =IF(F60="","",N60) -> 42 | C60: 10 | D60: ŘEPY II. | E60: Alba Vladimír | F60: 133 | G60: 103 | H60: 148 | I60: 142 | J60: 128 | K60: =SUM(F60:J60) -> 654 | L60: =MAX(F60:J60) -> 148 | M60: =SUM(K60*1000)+L60+0.01 -> 654148.01 | N60: =IF(F60="","",RANK(M60,M6:M70,0)) -> 42 | R60: =IF(F60="","",RANK(Q65,Q11:Q71,0)) -> 6 | U60: =IF(R60="","",R60) -> 6 | V60: =IF(D60="","",D60) -> ŘEPY II. | W60: =IF(O65="","",O65) -> 3576 | AG60: 55 | AH60: =IF(AF6<55,"",VLOOKUP(55,B6:N70,4,FALSE)) -> Liebichová Inke | AI60: =IF(AF6<55,"",VLOOKUP(55,B6:N70,10,FALSE)) -> 433
B61: =IF(F61="","",N61) -> 24 | E61: Kročil Tomáš | F61: 156 | G61: 147 | H61: 169 | I61: 137 | J61: 112 | K61: =SUM(F61:J61) -> 721 | L61: =MAX(F61:J61) -> 169 | M61: =SUM(K61*1000)+L61+0.009 -> 721169.009 | N61: =IF(F61="","",RANK(M61,M6:M70,0)) -> 24
B62: =IF(F62="","",N62) -> 31 | E62: Ekert Michal | F62: 121 | G62: 165 | H62: 139 | I62: 135 | J62: 141 | K62: =SUM(F62:J62) -> 701 | L62: =MAX(F62:J62) -> 165 | M62: =SUM(K62*1000)+L62+0.008 -> 701165.008 | N62: =IF(F62="","",RANK(M62,M6:M70,0)) -> 31
B63: =IF(F63="","",N63) -> 29 | E63: Křikavová Miroslava | F63: 112 | G63: 150 | H63: 148 | I63: 124 | J63: 175 | K63: =SUM(F63:J63) -> 709 | L63: =MAX(F63:J63) -> 175 | M63: =SUM(K63*1000)+L63+0.007 -> 709175.007 | N63: =IF(F63="","",RANK(M63,M6:M70,0)) -> 29
B64: =IF(F64="","",N64) -> 9 | E64: Pospíšil Václav | F64: 149 | G64: 144 | H64: 199 | I64: 145 | J64: 154 | K64: =SUM(F64:J64) -> 791 | L64: =MAX(F64:J64) -> 199 | M64: =SUM(K64*1000)+L64+0.006 -> 791199.006 | N64: =IF(F64="","",RANK(M64,M6:M70,0)) -> 9
F65: =SUM(F60:F64) -> 671 | G65: =SUM(G60:G64) -> 709 | H65: =SUM(H60:H64) -> 803 | I65: =SUM(I60:I64) -> 683 | J65: =SUM(J60:J64) -> 710 | O65: =SUM(F65:J65) -> 3576 | P65: =MAX(F65:J65)+0.001 -> 803.001 | Q65: =IF(F60="","",SUM(O65*1000)+P65) -> 3576803.001 | AC65: =SUM(O59,O65) -> 7429
B66: =IF(F66="","",N66) -> 46 | C66: 11 | D66: ŘEPY III. | E66: Mottl Pavel | F66: 119 | G66: 111 | H66: 122 | I66: 123 | J66: 146 | K66: =SUM(F66:J66) -> 621 | L66: =MAX(F66:J66) -> 146 | M66: =SUM(K66*1000)+L66-0.005 -> 621145.995 | N66: =IF(F66="","",RANK(M66,M6:M70,0)) -> 46 | R66: =IF(F66="","",RANK(Q71,Q11:Q71,0)) -> 8 | U66: =IF(R66="","",R66) -> 8 | V66: =IF(D66="","",D66) -> ŘEPY III. | W66: =IF(O71="","",O71) -> 3226 | AD66: =IF(E66="","","Mimo soutěž garáží") -> Mimo soutěž garáží
B67: =IF(F67="","",N67) -> 36 | E67: Křikava Miroslav | F67: 121 | G67: 119 | H67: 143 | I67: 156 | J67: 142 | K67: =SUM(F67:J67) -> 681 | L67: =MAX(F67:J67) -> 156 | M67: =SUM(K67*1000)+L67-0.004 -> 681155.996 | N67: =IF(F67="","",RANK(M67,M6:M70,0)) -> 36
B68: =IF(F68="","",N68) -> 40 | E68: Červenka Ivan | F68: 108 | G68: 133 | H68: 117 | I68: 149 | J68: 161 | K68: =SUM(F68:J68) -> 668 | L68: =MAX(F68:J68) -> 161 | M68: =SUM(K68*1000)+L68-0.003 -> 668160.997 | N68: =IF(F68="","",RANK(M68,M6:M70,0)) -> 40
B69: =IF(F69="","",N69) -> 43 | E69: Růžička Václav | F69: 132 | G69: 137 | H69: 104 | I69: 167 | J69: 113 | K69: =SUM(F69:J69) -> 653 | L69: =MAX(F69:J69) -> 167 | M69: =SUM(K69*1000)+L69+0.002 -> 653167.002 | N69: =IF(F69="","",RANK(M69,M6:M70,0)) -> 43
B70: =IF(F70="","",N70) -> 49 | E70: Sehnal Ivan | F70: 108 | G70: 104 | H70: 132 | I70: 126 | J70: 133 | K70: =SUM(F70:J70) -> 603 | L70: =MAX(F70:J70) -> 133 | M70: =SUM(K70*1000)+L70+0.001 -> 603133.001 | N70: =IF(F70="","",RANK(M70,M6:M70,0)) -> 49
F71: =SUM(F66:F70) -> 588 | G71: =SUM(G66:G70) -> 604 | H71: =SUM(H66:H70) -> 618 | I71: =SUM(I66:I70) -> 721 | J71: =SUM(J66:J70) -> 695 | L71: =MAX(L12:L70,L6:L10) -> 223 | O71: =SUM(F71:J71) -> 3226 | P71: =MAX(F71:J71) -> 721 | Q71: =IF(F66="","",SUM(O71*1000)+P71) -> 3226721

Sheet KLÍČOV
A1: ZPĚT
D3: Sportovní turnaj v Bowlingu o pohár ZV-OS Klíčov dne 28.2. 2015
C5: Garáž | E5: Jméno | F5: I. | G5: II. | H5: III. | I5: IV. | J5: V. | K5: Body | N5: Jednotlivci. | R5: Družstva. | AG5: pořadí jednotlivců
B6: =IF(F6="","",N6) ->  | C6: 1 | D6: ŘEPY I. | K6: =SUM(F6:J6) -> 0 | L6: =MAX(F6:J6) -> 0 | M6: =SUM(K6*1000)+L6+0.5 -> 0.5 | N6: =IF(F6="","",RANK(M6,M6:M65,0)) ->  | R6: =IF(F6="","",RANK(Q11,Q11:Q65,0)) ->  | T6: =IF(F6="","",RANK(AA6,AA6:AA64,0)) ->  | U6: =IF(R6="","",R6) ->  | V6: =IF(D6="","",D6) -> ŘEPY I. | W6: =IF(O11="","",O11) -> 0 | X6: =IF(V6="HOSTIVAŘ I.","GARÁŽ HOSTIVAŘ",IF(V6="VRŠOVICE I.","GARÁŽ VRŠOVICE",IF(V6="KLÍČOV I.","GARÁŽ KLÍČOV",IF(V6="ŘEPY I.","GARÁŽ ŘEPY",IF(V6="KAČEROV I.","GARÁŽ KAČEROV",""))))) -> GARÁŽ ŘEPY | Y6: =MAX(F11:J11,F17:J17)+0.05 -> 0.05 | Z6: =SUM(O11,O17)*1000 -> 0 | AA6: =SUM(Y6:Z6) -> 0.05 | AB6: =IF(AC17="","",AC17) -> 0 | AD6: =IF(T6="","",T6) ->  | AF6: =COUNT(F6:F10,F12:F16,F18:F22,F24:F28,F30:F34,F36:F40,F42:F46,F48:F52,F54:F58,F60:F64) -> 0 | AG6: 1 | AH6: =IF(AF6<1,"",VLOOKUP(1,B6:N65,4,FALSE)) ->  | AI6: =IF(AF6<1,"",VLOOKUP(1,B6:N65,10,FALSE)) ->  | AK6: =COUNT(U6:U16,U18:U28,U30:U40,U42:U52,U54:U64) -> 0 | AL6: POŘADÍ DRUŽSTEV | BA6: HOSTIVAŘ I.
B7: =IF(F7="","",N7) ->  | K7: =SUM(F7:J7) -> 0 | L7: 0 | M7: =SUM(K7*1000)+L7+0.49 -> 0.49 | N7: =IF(F7="","",RANK(M7,M6:M65,0)) ->  | AG7: =SUM(AG6+1) -> 2 | AH7: =IF(AF6<2,"",VLOOKUP(2,B6:N65,4,FALSE)) ->  | AI7: =IF(AF6<2,"",VLOOKUP(2,B6:N65,10,FALSE)) ->  | AL7: 1 | AM7: =IF(AK6<1,"",VLOOKUP(1,U6:W64,2,FALSE)) ->  | AN7: =IF(AK6<1,"",VLOOKUP(1,U6:W64,3,FALSE)) ->  | BA7: VRŠOVICE I.
B8: =IF(F8="","",N8) ->  | K8: =SUM(F8:J8) -> 0 | L8: 0 | M8: =SUM(K8*1000)+L8+0.48 -> 0.48 | N8: =IF(F8="","",RANK(M8,M6:M65,0)) ->  | AG8: =SUM(AG7+1) -> 3 | AH8: =IF(AF6<3,"",VLOOKUP(3,B6:N65,4,FALSE)) ->  | AI8: =IF(AF6<3,"",VLOOKUP(3,B6:N65,10,FALSE)) ->  | AL8: 2 | AM8: =IF(AK6<2,"",VLOOKUP(2,U6:W64,2,FALSE)) ->  | AN8: =IF(AK6<2,"",VLOOKUP(2,U6:W64,3,FALSE)) ->  | BA8: KLÍČOV I.
B9: =IF(F9="","",N9) ->  | K9: =SUM(F9:J9) -> 0 | L9: 0 | M9: =SUM(K9*1000)+L9+0.47 -> 0.47 | N9: =IF(F9="","",RANK(M9,M6:M65,0)) ->  | AG9: 4 | AH9: =IF(AF6<4,"",VLOOKUP(4,B6:N65,4,FALSE)) ->  | AI9: =IF(AF6<4,"",VLOOKUP(4,B6:N65,10,FALSE)) ->  | AL9: 3 | AM9: =IF(AK6<3,"",VLOOKUP(3,U6:W64,2,FALSE)) ->  | AN9: =IF(AK6<3,"",VLOOKUP(3,U6:W64,3,FALSE)) ->  | BA9: ŘEPY I.
B10: =IF(F10="","",N10) ->  | K10: =SUM(F10:J10) -> 0 | L10: 0 | M10: =SUM(K10*1000)+L10+0.46 -> 0.46 | N10: =IF(F10="","",RANK(M10,M6:M65,0)) ->  | AG10: 5 | AH10: =IF(AF6<5,"",VLOOKUP(5,B6:N65,4,FALSE)) ->  | AI10: =IF(AF6<5,"",VLOOKUP(5,B6:N65,10,FALSE)) ->  | AL10: 4 | AM10: =IF(AK6<4,"",VLOOKUP(4,U6:W64,2,FALSE)) ->  | AN10: =IF(AK6<4,"",VLOOKUP(4,U6:W64,3,FALSE)) ->  | BA10: KAČEROV I.
F11: =SUM(F6:F10) -> 0 | G11: =SUM(G6:G10) -> 0 | H11: =SUM(H6:H10) -> 0 | I11: =SUM(I6:I10) -> 0 | J11: =SUM(J6:J10) -> 0 | L11: 0 | O11: =SUM(F11:J11) -> 0 | P11: =MAX(F11:J11)+0.01 -> 0.01 | Q11: =IF(F6="","",SUM(O11*1000)+P11) ->  | AG11: 6 | AH11: =IF(AF6<6,"",VLOOKUP(6,B6:N65,4,FALSE)) ->  | AI11: =IF(AF6<6,"",VLOOKUP(6,B6:N65,10,FALSE)) ->  | AL11: 5 | AM11: =IF(AK6<5,"",VLOOKUP(5,U6:W64,2,FALSE)) ->  | AN11: =IF(AK6<5,"",VLOOKUP(5,U6:W64,3,FALSE)) -> 
B12: =IF(F12="","",N12) ->  | C12: 2 | D12: ŘEPY II. | K12: =SUM(F12:J12) -> 0 | L12: 0 | M12: =SUM(K12*1000)+L12+0.45 -> 0.45 | N12: =IF(F12="","",RANK(M12,M6:M65,0)) ->  | R12: =IF(F12="","",RANK(Q17,Q11:Q65,0)) ->  | U12: =IF(R12="","",R12) ->  | V12: =IF(D12="","",D12) -> ŘEPY II. | W12: =IF(O17="","",O17) -> 0 | AG12: 7 | AH12: =IF(AF6<7,"",VLOOKUP(7,B6:N65,4,FALSE)) ->  | AI12: =IF(AF6<7,"",VLOOKUP(7,B6:N65,10,FALSE)) ->  | AL12: 6 | AM12: =IF(AK6<6,"",VLOOKUP(6,U6:W64,2,FALSE)) ->  | AN12: =IF(AK6<6,"",VLOOKUP(6,U6:W64,3,FALSE)) -> 
B13: =IF(F13="","",N13) ->  | K13: =SUM(F13:J13) -> 0 | L13: 0 | M13: =SUM(K13*1000)+L13+0.44 -> 0.44 | N13: =IF(F13="","",RANK(M13,M6:M65,0)) ->  | AG13: 8 | AH13: =IF(AF6<8,"",VLOOKUP(8,B6:N65,4,FALSE)) ->  | AI13: =IF(AF6<8,"",VLOOKUP(8,B6:N65,10,FALSE)) ->  | AL13: 7 | AM13: =IF(AK6<7,"",VLOOKUP(7,U6:W64,2,FALSE)) ->  | AN13: =IF(AK6<7,"",VLOOKUP(7,U6:W64,3,FALSE)) -> 
B14: =IF(F14="","",N14) ->  | K14: =SUM(F14:J14) -> 0 | L14: 0 | M14: =SUM(K14*1000)+L14+0.43 -> 0.43 | N14: =IF(F14="","",RANK(M14,M6:M65,0)) ->  | AG14: 9 | AH14: =IF(AF6<9,"",VLOOKUP(9,B6:N65,4,FALSE)) ->  | AI14: =IF(AF6<9,"",VLOOKUP(9,B6:N65,10,FALSE)) ->  | AL14: 8 | AM14: =IF(AK6<8,"",VLOOKUP(8,U6:W64,2,FALSE)) ->  | AN14: =IF(AK6<8,"",VLOOKUP(8,U6:W64,3,FALSE)) -> 
B15: =IF(F15="","",N15) ->  | K15: =SUM(F15:J15) -> 0 | L15: 0 | M15: =SUM(K15*1000)+L15+0.42 -> 0.42 | N15: =IF(F15="","",RANK(M15,M6:M65,0)) ->  | AG15: 10 | AH15: =IF(AF6<10,"",VLOOKUP(10,B6:N65,4,FALSE)) ->  | AI15: =IF(AF6<10,"",VLOOKUP(10,B6:N65,10,FALSE)) ->  | AL15: 9 | AM15: =IF(AK6<9,"",VLOOKUP(9,U6:W64,2,FALSE)) ->  | AN15: =IF(AK6<9,"",VLOOKUP(9,U6:W64,3,FALSE)) -> 
B16: =IF(F16="","",N16) ->  | K16: =SUM(F16:J16) -> 0 | L16: 0 | M16: =SUM(K16*1000)+L16+0.41 -> 0.41 | N16: =IF(F16="","",RANK(M16,M6:M65,0)) ->  | AG16: 11 | AH16: =IF(AF6<11,"",VLOOKUP(11,B6:N65,4,FALSE)) ->  | AI16: =IF(AF6<11,"",VLOOKUP(11,B6:N65,10,FALSE)) ->  | AL16: 10 | AM16: =IF(AK6<10,"",VLOOKUP(10,U6:W64,2,FALSE)) ->  | AN16: =IF(AK6<10,"",VLOOKUP(10,U6:W64,3,FALSE)) -> 
F17: =SUM(F12:F16) -> 0 | G17: =SUM(G12:G16) -> 0 | H17: =SUM(H12:H16) -> 0 | I17: =SUM(I12:I16) -> 0 | J17: =SUM(J12:J16) -> 0 | O17: =SUM(F17:J17) -> 0 | P17: =MAX(F17:J17)+0.009 -> 0.009 | Q17: =IF(F12="","",SUM(O17*1000)+P17) ->  | AC17: =SUM(O11,O17) -> 0 | AG17: 12 | AH17: =IF(AF6<12,"",VLOOKUP(12,B6:N65,4,FALSE)) ->  | AI17: =IF(AF6<12,"",VLOOKUP(12,B6:N65,10,FALSE)) -> 
B18: =IF(F18="","",N18) ->  | C18: 3 | D18: KAČEROV I. | K18: =SUM(F18:J18) -> 0 | L18: =MAX(F18:J18) -> 0 | M18: =SUM(K18*1000)+L18+0.4 -> 0.4 | N18: =IF(F18="","",RANK(M18,M6:M65,0)) ->  | R18: =IF(F18="","",RANK(Q23,Q11:Q65,0)) ->  | T18: =IF(F18="","",RANK(AA18,AA6:AA64,0)) ->  | U18: =IF(R18="","",R18) ->  | V18: =IF(D18="","",D18) -> KAČEROV I. | W18: =IF(O23="","",O23) -> 0 | X18: =IF(V18="HOSTIVAŘ I.","GARÁŽ HOSTIVAŘ",IF(V18="VRŠOVICE I.","GARÁŽ VRŠOVICE",IF(V18="KLÍČOV I.","GARÁŽ KLÍČOV",IF(V18="ŘEPY I.","GARÁŽ ŘEPY",IF(V18="KAČEROV I.","GARÁŽ KAČEROV",""))))) -> GARÁŽ KAČEROV | Y18: =MAX(F23:J23,F29:J29)+0.04 -> 0.04 | Z18: =SUM(O23,O29)*1000 -> 0 | AA18: =SUM(Y18:Z18) -> 0.04 | AB18: =IF(AC29="","",AC29) -> 0 | AD18: =IF(T18="","",T18) ->  | AG18: 13 | AH18: =IF(AF6<13,"",VLOOKUP(13,B6:N65,4,FALSE)) ->  | AI18: =IF(AF6<13,"",VLOOKUP(13,B6:N65,10,FALSE)) ->  | AK18: =COUNT(T6:T64) -> 0 | AL18: POŘEDÍ GARÁŽÍ
B19: =IF(F19="","",N19) ->  | K19: =SUM(F19:J19) -> 0 | L19: =MAX(F19:J19) -> 0 | M19: =SUM(K19*1000)+L19+0.39 -> 0.39 | N19: =IF(F19="","",RANK(M19,M6:M65,0)) ->  | AG19: 14 | AH19: =IF(AF6<14,"",VLOOKUP(14,B6:N65,4,FALSE)) ->  | AI19: =IF(AF6<14,"",VLOOKUP(14,B6:N65,10,FALSE)) ->  | AL19: 1 | AM19: =IF(AK18<1,"",VLOOKUP(1,T6:AB64,5,FALSE)) ->  | AN19: =IF(AK18<1,"",VLOOKUP(1,T6:AB64,9,FALSE)) -> 
B20: =IF(F20="","",N20) ->  | K20: =SUM(F20:J20) -> 0 | L20: =MAX(F20:J20) -> 0 | M20: =SUM(K20*1000)+L20+0.38 -> 0.38 | N20: =IF(F20="","",RANK(M20,M6:M65,0)) ->  | AG20: 15 | AH20: =IF(AF6<15,"",VLOOKUP(15,B6:N65,4,FALSE)) ->  | AI20: =IF(AF6<15,"",VLOOKUP(15,B6:N65,10,FALSE)) ->  | AL20: 2 | AM20: =IF(AK18<2,"",VLOOKUP(2,T6:AB64,5,FALSE)) ->  | AN20: =IF(AK18<2,"",VLOOKUP(2,T6:AB64,9,FALSE)) -> 
B21: =IF(F21="","",N21) ->  | K21: =SUM(F21:J21) -> 0 | L21: =MAX(F21:J21) -> 0 | M21: =SUM(K21*1000)+L21+0.37 -> 0.37 | N21: =IF(F21="","",RANK(M21,M6:M65,0)) ->  | AG21: 16 | AH21: =IF(AF6<16,"",VLOOKUP(16,B6:N65,4,FALSE)) ->  | AI21: =IF(AF6<16,"",VLOOKUP(16,B6:N65,10,FALSE)) ->  | AL21: 3 | AM21: =IF(AK18<3,"",VLOOKUP(3,T6:AB64,5,FALSE)) ->  | AN21: =IF(AK18<3,"",VLOOKUP(3,T6:AB64,9,FALSE)) -> 
B22: =IF(F22="","",N22) ->  | K22: =SUM(F22:J22) -> 0 | L22: =MAX(F22:J22) -> 0 | M22: =SUM(K22*1000)+L22+0.36 -> 0.36 | N22: =IF(F22="","",RANK(M22,M6:M65,0)) ->  | AG22: 17 | AH22: =IF(AF6<17,"",VLOOKUP(17,B6:N65,4,FALSE)) ->  | AI22: =IF(AF6<17,"",VLOOKUP(17,B6:N65,10,FALSE)) ->  | AL22: 4 | AM22: =IF(AK18<4,"",VLOOKUP(4,T6:AB64,5,FALSE)) ->  | AN22: =IF(AK18<4,"",VLOOKUP(4,T6:AB64,9,FALSE)) -> 
F23: =SUM(F18:F22) -> 0 | G23: =SUM(G18:G22) -> 0 | H23: =SUM(H18:H22) -> 0 | I23: =SUM(I18:I22) -> 0 | J23: =SUM(J18:J22) -> 0 | O23: =SUM(F23:J23) -> 0 | P23: =MAX(F23:J23)+0.008 -> 0.008 | Q23: =IF(F18="","",SUM(O23*1000)+P23) ->  | AG23: 18 | AH23: =IF(AF6<18,"",VLOOKUP(18,B6:N65,4,FALSE)) ->  | AI23: =IF(AF6<18,"",VLOOKUP(18,B6:N65,10,FALSE)) ->  | AL23: 5 | AM23: =IF(AK18<5,"",VLOOKUP(5,T6:AB64,5,FALSE)) ->  | AN23: =IF(AK18<5,"",VLOOKUP(5,T6:AB64,9,FALSE)) -> 
B24: =IF(F24="","",N24) ->  | C24: 4 | D24: KAČEROV II. | K24: =SUM(F24:J24) -> 0 | L24: =MAX(F24:J24) -> 0 | M24: =SUM(K24*1000)+L24+0.35 -> 0.35 | N24: =IF(F24="","",RANK(M24,M6:M65,0)) ->  | R24: =IF(F24="","",RANK(Q29,Q11:Q65,0)) ->  | U24: =IF(R24="","",R24) ->  | V24: =IF(D24="","",D24) -> KAČEROV II. | W24: =IF(O29="","",O29) -> 0 | AG24: 19 | AH24: =IF(AF6<19,"",VLOOKUP(19,B6:N65,4,FALSE)) ->  | AI24: =IF(AF6<19,"",VLOOKUP(19,B6:N65,10,FALSE)) -> 
B25: =IF(F25="","",N25) ->  | K25: =SUM(F25:J25) -> 0 | L25: =MAX(F25:J25) -> 0 | M25: =SUM(K25*1000)+L25+0.34 -> 0.34 | N25: =IF(F25="","",RANK(M25,M6:M65,0)) ->  | AG25: 20 | AH25: =IF(AF6<20,"",VLOOKUP(20,B6:N65,4,FALSE)) ->  | AI25: =IF(AF6<20,"",VLOOKUP(20,B6:N65,10,FALSE)) -> 
B26: =IF(F26="","",N26) ->  | K26: =SUM(F26:J26) -> 0 | L26: =MAX(F26:J26) -> 0 | M26: =SUM(K26*1000)+L26+0.33 -> 0.33 | N26: =IF(F26="","",RANK(M26,M6:M65,0)) ->  | AG26: 21 | AH26: =IF(AF6<21,"",VLOOKUP(21,B6:N65,4,FALSE)) ->  | AI26: =IF(AF6<21,"",VLOOKUP(21,B6:N65,10,FALSE)) -> 
B27: =IF(F27="","",N27) ->  | K27: =SUM(F27:J27) -> 0 | L27: =MAX(F27:J27) -> 0 | M27: =SUM(K27*1000)+L27+0.32 -> 0.32 | N27: =IF(F27="","",RANK(M27,M6:M65,0)) ->  | AG27: 22 | AH27: =IF(AF6<22,"",VLOOKUP(22,B6:N65,4,FALSE)) ->  | AI27: =IF(AF6<22,"",VLOOKUP(22,B6:N65,10,FALSE)) -> 
B28: =IF(F28="","",N28) ->  | K28: =SUM(F28:J28) -> 0 | L28: =MAX(F28:J28) -> 0 | M28: =SUM(K28*1000)+L28+0.31 -> 0.31 | N28: =IF(F28="","",RANK(M28,M6:M65,0)) ->  | AG28: 23 | AH28: =IF(AF6<23,"",VLOOKUP(23,B6:N65,4,FALSE)) ->  | AI28: =IF(AF6<23,"",VLOOKUP(23,B6:N65,10,FALSE)) -> 
F29: =SUM(F24:F28) -> 0 | G29: =SUM(G24:G28) -> 0 | H29: =SUM(H24:H28) -> 0 | I29: =SUM(I24:I28) -> 0 | J29: =SUM(J24:J28) -> 0 | O29: =SUM(F29:J29) -> 0 | P29: =MAX(F29:J29)+0.007 -> 0.007 | Q29: =IF(F24="","",SUM(O29*1000)+P29) ->  | AC29: =SUM(O23,O29) -> 0 | AG29: 24 | AH29: =IF(AF6<24,"",VLOOKUP(24,B6:N65,4,FALSE)) ->  | AI29: =IF(AF6<24,"",VLOOKUP(24,B6:N65,10,FALSE)) -> 
B30: =IF(F30="","",N30) ->  | C30: 5 | D30: HOSTIVAŘ I. | K30: =SUM(F30:J30) -> 0 | L30: =MAX(F30:J30) -> 0 | M30: =SUM(K30*1000)+L30+0.3 -> 0.3 | N30: =IF(F30="","",RANK(M30,M6:M65,0)) ->  | R30: =IF(F30="","",RANK(Q35,Q11:Q65,0)) ->  | T30: =IF(F30="","",RANK(AA30,AA6:AA64,0)) ->  | U30: =IF(R30="","",R30) ->  | V30: =IF(D30="","",D30) -> HOSTIVAŘ I. | W30: =IF(O35="","",O35) -> 0 | X30: =IF(V30="HOSTIVAŘ I.","GARÁŽ HOSTIVAŘ",IF(V30="VRŠOVICE I.","GARÁŽ VRŠOVICE",IF(V30="KLÍČOV I.","GARÁŽ KLÍČOV",IF(V30="ŘEPY I.","GARÁŽ ŘEPY",IF(V30="KAČEROV I.","GARÁŽ KAČEROV",""))))) -> GARÁŽ HOSTIVAŘ | Y30: =MAX(F35:J35,F41:J41)+0.03 -> 0.03 | Z30: =SUM(O35,O41)*1000 -> 0 | AA30: =SUM(Y30:Z30) -> 0.03 | AB30: =IF(AC41="","",AC41) -> 0 | AD30: =IF(T30="","",T30) ->  | AG30: 25 | AH30: =IF(AF6<25,"",VLOOKUP(25,B6:N65,4,FALSE)) ->  | AI30: =IF(AF6<25,"",VLOOKUP(25,B6:N65,10,FALSE)) -> 
B31: =IF(F31="","",N31) ->  | K31: =SUM(F31:J31) -> 0 | L31: =MAX(F31:J31) -> 0 | M31: =SUM(K31*1000)+L31+0.29 -> 0.29 | N31: =IF(F31="","",RANK(M31,M6:M65,0)) ->  | AG31: 26 | AH31: =IF(AF6<26,"",VLOOKUP(26,B6:N65,4,FALSE)) ->  | AI31: =IF(AF6<26,"",VLOOKUP(26,B6:N65,10,FALSE)) -> 
B32: =IF(F32="","",N32) ->  | K32: =SUM(F32:J32) -> 0 | L32: =MAX(F32:J32) -> 0 | M32: =SUM(K32*1000)+L32+0.28 -> 0.28 | N32: =IF(F32="","",RANK(M32,M6:M65,0)) ->  | AG32: 27 | AH32: =IF(AF6<27,"",VLOOKUP(27,B6:N65,4,FALSE)) ->  | AI32: =IF(AF6<27,"",VLOOKUP(27,B6:N65,10,FALSE)) -> 
B33: =IF(F33="","",N33) ->  | K33: =SUM(F33:J33) -> 0 | L33: =MAX(F33:J33) -> 0 | M33: =SUM(K33*1000)+L33+0.27 -> 0.27 | N33: =IF(F33="","",RANK(M33,M6:M65,0)) ->  | AG33: 28 | AH33: =IF(AF6<28,"",VLOOKUP(28,B6:N65,4,FALSE)) ->  | AI33: =IF(AF6<28,"",VLOOKUP(28,B6:N65,10,FALSE)) -> 
B34: =IF(F34="","",N34) ->  | K34: =SUM(F34:J34) -> 0 | L34: =MAX(F34:J34) -> 0 | M34: =SUM(K34*1000)+L34+0.26 -> 0.26 | N34: =IF(F34="","",RANK(M34,M6:M65,0)) ->  | AG34: 29 | AH34: =IF(AF6<29,"",VLOOKUP(29,B6:N65,4,FALSE)) ->  | AI34: =IF(AF6<29,"",VLOOKUP(29,B6:N65,10,FALSE)) -> 
F35: =SUM(F30:F34) -> 0 | G35: =SUM(G30:G34) -> 0 | H35: =SUM(H30:H34) -> 0 | I35: =SUM(I30:I34) -> 0 | J35: =SUM(J30:J34) -> 0 | O35: =SUM(F35:J35) -> 0 | P35: =MAX(F35:J35)+0.006 -> 0.006 | Q35: =IF(F30="","",SUM(O35*1000)+P35) ->  | AG35: 30 | AH35: =IF(AF6<30,"",VLOOKUP(30,B6:N65,4,FALSE)) ->  | AI35: =IF(AF6<30,"",VLOOKUP(30,B6:N65,10,FALSE)) -> 
B36: =IF(F36="","",N36) ->  | C36: 6 | D36: HOSTIVAŘ II. | K36: =SUM(F36:J36) -> 0 | L36: =MAX(F36:J36) -> 0 | M36: =SUM(K36*1000)+L36+0.25 -> 0.25 | N36: =IF(F36="","",RANK(M36,M6:M65,0)) ->  | R36: =IF(F36="","",RANK(Q41,Q11:Q65,0)) ->  | U36: =IF(R36="","",R36) ->  | V36: =IF(D36="","",D36) -> HOSTIVAŘ II. | W36: =IF(O41="","",O41) -> 0 | AG36: 31 | AH36: =IF(AF6<31,"",VLOOKUP(31,B6:N65,4,FALSE)) ->  | AI36: =IF(AF6<31,"",VLOOKUP(31,B6:N65,10,FALSE)) -> 
B37: =IF(F37="","",N37) ->  | K37: =SUM(F37:J37) -> 0 | L37: =MAX(F37:J37) -> 0 | M37: =SUM(K37*1000)+L37+0.24 -> 0.24 | N37: =IF(F37="","",RANK(M37,M6:M65,0)) ->  | AG37: 32 | AH37: =IF(AF6<32,"",VLOOKUP(32,B6:N65,4,FALSE)) ->  | AI37: =IF(AF6<32,"",VLOOKUP(32,B6:N65,10,FALSE)) -> 
B38: =IF(F38="","",N38) ->  | K38: =SUM(F38:J38) -> 0 | L38: =MAX(F38:J38) -> 0 | M38: =SUM(K38*1000)+L38+0.23 -> 0.23 | N38: =IF(F38="","",RANK(M38,M6:M65,0)) ->  | AG38: 33 | AH38: =IF(AF6<33,"",VLOOKUP(33,B6:N65,4,FALSE)) ->  | AI38: =IF(AF6<33,"",VLOOKUP(33,B6:N65,10,FALSE)) -> 
B39: =IF(F39="","",N39) ->  | K39: =SUM(F39:J39) -> 0 | L39: =MAX(F39:J39) -> 0 | M39: =SUM(K39*1000)+L39+0.21 -> 0.21 | N39: =IF(F39="","",RANK(M39,M6:M65,0)) ->  | AG39: 34 | AH39: =IF(AF6<34,"",VLOOKUP(34,B6:N65,4,FALSE)) ->  | AI39: =IF(AF6<34,"",VLOOKUP(34,B6:N65,10,FALSE)) -> 
B40: =IF(F40="","",N40) ->  | K40: =SUM(F40:J40) -> 0 | L40: =MAX(F40:J40) -> 0 | M40: =SUM(K40*1000)+L40+0.2 -> 0.2 | N40: =IF(F40="","",RANK(M40,M6:M65,0)) ->  | AG40: 35 | AH40: =IF(AF6<35,"",VLOOKUP(35,B6:N65,4,FALSE)) ->  | AI40: =IF(AF6<35,"",VLOOKUP(35,B6:N65,10,FALSE)) -> 
F41: =SUM(F36:F40) -> 0 | G41: =SUM(G36:G40) -> 0 | H41: =SUM(H36:H40) -> 0 | I41: =SUM(I36:I40) -> 0 | J41: =SUM(J36:J40) -> 0 | O41: =SUM(F41:J41) -> 0 | P41: =MAX(F41:J41)+0.005 -> 0.005 | Q41: =IF(F36="","",SUM(O41*1000)+P41) ->  | AC41: =SUM(O35,O41) -> 0 | AG41: 36 | AH41: =IF(AF6<36,"",VLOOKUP(36,B6:N65,4,FALSE)) ->  | AI41: =IF(AF6<36,"",VLOOKUP(36,B6:N65,10,FALSE)) -> 
B42: =IF(F42="","",N42) ->  | C42: 7 | D42: VRŠOVICE I. | K42: =SUM(F42:J42) -> 0 | L42: =MAX(F42:J42) -> 0 | M42: =SUM(K42*1000)+L42+0.19 -> 0.19 | N42: =IF(F42="","",RANK(M42,M6:M65,0)) ->  | R42: =IF(F42="","",RANK(Q47,Q11:Q65,0)) ->  | T42: =IF(F42="","",RANK(AA42,AA6:AA64,0)) ->  | U42: =IF(R42="","",R42) ->  | V42: =IF(D42="","",D42) -> VRŠOVICE I. | W42: =IF(O47="","",O47) -> 0 | X42: =IF(V42="HOSTIVAŘ I.","GARÁŽ HOSTIVAŘ",IF(V42="VRŠOVICE I.","GARÁŽ VRŠOVICE",IF(V42="KLÍČOV I.","GARÁŽ KLÍČOV",IF(V42="ŘEPY I.","GARÁŽ ŘEPY",IF(V42="KAČEROV I.","GARÁŽ KAČEROV",""))))) -> GARÁŽ VRŠOVICE | Y42: =MAX(F47:J47,F53:J53)+0.02 -> 0.02 | Z42: =SUM(O47,O53)*1000 -> 0 | AA42: =SUM(Y42:Z42) -> 0.02 | AB42: =IF(AC53="","",AC53) -> 0 | AD42: =IF(T42="","",T42) ->  | AG42: 37 | AH42: =IF(AF6<37,"",VLOOKUP(37,B6:N65,4,FALSE)) ->  | AI42: =IF(AF6<37,"",VLOOKUP(37,B6:N65,10,FALSE)) -> 
B43: =IF(F43="","",N43) ->  | K43: =SUM(F43:J43) -> 0 | L43: =MAX(F43:J43) -> 0 | M43: =SUM(K43*1000)+L43+0.18 -> 0.18 | N43: =IF(F43="","",RANK(M43,M6:M65,0)) ->  | AG43: 38 | AH43: =IF(AF6<38,"",VLOOKUP(38,B6:N65,4,FALSE)) ->  | AI43: =IF(AF6<38,"",VLOOKUP(38,B6:N65,10,FALSE)) -> 
B44: =IF(F44="","",N44) ->  | K44: =SUM(F44:J44) -> 0 | L44: =MAX(F44:J44) -> 0 | M44: =SUM(K44*1000)+L44+0.17 -> 0.17 | N44: =IF(F44="","",RANK(M44,M6:M65,0)) ->  | AG44: 39 | AH44: =IF(AF6<39,"",VLOOKUP(39,B6:N65,4,FALSE)) ->  | AI44: =IF(AF6<39,"",VLOOKUP(39,B6:N65,10,FALSE)) -> 
B45: =IF(F45="","",N45) ->  | K45: =SUM(F45:J45) -> 0 | L45: =MAX(F45:J45) -> 0 | M45: =SUM(K45*1000)+L45+0.16 -> 0.16 | N45: =IF(F45="","",RANK(M45,M6:M65,0)) ->  | AG45: 40 | AH45: =IF(AF6<40,"",VLOOKUP(40,B6:N65,4,FALSE)) ->  | AI45: =IF(AF6<40,"",VLOOKUP(40,B6:N65,10,FALSE)) -> 
B46: =IF(F46="","",N46) ->  | K46: =SUM(F46:J46) -> 0 | L46: =MAX(F46:J46) -> 0 | M46: =SUM(K46*1000)+L46+0.15 -> 0.15 | N46: =IF(F46="","",RANK(M46,M6:M65,0)) ->  | AG46: 41 | AH46: =IF(AF6<41,"",VLOOKUP(41,B6:N65,4,FALSE)) ->  | AI46: =IF(AF6<41,"",VLOOKUP(41,B6:N65,10,FALSE)) -> 
F47: =SUM(F42:F46) -> 0 | G47: =SUM(G42:G46) -> 0 | H47: =SUM(H42:H46) -> 0 | I47: =SUM(I42:I46) -> 0 | J47: =SUM(J42:J46) -> 0 | O47: =SUM(F47:J47) -> 0 | P47: =MAX(F47:J47)+0.004 -> 0.004 | Q47: =IF(F42="","",SUM(O47*1000)+P47) ->  | AG47: 42 | AH47: =IF(AF6<42,"",VLOOKUP(42,B6:N65,4,FALSE)) ->  | AI47: =IF(AF6<42,"",VLOOKUP(42,B6:N65,10,FALSE)) -> 
B48: =IF(F48="","",N48) ->  | C48: 8 | D48: VRŠOVICE II. | K48: =SUM(F48:J48) -> 0 | L48: =MAX(F48:J48) -> 0 | M48: =SUM(K48*1000)+L48+0.14 -> 0.14 | N48: =IF(F48="","",RANK(M48,M6:M65,0)) ->  | R48: =IF(F48="","",RANK(Q53,Q11:Q65,0)) ->  | U48: =IF(R48="","",R48) ->  | V48: =IF(D48="","",D48) -> VRŠOVICE II. | W48: =IF(O53="","",O53) -> 0 | AG48: 43 | AH48: =IF(AF6<43,"",VLOOKUP(43,B6:N65,4,FALSE)) ->  | AI48: =IF(AF6<43,"",VLOOKUP(43,B6:N65,10,FALSE)) -> 
B49: =IF(F49="","",N49) ->  | K49: =SUM(F49:J49) -> 0 | L49: =MAX(F49:J49) -> 0 | M49: =SUM(K49*1000)+L49+0.13 -> 0.13 | N49: =IF(F49="","",RANK(M49,M6:M65,0)) ->  | AG49: 44 | AH49: =IF(AF6<44,"",VLOOKUP(44,B6:N65,4,FALSE)) ->  | AI49: =IF(AF6<44,"",VLOOKUP(44,B6:N65,10,FALSE)) -> 
B50: =IF(F50="","",N50) ->  | K50: =SUM(F50:J50) -> 0 | L50: =MAX(F50:J50) -> 0 | M50: =SUM(K50*1000)+L50+0.12 -> 0.12 | N50: =IF(F50="","",RANK(M50,M6:M65,0)) ->  | AG50: 45 | AH50: =IF(AF6<45,"",VLOOKUP(45,B6:N65,4,FALSE)) ->  | AI50: =IF(AF6<45,"",VLOOKUP(45,B6:N65,10,FALSE)) -> 
B51: =IF(F51="","",N51) ->  | K51: =SUM(F51:J51) -> 0 | L51: =MAX(F51:J51) -> 0 | M51: =SUM(K51*1000)+L51+0.11 -> 0.11 | N51: =IF(F51="","",RANK(M51,M6:M65,0)) ->  | AG51: 46 | AH51: =IF(AF6<46,"",VLOOKUP(46,B6:N65,4,FALSE)) ->  | AI51: =IF(AF6<46,"",VLOOKUP(46,B6:N65,10,FALSE)) -> 
B52: =IF(F52="","",N52) ->  | K52: =SUM(F52:J52) -> 0 | L52: =MAX(F52:J52) -> 0 | M52: =SUM(K52*1000)+L52+0.1 -> 0.1 | N52: =IF(F52="","",RANK(M52,M6:M65,0)) ->  | AG52: 47 | AH52: =IF(AF6<47,"",VLOOKUP(47,B6:N65,4,FALSE)) ->  | AI52: =IF(AF6<47,"",VLOOKUP(47,B6:N65,10,FALSE)) -> 
F53: =SUM(F48:F52) -> 0 | G53: =SUM(G48:G52) -> 0 | H53: =SUM(H48:H52) -> 0 | I53: =SUM(I48:I52) -> 0 | J53: =SUM(J48:J52) -> 0 | O53: =SUM(F53:J53) -> 0 | P53: =MAX(F53:J53)+0.003 -> 0.003 | Q53: =IF(F48="","",SUM(O53*1000)+P53) ->  | AC53: =SUM(O47,O53) -> 0 | AG53: 48 | AH53: =IF(AF6<48,"",VLOOKUP(48,B6:N65,4,FALSE)) ->  | AI53: =IF(AF6<48,"",VLOOKUP(48,B6:N65,10,FALSE)) -> 
B54: =IF(F54="","",N54) ->  | C54: 9 | D54: KLÍČOV I. | K54: =SUM(F54:J54) -> 0 | L54: =MAX(F54:J54) -> 0 | M54: =SUM(K54*1000)+L54+0.09 -> 0.09 | N54: =IF(F54="","",RANK(M54,M6:M65,0)) ->  | R54: =IF(F54="","",RANK(Q59,Q11:Q65,0)) ->  | T54: =IF(F54="","",RANK(AA54,AA6:AA64,0)) ->  | U54: =IF(R54="","",R54) ->  | V54: =IF(D54="","",D54) -> KLÍČOV I. | W54: =IF(O59="","",O59) -> 0 | X54: =IF(V54="HOSTIVAŘ I.","GARÁŽ HOSTIVAŘ",IF(V54="VRŠOVICE I.","GARÁŽ VRŠOVICE",IF(V54="KLÍČOV I.","GARÁŽ KLÍČOV",IF(V54="ŘEPY I.","GARÁŽ ŘEPY",IF(V54="KAČEROV I.","GARÁŽ KAČEROV",""))))) -> GARÁŽ KLÍČOV | Y54: =MAX(F59:J59,F65:J65)+0.01 -> 0.01 | Z54: =SUM(O59,O65)*1000 -> 0 | AA54: =SUM(Y54:Z54) -> 0.01 | AB54: =IF(AC65="","",AC65) -> 0 | AD54: =IF(T54="","",T54) ->  | AG54: 49 | AH54: =IF(AF6<49,"",VLOOKUP(49,B6:N65,4,FALSE)) ->  | AI54: =IF(AF6<49,"",VLOOKUP(49,B6:N65,10,FALSE)) -> 
B55: =IF(F55="","",N55) ->  | K55: =SUM(F55:J55) -> 0 | L55: =MAX(F55:J55) -> 0 | M55: =SUM(K55*1000)+L55+0.08 -> 0.08 | N55: =IF(F55="","",RANK(M55,M6:M65,0)) ->  | AG55: 50 | AH55: =IF(AF6<50,"",VLOOKUP(50,B6:N65,4,FALSE)) ->  | AI55: =IF(AF6<50,"",VLOOKUP(50,B6:N65,10,FALSE)) -> 
B56: =IF(F56="","",N56) ->  | K56: =SUM(F56:J56) -> 0 | L56: =MAX(F56:J56) -> 0 | M56: =SUM(K56*1000)+L56+0.07 -> 0.07 | N56: =IF(F56="","",RANK(M56,M6:M65,0)) -> 
B57: =IF(F57="","",N57) ->  | K57: =SUM(F57:J57) -> 0 | L57: =MAX(F57:J57) -> 0 | M57: =SUM(K57*1000)+L57+0.06 -> 0.06 | N57: =IF(F57="","",RANK(M57,M6:M65,0)) -> 
B58: =IF(F58="","",N58) ->  | K58: =SUM(F58:J58) -> 0 | L58: =MAX(F58:J58) -> 0 | M58: =SUM(K58*1000)+L58+0.05 -> 0.05 | N58: =IF(F58="","",RANK(M58,M6:M65,0)) -> 
F59: =SUM(F54:F58) -> 0 | G59: =SUM(G54:G58) -> 0 | H59: =SUM(H54:H58) -> 0 | I59: =SUM(I54:I58) -> 0 | J59: =SUM(J54:J58) -> 0 | O59: =SUM(F59:J59) -> 0 | P59: =MAX(F59:J59)+0.002 -> 0.002 | Q59: =IF(F54="","",SUM(O59*1000)+P59) -> 
B60: =IF(F60="","",N60) ->  | C60: 10 | D60: KLÍČOV II. | K60: =SUM(F60:J60) -> 0 | L60: =MAX(F60:J60) -> 0 | M60: =SUM(K60*1000)+L60+0.04 -> 0.04 | N60: =IF(F60="","",RANK(M60,M6:M65,0)) ->  | R60: =IF(F60="","",RANK(Q65,Q11:Q65,0)) ->  | U60: =IF(R60="","",R60) ->  | V60: =IF(D60="","",D60) -> KLÍČOV II. | W60: =IF(O65="","",O65) -> 0
B61: =IF(F61="","",N61) ->  | K61: =SUM(F61:J61) -> 0 | L61: =MAX(F61:J61) -> 0 | M61: =SUM(K61*1000)+L61+0.03 -> 0.03 | N61: =IF(F61="","",RANK(M61,M6:M65,0)) -> 
B62: =IF(F62="","",N62) ->  | K62: =SUM(F62:J62) -> 0 | L62: =MAX(F62:J62) -> 0 | M62: =SUM(K62*1000)+L62+0.02 -> 0.02 | N62: =IF(F62="","",RANK(M62,M6:M65,0)) -> 
B63: =IF(F63="","",N63) ->  | K63: =SUM(F63:J63) -> 0 | L63: =MAX(F63:J63) -> 0 | M63: =SUM(K63*1000)+L63+0.01 -> 0.01 | N63: =IF(F63="","",RANK(M63,M6:M65,0)) -> 
B64: =IF(F64="","",N64) ->  | K64: =SUM(F64:J64) -> 0 | L64: =MAX(F64:J64) -> 0 | M64: =SUM(K64*1000)+L64 -> 0 | N64: =IF(F64="","",RANK(M64,M6:M65,0)) -> 
F65: =SUM(F60:F64) -> 0 | G65: =SUM(G60:G64) -> 0 | H65: =SUM(H60:H64) -> 0 | I65: =SUM(I60:I64) -> 0 | J65: =SUM(J60:J64) -> 0 | L65: =MAX(L12:L64,L6:L10) -> 0 | O65: =SUM(F65:J65) -> 0 | P65: =MAX(F65:J65)+0.001 -> 0.001 | Q65: =IF(F60="","",SUM(O65*1000)+P65) ->  | AC65: =SUM(O59,O65) -> 0

Sheet ŘEPY
A1: ZPĚT
D3: Sportovní turnaj v Bowlingu o pohár ZV-OS Řepy dne 28.3. 2015
C5: Garáž | E5: Jméno | F5: I. | G5: II. | H5: III. | I5: IV. | J5: V. | K5: Body | N5: Jednotlivci. | R5: Družstva. | AG5: pořadí jednotlivců
B6: =IF(F6="","",N6) ->  | C6: 1 | D6: KLÍČOV I. | K6: =SUM(F6:J6) -> 0 | L6: =MAX(F6:J6) -> 0 | M6: =SUM(K6*1000)+L6+0.5 -> 0.5 | N6: =IF(F6="","",RANK(M6,M6:M65,0)) ->  | R6: =IF(F6="","",RANK(Q11,Q11:Q65,0)) ->  | T6: =IF(F6="","",RANK(AA6,AA6:AA64,0)) ->  | U6: =IF(R6="","",R6) ->  | V6: =IF(D6="","",D6) -> KLÍČOV I. | W6: =IF(O11="","",O11) -> 0 | X6: =IF(V6="HOSTIVAŘ I.","GARÁŽ HOSTIVAŘ",IF(V6="VRŠOVICE I.","GARÁŽ VRŠOVICE",IF(V6="KLÍČOV I.","GARÁŽ KLÍČOV",IF(V6="ŘEPY I.","GARÁŽ ŘEPY",IF(V6="KAČEROV I.","GARÁŽ KAČEROV",""))))) -> GARÁŽ KLÍČOV | Y6: =MAX(F11:J11,F17:J17)+0.05 -> 0.05 | Z6: =SUM(O11,O17)*1000 -> 0 | AA6: =SUM(Y6:Z6) -> 0.05 | AB6: =IF(AC17="","",AC17) -> 0 | AD6: =IF(T6="","",T6) ->  | AF6: =COUNT(F6:F10,F12:F16,F18:F22,F24:F28,F30:F34,F36:F40,F42:F46,F48:F52,F54:F58,F60:F64) -> 0 | AG6: 1 | AH6: =IF(AF6<1,"",VLOOKUP(1,B6:N65,4,FALSE)) ->  | AI6: =IF(AF6<1,"",VLOOKUP(1,B6:N65,10,FALSE)) ->  | AK6: =COUNT(U6:U16,U18:U28,U30:U40,U42:U52,U54:U64) -> 0 | AL6: POŘADÍ DRUŽSTEV | BA6: HOSTIVAŘ I.
B7: =IF(F7="","",N7) ->  | K7: =SUM(F7:J7) -> 0 | L7: 0 | M7: =SUM(K7*1000)+L7+0.49 -> 0.49 | N7: =IF(F7="","",RANK(M7,M6:M65,0)) ->  | AG7: =SUM(AG6+1) -> 2 | AH7: =IF(AF6<2,"",VLOOKUP(2,B6:N65,4,FALSE)) ->  | AI7: =IF(AF6<2,"",VLOOKUP(2,B6:N65,10,FALSE)) ->  | AL7: 1 | AM7: =IF(AK6<1,"",VLOOKUP(1,U6:W64,2,FALSE)) ->  | AN7: =IF(AK6<1,"",VLOOKUP(1,U6:W64,3,FALSE)) ->  | BA7: VRŠOVICE I.
B8: =IF(F8="","",N8) ->  | K8: =SUM(F8:J8) -> 0 | L8: 0 | M8: =SUM(K8*1000)+L8+0.48 -> 0.48 | N8: =IF(F8="","",RANK(M8,M6:M65,0)) ->  | AG8: =SUM(AG7+1) -> 3 | AH8: =IF(AF6<3,"",VLOOKUP(3,B6:N65,4,FALSE)) ->  | AI8: =IF(AF6<3,"",VLOOKUP(3,B6:N65,10,FALSE)) ->  | AL8: 2 | AM8: =IF(AK6<2,"",VLOOKUP(2,U6:W64,2,FALSE)) ->  | AN8: =IF(AK6<2,"",VLOOKUP(2,U6:W64,3,FALSE)) ->  | BA8: KLÍČOV I.
B9: =IF(F9="","",N9) ->  | K9: =SUM(F9:J9) -> 0 | L9: 0 | M9: =SUM(K9*1000)+L9+0.47 -> 0.47 | N9: =IF(F9="","",RANK(M9,M6:M65,0)) ->  | AG9: 4 | AH9: =IF(AF6<4,"",VLOOKUP(4,B6:N65,4,FALSE)) ->  | AI9: =IF(AF6<4,"",VLOOKUP(4,B6:N65,10,FALSE)) ->  | AL9: 3 | AM9: =IF(AK6<3,"",VLOOKUP(3,U6:W64,2,FALSE)) ->  | AN9: =IF(AK6<3,"",VLOOKUP(3,U6:W64,3,FALSE)) ->  | BA9: ŘEPY I.
B10: =IF(F10="","",N10) ->  | K10: =SUM(F10:J10) -> 0 | L10: 0 | M10: =SUM(K10*1000)+L10+0.46 -> 0.46 | N10: =IF(F10="","",RANK(M10,M6:M65,0)) ->  | AG10: 5 | AH10: =IF(AF6<5,"",VLOOKUP(5,B6:N65,4,FALSE)) ->  | AI10: =IF(AF6<5,"",VLOOKUP(5,B6:N65,10,FALSE)) ->  | AL10: 4 | AM10: =IF(AK6<4,"",VLOOKUP(4,U6:W64,2,FALSE)) ->  | AN10: =IF(AK6<4,"",VLOOKUP(4,U6:W64,3,FALSE)) ->  | BA10: KAČEROV I.
F11: =SUM(F6:F10) -> 0 | G11: =SUM(G6:G10) -> 0 | H11: =SUM(H6:H10) -> 0 | I11: =SUM(I6:I10) -> 0 | J11: =SUM(J6:J10) -> 0 | L11: 0 | O11: =SUM(F11:J11) -> 0 | P11: =MAX(F11:J11)+0.01 -> 0.01 | Q11: =IF(F6="","",SUM(O11*1000)+P11) ->  | AG11: 6 | AH11: =IF(AF6<6,"",VLOOKUP(6,B6:N65,4,FALSE)) ->  | AI11: =IF(AF6<6,"",VLOOKUP(6,B6:N65,10,FALSE)) ->  | AL11: 5 | AM11: =IF(AK6<5,"",VLOOKUP(5,U6:W64,2,FALSE)) ->  | AN11: =IF(AK6<5,"",VLOOKUP(5,U6:W64,3,FALSE)) -> 
B12: =IF(F12="","",N12) ->  | C12: 2 | D12: KLÍČOV II. | K12: =SUM(F12:J12) -> 0 | L12: 0 | M12: =SUM(K12*1000)+L12+0.45 -> 0.45 | N12: =IF(F12="","",RANK(M12,M6:M65,0)) ->  | R12: =IF(F12="","",RANK(Q17,Q11:Q65,0)) ->  | U12: =IF(R12="","",R12) ->  | V12: =IF(D12="","",D12) -> KLÍČOV II. | W12: =IF(O17="","",O17) -> 0 | AG12: 7 | AH12: =IF(AF6<7,"",VLOOKUP(7,B6:N65,4,FALSE)) ->  | AI12: =IF(AF6<7,"",VLOOKUP(7,B6:N65,10,FALSE)) ->  | AL12: 6 | AM12: =IF(AK6<6,"",VLOOKUP(6,U6:W64,2,FALSE)) ->  | AN12: =IF(AK6<6,"",VLOOKUP(6,U6:W64,3,FALSE)) -> 
B13: =IF(F13="","",N13) ->  | K13: =SUM(F13:J13) -> 0 | L13: 0 | M13: =SUM(K13*1000)+L13+0.44 -> 0.44 | N13: =IF(F13="","",RANK(M13,M6:M65,0)) ->  | AG13: 8 | AH13: =IF(AF6<8,"",VLOOKUP(8,B6:N65,4,FALSE)) ->  | AI13: =IF(AF6<8,"",VLOOKUP(8,B6:N65,10,FALSE)) ->  | AL13: 7 | AM13: =IF(AK6<7,"",VLOOKUP(7,U6:W64,2,FALSE)) ->  | AN13: =IF(AK6<7,"",VLOOKUP(7,U6:W64,3,FALSE)) -> 
B14: =IF(F14="","",N14) ->  | K14: =SUM(F14:J14) -> 0 | L14: 0 | M14: =SUM(K14*1000)+L14+0.43 -> 0.43 | N14: =IF(F14="","",RANK(M14,M6:M65,0)) ->  | AG14: 9 | AH14: =IF(AF6<9,"",VLOOKUP(9,B6:N65,4,FALSE)) ->  | AI14: =IF(AF6<9,"",VLOOKUP(9,B6:N65,10,FALSE)) ->  | AL14: 8 | AM14: =IF(AK6<8,"",VLOOKUP(8,U6:W64,2,FALSE)) ->  | AN14: =IF(AK6<8,"",VLOOKUP(8,U6:W64,3,FALSE)) -> 
B15: =IF(F15="","",N15) ->  | K15: =SUM(F15:J15) -> 0 | L15: 0 | M15: =SUM(K15*1000)+L15+0.42 -> 0.42 | N15: =IF(F15="","",RANK(M15,M6:M65,0)) ->  | AG15: 10 | AH15: =IF(AF6<10,"",VLOOKUP(10,B6:N65,4,FALSE)) ->  | AI15: =IF(AF6<10,"",VLOOKUP(10,B6:N65,10,FALSE)) ->  | AL15: 9 | AM15: =IF(AK6<9,"",VLOOKUP(9,U6:W64,2,FALSE)) ->  | AN15: =IF(AK6<9,"",VLOOKUP(9,U6:W64,3,FALSE)) -> 
B16: =IF(F16="","",N16) ->  | K16: =SUM(F16:J16) -> 0 | L16: 0 | M16: =SUM(K16*1000)+L16+0.41 -> 0.41 | N16: =IF(F16="","",RANK(M16,M6:M65,0)) ->  | AG16: 11 | AH16: =IF(AF6<11,"",VLOOKUP(11,B6:N65,4,FALSE)) ->  | AI16: =IF(AF6<11,"",VLOOKUP(11,B6:N65,10,FALSE)) ->  | AL16: 10 | AM16: =IF(AK6<10,"",VLOOKUP(10,U6:W64,2,FALSE)) ->  | AN16: =IF(AK6<10,"",VLOOKUP(10,U6:W64,3,FALSE)) -> 
F17: =SUM(F12:F16) -> 0 | G17: =SUM(G12:G16) -> 0 | H17: =SUM(H12:H16) -> 0 | I17: =SUM(I12:I16) -> 0 | J17: =SUM(J12:J16) -> 0 | O17: =SUM(F17:J17) -> 0 | P17: =MAX(F17:J17)+0.009 -> 0.009 | Q17: =IF(F12="","",SUM(O17*1000)+P17) ->  | AC17: =SUM(O11,O17) -> 0 | AG17: 12 | AH17: =IF(AF6<12,"",VLOOKUP(12,B6:N65,4,FALSE)) ->  | AI17: =IF(AF6<12,"",VLOOKUP(12,B6:N65,10,FALSE)) -> 
B18: =IF(F18="","",N18) ->  | C18: 3 | D18: ŘEPY I. | K18: =SUM(F18:J18) -> 0 | L18: =MAX(F18:J18) -> 0 | M18: =SUM(K18*1000)+L18+0.4 -> 0.4 | N18: =IF(F18="","",RANK(M18,M6:M65,0)) ->  | R18: =IF(F18="","",RANK(Q23,Q11:Q65,0)) ->  | T18: =IF(F18="","",RANK(AA18,AA6:AA64,0)) ->  | U18: =IF(R18="","",R18) ->  | V18: =IF(D18="","",D18) -> ŘEPY I. | W18: =IF(O23="","",O23) -> 0 | X18: =IF(V18="HOSTIVAŘ I.","GARÁŽ HOSTIVAŘ",IF(V18="VRŠOVICE I.","GARÁŽ VRŠOVICE",IF(V18="KLÍČOV I.","GARÁŽ KLÍČOV",IF(V18="ŘEPY I.","GARÁŽ ŘEPY",IF(V18="KAČEROV I.","GARÁŽ KAČEROV",""))))) -> GARÁŽ ŘEPY | Y18: =MAX(F23:J23,F29:J29)+0.04 -> 0.04 | Z18: =SUM(O23,O29)*1000 -> 0 | AA18: =SUM(Y18:Z18) -> 0.04 | AB18: =IF(AC29="","",AC29) -> 0 | AD18: =IF(T18="","",T18) ->  | AG18: 13 | AH18: =IF(AF6<13,"",VLOOKUP(13,B6:N65,4,FALSE)) ->  | AI18: =IF(AF6<13,"",VLOOKUP(13,B6:N65,10,FALSE)) ->  | AK18: =COUNT(T6:T64) -> 0 | AL18: POŘEDÍ GARÁŽÍ
B19: =IF(F19="","",N19) ->  | K19: =SUM(F19:J19) -> 0 | L19: =MAX(F19:J19) -> 0 | M19: =SUM(K19*1000)+L19+0.39 -> 0.39 | N19: =IF(F19="","",RANK(M19,M6:M65,0)) ->  | AG19: 14 | AH19: =IF(AF6<14,"",VLOOKUP(14,B6:N65,4,FALSE)) ->  | AI19: =IF(AF6<14,"",VLOOKUP(14,B6:N65,10,FALSE)) ->  | AL19: 1 | AM19: =IF(AK18<1,"",VLOOKUP(1,T6:AB64,5,FALSE)) ->  | AN19: =IF(AK18<1,"",VLOOKUP(1,T6:AB64,9,FALSE)) -> 
B20: =IF(F20="","",N20) ->  | K20: =SUM(F20:J20) -> 0 | L20: =MAX(F20:J20) -> 0 | M20: =SUM(K20*1000)+L20+0.38 -> 0.38 | N20: =IF(F20="","",RANK(M20,M6:M65,0)) ->  | AG20: 15 | AH20: =IF(AF6<15,"",VLOOKUP(15,B6:N65,4,FALSE)) ->  | AI20: =IF(AF6<15,"",VLOOKUP(15,B6:N65,10,FALSE)) ->  | AL20: 2 | AM20: =IF(AK18<2,"",VLOOKUP(2,T6:AB64,5,FALSE)) ->  | AN20: =IF(AK18<2,"",VLOOKUP(2,T6:AB64,9,FALSE)) -> 
B21: =IF(F21="","",N21) ->  | K21: =SUM(F21:J21) -> 0 | L21: =MAX(F21:J21) -> 0 | M21: =SUM(K21*1000)+L21+0.37 -> 0.37 | N21: =IF(F21="","",RANK(M21,M6:M65,0)) ->  | AG21: 16 | AH21: =IF(AF6<16,"",VLOOKUP(16,B6:N65,4,FALSE)) ->  | AI21: =IF(AF6<16,"",VLOOKUP(16,B6:N65,10,FALSE)) ->  | AL21: 3 | AM21: =IF(AK18<3,"",VLOOKUP(3,T6:AB64,5,FALSE)) ->  | AN21: =IF(AK18<3,"",VLOOKUP(3,T6:AB64,9,FALSE)) -> 
B22: =IF(F22="","",N22) ->  | K22: =SUM(F22:J22) -> 0 | L22: =MAX(F22:J22) -> 0 | M22: =SUM(K22*1000)+L22+0.36 -> 0.36 | N22: =IF(F22="","",RANK(M22,M6:M65,0)) ->  | AG22: 17 | AH22: =IF(AF6<17,"",VLOOKUP(17,B6:N65,4,FALSE)) ->  | AI22: =IF(AF6<17,"",VLOOKUP(17,B6:N65,10,FALSE)) ->  | AL22: 4 | AM22: =IF(AK18<4,"",VLOOKUP(4,T6:AB64,5,FALSE)) ->  | AN22: =IF(AK18<4,"",VLOOKUP(4,T6:AB64,9,FALSE)) -> 
F23: =SUM(F18:F22) -> 0 | G23: =SUM(G18:G22) -> 0 | H23: =SUM(H18:H22) -> 0 | I23: =SUM(I18:I22) -> 0 | J23: =SUM(J18:J22) -> 0 | O23: =SUM(F23:J23) -> 0 | P23: =MAX(F23:J23)+0.008 -> 0.008 | Q23: =IF(F18="","",SUM(O23*1000)+P23) ->  | AG23: 18 | AH23: =IF(AF6<18,"",VLOOKUP(18,B6:N65,4,FALSE)) ->  | AI23: =IF(AF6<18,"",VLOOKUP(18,B6:N65,10,FALSE)) ->  | AL23: 5 | AM23: =IF(AK18<5,"",VLOOKUP(5,T6:AB64,5,FALSE)) ->  | AN23: =IF(AK18<5,"",VLOOKUP(5,T6:AB64,9,FALSE)) -> 
B24: =IF(F24="","",N24) ->  | C24: 4 | D24: ŘEPY II. | K24: =SUM(F24:J24) -> 0 | L24: =MAX(F24:J24) -> 0 | M24: =SUM(K24*1000)+L24+0.35 -> 0.35 | N24: =IF(F24="","",RANK(M24,M6:M65,0)) ->  | R24: =IF(F24="","",RANK(Q29,Q11:Q65,0)) ->  | U24: =IF(R24="","",R24) ->  | V24: =IF(D24="","",D24) -> ŘEPY II. | W24: =IF(O29="","",O29) -> 0 | AG24: 19 | AH24: =IF(AF6<19,"",VLOOKUP(19,B6:N65,4,FALSE)) ->  | AI24: =IF(AF6<19,"",VLOOKUP(19,B6:N65,10,FALSE)) -> 
B25: =IF(F25="","",N25) ->  | K25: =SUM(F25:J25) -> 0 | L25: =MAX(F25:J25) -> 0 | M25: =SUM(K25*1000)+L25+0.34 -> 0.34 | N25: =IF(F25="","",RANK(M25,M6:M65,0)) ->  | AG25: 20 | AH25: =IF(AF6<20,"",VLOOKUP(20,B6:N65,4,FALSE)) ->  | AI25: =IF(AF6<20,"",VLOOKUP(20,B6:N65,10,FALSE)) -> 
B26: =IF(F26="","",N26) ->  | K26: =SUM(F26:J26) -> 0 | L26: =MAX(F26:J26) -> 0 | M26: =SUM(K26*1000)+L26+0.33 -> 0.33 | N26: =IF(F26="","",RANK(M26,M6:M65,0)) ->  | AG26: 21 | AH26: =IF(AF6<21,"",VLOOKUP(21,B6:N65,4,FALSE)) ->  | AI26: =IF(AF6<21,"",VLOOKUP(21,B6:N65,10,FALSE)) -> 
B27: =IF(F27="","",N27) ->  | K27: =SUM(F27:J27) -> 0 | L27: =MAX(F27:J27) -> 0 | M27: =SUM(K27*1000)+L27+0.32 -> 0.32 | N27: =IF(F27="","",RANK(M27,M6:M65,0)) ->  | AG27: 22 | AH27: =IF(AF6<22,"",VLOOKUP(22,B6:N65,4,FALSE)) ->  | AI27: =IF(AF6<22,"",VLOOKUP(22,B6:N65,10,FALSE)) -> 
B28: =IF(F28="","",N28) ->  | K28: =SUM(F28:J28) -> 0 | L28: =MAX(F28:J28) -> 0 | M28: =SUM(K28*1000)+L28+0.31 -> 0.31 | N28: =IF(F28="","",RANK(M28,M6:M65,0)) ->  | AG28: 23 | AH28: =IF(AF6<23,"",VLOOKUP(23,B6:N65,4,FALSE)) ->  | AI28: =IF(AF6<23,"",VLOOKUP(23,B6:N65,10,FALSE)) -> 
F29: =SUM(F24:F28) -> 0 | G29: =SUM(G24:G28) -> 0 | H29: =SUM(H24:H28) -> 0 | I29: =SUM(I24:I28) -> 0 | J29: =SUM(J24:J28) -> 0 | O29: =SUM(F29:J29) -> 0 | P29: =MAX(F29:J29)+0.007 -> 0.007 | Q29: =IF(F24="","",SUM(O29*1000)+P29) ->  | AC29: =SUM(O23,O29) -> 0 | AG29: 24 | AH29: =IF(AF6<24,"",VLOOKUP(24,B6:N65,4,FALSE)) ->  | AI29: =IF(AF6<24,"",VLOOKUP(24,B6:N65,10,FALSE)) -> 
B30: =IF(F30="","",N30) ->  | C30: 5 | D30: KAČEROV I. | K30: =SUM(F30:J30) -> 0 | L30: =MAX(F30:J30) -> 0 | M30: =SUM(K30*1000)+L30+0.3 -> 0.3 | N30: =IF(F30="","",RANK(M30,M6:M65,0)) ->  | R30: =IF(F30="","",RANK(Q35,Q11:Q65,0)) ->  | T30: =IF(F30="","",RANK(AA30,AA6:AA64,0)) ->  | U30: =IF(R30="","",R30) ->  | V30: =IF(D30="","",D30) -> KAČEROV I. | W30: =IF(O35="","",O35) -> 0 | X30: =IF(V30="HOSTIVAŘ I.","GARÁŽ HOSTIVAŘ",IF(V30="VRŠOVICE I.","GARÁŽ VRŠOVICE",IF(V30="KLÍČOV I.","GARÁŽ KLÍČOV",IF(V30="ŘEPY I.","GARÁŽ ŘEPY",IF(V30="KAČEROV I.","GARÁŽ KAČEROV",""))))) -> GARÁŽ KAČEROV | Y30: =MAX(F35:J35,F41:J41)+0.03 -> 0.03 | Z30: =SUM(O35,O41)*1000 -> 0 | AA30: =SUM(Y30:Z30) -> 0.03 | AB30: =IF(AC41="","",AC41) -> 0 | AD30: =IF(T30="","",T30) ->  | AG30: 25 | AH30: =IF(AF6<25,"",VLOOKUP(25,B6:N65,4,FALSE)) ->  | AI30: =IF(AF6<25,"",VLOOKUP(25,B6:N65,10,FALSE)) -> 
B31: =IF(F31="","",N31) ->  | K31: =SUM(F31:J31) -> 0 | L31: =MAX(F31:J31) -> 0 | M31: =SUM(K31*1000)+L31+0.29 -> 0.29 | N31: =IF(F31="","",RANK(M31,M6:M65,0)) ->  | AG31: 26 | AH31: =IF(AF6<26,"",VLOOKUP(26,B6:N65,4,FALSE)) ->  | AI31: =IF(AF6<26,"",VLOOKUP(26,B6:N65,10,FALSE)) -> 
B32: =IF(F32="","",N32) ->  | K32: =SUM(F32:J32) -> 0 | L32: =MAX(F32:J32) -> 0 | M32: =SUM(K32*1000)+L32+0.28 -> 0.28 | N32: =IF(F32="","",RANK(M32,M6:M65,0)) ->  | AG32: 27 | AH32: =IF(AF6<27,"",VLOOKUP(27,B6:N65,4,FALSE)) ->  | AI32: =IF(AF6<27,"",VLOOKUP(27,B6:N65,10,FALSE)) -> 
B33: =IF(F33="","",N33) ->  | K33: =SUM(F33:J33) -> 0 | L33: =MAX(F33:J33) -> 0 | M33: =SUM(K33*1000)+L33+0.27 -> 0.27 | N33: =IF(F33="","",RANK(M33,M6:M65,0)) ->  | AG33: 28 | AH33: =IF(AF6<28,"",VLOOKUP(28,B6:N65,4,FALSE)) ->  | AI33: =IF(AF6<28,"",VLOOKUP(28,B6:N65,10,FALSE)) -> 
B34: =IF(F34="","",N34) ->  | K34: =SUM(F34:J34) -> 0 | L34: =MAX(F34:J34) -> 0 | M34: =SUM(K34*1000)+L34+0.26 -> 0.26 | N34: =IF(F34="","",RANK(M34,M6:M65,0)) ->  | AG34: 29 | AH34: =IF(AF6<29,"",VLOOKUP(29,B6:N65,4,FALSE)) ->  | AI34: =IF(AF6<29,"",VLOOKUP(29,B6:N65,10,FALSE)) -> 
F35: =SUM(F30:F34) -> 0 | G35: =SUM(G30:G34) -> 0 | H35: =SUM(H30:H34) -> 0 | I35: =SUM(I30:I34) -> 0 | J35: =SUM(J30:J34) -> 0 | O35: =SUM(F35:J35) -> 0 | P35: =MAX(F35:J35)+0.006 -> 0.006 | Q35: =IF(F30="","",SUM(O35*1000)+P35) ->  | AG35: 30 | AH35: =IF(AF6<30,"",VLOOKUP(30,B6:N65,4,FALSE)) ->  | AI35: =IF(AF6<30,"",VLOOKUP(30,B6:N65,10,FALSE)) -> 
B36: =IF(F36="","",N36) ->  | C36: 6 | D36: KAČEROV II. | K36: =SUM(F36:J36) -> 0 | L36: =MAX(F36:J36) -> 0 | M36: =SUM(K36*1000)+L36+0.25 -> 0.25 | N36: =IF(F36="","",RANK(M36,M6:M65,0)) ->  | R36: =IF(F36="","",RANK(Q41,Q11:Q65,0)) ->  | U36: =IF(R36="","",R36) ->  | V36: =IF(D36="","",D36) -> KAČEROV II. | W36: =IF(O41="","",O41) -> 0 | AG36: 31 | AH36: =IF(AF6<31,"",VLOOKUP(31,B6:N65,4,FALSE)) ->  | AI36: =IF(AF6<31,"",VLOOKUP(31,B6:N65,10,FALSE)) -> 
B37: =IF(F37="","",N37) ->  | K37: =SUM(F37:J37) -> 0 | L37: =MAX(F37:J37) -> 0 | M37: =SUM(K37*1000)+L37+0.24 -> 0.24 | N37: =IF(F37="","",RANK(M37,M6:M65,0)) ->  | AG37: 32 | AH37: =IF(AF6<32,"",VLOOKUP(32,B6:N65,4,FALSE)) ->  | AI37: =IF(AF6<32,"",VLOOKUP(32,B6:N65,10,FALSE)) -> 
B38: =IF(F38="","",N38) ->  | K38: =SUM(F38:J38) -> 0 | L38: =MAX(F38:J38) -> 0 | M38: =SUM(K38*1000)+L38+0.23 -> 0.23 | N38: =IF(F38="","",RANK(M38,M6:M65,0)) ->  | AG38: 33 | AH38: =IF(AF6<33,"",VLOOKUP(33,B6:N65,4,FALSE)) ->  | AI38: =IF(AF6<33,"",VLOOKUP(33,B6:N65,10,FALSE)) -> 
B39: =IF(F39="","",N39) ->  | K39: =SUM(F39:J39) -> 0 | L39: =MAX(F39:J39) -> 0 | M39: =SUM(K39*1000)+L39+0.21 -> 0.21 | N39: =IF(F39="","",RANK(M39,M6:M65,0)) ->  | AG39: 34 | AH39: =IF(AF6<34,"",VLOOKUP(34,B6:N65,4,FALSE)) ->  | AI39: =IF(AF6<34,"",VLOOKUP(34,B6:N65,10,FALSE)) -> 
B40: =IF(F40="","",N40) ->  | K40: =SUM(F40:J40) -> 0 | L40: =MAX(F40:J40) -> 0 | M40: =SUM(K40*1000)+L40+0.2 -> 0.2 | N40: =IF(F40="","",RANK(M40,M6:M65,0)) ->  | AG40: 35 | AH40: =IF(AF6<35,"",VLOOKUP(35,B6:N65,4,FALSE)) ->  | AI40: =IF(AF6<35,"",VLOOKUP(35,B6:N65,10,FALSE)) -> 
F41: =SUM(F36:F40) -> 0 | G41: =SUM(G36:G40) -> 0 | H41: =SUM(H36:H40) -> 0 | I41: =SUM(I36:I40) -> 0 | J41: =SUM(J36:J40) -> 0 | O41: =SUM(F41:J41) -> 0 | P41: =MAX(F41:J41)+0.005 -> 0.005 | Q41: =IF(F36="","",SUM(O41*1000)+P41) ->  | AC41: =SUM(O35,O41) -> 0 | AG41: 36 | AH41: =IF(AF6<36,"",VLOOKUP(36,B6:N65,4,FALSE)) ->  | AI41: =IF(AF6<36,"",VLOOKUP(36,B6:N65,10,FALSE)) -> 
B42: =IF(F42="","",N42) ->  | C42: 7 | D42: HOSTIVAŘ I. | K42: =SUM(F42:J42) -> 0 | L42: =MAX(F42:J42) -> 0 | M42: =SUM(K42*1000)+L42+0.19 -> 0.19 | N42: =IF(F42="","",RANK(M42,M6:M65,0)) ->  | R42: =IF(F42="","",RANK(Q47,Q11:Q65,0)) ->  | T42: =IF(F42="","",RANK(AA42,AA6:AA64,0)) ->  | U42: =IF(R42="","",R42) ->  | V42: =IF(D42="","",D42) -> HOSTIVAŘ I. | W42: =IF(O47="","",O47) -> 0 | X42: =IF(V42="HOSTIVAŘ I.","GARÁŽ HOSTIVAŘ",IF(V42="VRŠOVICE I.","GARÁŽ VRŠOVICE",IF(V42="KLÍČOV I.","GARÁŽ KLÍČOV",IF(V42="ŘEPY I.","GARÁŽ ŘEPY",IF(V42="KAČEROV I.","GARÁŽ KAČEROV",""))))) -> GARÁŽ HOSTIVAŘ | Y42: =MAX(F47:J47,F53:J53)+0.02 -> 0.02 | Z42: =SUM(O47,O53)*1000 -> 0 | AA42: =SUM(Y42:Z42) -> 0.02 | AB42: =IF(AC53="","",AC53) -> 0 | AD42: =IF(T42="","",T42) ->  | AG42: 37 | AH42: =IF(AF6<37,"",VLOOKUP(37,B6:N65,4,FALSE)) ->  | AI42: =IF(AF6<37,"",VLOOKUP(37,B6:N65,10,FALSE)) -> 
B43: =IF(F43="","",N43) ->  | K43: =SUM(F43:J43) -> 0 | L43: =MAX(F43:J43) -> 0 | M43: =SUM(K43*1000)+L43+0.18 -> 0.18 | N43: =IF(F43="","",RANK(M43,M6:M65,0)) ->  | AG43: 38 | AH43: =IF(AF6<38,"",VLOOKUP(38,B6:N65,4,FALSE)) ->  | AI43: =IF(AF6<38,"",VLOOKUP(38,B6:N65,10,FALSE)) -> 
B44: =IF(F44="","",N44) ->  | K44: =SUM(F44:J44) -> 0 | L44: =MAX(F44:J44) -> 0 | M44: =SUM(K44*1000)+L44+0.17 -> 0.17 | N44: =IF(F44="","",RANK(M44,M6:M65,0)) ->  | AG44: 39 | AH44: =IF(AF6<39,"",VLOOKUP(39,B6:N65,4,FALSE)) ->  | AI44: =IF(AF6<39,"",VLOOKUP(39,B6:N65,10,FALSE)) -> 
B45: =IF(F45="","",N45) ->  | K45: =SUM(F45:J45) -> 0 | L45: =MAX(F45:J45) -> 0 | M45: =SUM(K45*1000)+L45+0.16 -> 0.16 | N45: =IF(F45="","",RANK(M45,M6:M65,0)) ->  | AG45: 40 | AH45: =IF(AF6<40,"",VLOOKUP(40,B6:N65,4,FALSE)) ->  | AI45: =IF(AF6<40,"",VLOOKUP(40,B6:N65,10,FALSE)) -> 
B46: =IF(F46="","",N46) ->  | K46: =SUM(F46:J46) -> 0 | L46: =MAX(F46:J46) -> 0 | M46: =SUM(K46*1000)+L46+0.15 -> 0.15 | N46: =IF(F46="","",RANK(M46,M6:M65,0)) ->  | AG46: 41 | AH46: =IF(AF6<41,"",VLOOKUP(41,B6:N65,4,FALSE)) ->  | AI46: =IF(AF6<41,"",VLOOKUP(41,B6:N65,10,FALSE)) -> 
F47: =SUM(F42:F46) -> 0 | G47: =SUM(G42:G46) -> 0 | H47: =SUM(H42:H46) -> 0 | I47: =SUM(I42:I46) -> 0 | J47: =SUM(J42:J46) -> 0 | O47: =SUM(F47:J47) -> 0 | P47: =MAX(F47:J47)+0.004 -> 0.004 | Q47: =IF(F42="","",SUM(O47*1000)+P47) ->  | AG47: 42 | AH47: =IF(AF6<42,"",VLOOKUP(42,B6:N65,4,FALSE)) ->  | AI47: =IF(AF6<42,"",VLOOKUP(42,B6:N65,10,FALSE)) -> 
B48: =IF(F48="","",N48) ->  | C48: 8 | D48: HOSTIVAŘ II. | K48: =SUM(F48:J48) -> 0 | L48: =MAX(F48:J48) -> 0 | M48: =SUM(K48*1000)+L48+0.14 -> 0.14 | N48: =IF(F48="","",RANK(M48,M6:M65,0)) ->  | R48: =IF(F48="","",RANK(Q53,Q11:Q65,0)) ->  | U48: =IF(R48="","",R48) ->  | V48: =IF(D48="","",D48) -> HOSTIVAŘ II. | W48: =IF(O53="","",O53) -> 0 | AG48: 43 | AH48: =IF(AF6<43,"",VLOOKUP(43,B6:N65,4,FALSE)) ->  | AI48: =IF(AF6<43,"",VLOOKUP(43,B6:N65,10,FALSE)) -> 
B49: =IF(F49="","",N49) ->  | K49: =SUM(F49:J49) -> 0 | L49: =MAX(F49:J49) -> 0 | M49: =SUM(K49*1000)+L49+0.13 -> 0.13 | N49: =IF(F49="","",RANK(M49,M6:M65,0)) ->  | AG49: 44 | AH49: =IF(AF6<44,"",VLOOKUP(44,B6:N65,4,FALSE)) ->  | AI49: =IF(AF6<44,"",VLOOKUP(44,B6:N65,10,FALSE)) -> 
B50: =IF(F50="","",N50) ->  | K50: =SUM(F50:J50) -> 0 | L50: =MAX(F50:J50) -> 0 | M50: =SUM(K50*1000)+L50+0.12 -> 0.12 | N50: =IF(F50="","",RANK(M50,M6:M65,0)) ->  | AG50: 45 | AH50: =IF(AF6<45,"",VLOOKUP(45,B6:N65,4,FALSE)) ->  | AI50: =IF(AF6<45,"",VLOOKUP(45,B6:N65,10,FALSE)) -> 
B51: =IF(F51="","",N51) ->  | K51: =SUM(F51:J51) -> 0 | L51: =MAX(F51:J51) -> 0 | M51: =SUM(K51*1000)+L51+0.11 -> 0.11 | N51: =IF(F51="","",RANK(M51,M6:M65,0)) ->  | AG51: 46 | AH51: =IF(AF6<46,"",VLOOKUP(46,B6:N65,4,FALSE)) ->  | AI51: =IF(AF6<46,"",VLOOKUP(46,B6:N65,10,FALSE)) -> 
B52: =IF(F52="","",N52) ->  | K52: =SUM(F52:J52) -> 0 | L52: =MAX(F52:J52) -> 0 | M52: =SUM(K52*1000)+L52+0.1 -> 0.1 | N52: =IF(F52="","",RANK(M52,M6:M65,0)) ->  | AG52: 47 | AH52: =IF(AF6<47,"",VLOOKUP(47,B6:N65,4,FALSE)) ->  | AI52: =IF(AF6<47,"",VLOOKUP(47,B6:N65,10,FALSE)) -> 
F53: =SUM(F48:F52) -> 0 | G53: =SUM(G48:G52) -> 0 | H53: =SUM(H48:H52) -> 0 | I53: =SUM(I48:I52) -> 0 | J53: =SUM(J48:J52) -> 0 | O53: =SUM(F53:J53) -> 0 | P53: =MAX(F53:J53)+0.003 -> 0.003 | Q53: =IF(F48="","",SUM(O53*1000)+P53) ->  | AC53: =SUM(O47,O53) -> 0 | AG53: 48 | AH53: =IF(AF6<48,"",VLOOKUP(48,B6:N65,4,FALSE)) ->  | AI53: =IF(AF6<48,"",VLOOKUP(48,B6:N65,10,FALSE)) -> 
B54: =IF(F54="","",N54) ->  | C54: 9 | D54: VRŠOVICE I. | K54: =SUM(F54:J54) -> 0 | L54: =MAX(F54:J54) -> 0 | M54: =SUM(K54*1000)+L54+0.09 -> 0.09 | N54: =IF(F54="","",RANK(M54,M6:M65,0)) ->  | R54: =IF(F54="","",RANK(Q59,Q11:Q65,0)) ->  | T54: =IF(F54="","",RANK(AA54,AA6:AA64,0)) ->  | U54: =IF(R54="","",R54) ->  | V54: =IF(D54="","",D54) -> VRŠOVICE I. | W54: =IF(O59="","",O59) -> 0 | X54: =IF(V54="HOSTIVAŘ I.","GARÁŽ HOSTIVAŘ",IF(V54="VRŠOVICE I.","GARÁŽ VRŠOVICE",IF(V54="KLÍČOV I.","GARÁŽ KLÍČOV",IF(V54="ŘEPY I.","GARÁŽ ŘEPY",IF(V54="KAČEROV I.","GARÁŽ KAČEROV",""))))) -> GARÁŽ VRŠOVICE | Y54: =MAX(F59:J59,F65:J65)+0.01 -> 0.01 | Z54: =SUM(O59,O65)*1000 -> 0 | AA54: =SUM(Y54:Z54) -> 0.01 | AB54: =IF(AC65="","",AC65) -> 0 | AD54: =IF(T54="","",T54) ->  | AG54: 49 | AH54: =IF(AF6<49,"",VLOOKUP(49,B6:N65,4,FALSE)) ->  | AI54: =IF(AF6<49,"",VLOOKUP(49,B6:N65,10,FALSE)) -> 
B55: =IF(F55="","",N55) ->  | K55: =SUM(F55:J55) -> 0 | L55: =MAX(F55:J55) -> 0 | M55: =SUM(K55*1000)+L55+0.08 -> 0.08 | N55: =IF(F55="","",RANK(M55,M6:M65,0)) ->  | AG55: 50 | AH55: =IF(AF6<50,"",VLOOKUP(50,B6:N65,4,FALSE)) ->  | AI55: =IF(AF6<50,"",VLOOKUP(50,B6:N65,10,FALSE)) -> 
B56: =IF(F56="","",N56) ->  | K56: =SUM(F56:J56) -> 0 | L56: =MAX(F56:J56) -> 0 | M56: =SUM(K56*1000)+L56+0.07 -> 0.07 | N56: =IF(F56="","",RANK(M56,M6:M65,0)) -> 
B57: =IF(F57="","",N57) ->  | K57: =SUM(F57:J57) -> 0 | L57: =MAX(F57:J57) -> 0 | M57: =SUM(K57*1000)+L57+0.06 -> 0.06 | N57: =IF(F57="","",RANK(M57,M6:M65,0)) -> 
B58: =IF(F58="","",N58) ->  | K58: =SUM(F58:J58) -> 0 | L58: =MAX(F58:J58) -> 0 | M58: =SUM(K58*1000)+L58+0.05 -> 0.05 | N58: =IF(F58="","",RANK(M58,M6:M65,0)) -> 
F59: =SUM(F54:F58) -> 0 | G59: =SUM(G54:G58) -> 0 | H59: =SUM(H54:H58) -> 0 | I59: =SUM(I54:I58) -> 0 | J59: =SUM(J54:J58) -> 0 | O59: =SUM(F59:J59) -> 0 | P59: =MAX(F59:J59)+0.002 -> 0.002 | Q59: =IF(F54="","",SUM(O59*1000)+P59) -> 
B60: =IF(F60="","",N60) ->  | C60: 10 | D60: VRŠOVICE II. | K60: =SUM(F60:J60) -> 0 | L60: =MAX(F60:J60) -> 0 | M60: =SUM(K60*1000)+L60+0.04 -> 0.04 | N60: =IF(F60="","",RANK(M60,M6:M65,0)) ->  | R60: =IF(F60="","",RANK(Q65,Q11:Q65,0)) ->  | U60: =IF(R60="","",R60) ->  | V60: =IF(D60="","",D60) -> VRŠOVICE II. | W60: =IF(O65="","",O65) -> 0
B61: =IF(F61="","",N61) ->  | K61: =SUM(F61:J61) -> 0 | L61: =MAX(F61:J61) -> 0 | M61: =SUM(K61*1000)+L61+0.03 -> 0.03 | N61: =IF(F61="","",RANK(M61,M6:M65,0)) -> 
B62: =IF(F62="","",N62) ->  | K62: =SUM(F62:J62) -> 0 | L62: =MAX(F62:J62) -> 0 | M62: =SUM(K62*1000)+L62+0.02 -> 0.02 | N62: =IF(F62="","",RANK(M62,M6:M65,0)) -> 
B63: =IF(F63="","",N63) ->  | K63: =SUM(F63:J63) -> 0 | L63: =MAX(F63:J63) -> 0 | M63: =SUM(K63*1000)+L63+0.01 -> 0.01 | N63: =IF(F63="","",RANK(M63,M6:M65,0)) -> 
B64: =IF(F64="","",N64) ->  | K64: =SUM(F64:J64) -> 0 | L64: =MAX(F64:J64) -> 0 | M64: =SUM(K64*1000)+L64 -> 0 | N64: =IF(F64="","",RANK(M64,M6:M65,0)) -> 
F65: =SUM(F60:F64) -> 0 | G65: =SUM(G60:G64) -> 0 | H65: =SUM(H60:H64) -> 0 | I65: =SUM(I60:I64) -> 0 | J65: =SUM(J60:J64) -> 0 | L65: =MAX(L12:L64,L6:L10) -> 0 | O65: =SUM(F65:J65) -> 0 | P65: =MAX(F65:J65)+0.001 -> 0.001 | Q65: =IF(F60="","",SUM(O65*1000)+P65) ->  | AC65: =SUM(O59,O65) -> 0

Sheet HOSTIVAŘ
A1: ZPĚT
D3: Sportovní turnaj v Bowlingu o pohár ZV-OS Hostivař dne 25.4. 2015
C5: Garáž | E5: Jméno | F5: I. | G5: II. | H5: III. | I5: IV. | J5: V. | K5: Body | N5: Jednotlivci. | R5: Družstva. | AG5: pořadí jednotlivců
B6: =IF(F6="","",N6) ->  | C6: 1 | D6: VRŠOVICE I. | K6: =SUM(F6:J6) -> 0 | L6: =MAX(F6:J6) -> 0 | M6: =SUM(K6*1000)+L6+0.5 -> 0.5 | N6: =IF(F6="","",RANK(M6,M6:M65,0)) ->  | R6: =IF(F6="","",RANK(Q11,Q11:Q65,0)) ->  | T6: =IF(F6="","",RANK(AA6,AA6:AA64,0)) ->  | U6: =IF(R6="","",R6) ->  | V6: =IF(D6="","",D6) -> VRŠOVICE I. | W6: =IF(O11="","",O11) -> 0 | X6: =IF(V6="HOSTIVAŘ I.","GARÁŽ HOSTIVAŘ",IF(V6="VRŠOVICE I.","GARÁŽ VRŠOVICE",IF(V6="KLÍČOV I.","GARÁŽ KLÍČOV",IF(V6="ŘEPY I.","GARÁŽ ŘEPY",IF(V6="KAČEROV I.","GARÁŽ KAČEROV",""))))) -> GARÁŽ VRŠOVICE | Y6: =MAX(F11:J11,F17:J17)+0.05 -> 0.05 | Z6: =SUM(O11,O17)*1000 -> 0 | AA6: =SUM(Y6:Z6) -> 0.05 | AB6: =IF(AC17="","",AC17) -> 0 | AD6: =IF(T6="","",T6) ->  | AF6: =COUNT(F6:F10,F12:F16,F18:F22,F24:F28,F30:F34,F36:F40,F42:F46,F48:F52,F54:F58,F60:F64) -> 0 | AG6: 1 | AH6: =IF(AF6<1,"",VLOOKUP(1,B6:N65,4,FALSE)) ->  | AI6: =IF(AF6<1,"",VLOOKUP(1,B6:N65,10,FALSE)) ->  | AK6: =COUNT(U6:U16,U18:U28,U30:U40,U42:U52,U54:U64) -> 0 | AL6: POŘADÍ DRUŽSTEV | BA6: HOSTIVAŘ I.
B7: =IF(F7="","",N7) ->  | K7: =SUM(F7:J7) -> 0 | L7: 0 | M7: =SUM(K7*1000)+L7+0.49 -> 0.49 | N7: =IF(F7="","",RANK(M7,M6:M65,0)) ->  | AG7: =SUM(AG6+1) -> 2 | AH7: =IF(AF6<2,"",VLOOKUP(2,B6:N65,4,FALSE)) ->  | AI7: =IF(AF6<2,"",VLOOKUP(2,B6:N65,10,FALSE)) ->  | AL7: 1 | AM7: =IF(AK6<1,"",VLOOKUP(1,U6:W64,2,FALSE)) ->  | AN7: =IF(AK6<1,"",VLOOKUP(1,U6:W64,3,FALSE)) ->  | BA7: VRŠOVICE I.
B8: =IF(F8="","",N8) ->  | K8: =SUM(F8:J8) -> 0 | L8: 0 | M8: =SUM(K8*1000)+L8+0.48 -> 0.48 | N8: =IF(F8="","",RANK(M8,M6:M65,0)) ->  | AG8: =SUM(AG7+1) -> 3 | AH8: =IF(AF6<3,"",VLOOKUP(3,B6:N65,4,FALSE)) ->  | AI8: =IF(AF6<3,"",VLOOKUP(3,B6:N65,10,FALSE)) ->  | AL8: 2 | AM8: =IF(AK6<2,"",VLOOKUP(2,U6:W64,2,FALSE)) ->  | AN8: =IF(AK6<2,"",VLOOKUP(2,U6:W64,3,FALSE)) ->  | BA8: KLÍČOV I.
B9: =IF(F9="","",N9) ->  | K9: =SUM(F9:J9) -> 0 | L9: 0 | M9: =SUM(K9*1000)+L9+0.47 -> 0.47 | N9: =IF(F9="","",RANK(M9,M6:M65,0)) ->  | AG9: 4 | AH9: =IF(AF6<4,"",VLOOKUP(4,B6:N65,4,FALSE)) ->  | AI9: =IF(AF6<4,"",VLOOKUP(4,B6:N65,10,FALSE)) ->  | AL9: 3 | AM9: =IF(AK6<3,"",VLOOKUP(3,U6:W64,2,FALSE)) ->  | AN9: =IF(AK6<3,"",VLOOKUP(3,U6:W64,3,FALSE)) ->  | BA9: ŘEPY I.
B10: =IF(F10="","",N10) ->  | K10: =SUM(F10:J10) -> 0 | L10: 0 | M10: =SUM(K10*1000)+L10+0.46 -> 0.46 | N10: =IF(F10="","",RANK(M10,M6:M65,0)) ->  | AG10: 5 | AH10: =IF(AF6<5,"",VLOOKUP(5,B6:N65,4,FALSE)) ->  | AI10: =IF(AF6<5,"",VLOOKUP(5,B6:N65,10,FALSE)) ->  | AL10: 4 | AM10: =IF(AK6<4,"",VLOOKUP(4,U6:W64,2,FALSE)) ->  | AN10: =IF(AK6<4,"",VLOOKUP(4,U6:W64,3,FALSE)) ->  | BA10: KAČEROV I.
F11: =SUM(F6:F10) -> 0 | G11: =SUM(G6:G10) -> 0 | H11: =SUM(H6:H10) -> 0 | I11: =SUM(I6:I10) -> 0 | J11: =SUM(J6:J10) -> 0 | L11: 0 | O11: =SUM(F11:J11) -> 0 | P11: =MAX(F11:J11)+0.01 -> 0.01 | Q11: =IF(F6="","",SUM(O11*1000)+P11) ->  | AG11: 6 | AH11: =IF(AF6<6,"",VLOOKUP(6,B6:N65,4,FALSE)) ->  | AI11: =IF(AF6<6,"",VLOOKUP(6,B6:N65,10,FALSE)) ->  | AL11: 5 | AM11: =IF(AK6<5,"",VLOOKUP(5,U6:W64,2,FALSE)) ->  | AN11: =IF(AK6<5,"",VLOOKUP(5,U6:W64,3,FALSE)) -> 
B12: =IF(F12="","",N12) ->  | C12: 2 | D12: VRŠOVICE II. | K12: =SUM(F12:J12) -> 0 | L12: 0 | M12: =SUM(K12*1000)+L12+0.45 -> 0.45 | N12: =IF(F12="","",RANK(M12,M6:M65,0)) ->  | R12: =IF(F12="","",RANK(Q17,Q11:Q65,0)) ->  | U12: =IF(R12="","",R12) ->  | V12: =IF(D12="","",D12) -> VRŠOVICE II. | W12: =IF(O17="","",O17) -> 0 | AG12: 7 | AH12: =IF(AF6<7,"",VLOOKUP(7,B6:N65,4,FALSE)) ->  | AI12: =IF(AF6<7,"",VLOOKUP(7,B6:N65,10,FALSE)) ->  | AL12: 6 | AM12: =IF(AK6<6,"",VLOOKUP(6,U6:W64,2,FALSE)) ->  | AN12: =IF(AK6<6,"",VLOOKUP(6,U6:W64,3,FALSE)) -> 
B13: =IF(F13="","",N13) ->  | K13: =SUM(F13:J13) -> 0 | L13: 0 | M13: =SUM(K13*1000)+L13+0.44 -> 0.44 | N13: =IF(F13="","",RANK(M13,M6:M65,0)) ->  | AG13: 8 | AH13: =IF(AF6<8,"",VLOOKUP(8,B6:N65,4,FALSE)) ->  | AI13: =IF(AF6<8,"",VLOOKUP(8,B6:N65,10,FALSE)) ->  | AL13: 7 | AM13: =IF(AK6<7,"",VLOOKUP(7,U6:W64,2,FALSE)) ->  | AN13: =IF(AK6<7,"",VLOOKUP(7,U6:W64,3,FALSE)) -> 
B14: =IF(F14="","",N14) ->  | K14: =SUM(F14:J14) -> 0 | L14: 0 | M14: =SUM(K14*1000)+L14+0.43 -> 0.43 | N14: =IF(F14="","",RANK(M14,M6:M65,0)) ->  | AG14: 9 | AH14: =IF(AF6<9,"",VLOOKUP(9,B6:N65,4,FALSE)) ->  | AI14: =IF(AF6<9,"",VLOOKUP(9,B6:N65,10,FALSE)) ->  | AL14: 8 | AM14: =IF(AK6<8,"",VLOOKUP(8,U6:W64,2,FALSE)) ->  | AN14: =IF(AK6<8,"",VLOOKUP(8,U6:W64,3,FALSE)) -> 
B15: =IF(F15="","",N15) ->  | K15: =SUM(F15:J15) -> 0 | L15: 0 | M15: =SUM(K15*1000)+L15+0.42 -> 0.42 | N15: =IF(F15="","",RANK(M15,M6:M65,0)) ->  | AG15: 10 | AH15: =IF(AF6<10,"",VLOOKUP(10,B6:N65,4,FALSE)) ->  | AI15: =IF(AF6<10,"",VLOOKUP(10,B6:N65,10,FALSE)) ->  | AL15: 9 | AM15: =IF(AK6<9,"",VLOOKUP(9,U6:W64,2,FALSE)) ->  | AN15: =IF(AK6<9,"",VLOOKUP(9,U6:W64,3,FALSE)) -> 
B16: =IF(F16="","",N16) ->  | K16: =SUM(F16:J16) -> 0 | L16: 0 | M16: =SUM(K16*1000)+L16+0.41 -> 0.41 | N16: =IF(F16="","",RANK(M16,M6:M65,0)) ->  | AG16: 11 | AH16: =IF(AF6<11,"",VLOOKUP(11,B6:N65,4,FALSE)) ->  | AI16: =IF(AF6<11,"",VLOOKUP(11,B6:N65,10,FALSE)) ->  | AL16: 10 | AM16: =IF(AK6<10,"",VLOOKUP(10,U6:W64,2,FALSE)) ->  | AN16: =IF(AK6<10,"",VLOOKUP(10,U6:W64,3,FALSE)) -> 
F17: =SUM(F12:F16) -> 0 | G17: =SUM(G12:G16) -> 0 | H17: =SUM(H12:H16) -> 0 | I17: =SUM(I12:I16) -> 0 | J17: =SUM(J12:J16) -> 0 | O17: =SUM(F17:J17) -> 0 | P17: =MAX(F17:J17)+0.009 -> 0.009 | Q17: =IF(F12="","",SUM(O17*1000)+P17) ->  | AC17: =SUM(O11,O17) -> 0 | AG17: 12 | AH17: =IF(AF6<12,"",VLOOKUP(12,B6:N65,4,FALSE)) ->  | AI17: =IF(AF6<12,"",VLOOKUP(12,B6:N65,10,FALSE)) -> 
B18: =IF(F18="","",N18) ->  | C18: 3 | D18: KLÍČOV I. | K18: =SUM(F18:J18) -> 0 | L18: =MAX(F18:J18) -> 0 | M18: =SUM(K18*1000)+L18+0.4 -> 0.4 | N18: =IF(F18="","",RANK(M18,M6:M65,0)) ->  | R18: =IF(F18="","",RANK(Q23,Q11:Q65,0)) ->  | T18: =IF(F18="","",RANK(AA18,AA6:AA64,0)) ->  | U18: =IF(R18="","",R18) ->  | V18: =IF(D18="","",D18) -> KLÍČOV I. | W18: =IF(O23="","",O23) -> 0 | X18: =IF(V18="HOSTIVAŘ I.","GARÁŽ HOSTIVAŘ",IF(V18="VRŠOVICE I.","GARÁŽ VRŠOVICE",IF(V18="KLÍČOV I.","GARÁŽ KLÍČOV",IF(V18="ŘEPY I.","GARÁŽ ŘEPY",IF(V18="KAČEROV I.","GARÁŽ KAČEROV",""))))) -> GARÁŽ KLÍČOV | Y18: =MAX(F23:J23,F29:J29)+0.04 -> 0.04 | Z18: =SUM(O23,O29)*1000 -> 0 | AA18: =SUM(Y18:Z18) -> 0.04 | AB18: =IF(AC29="","",AC29) -> 0 | AD18: =IF(T18="","",T18) ->  | AG18: 13 | AH18: =IF(AF6<13,"",VLOOKUP(13,B6:N65,4,FALSE)) ->  | AI18: =IF(AF6<13,"",VLOOKUP(13,B6:N65,10,FALSE)) ->  | AK18: =COUNT(T6:T64) -> 0 | AL18: POŘEDÍ GARÁŽÍ
B19: =IF(F19="","",N19) ->  | K19: =SUM(F19:J19) -> 0 | L19: =MAX(F19:J19) -> 0 | M19: =SUM(K19*1000)+L19+0.39 -> 0.39 | N19: =IF(F19="","",RANK(M19,M6:M65,0)) ->  | AG19: 14 | AH19: =IF(AF6<14,"",VLOOKUP(14,B6:N65,4,FALSE)) ->  | AI19: =IF(AF6<14,"",VLOOKUP(14,B6:N65,10,FALSE)) ->  | AL19: 1 | AM19: =IF(AK18<1,"",VLOOKUP(1,T6:AB64,5,FALSE)) ->  | AN19: =IF(AK18<1,"",VLOOKUP(1,T6:AB64,9,FALSE)) -> 
B20: =IF(F20="","",N20) ->  | K20: =SUM(F20:J20) -> 0 | L20: =MAX(F20:J20) -> 0 | M20: =SUM(K20*1000)+L20+0.38 -> 0.38 | N20: =IF(F20="","",RANK(M20,M6:M65,0)) ->  | AG20: 15 | AH20: =IF(AF6<15,"",VLOOKUP(15,B6:N65,4,FALSE)) ->  | AI20: =IF(AF6<15,"",VLOOKUP(15,B6:N65,10,FALSE)) ->  | AL20: 2 | AM20: =IF(AK18<2,"",VLOOKUP(2,T6:AB64,5,FALSE)) ->  | AN20: =IF(AK18<2,"",VLOOKUP(2,T6:AB64,9,FALSE)) -> 
B21: =IF(F21="","",N21) ->  | K21: =SUM(F21:J21) -> 0 | L21: =MAX(F21:J21) -> 0 | M21: =SUM(K21*1000)+L21+0.37 -> 0.37 | N21: =IF(F21="","",RANK(M21,M6:M65,0)) ->  | AG21: 16 | AH21: =IF(AF6<16,"",VLOOKUP(16,B6:N65,4,FALSE)) ->  | AI21: =IF(AF6<16,"",VLOOKUP(16,B6:N65,10,FALSE)) ->  | AL21: 3 | AM21: =IF(AK18<3,"",VLOOKUP(3,T6:AB64,5,FALSE)) ->  | AN21: =IF(AK18<3,"",VLOOKUP(3,T6:AB64,9,FALSE)) -> 
B22: =IF(F22="","",N22) ->  | K22: =SUM(F22:J22) -> 0 | L22: =MAX(F22:J22) -> 0 | M22: =SUM(K22*1000)+L22+0.36 -> 0.36 | N22: =IF(F22="","",RANK(M22,M6:M65,0)) ->  | AG22: 17 | AH22: =IF(AF6<17,"",VLOOKUP(17,B6:N65,4,FALSE)) ->  | AI22: =IF(AF6<17,"",VLOOKUP(17,B6:N65,10,FALSE)) ->  | AL22: 4 | AM22: =IF(AK18<4,"",VLOOKUP(4,T6:AB64,5,FALSE)) ->  | AN22: =IF(AK18<4,"",VLOOKUP(4,T6:AB64,9,FALSE)) -> 
F23: =SUM(F18:F22) -> 0 | G23: =SUM(G18:G22) -> 0 | H23: =SUM(H18:H22) -> 0 | I23: =SUM(I18:I22) -> 0 | J23: =SUM(J18:J22) -> 0 | O23: =SUM(F23:J23) -> 0 | P23: =MAX(F23:J23)+0.008 -> 0.008 | Q23: =IF(F18="","",SUM(O23*1000)+P23) ->  | AG23: 18 | AH23: =IF(AF6<18,"",VLOOKUP(18,B6:N65,4,FALSE)) ->  | AI23: =IF(AF6<18,"",VLOOKUP(18,B6:N65,10,FALSE)) ->  | AL23: 5 | AM23: =IF(AK18<5,"",VLOOKUP(5,T6:AB64,5,FALSE)) ->  | AN23: =IF(AK18<5,"",VLOOKUP(5,T6:AB64,9,FALSE)) -> 
B24: =IF(F24="","",N24) ->  | C24: 4 | D24: KLÍČOV II. | K24: =SUM(F24:J24) -> 0 | L24: =MAX(F24:J24) -> 0 | M24: =SUM(K24*1000)+L24+0.35 -> 0.35 | N24: =IF(F24="","",RANK(M24,M6:M65,0)) ->  | R24: =IF(F24="","",RANK(Q29,Q11:Q65,0)) ->  | U24: =IF(R24="","",R24) ->  | V24: =IF(D24="","",D24) -> KLÍČOV II. | W24: =IF(O29="","",O29) -> 0 | AG24: 19 | AH24: =IF(AF6<19,"",VLOOKUP(19,B6:N65,4,FALSE)) ->  | AI24: =IF(AF6<19,"",VLOOKUP(19,B6:N65,10,FALSE)) -> 
B25: =IF(F25="","",N25) ->  | K25: =SUM(F25:J25) -> 0 | L25: =MAX(F25:J25) -> 0 | M25: =SUM(K25*1000)+L25+0.34 -> 0.34 | N25: =IF(F25="","",RANK(M25,M6:M65,0)) ->  | AG25: 20 | AH25: =IF(AF6<20,"",VLOOKUP(20,B6:N65,4,FALSE)) ->  | AI25: =IF(AF6<20,"",VLOOKUP(20,B6:N65,10,FALSE)) -> 
B26: =IF(F26="","",N26) ->  | K26: =SUM(F26:J26) -> 0 | L26: =MAX(F26:J26) -> 0 | M26: =SUM(K26*1000)+L26+0.33 -> 0.33 | N26: =IF(F26="","",RANK(M26,M6:M65,0)) ->  | AG26: 21 | AH26: =IF(AF6<21,"",VLOOKUP(21,B6:N65,4,FALSE)) ->  | AI26: =IF(AF6<21,"",VLOOKUP(21,B6:N65,10,FALSE)) -> 
B27: =IF(F27="","",N27) ->  | K27: =SUM(F27:J27) -> 0 | L27: =MAX(F27:J27) -> 0 | M27: =SUM(K27*1000)+L27+0.32 -> 0.32 | N27: =IF(F27="","",RANK(M27,M6:M65,0)) ->  | AG27: 22 | AH27: =IF(AF6<22,"",VLOOKUP(22,B6:N65,4,FALSE)) ->  | AI27: =IF(AF6<22,"",VLOOKUP(22,B6:N65,10,FALSE)) -> 
B28: =IF(F28="","",N28) ->  | K28: =SUM(F28:J28) -> 0 | L28: =MAX(F28:J28) -> 0 | M28: =SUM(K28*1000)+L28+0.31 -> 0.31 | N28: =IF(F28="","",RANK(M28,M6:M65,0)) ->  | AG28: 23 | AH28: =IF(AF6<23,"",VLOOKUP(23,B6:N65,4,FALSE)) ->  | AI28: =IF(AF6<23,"",VLOOKUP(23,B6:N65,10,FALSE)) -> 
F29: =SUM(F24:F28) -> 0 | G29: =SUM(G24:G28) -> 0 | H29: =SUM(H24:H28) -> 0 | I29: =SUM(I24:I28) -> 0 | J29: =SUM(J24:J28) -> 0 | O29: =SUM(F29:J29) -> 0 | P29: =MAX(F29:J29)+0.007 -> 0.007 | Q29: =IF(F24="","",SUM(O29*1000)+P29) ->  | AC29: =SUM(O23,O29) -> 0 | AG29: 24 | AH29: =IF(AF6<24,"",VLOOKUP(24,B6:N65,4,FALSE)) ->  | AI29: =IF(AF6<24,"",VLOOKUP(24,B6:N65,10,FALSE)) -> 
B30: =IF(F30="","",N30) ->  | C30: 5 | D30: ŘEPY I. | K30: =SUM(F30:J30) -> 0 | L30: =MAX(F30:J30) -> 0 | M30: =SUM(K30*1000)+L30+0.3 -> 0.3 | N30: =IF(F30="","",RANK(M30,M6:M65,0)) ->  | R30: =IF(F30="","",RANK(Q35,Q11:Q65,0)) ->  | T30: =IF(F30="","",RANK(AA30,AA6:AA64,0)) ->  | U30: =IF(R30="","",R30) ->  | V30: =IF(D30="","",D30) -> ŘEPY I. | W30: =IF(O35="","",O35) -> 0 | X30: =IF(V30="HOSTIVAŘ I.","GARÁŽ HOSTIVAŘ",IF(V30="VRŠOVICE I.","GARÁŽ VRŠOVICE",IF(V30="KLÍČOV I.","GARÁŽ KLÍČOV",IF(V30="ŘEPY I.","GARÁŽ ŘEPY",IF(V30="KAČEROV I.","GARÁŽ KAČEROV",""))))) -> GARÁŽ ŘEPY | Y30: =MAX(F35:J35,F41:J41)+0.03 -> 0.03 | Z30: =SUM(O35,O41)*1000 -> 0 | AA30: =SUM(Y30:Z30) -> 0.03 | AB30: =IF(AC41="","",AC41) -> 0 | AD30: =IF(T30="","",T30) ->  | AG30: 25 | AH30: =IF(AF6<25,"",VLOOKUP(25,B6:N65,4,FALSE)) ->  | AI30: =IF(AF6<25,"",VLOOKUP(25,B6:N65,10,FALSE)) -> 
B31: =IF(F31="","",N31) ->  | K31: =SUM(F31:J31) -> 0 | L31: =MAX(F31:J31) -> 0 | M31: =SUM(K31*1000)+L31+0.29 -> 0.29 | N31: =IF(F31="","",RANK(M31,M6:M65,0)) ->  | AG31: 26 | AH31: =IF(AF6<26,"",VLOOKUP(26,B6:N65,4,FALSE)) ->  | AI31: =IF(AF6<26,"",VLOOKUP(26,B6:N65,10,FALSE)) -> 
B32: =IF(F32="","",N32) ->  | K32: =SUM(F32:J32) -> 0 | L32: =MAX(F32:J32) -> 0 | M32: =SUM(K32*1000)+L32+0.28 -> 0.28 | N32: =IF(F32="","",RANK(M32,M6:M65,0)) ->  | AG32: 27 | AH32: =IF(AF6<27,"",VLOOKUP(27,B6:N65,4,FALSE)) ->  | AI32: =IF(AF6<27,"",VLOOKUP(27,B6:N65,10,FALSE)) -> 
B33: =IF(F33="","",N33) ->  | K33: =SUM(F33:J33) -> 0 | L33: =MAX(F33:J33) -> 0 | M33: =SUM(K33*1000)+L33+0.27 -> 0.27 | N33: =IF(F33="","",RANK(M33,M6:M65,0)) ->  | AG33: 28 | AH33: =IF(AF6<28,"",VLOOKUP(28,B6:N65,4,FALSE)) ->  | AI33: =IF(AF6<28,"",VLOOKUP(28,B6:N65,10,FALSE)) -> 
B34: =IF(F34="","",N34) ->  | K34: =SUM(F34:J34) -> 0 | L34: =MAX(F34:J34) -> 0 | M34: =SUM(K34*1000)+L34+0.26 -> 0.26 | N34: =IF(F34="","",RANK(M34,M6:M65,0)) ->  | AG34: 29 | AH34: =IF(AF6<29,"",VLOOKUP(29,B6:N65,4,FALSE)) ->  | AI34: =IF(AF6<29,"",VLOOKUP(29,B6:N65,10,FALSE)) -> 
F35: =SUM(F30:F34) -> 0 | G35: =SUM(G30:G34) -> 0 | H35: =SUM(H30:H34) -> 0 | I35: =SUM(I30:I34) -> 0 | J35: =SUM(J30:J34) -> 0 | O35: =SUM(F35:J35) -> 0 | P35: =MAX(F35:J35)+0.006 -> 0.006 | Q35: =IF(F30="","",SUM(O35*1000)+P35) ->  | AG35: 30 | AH35: =IF(AF6<30,"",VLOOKUP(30,B6:N65,4,FALSE)) ->  | AI35: =IF(AF6<30,"",VLOOKUP(30,B6:N65,10,FALSE)) -> 
B36: =IF(F36="","",N36) ->  | C36: 6 | D36: ŘEPY II. | K36: =SUM(F36:J36) -> 0 | L36: =MAX(F36:J36) -> 0 | M36: =SUM(K36*1000)+L36+0.25 -> 0.25 | N36: =IF(F36="","",RANK(M36,M6:M65,0)) ->  | R36: =IF(F36="","",RANK(Q41,Q11:Q65,0)) ->  | U36: =IF(R36="","",R36) ->  | V36: =IF(D36="","",D36) -> ŘEPY II. | W36: =IF(O41="","",O41) -> 0 | AG36: 31 | AH36: =IF(AF6<31,"",VLOOKUP(31,B6:N65,4,FALSE)) ->  | AI36: =IF(AF6<31,"",VLOOKUP(31,B6:N65,10,FALSE)) -> 
B37: =IF(F37="","",N37) ->  | K37: =SUM(F37:J37) -> 0 | L37: =MAX(F37:J37) -> 0 | M37: =SUM(K37*1000)+L37+0.24 -> 0.24 | N37: =IF(F37="","",RANK(M37,M6:M65,0)) ->  | AG37: 32 | AH37: =IF(AF6<32,"",VLOOKUP(32,B6:N65,4,FALSE)) ->  | AI37: =IF(AF6<32,"",VLOOKUP(32,B6:N65,10,FALSE)) -> 
B38: =IF(F38="","",N38) ->  | K38: =SUM(F38:J38) -> 0 | L38: =MAX(F38:J38) -> 0 | M38: =SUM(K38*1000)+L38+0.23 -> 0.23 | N38: =IF(F38="","",RANK(M38,M6:M65,0)) ->  | AG38: 33 | AH38: =IF(AF6<33,"",VLOOKUP(33,B6:N65,4,FALSE)) ->  | AI38: =IF(AF6<33,"",VLOOKUP(33,B6:N65,10,FALSE)) -> 
B39: =IF(F39="","",N39) ->  | K39: =SUM(F39:J39) -> 0 | L39: =MAX(F39:J39) -> 0 | M39: =SUM(K39*1000)+L39+0.21 -> 0.21 | N39: =IF(F39="","",RANK(M39,M6:M65,0)) ->  | AG39: 34 | AH39: =IF(AF6<34,"",VLOOKUP(34,B6:N65,4,FALSE)) ->  | AI39: =IF(AF6<34,"",VLOOKUP(34,B6:N65,10,FALSE)) -> 
B40: =IF(F40="","",N40) ->  | K40: =SUM(F40:J40) -> 0 | L40: =MAX(F40:J40) -> 0 | M40: =SUM(K40*1000)+L40+0.2 -> 0.2 | N40: =IF(F40="","",RANK(M40,M6:M65,0)) ->  | AG40: 35 | AH40: =IF(AF6<35,"",VLOOKUP(35,B6:N65,4,FALSE)) ->  | AI40: =IF(AF6<35,"",VLOOKUP(35,B6:N65,10,FALSE)) -> 
F41: =SUM(F36:F40) -> 0 | G41: =SUM(G36:G40) -> 0 | H41: =SUM(H36:H40) -> 0 | I41: =SUM(I36:I40) -> 0 | J41: =SUM(J36:J40) -> 0 | O41: =SUM(F41:J41) -> 0 | P41: =MAX(F41:J41)+0.005 -> 0.005 | Q41: =IF(F36="","",SUM(O41*1000)+P41) ->  | AC41: =SUM(O35,O41) -> 0 | AG41: 36 | AH41: =IF(AF6<36,"",VLOOKUP(36,B6:N65,4,FALSE)) ->  | AI41: =IF(AF6<36,"",VLOOKUP(36,B6:N65,10,FALSE)) -> 
B42: =IF(F42="","",N42) ->  | C42: 7 | D42: KAČEROV I. | K42: =SUM(F42:J42) -> 0 | L42: =MAX(F42:J42) -> 0 | M42: =SUM(K42*1000)+L42+0.19 -> 0.19 | N42: =IF(F42="","",RANK(M42,M6:M65,0)) ->  | R42: =IF(F42="","",RANK(Q47,Q11:Q65,0)) ->  | T42: =IF(F42="","",RANK(AA42,AA6:AA64,0)) ->  | U42: =IF(R42="","",R42) ->  | V42: =IF(D42="","",D42) -> KAČEROV I. | W42: =IF(O47="","",O47) -> 0 | X42: =IF(V42="HOSTIVAŘ I.","GARÁŽ HOSTIVAŘ",IF(V42="VRŠOVICE I.","GARÁŽ VRŠOVICE",IF(V42="KLÍČOV I.","GARÁŽ KLÍČOV",IF(V42="ŘEPY I.","GARÁŽ ŘEPY",IF(V42="KAČEROV I.","GARÁŽ KAČEROV",""))))) -> GARÁŽ KAČEROV | Y42: =MAX(F47:J47,F53:J53)+0.02 -> 0.02 | Z42: =SUM(O47,O53)*1000 -> 0 | AA42: =SUM(Y42:Z42) -> 0.02 | AB42: =IF(AC53="","",AC53) -> 0 | AD42: =IF(T42="","",T42) ->  | AG42: 37 | AH42: =IF(AF6<37,"",VLOOKUP(37,B6:N65,4,FALSE)) ->  | AI42: =IF(AF6<37,"",VLOOKUP(37,B6:N65,10,FALSE)) -> 
B43: =IF(F43="","",N43) ->  | K43: =SUM(F43:J43) -> 0 | L43: =MAX(F43:J43) -> 0 | M43: =SUM(K43*1000)+L43+0.18 -> 0.18 | N43: =IF(F43="","",RANK(M43,M6:M65,0)) ->  | AG43: 38 | AH43: =IF(AF6<38,"",VLOOKUP(38,B6:N65,4,FALSE)) ->  | AI43: =IF(AF6<38,"",VLOOKUP(38,B6:N65,10,FALSE)) -> 
B44: =IF(F44="","",N44) ->  | K44: =SUM(F44:J44) -> 0 | L44: =MAX(F44:J44) -> 0 | M44: =SUM(K44*1000)+L44+0.17 -> 0.17 | N44: =IF(F44="","",RANK(M44,M6:M65,0)) ->  | AG44: 39 | AH44: =IF(AF6<39,"",VLOOKUP(39,B6:N65,4,FALSE)) ->  | AI44: =IF(AF6<39,"",VLOOKUP(39,B6:N65,10,FALSE)) -> 
B45: =IF(F45="","",N45) ->  | K45: =SUM(F45:J45) -> 0 | L45: =MAX(F45:J45) -> 0 | M45: =SUM(K45*1000)+L45+0.16 -> 0.16 | N45: =IF(F45="","",RANK(M45,M6:M65,0)) ->  | AG45: 40 | AH45: =IF(AF6<40,"",VLOOKUP(40,B6:N65,4,FALSE)) ->  | AI45: =IF(AF6<40,"",VLOOKUP(40,B6:N65,10,FALSE)) -> 
B46: =IF(F46="","",N46) ->  | K46: =SUM(F46:J46) -> 0 | L46: =MAX(F46:J46) -> 0 | M46: =SUM(K46*1000)+L46+0.15 -> 0.15 | N46: =IF(F46="","",RANK(M46,M6:M65,0)) ->  | AG46: 41 | AH46: =IF(AF6<41,"",VLOOKUP(41,B6:N65,4,FALSE)) ->  | AI46: =IF(AF6<41,"",VLOOKUP(41,B6:N65,10,FALSE)) -> 
F47: =SUM(F42:F46) -> 0 | G47: =SUM(G42:G46) -> 0 | H47: =SUM(H42:H46) -> 0 | I47: =SUM(I42:I46) -> 0 | J47: =SUM(J42:J46) -> 0 | O47: =SUM(F47:J47) -> 0 | P47: =MAX(F47:J47)+0.004 -> 0.004 | Q47: =IF(F42="","",SUM(O47*1000)+P47) ->  | AG47: 42 | AH47: =IF(AF6<42,"",VLOOKUP(42,B6:N65,4,FALSE)) ->  | AI47: =IF(AF6<42,"",VLOOKUP(42,B6:N65,10,FALSE)) -> 
B48: =IF(F48="","",N48) ->  | C48: 8 | D48: KAČEROV II. | K48: =SUM(F48:J48) -> 0 | L48: =MAX(F48:J48) -> 0 | M48: =SUM(K48*1000)+L48+0.14 -> 0.14 | N48: =IF(F48="","",RANK(M48,M6:M65,0)) ->  | R48: =IF(F48="","",RANK(Q53,Q11:Q65,0)) ->  | U48: =IF(R48="","",R48) ->  | V48: =IF(D48="","",D48) -> KAČEROV II. | W48: =IF(O53="","",O53) -> 0 | AG48: 43 | AH48: =IF(AF6<43,"",VLOOKUP(43,B6:N65,4,FALSE)) ->  | AI48: =IF(AF6<43,"",VLOOKUP(43,B6:N65,10,FALSE)) -> 
B49: =IF(F49="","",N49) ->  | K49: =SUM(F49:J49) -> 0 | L49: =MAX(F49:J49) -> 0 | M49: =SUM(K49*1000)+L49+0.13 -> 0.13 | N49: =IF(F49="","",RANK(M49,M6:M65,0)) ->  | AG49: 44 | AH49: =IF(AF6<44,"",VLOOKUP(44,B6:N65,4,FALSE)) ->  | AI49: =IF(AF6<44,"",VLOOKUP(44,B6:N65,10,FALSE)) -> 
B50: =IF(F50="","",N50) ->  | K50: =SUM(F50:J50) -> 0 | L50: =MAX(F50:J50) -> 0 | M50: =SUM(K50*1000)+L50+0.12 -> 0.12 | N50: =IF(F50="","",RANK(M50,M6:M65,0)) ->  | AG50: 45 | AH50: =IF(AF6<45,"",VLOOKUP(45,B6:N65,4,FALSE)) ->  | AI50: =IF(AF6<45,"",VLOOKUP(45,B6:N65,10,FALSE)) -> 
B51: =IF(F51="","",N51) ->  | K51: =SUM(F51:J51) -> 0 | L51: =MAX(F51:J51) -> 0 | M51: =SUM(K51*1000)+L51+0.11 -> 0.11 | N51: =IF(F51="","",RANK(M51,M6:M65,0)) ->  | AG51: 46 | AH51: =IF(AF6<46,"",VLOOKUP(46,B6:N65,4,FALSE)) ->  | AI51: =IF(AF6<46,"",VLOOKUP(46,B6:N65,10,FALSE)) -> 
B52: =IF(F52="","",N52) ->  | K52: =SUM(F52:J52) -> 0 | L52: =MAX(F52:J52) -> 0 | M52: =SUM(K52*1000)+L52+0.1 -> 0.1 | N52: =IF(F52="","",RANK(M52,M6:M65,0)) ->  | AG52: 47 | AH52: =IF(AF6<47,"",VLOOKUP(47,B6:N65,4,FALSE)) ->  | AI52: =IF(AF6<47,"",VLOOKUP(47,B6:N65,10,FALSE)) -> 
F53: =SUM(F48:F52) -> 0 | G53: =SUM(G48:G52) -> 0 | H53: =SUM(H48:H52) -> 0 | I53: =SUM(I48:I52) -> 0 | J53: =SUM(J48:J52) -> 0 | O53: =SUM(F53:J53) -> 0 | P53: =MAX(F53:J53)+0.003 -> 0.003 | Q53: =IF(F48="","",SUM(O53*1000)+P53) ->  | AC53: =SUM(O47,O53) -> 0 | AG53: 48 | AH53: =IF(AF6<48,"",VLOOKUP(48,B6:N65,4,FALSE)) ->  | AI53: =IF(AF6<48,"",VLOOKUP(48,B6:N65,10,FALSE)) -> 
B54: =IF(F54="","",N54) ->  | C54: 9 | D54: HOSTIVAŘ I. | K54: =SUM(F54:J54) -> 0 | L54: =MAX(F54:J54) -> 0 | M54: =SUM(K54*1000)+L54+0.09 -> 0.09 | N54: =IF(F54="","",RANK(M54,M6:M65,0)) ->  | R54: =IF(F54="","",RANK(Q59,Q11:Q65,0)) ->  | T54: =IF(F54="","",RANK(AA54,AA6:AA64,0)) ->  | U54: =IF(R54="","",R54) ->  | V54: =IF(D54="","",D54) -> HOSTIVAŘ I. | W54: =IF(O59="","",O59) -> 0 | X54: =IF(V54="HOSTIVAŘ I.","GARÁŽ HOSTIVAŘ",IF(V54="VRŠOVICE I.","GARÁŽ VRŠOVICE",IF(V54="KLÍČOV I.","GARÁŽ KLÍČOV",IF(V54="ŘEPY I.","GARÁŽ ŘEPY",IF(V54="KAČEROV I.","GARÁŽ KAČEROV",""))))) -> GARÁŽ HOSTIVAŘ | Y54: =MAX(F59:J59,F65:J65)+0.01 -> 0.01 | Z54: =SUM(O59,O65)*1000 -> 0 | AA54: =SUM(Y54:Z54) -> 0.01 | AB54: =IF(AC65="","",AC65) -> 0 | AD54: =IF(T54="","",T54) ->  | AG54: 49 | AH54: =IF(AF6<49,"",VLOOKUP(49,B6:N65,4,FALSE)) ->  | AI54: =IF(AF6<49,"",VLOOKUP(49,B6:N65,10,FALSE)) -> 
B55: =IF(F55="","",N55) ->  | K55: =SUM(F55:J55) -> 0 | L55: =MAX(F55:J55) -> 0 | M55: =SUM(K55*1000)+L55+0.08 -> 0.08 | N55: =IF(F55="","",RANK(M55,M6:M65,0)) ->  | AG55: 50 | AH55: =IF(AF6<50,"",VLOOKUP(50,B6:N65,4,FALSE)) ->  | AI55: =IF(AF6<50,"",VLOOKUP(50,B6:N65,10,FALSE)) -> 
B56: =IF(F56="","",N56) ->  | K56: =SUM(F56:J56) -> 0 | L56: =MAX(F56:J56) -> 0 | M56: =SUM(K56*1000)+L56+0.07 -> 0.07 | N56: =IF(F56="","",RANK(M56,M6:M65,0)) -> 
B57: =IF(F57="","",N57) ->  | K57: =SUM(F57:J57) -> 0 | L57: =MAX(F57:J57) -> 0 | M57: =SUM(K57*1000)+L57+0.06 -> 0.06 | N57: =IF(F57="","",RANK(M57,M6:M65,0)) -> 
B58: =IF(F58="","",N58) ->  | K58: =SUM(F58:J58) -> 0 | L58: =MAX(F58:J58) -> 0 | M58: =SUM(K58*1000)+L58+0.05 -> 0.05 | N58: =IF(F58="","",RANK(M58,M6:M65,0)) -> 
F59: =SUM(F54:F58) -> 0 | G59: =SUM(G54:G58) -> 0 | H59: =SUM(H54:H58) -> 0 | I59: =SUM(I54:I58) -> 0 | J59: =SUM(J54:J58) -> 0 | O59: =SUM(F59:J59) -> 0 | P59: =MAX(F59:J59)+0.002 -> 0.002 | Q59: =IF(F54="","",SUM(O59*1000)+P59) -> 
B60: =IF(F60="","",N60) ->  | C60: 10 | D60: HOSTIVAŘ II. | K60: =SUM(F60:J60) -> 0 | L60: =MAX(F60:J60) -> 0 | M60: =SUM(K60*1000)+L60+0.04 -> 0.04 | N60: =IF(F60="","",RANK(M60,M6:M65,0)) ->  | R60: =IF(F60="","",RANK(Q65,Q11:Q65,0)) ->  | U60: =IF(R60="","",R60) ->  | V60: =IF(D60="","",D60) -> HOSTIVAŘ II. | W60: =IF(O65="","",O65) -> 0
B61: =IF(F61="","",N61) ->  | K61: =SUM(F61:J61) -> 0 | L61: =MAX(F61:J61) -> 0 | M61: =SUM(K61*1000)+L61+0.03 -> 0.03 | N61: =IF(F61="","",RANK(M61,M6:M65,0)) -> 
B62: =IF(F62="","",N62) ->  | K62: =SUM(F62:J62) -> 0 | L62: =MAX(F62:J62) -> 0 | M62: =SUM(K62*1000)+L62+0.02 -> 0.02 | N62: =IF(F62="","",RANK(M62,M6:M65,0)) -> 
B63: =IF(F63="","",N63) ->  | K63: =SUM(F63:J63) -> 0 | L63: =MAX(F63:J63) -> 0 | M63: =SUM(K63*1000)+L63+0.01 -> 0.01 | N63: =IF(F63="","",RANK(M63,M6:M65,0)) -> 
B64: =IF(F64="","",N64) ->  | K64: =SUM(F64:J64) -> 0 | L64: =MAX(F64:J64) -> 0 | M64: =SUM(K64*1000)+L64 -> 0 | N64: =IF(F64="","",RANK(M64,M6:M65,0)) -> 
F65: =SUM(F60:F64) -> 0 | G65: =SUM(G60:G64) -> 0 | H65: =SUM(H60:H64) -> 0 | I65: =SUM(I60:I64) -> 0 | J65: =SUM(J60:J64) -> 0 | L65: =MAX(L12:L64,L6:L10) -> 0 | O65: =SUM(F65:J65) -> 0 | P65: =MAX(F65:J65)+0.001 -> 0.001 | Q65: =IF(F60="","",SUM(O65*1000)+P65) ->  | AC65: =SUM(O59,O65) -> 0

Sheet KAČEROV
A1: ZPĚT
D3: Sportovní turnaj v Bowlingu o pohár ZV-OS Kačerov dne _._. 2015
C5: Garáž | E5: Jméno | F5: I. | G5: II. | H5: III. | I5: IV. | J5: V. | K5: Body | N5: Jednotlivci. | R5: Družstva. | AG5: pořadí jednotlivců
B6: =IF(F6="","",N6) ->  | C6: 1 | D6: HOSTIVAŘ I. | K6: =SUM(F6:J6) -> 0 | L6: =MAX(F6:J6) -> 0 | M6: =SUM(K6*1000)+L6+0.5 -> 0.5 | N6: =IF(F6="","",RANK(M6,M6:M65,0)) ->  | R6: =IF(F6="","",RANK(Q11,Q11:Q65,0)) ->  | T6: =IF(F6="","",RANK(AA6,AA6:AA64,0)) ->  | U6: =IF(R6="","",R6) ->  | V6: =IF(D6="","",D6) -> HOSTIVAŘ I. | W6: =IF(O11="","",O11) -> 0 | X6: =IF(V6="HOSTIVAŘ I.","GARÁŽ HOSTIVAŘ",IF(V6="VRŠOVICE I.","GARÁŽ VRŠOVICE",IF(V6="KLÍČOV I.","GARÁŽ KLÍČOV",IF(V6="ŘEPY I.","GARÁŽ ŘEPY",IF(V6="KAČEROV I.","GARÁŽ KAČEROV",""))))) -> GARÁŽ HOSTIVAŘ | Y6: =MAX(F11:J11,F17:J17)+0.05 -> 0.05 | Z6: =SUM(O11,O17)*1000 -> 0 | AA6: =SUM(Y6:Z6) -> 0.05 | AB6: =IF(AC17="","",AC17) -> 0 | AD6: =IF(T6="","",T6) ->  | AF6: =COUNT(F6:F10,F12:F16,F18:F22,F24:F28,F30:F34,F36:F40,F42:F46,F48:F52,F54:F58,F60:F64) -> 0 | AG6: 1 | AH6: =IF(AF6<1,"",VLOOKUP(1,B6:N65,4,FALSE)) ->  | AI6: =IF(AF6<1,"",VLOOKUP(1,B6:N65,10,FALSE)) ->  | AK6: =COUNT(U6:U16,U18:U28,U30:U40,U42:U52,U54:U64) -> 0 | AL6: POŘADÍ DRUŽSTEV | BA6: HOSTIVAŘ I.
B7: =IF(F7="","",N7) ->  | K7: =SUM(F7:J7) -> 0 | L7: 0 | M7: =SUM(K7*1000)+L7+0.49 -> 0.49 | N7: =IF(F7="","",RANK(M7,M6:M65,0)) ->  | AG7: =SUM(AG6+1) -> 2 | AH7: =IF(AF6<2,"",VLOOKUP(2,B6:N65,4,FALSE)) ->  | AI7: =IF(AF6<2,"",VLOOKUP(2,B6:N65,10,FALSE)) ->  | AL7: 1 | AM7: =IF(AK6<1,"",VLOOKUP(1,U6:W64,2,FALSE)) ->  | AN7: =IF(AK6<1,"",VLOOKUP(1,U6:W64,3,FALSE)) ->  | BA7: VRŠOVICE I.
B8: =IF(F8="","",N8) ->  | K8: =SUM(F8:J8) -> 0 | L8: 0 | M8: =SUM(K8*1000)+L8+0.48 -> 0.48 | N8: =IF(F8="","",RANK(M8,M6:M65,0)) ->  | AG8: =SUM(AG7+1) -> 3 | AH8: =IF(AF6<3,"",VLOOKUP(3,B6:N65,4,FALSE)) ->  | AI8: =IF(AF6<3,"",VLOOKUP(3,B6:N65,10,FALSE)) ->  | AL8: 2 | AM8: =IF(AK6<2,"",VLOOKUP(2,U6:W64,2,FALSE)) ->  | AN8: =IF(AK6<2,"",VLOOKUP(2,U6:W64,3,FALSE)) ->  | BA8: KLÍČOV I.
B9: =IF(F9="","",N9) ->  | K9: =SUM(F9:J9) -> 0 | L9: 0 | M9: =SUM(K9*1000)+L9+0.47 -> 0.47 | N9: =IF(F9="","",RANK(M9,M6:M65,0)) ->  | AG9: 4 | AH9: =IF(AF6<4,"",VLOOKUP(4,B6:N65,4,FALSE)) ->  | AI9: =IF(AF6<4,"",VLOOKUP(4,B6:N65,10,FALSE)) ->  | AL9: 3 | AM9: =IF(AK6<3,"",VLOOKUP(3,U6:W64,2,FALSE)) ->  | AN9: =IF(AK6<3,"",VLOOKUP(3,U6:W64,3,FALSE)) ->  | BA9: ŘEPY I.
B10: =IF(F10="","",N10) ->  | K10: =SUM(F10:J10) -> 0 | L10: 0 | M10: =SUM(K10*1000)+L10+0.46 -> 0.46 | N10: =IF(F10="","",RANK(M10,M6:M65,0)) ->  | AG10: 5 | AH10: =IF(AF6<5,"",VLOOKUP(5,B6:N65,4,FALSE)) ->  | AI10: =IF(AF6<5,"",VLOOKUP(5,B6:N65,10,FALSE)) ->  | AL10: 4 | AM10: =IF(AK6<4,"",VLOOKUP(4,U6:W64,2,FALSE)) ->  | AN10: =IF(AK6<4,"",VLOOKUP(4,U6:W64,3,FALSE)) ->  | BA10: KAČEROV I.
F11: =SUM(F6:F10) -> 0 | G11: =SUM(G6:G10) -> 0 | H11: =SUM(H6:H10) -> 0 | I11: =SUM(I6:I10) -> 0 | J11: =SUM(J6:J10) -> 0 | L11: 0 | O11: =SUM(F11:J11) -> 0 | P11: =MAX(F11:J11)+0.01 -> 0.01 | Q11: =IF(F6="","",SUM(O11*1000)+P11) ->  | AG11: 6 | AH11: =IF(AF6<6,"",VLOOKUP(6,B6:N65,4,FALSE)) ->  | AI11: =IF(AF6<6,"",VLOOKUP(6,B6:N65,10,FALSE)) ->  | AL11: 5 | AM11: =IF(AK6<5,"",VLOOKUP(5,U6:W64,2,FALSE)) ->  | AN11: =IF(AK6<5,"",VLOOKUP(5,U6:W64,3,FALSE)) -> 
B12: =IF(F12="","",N12) ->  | C12: 2 | D12: HOSTIVAŘ II. | K12: =SUM(F12:J12) -> 0 | L12: 0 | M12: =SUM(K12*1000)+L12+0.45 -> 0.45 | N12: =IF(F12="","",RANK(M12,M6:M65,0)) ->  | R12: =IF(F12="","",RANK(Q17,Q11:Q65,0)) ->  | U12: =IF(R12="","",R12) ->  | V12: =IF(D12="","",D12) -> HOSTIVAŘ II. | W12: =IF(O17="","",O17) -> 0 | AG12: 7 | AH12: =IF(AF6<7,"",VLOOKUP(7,B6:N65,4,FALSE)) ->  | AI12: =IF(AF6<7,"",VLOOKUP(7,B6:N65,10,FALSE)) ->  | AL12: 6 | AM12: =IF(AK6<6,"",VLOOKUP(6,U6:W64,2,FALSE)) ->  | AN12: =IF(AK6<6,"",VLOOKUP(6,U6:W64,3,FALSE)) -> 
B13: =IF(F13="","",N13) ->  | K13: =SUM(F13:J13) -> 0 | L13: 0 | M13: =SUM(K13*1000)+L13+0.44 -> 0.44 | N13: =IF(F13="","",RANK(M13,M6:M65,0)) ->  | AG13: 8 | AH13: =IF(AF6<8,"",VLOOKUP(8,B6:N65,4,FALSE)) ->  | AI13: =IF(AF6<8,"",VLOOKUP(8,B6:N65,10,FALSE)) ->  | AL13: 7 | AM13: =IF(AK6<7,"",VLOOKUP(7,U6:W64,2,FALSE)) ->  | AN13: =IF(AK6<7,"",VLOOKUP(7,U6:W64,3,FALSE)) -> 
B14: =IF(F14="","",N14) ->  | K14: =SUM(F14:J14) -> 0 | L14: 0 | M14: =SUM(K14*1000)+L14+0.43 -> 0.43 | N14: =IF(F14="","",RANK(M14,M6:M65,0)) ->  | AG14: 9 | AH14: =IF(AF6<9,"",VLOOKUP(9,B6:N65,4,FALSE)) ->  | AI14: =IF(AF6<9,"",VLOOKUP(9,B6:N65,10,FALSE)) ->  | AL14: 8 | AM14: =IF(AK6<8,"",VLOOKUP(8,U6:W64,2,FALSE)) ->  | AN14: =IF(AK6<8,"",VLOOKUP(8,U6:W64,3,FALSE)) -> 
B15: =IF(F15="","",N15) ->  | K15: =SUM(F15:J15) -> 0 | L15: 0 | M15: =SUM(K15*1000)+L15+0.42 -> 0.42 | N15: =IF(F15="","",RANK(M15,M6:M65,0)) ->  | AG15: 10 | AH15: =IF(AF6<10,"",VLOOKUP(10,B6:N65,4,FALSE)) ->  | AI15: =IF(AF6<10,"",VLOOKUP(10,B6:N65,10,FALSE)) ->  | AL15: 9 | AM15: =IF(AK6<9,"",VLOOKUP(9,U6:W64,2,FALSE)) ->  | AN15: =IF(AK6<9,"",VLOOKUP(9,U6:W64,3,FALSE)) -> 
B16: =IF(F16="","",N16) ->  | K16: =SUM(F16:J16) -> 0 | L16: 0 | M16: =SUM(K16*1000)+L16+0.41 -> 0.41 | N16: =IF(F16="","",RANK(M16,M6:M65,0)) ->  | AG16: 11 | AH16: =IF(AF6<11,"",VLOOKUP(11,B6:N65,4,FALSE)) ->  | AI16: =IF(AF6<11,"",VLOOKUP(11,B6:N65,10,FALSE)) ->  | AL16: 10 | AM16: =IF(AK6<10,"",VLOOKUP(10,U6:W64,2,FALSE)) ->  | AN16: =IF(AK6<10,"",VLOOKUP(10,U6:W64,3,FALSE)) -> 
F17: =SUM(F12:F16) -> 0 | G17: =SUM(G12:G16) -> 0 | H17: =SUM(H12:H16) -> 0 | I17: =SUM(I12:I16) -> 0 | J17: =SUM(J12:J16) -> 0 | O17: =SUM(F17:J17) -> 0 | P17: =MAX(F17:J17)+0.009 -> 0.009 | Q17: =IF(F12="","",SUM(O17*1000)+P17) ->  | AC17: =SUM(O11,O17) -> 0 | AG17: 12 | AH17: =IF(AF6<12,"",VLOOKUP(12,B6:N65,4,FALSE)) ->  | AI17: =IF(AF6<12,"",VLOOKUP(12,B6:N65,10,FALSE)) -> 
B18: =IF(F18="","",N18) ->  | C18: 3 | D18: VRŠOVICE I. | K18: =SUM(F18:J18) -> 0 | L18: =MAX(F18:J18) -> 0 | M18: =SUM(K18*1000)+L18+0.4 -> 0.4 | N18: =IF(F18="","",RANK(M18,M6:M65,0)) ->  | R18: =IF(F18="","",RANK(Q23,Q11:Q65,0)) ->  | T18: =IF(F18="","",RANK(AA18,AA6:AA64,0)) ->  | U18: =IF(R18="","",R18) ->  | V18: =IF(D18="","",D18) -> VRŠOVICE I. | W18: =IF(O23="","",O23) -> 0 | X18: =IF(V18="HOSTIVAŘ I.","GARÁŽ HOSTIVAŘ",IF(V18="VRŠOVICE I.","GARÁŽ VRŠOVICE",IF(V18="KLÍČOV I.","GARÁŽ KLÍČOV",IF(V18="ŘEPY I.","GARÁŽ ŘEPY",IF(V18="KAČEROV I.","GARÁŽ KAČEROV",""))))) -> GARÁŽ VRŠOVICE | Y18: =MAX(F23:J23,F29:J29)+0.04 -> 0.04 | Z18: =SUM(O23,O29)*1000 -> 0 | AA18: =SUM(Y18:Z18) -> 0.04 | AB18: =IF(AC29="","",AC29) -> 0 | AD18: =IF(T18="","",T18) ->  | AG18: 13 | AH18: =IF(AF6<13,"",VLOOKUP(13,B6:N65,4,FALSE)) ->  | AI18: =IF(AF6<13,"",VLOOKUP(13,B6:N65,10,FALSE)) ->  | AK18: =COUNT(T6:T64) -> 0 | AL18: POŘEDÍ GARÁŽÍ
B19: =IF(F19="","",N19) ->  | K19: =SUM(F19:J19) -> 0 | L19: =MAX(F19:J19) -> 0 | M19: =SUM(K19*1000)+L19+0.39 -> 0.39 | N19: =IF(F19="","",RANK(M19,M6:M65,0)) ->  | AG19: 14 | AH19: =IF(AF6<14,"",VLOOKUP(14,B6:N65,4,FALSE)) ->  | AI19: =IF(AF6<14,"",VLOOKUP(14,B6:N65,10,FALSE)) ->  | AL19: 1 | AM19: =IF(AK18<1,"",VLOOKUP(1,T6:AB64,5,FALSE)) ->  | AN19: =IF(AK18<1,"",VLOOKUP(1,T6:AB64,9,FALSE)) -> 
B20: =IF(F20="","",N20) ->  | K20: =SUM(F20:J20) -> 0 | L20: =MAX(F20:J20) -> 0 | M20: =SUM(K20*1000)+L20+0.38 -> 0.38 | N20: =IF(F20="","",RANK(M20,M6:M65,0)) ->  | AG20: 15 | AH20: =IF(AF6<15,"",VLOOKUP(15,B6:N65,4,FALSE)) ->  | AI20: =IF(AF6<15,"",VLOOKUP(15,B6:N65,10,FALSE)) ->  | AL20: 2 | AM20: =IF(AK18<2,"",VLOOKUP(2,T6:AB64,5,FALSE)) ->  | AN20: =IF(AK18<2,"",VLOOKUP(2,T6:AB64,9,FALSE)) -> 
B21: =IF(F21="","",N21) ->  | K21: =SUM(F21:J21) -> 0 | L21: =MAX(F21:J21) -> 0 | M21: =SUM(K21*1000)+L21+0.37 -> 0.37 | N21: =IF(F21="","",RANK(M21,M6:M65,0)) ->  | AG21: 16 | AH21: =IF(AF6<16,"",VLOOKUP(16,B6:N65,4,FALSE)) ->  | AI21: =IF(AF6<16,"",VLOOKUP(16,B6:N65,10,FALSE)) ->  | AL21: 3 | AM21: =IF(AK18<3,"",VLOOKUP(3,T6:AB64,5,FALSE)) ->  | AN21: =IF(AK18<3,"",VLOOKUP(3,T6:AB64,9,FALSE)) -> 
B22: =IF(F22="","",N22) ->  | K22: =SUM(F22:J22) -> 0 | L22: =MAX(F22:J22) -> 0 | M22: =SUM(K22*1000)+L22+0.36 -> 0.36 | N22: =IF(F22="","",RANK(M22,M6:M65,0)) ->  | AG22: 17 | AH22: =IF(AF6<17,"",VLOOKUP(17,B6:N65,4,FALSE)) ->  | AI22: =IF(AF6<17,"",VLOOKUP(17,B6:N65,10,FALSE)) ->  | AL22: 4 | AM22: =IF(AK18<4,"",VLOOKUP(4,T6:AB64,5,FALSE)) ->  | AN22: =IF(AK18<4,"",VLOOKUP(4,T6:AB64,9,FALSE)) -> 
F23: =SUM(F18:F22) -> 0 | G23: =SUM(G18:G22) -> 0 | H23: =SUM(H18:H22) -> 0 | I23: =SUM(I18:I22) -> 0 | J23: =SUM(J18:J22) -> 0 | O23: =SUM(F23:J23) -> 0 | P23: =MAX(F23:J23)+0.008 -> 0.008 | Q23: =IF(F18="","",SUM(O23*1000)+P23) ->  | AG23: 18 | AH23: =IF(AF6<18,"",VLOOKUP(18,B6:N65,4,FALSE)) ->  | AI23: =IF(AF6<18,"",VLOOKUP(18,B6:N65,10,FALSE)) ->  | AL23: 5 | AM23: =IF(AK18<5,"",VLOOKUP(5,T6:AB64,5,FALSE)) ->  | AN23: =IF(AK18<5,"",VLOOKUP(5,T6:AB64,9,FALSE)) -> 
B24: =IF(F24="","",N24) ->  | C24: 4 | D24: VRŠOVICE II. | K24: =SUM(F24:J24) -> 0 | L24: =MAX(F24:J24) -> 0 | M24: =SUM(K24*1000)+L24+0.35 -> 0.35 | N24: =IF(F24="","",RANK(M24,M6:M65,0)) ->  | R24: =IF(F24="","",RANK(Q29,Q11:Q65,0)) ->  | U24: =IF(R24="","",R24) ->  | V24: =IF(D24="","",D24) -> VRŠOVICE II. | W24: =IF(O29="","",O29) -> 0 | AG24: 19 | AH24: =IF(AF6<19,"",VLOOKUP(19,B6:N65,4,FALSE)) ->  | AI24: =IF(AF6<19,"",VLOOKUP(19,B6:N65,10,FALSE)) -> 
B25: =IF(F25="","",N25) ->  | K25: =SUM(F25:J25) -> 0 | L25: =MAX(F25:J25) -> 0 | M25: =SUM(K25*1000)+L25+0.34 -> 0.34 | N25: =IF(F25="","",RANK(M25,M6:M65,0)) ->  | AG25: 20 | AH25: =IF(AF6<20,"",VLOOKUP(20,B6:N65,4,FALSE)) ->  | AI25: =IF(AF6<20,"",VLOOKUP(20,B6:N65,10,FALSE)) -> 
B26: =IF(F26="","",N26) ->  | K26: =SUM(F26:J26) -> 0 | L26: =MAX(F26:J26) -> 0 | M26: =SUM(K26*1000)+L26+0.33 -> 0.33 | N26: =IF(F26="","",RANK(M26,M6:M65,0)) ->  | AG26: 21 | AH26: =IF(AF6<21,"",VLOOKUP(21,B6:N65,4,FALSE)) ->  | AI26: =IF(AF6<21,"",VLOOKUP(21,B6:N65,10,FALSE)) -> 
B27: =IF(F27="","",N27) ->  | K27: =SUM(F27:J27) -> 0 | L27: =MAX(F27:J27) -> 0 | M27: =SUM(K27*1000)+L27+0.32 -> 0.32 | N27: =IF(F27="","",RANK(M27,M6:M65,0)) ->  | AG27: 22 | AH27: =IF(AF6<22,"",VLOOKUP(22,B6:N65,4,FALSE)) ->  | AI27: =IF(AF6<22,"",VLOOKUP(22,B6:N65,10,FALSE)) -> 
B28: =IF(F28="","",N28) ->  | K28: =SUM(F28:J28) -> 0 | L28: =MAX(F28:J28) -> 0 | M28: =SUM(K28*1000)+L28+0.31 -> 0.31 | N28: =IF(F28="","",RANK(M28,M6:M65,0)) ->  | AG28: 23 | AH28: =IF(AF6<23,"",VLOOKUP(23,B6:N65,4,FALSE)) ->  | AI28: =IF(AF6<23,"",VLOOKUP(23,B6:N65,10,FALSE)) -> 
F29: =SUM(F24:F28) -> 0 | G29: =SUM(G24:G28) -> 0 | H29: =SUM(H24:H28) -> 0 | I29: =SUM(I24:I28) -> 0 | J29: =SUM(J24:J28) -> 0 | O29: =SUM(F29:J29) -> 0 | P29: =MAX(F29:J29)+0.007 -> 0.007 | Q29: =IF(F24="","",SUM(O29*1000)+P29) ->  | AC29: =SUM(O23,O29) -> 0 | AG29: 24 | AH29: =IF(AF6<24,"",VLOOKUP(24,B6:N65,4,FALSE)) ->  | AI29: =IF(AF6<24,"",VLOOKUP(24,B6:N65,10,FALSE)) -> 
B30: =IF(F30="","",N30) ->  | C30: 5 | D30: KLÍČOV I. | K30: =SUM(F30:J30) -> 0 | L30: =MAX(F30:J30) -> 0 | M30: =SUM(K30*1000)+L30+0.3 -> 0.3 | N30: =IF(F30="","",RANK(M30,M6:M65,0)) ->  | R30: =IF(F30="","",RANK(Q35,Q11:Q65,0)) ->  | T30: =IF(F30="","",RANK(AA30,AA6:AA64,0)) ->  | U30: =IF(R30="","",R30) ->  | V30: =IF(D30="","",D30) -> KLÍČOV I. | W30: =IF(O35="","",O35) -> 0 | X30: =IF(V30="HOSTIVAŘ I.","GARÁŽ HOSTIVAŘ",IF(V30="VRŠOVICE I.","GARÁŽ VRŠOVICE",IF(V30="KLÍČOV I.","GARÁŽ KLÍČOV",IF(V30="ŘEPY I.","GARÁŽ ŘEPY",IF(V30="KAČEROV I.","GARÁŽ KAČEROV",""))))) -> GARÁŽ KLÍČOV | Y30: =MAX(F35:J35,F41:J41)+0.03 -> 0.03 | Z30: =SUM(O35,O41)*1000 -> 0 | AA30: =SUM(Y30:Z30) -> 0.03 | AB30: =IF(AC41="","",AC41) -> 0 | AD30: =IF(T30="","",T30) ->  | AG30: 25 | AH30: =IF(AF6<25,"",VLOOKUP(25,B6:N65,4,FALSE)) ->  | AI30: =IF(AF6<25,"",VLOOKUP(25,B6:N65,10,FALSE)) -> 
B31: =IF(F31="","",N31) ->  | K31: =SUM(F31:J31) -> 0 | L31: =MAX(F31:J31) -> 0 | M31: =SUM(K31*1000)+L31+0.29 -> 0.29 | N31: =IF(F31="","",RANK(M31,M6:M65,0)) ->  | AG31: 26 | AH31: =IF(AF6<26,"",VLOOKUP(26,B6:N65,4,FALSE)) ->  | AI31: =IF(AF6<26,"",VLOOKUP(26,B6:N65,10,FALSE)) -> 
B32: =IF(F32="","",N32) ->  | K32: =SUM(F32:J32) -> 0 | L32: =MAX(F32:J32) -> 0 | M32: =SUM(K32*1000)+L32+0.28 -> 0.28 | N32: =IF(F32="","",RANK(M32,M6:M65,0)) ->  | AG32: 27 | AH32: =IF(AF6<27,"",VLOOKUP(27,B6:N65,4,FALSE)) ->  | AI32: =IF(AF6<27,"",VLOOKUP(27,B6:N65,10,FALSE)) -> 
B33: =IF(F33="","",N33) ->  | K33: =SUM(F33:J33) -> 0 | L33: =MAX(F33:J33) -> 0 | M33: =SUM(K33*1000)+L33+0.27 -> 0.27 | N33: =IF(F33="","",RANK(M33,M6:M65,0)) ->  | AG33: 28 | AH33: =IF(AF6<28,"",VLOOKUP(28,B6:N65,4,FALSE)) ->  | AI33: =IF(AF6<28,"",VLOOKUP(28,B6:N65,10,FALSE)) -> 
B34: =IF(F34="","",N34) ->  | K34: =SUM(F34:J34) -> 0 | L34: =MAX(F34:J34) -> 0 | M34: =SUM(K34*1000)+L34+0.26 -> 0.26 | N34: =IF(F34="","",RANK(M34,M6:M65,0)) ->  | AG34: 29 | AH34: =IF(AF6<29,"",VLOOKUP(29,B6:N65,4,FALSE)) ->  | AI34: =IF(AF6<29,"",VLOOKUP(29,B6:N65,10,FALSE)) -> 
F35: =SUM(F30:F34) -> 0 | G35: =SUM(G30:G34) -> 0 | H35: =SUM(H30:H34) -> 0 | I35: =SUM(I30:I34) -> 0 | J35: =SUM(J30:J34) -> 0 | O35: =SUM(F35:J35) -> 0 | P35: =MAX(F35:J35)+0.006 -> 0.006 | Q35: =IF(F30="","",SUM(O35*1000)+P35) ->  | AG35: 30 | AH35: =IF(AF6<30,"",VLOOKUP(30,B6:N65,4,FALSE)) ->  | AI35: =IF(AF6<30,"",VLOOKUP(30,B6:N65,10,FALSE)) -> 
B36: =IF(F36="","",N36) ->  | C36: 6 | D36: KLÍČOV II. | K36: =SUM(F36:J36) -> 0 | L36: =MAX(F36:J36) -> 0 | M36: =SUM(K36*1000)+L36+0.25 -> 0.25 | N36: =IF(F36="","",RANK(M36,M6:M65,0)) ->  | R36: =IF(F36="","",RANK(Q41,Q11:Q65,0)) ->  | U36: =IF(R36="","",R36) ->  | V36: =IF(D36="","",D36) -> KLÍČOV II. | W36: =IF(O41="","",O41) -> 0 | AG36: 31 | AH36: =IF(AF6<31,"",VLOOKUP(31,B6:N65,4,FALSE)) ->  | AI36: =IF(AF6<31,"",VLOOKUP(31,B6:N65,10,FALSE)) -> 
B37: =IF(F37="","",N37) ->  | K37: =SUM(F37:J37) -> 0 | L37: =MAX(F37:J37) -> 0 | M37: =SUM(K37*1000)+L37+0.24 -> 0.24 | N37: =IF(F37="","",RANK(M37,M6:M65,0)) ->  | AG37: 32 | AH37: =IF(AF6<32,"",VLOOKUP(32,B6:N65,4,FALSE)) ->  | AI37: =IF(AF6<32,"",VLOOKUP(32,B6:N65,10,FALSE)) -> 
B38: =IF(F38="","",N38) ->  | K38: =SUM(F38:J38) -> 0 | L38: =MAX(F38:J38) -> 0 | M38: =SUM(K38*1000)+L38+0.23 -> 0.23 | N38: =IF(F38="","",RANK(M38,M6:M65,0)) ->  | AG38: 33 | AH38: =IF(AF6<33,"",VLOOKUP(33,B6:N65,4,FALSE)) ->  | AI38: =IF(AF6<33,"",VLOOKUP(33,B6:N65,10,FALSE)) -> 
B39: =IF(F39="","",N39) ->  | K39: =SUM(F39:J39) -> 0 | L39: =MAX(F39:J39) -> 0 | M39: =SUM(K39*1000)+L39+0.21 -> 0.21 | N39: =IF(F39="","",RANK(M39,M6:M65,0)) ->  | AG39: 34 | AH39: =IF(AF6<34,"",VLOOKUP(34,B6:N65,4,FALSE)) ->  | AI39: =IF(AF6<34,"",VLOOKUP(34,B6:N65,10,FALSE)) -> 
B40: =IF(F40="","",N40) ->  | K40: =SUM(F40:J40) -> 0 | L40: =MAX(F40:J40) -> 0 | M40: =SUM(K40*1000)+L40+0.2 -> 0.2 | N40: =IF(F40="","",RANK(M40,M6:M65,0)) ->  | AG40: 35 | AH40: =IF(AF6<35,"",VLOOKUP(35,B6:N65,4,FALSE)) ->  | AI40: =IF(AF6<35,"",VLOOKUP(35,B6:N65,10,FALSE)) -> 
F41: =SUM(F36:F40) -> 0 | G41: =SUM(G36:G40) -> 0 | H41: =SUM(H36:H40) -> 0 | I41: =SUM(I36:I40) -> 0 | J41: =SUM(J36:J40) -> 0 | O41: =SUM(F41:J41) -> 0 | P41: =MAX(F41:J41)+0.005 -> 0.005 | Q41: =IF(F36="","",SUM(O41*1000)+P41) ->  | AC41: =SUM(O35,O41) -> 0 | AG41: 36 | AH41: =IF(AF6<36,"",VLOOKUP(36,B6:N65,4,FALSE)) ->  | AI41: =IF(AF6<36,"",VLOOKUP(36,B6:N65,10,FALSE)) -> 
B42: =IF(F42="","",N42) ->  | C42: 7 | D42: ŘEPY I. | K42: =SUM(F42:J42) -> 0 | L42: =MAX(F42:J42) -> 0 | M42: =SUM(K42*1000)+L42+0.19 -> 0.19 | N42: =IF(F42="","",RANK(M42,M6:M65,0)) ->  | R42: =IF(F42="","",RANK(Q47,Q11:Q65,0)) ->  | T42: =IF(F42="","",RANK(AA42,AA6:AA64,0)) ->  | U42: =IF(R42="","",R42) ->  | V42: =IF(D42="","",D42) -> ŘEPY I. | W42: =IF(O47="","",O47) -> 0 | X42: =IF(V42="HOSTIVAŘ I.","GARÁŽ HOSTIVAŘ",IF(V42="VRŠOVICE I.","GARÁŽ VRŠOVICE",IF(V42="KLÍČOV I.","GARÁŽ KLÍČOV",IF(V42="ŘEPY I.","GARÁŽ ŘEPY",IF(V42="KAČEROV I.","GARÁŽ KAČEROV",""))))) -> GARÁŽ ŘEPY | Y42: =MAX(F47:J47,F53:J53)+0.02 -> 0.02 | Z42: =SUM(O47,O53)*1000 -> 0 | AA42: =SUM(Y42:Z42) -> 0.02 | AB42: =IF(AC53="","",AC53) -> 0 | AD42: =IF(T42="","",T42) ->  | AG42: 37 | AH42: =IF(AF6<37,"",VLOOKUP(37,B6:N65,4,FALSE)) ->  | AI42: =IF(AF6<37,"",VLOOKUP(37,B6:N65,10,FALSE)) -> 
B43: =IF(F43="","",N43) ->  | K43: =SUM(F43:J43) -> 0 | L43: =MAX(F43:J43) -> 0 | M43: =SUM(K43*1000)+L43+0.18 -> 0.18 | N43: =IF(F43="","",RANK(M43,M6:M65,0)) ->  | AG43: 38 | AH43: =IF(AF6<38,"",VLOOKUP(38,B6:N65,4,FALSE)) ->  | AI43: =IF(AF6<38,"",VLOOKUP(38,B6:N65,10,FALSE)) -> 
B44: =IF(F44="","",N44) ->  | K44: =SUM(F44:J44) -> 0 | L44: =MAX(F44:J44) -> 0 | M44: =SUM(K44*1000)+L44+0.17 -> 0.17 | N44: =IF(F44="","",RANK(M44,M6:M65,0)) ->  | AG44: 39 | AH44: =IF(AF6<39,"",VLOOKUP(39,B6:N65,4,FALSE)) ->  | AI44: =IF(AF6<39,"",VLOOKUP(39,B6:N65,10,FALSE)) -> 
B45: =IF(F45="","",N45) ->  | K45: =SUM(F45:J45) -> 0 | L45: =MAX(F45:J45) -> 0 | M45: =SUM(K45*1000)+L45+0.16 -> 0.16 | N45: =IF(F45="","",RANK(M45,M6:M65,0)) ->  | AG45: 40 | AH45: =IF(AF6<40,"",VLOOKUP(40,B6:N65,4,FALSE)) ->  | AI45: =IF(AF6<40,"",VLOOKUP(40,B6:N65,10,FALSE)) -> 
B46: =IF(F46="","",N46) ->  | K46: =SUM(F46:J46) -> 0 | L46: =MAX(F46:J46) -> 0 | M46: =SUM(K46*1000)+L46+0.15 -> 0.15 | N46: =IF(F46="","",RANK(M46,M6:M65,0)) ->  | AG46: 41 | AH46: =IF(AF6<41,"",VLOOKUP(41,B6:N65,4,FALSE)) ->  | AI46: =IF(AF6<41,"",VLOOKUP(41,B6:N65,10,FALSE)) -> 
F47: =SUM(F42:F46) -> 0 | G47: =SUM(G42:G46) -> 0 | H47: =SUM(H42:H46) -> 0 | I47: =SUM(I42:I46) -> 0 | J47: =SUM(J42:J46) -> 0 | O47: =SUM(F47:J47) -> 0 | P47: =MAX(F47:J47)+0.004 -> 0.004 | Q47: =IF(F42="","",SUM(O47*1000)+P47) ->  | AG47: 42 | AH47: =IF(AF6<42,"",VLOOKUP(42,B6:N65,4,FALSE)) ->  | AI47: =IF(AF6<42,"",VLOOKUP(42,B6:N65,10,FALSE)) -> 
B48: =IF(F48="","",N48) ->  | C48: 8 | D48: ŘEPY II. | K48: =SUM(F48:J48) -> 0 | L48: =MAX(F48:J48) -> 0 | M48: =SUM(K48*1000)+L48+0.14 -> 0.14 | N48: =IF(F48="","",RANK(M48,M6:M65,0)) ->  | R48: =IF(F48="","",RANK(Q53,Q11:Q65,0)) ->  | U48: =IF(R48="","",R48) ->  | V48: =IF(D48="","",D48) -> ŘEPY II. | W48: =IF(O53="","",O53) -> 0 | AG48: 43 | AH48: =IF(AF6<43,"",VLOOKUP(43,B6:N65,4,FALSE)) ->  | AI48: =IF(AF6<43,"",VLOOKUP(43,B6:N65,10,FALSE)) -> 
B49: =IF(F49="","",N49) ->  | K49: =SUM(F49:J49) -> 0 | L49: =MAX(F49:J49) -> 0 | M49: =SUM(K49*1000)+L49+0.13 -> 0.13 | N49: =IF(F49="","",RANK(M49,M6:M65,0)) ->  | AG49: 44 | AH49: =IF(AF6<44,"",VLOOKUP(44,B6:N65,4,FALSE)) ->  | AI49: =IF(AF6<44,"",VLOOKUP(44,B6:N65,10,FALSE)) -> 
B50: =IF(F50="","",N50) ->  | K50: =SUM(F50:J50) -> 0 | L50: =MAX(F50:J50) -> 0 | M50: =SUM(K50*1000)+L50+0.12 -> 0.12 | N50: =IF(F50="","",RANK(M50,M6:M65,0)) ->  | AG50: 45 | AH50: =IF(AF6<45,"",VLOOKUP(45,B6:N65,4,FALSE)) ->  | AI50: =IF(AF6<45,"",VLOOKUP(45,B6:N65,10,FALSE)) -> 
B51: =IF(F51="","",N51) ->  | K51: =SUM(F51:J51) -> 0 | L51: =MAX(F51:J51) -> 0 | M51: =SUM(K51*1000)+L51+0.11 -> 0.11 | N51: =IF(F51="","",RANK(M51,M6:M65,0)) ->  | AG51: 46 | AH51: =IF(AF6<46,"",VLOOKUP(46,B6:N65,4,FALSE)) ->  | AI51: =IF(AF6<46,"",VLOOKUP(46,B6:N65,10,FALSE)) -> 
B52: =IF(F52="","",N52) ->  | K52: =SUM(F52:J52) -> 0 | L52: =MAX(F52:J52) -> 0 | M52: =SUM(K52*1000)+L52+0.1 -> 0.1 | N52: =IF(F52="","",RANK(M52,M6:M65,0)) ->  | AG52: 47 | AH52: =IF(AF6<47,"",VLOOKUP(47,B6:N65,4,FALSE)) ->  | AI52: =IF(AF6<47,"",VLOOKUP(47,B6:N65,10,FALSE)) -> 
F53: =SUM(F48:F52) -> 0 | G53: =SUM(G48:G52) -> 0 | H53: =SUM(H48:H52) -> 0 | I53: =SUM(I48:I52) -> 0 | J53: =SUM(J48:J52) -> 0 | O53: =SUM(F53:J53) -> 0 | P53: =MAX(F53:J53)+0.003 -> 0.003 | Q53: =IF(F48="","",SUM(O53*1000)+P53) ->  | AC53: =SUM(O47,O53) -> 0 | AG53: 48 | AH53: =IF(AF6<48,"",VLOOKUP(48,B6:N65,4,FALSE)) ->  | AI53: =IF(AF6<48,"",VLOOKUP(48,B6:N65,10,FALSE)) -> 
B54: =IF(F54="","",N54) ->  | C54: 9 | D54: KAČEROV I. | K54: =SUM(F54:J54) -> 0 | L54: =MAX(F54:J54) -> 0 | M54: =SUM(K54*1000)+L54+0.09 -> 0.09 | N54: =IF(F54="","",RANK(M54,M6:M65,0)) ->  | R54: =IF(F54="","",RANK(Q59,Q11:Q65,0)) ->  | T54: =IF(F54="","",RANK(AA54,AA6:AA64,0)) ->  | U54: =IF(R54="","",R54) ->  | V54: =IF(D54="","",D54) -> KAČEROV I. | W54: =IF(O59="","",O59) -> 0 | X54: =IF(V54="HOSTIVAŘ I.","GARÁŽ HOSTIVAŘ",IF(V54="VRŠOVICE I.","GARÁŽ VRŠOVICE",IF(V54="KLÍČOV I.","GARÁŽ KLÍČOV",IF(V54="ŘEPY I.","GARÁŽ ŘEPY",IF(V54="KAČEROV I.","GARÁŽ KAČEROV",""))))) -> GARÁŽ KAČEROV | Y54: =MAX(F59:J59,F65:J65)+0.01 -> 0.01 | Z54: =SUM(O59,O65)*1000 -> 0 | AA54: =SUM(Y54:Z54) -> 0.01 | AB54: =IF(AC65="","",AC65) -> 0 | AD54: =IF(T54="","",T54) ->  | AG54: 49 | AH54: =IF(AF6<49,"",VLOOKUP(49,B6:N65,4,FALSE)) ->  | AI54: =IF(AF6<49,"",VLOOKUP(49,B6:N65,10,FALSE)) -> 
B55: =IF(F55="","",N55) ->  | K55: =SUM(F55:J55) -> 0 | L55: =MAX(F55:J55) -> 0 | M55: =SUM(K55*1000)+L55+0.08 -> 0.08 | N55: =IF(F55="","",RANK(M55,M6:M65,0)) ->  | AG55: 50 | AH55: =IF(AF6<50,"",VLOOKUP(50,B6:N65,4,FALSE)) ->  | AI55: =IF(AF6<50,"",VLOOKUP(50,B6:N65,10,FALSE)) -> 
B56: =IF(F56="","",N56) ->  | K56: =SUM(F56:J56) -> 0 | L56: =MAX(F56:J56) -> 0 | M56: =SUM(K56*1000)+L56+0.07 -> 0.07 | N56: =IF(F56="","",RANK(M56,M6:M65,0)) -> 
B57: =IF(F57="","",N57) ->  | K57: =SUM(F57:J57) -> 0 | L57: =MAX(F57:J57) -> 0 | M57: =SUM(K57*1000)+L57+0.06 -> 0.06 | N57: =IF(F57="","",RANK(M57,M6:M65,0)) -> 
B58: =IF(F58="","",N58) ->  | K58: =SUM(F58:J58) -> 0 | L58: =MAX(F58:J58) -> 0 | M58: =SUM(K58*1000)+L58+0.05 -> 0.05 | N58: =IF(F58="","",RANK(M58,M6:M65,0)) -> 
F59: =SUM(F54:F58) -> 0 | G59: =SUM(G54:G58) -> 0 | H59: =SUM(H54:H58) -> 0 | I59: =SUM(I54:I58) -> 0 | J59: =SUM(J54:J58) -> 0 | O59: =SUM(F59:J59) -> 0 | P59: =MAX(F59:J59)+0.002 -> 0.002 | Q59: =IF(F54="","",SUM(O59*1000)+P59) -> 
B60: =IF(F60="","",N60) ->  | C60: 10 | D60: KAČEROV II. | K60: =SUM(F60:J60) -> 0 | L60: =MAX(F60:J60) -> 0 | M60: =SUM(K60*1000)+L60+0.04 -> 0.04 | N60: =IF(F60="","",RANK(M60,M6:M65,0)) ->  | R60: =IF(F60="","",RANK(Q65,Q11:Q65,0)) ->  | U60: =IF(R60="","",R60) ->  | V60: =IF(D60="","",D60) -> KAČEROV II. | W60: =IF(O65="","",O65) -> 0
B61: =IF(F61="","",N61) ->  | K61: =SUM(F61:J61) -> 0 | L61: =MAX(F61:J61) -> 0 | M61: =SUM(K61*1000)+L61+0.03 -> 0.03 | N61: =IF(F61="","",RANK(M61,M6:M65,0)) -> 
B62: =IF(F62="","",N62) ->  | K62: =SUM(F62:J62) -> 0 | L62: =MAX(F62:J62) -> 0 | M62: =SUM(K62*1000)+L62+0.02 -> 0.02 | N62: =IF(F62="","",RANK(M62,M6:M65,0)) -> 
B63: =IF(F63="","",N63) ->  | K63: =SUM(F63:J63) -> 0 | L63: =MAX(F63:J63) -> 0 | M63: =SUM(K63*1000)+L63+0.01 -> 0.01 | N63: =IF(F63="","",RANK(M63,M6:M65,0)) -> 
B64: =IF(F64="","",N64) ->  | K64: =SUM(F64:J64) -> 0 | L64: =MAX(F64:J64) -> 0 | M64: =SUM(K64*1000)+L64 -> 0 | N64: =IF(F64="","",RANK(M64,M6:M65,0)) -> 
F65: =SUM(F60:F64) -> 0 | G65: =SUM(G60:G64) -> 0 | H65: =SUM(H60:H64) -> 0 | I65: =SUM(I60:I64) -> 0 | J65: =SUM(J60:J64) -> 0 | L65: =MAX(L12:L64,L6:L10) -> 0 | O65: =SUM(F65:J65) -> 0 | P65: =MAX(F65:J65)+0.001 -> 0.001 | Q65: =IF(F60="","",SUM(O65*1000)+P65) ->  | AC65: =SUM(O59,O65) -> 0

Sheet VRŠOVICE
A1: ZPĚT
D3: Sportovní turnaj v Bowlingu o pohár ZV-OS Vršovice dne _._. 2015
C5: Garáž | E5: Jméno | F5: I. | G5: II. | H5: III. | I5: IV. | J5: V. | K5: Body | N5: Jednotlivci. | R5: Družstva. | AG5: pořadí jednotlivců
B6: =IF(F6="","",N6) ->  | C6: 1 | D6: KAČEROV I. | K6: =SUM(F6:J6) -> 0 | L6: =MAX(F6:J6) -> 0 | M6: =SUM(K6*1000)+L6+0.5 -> 0.5 | N6: =IF(F6="","",RANK(M6,M6:M65,0)) ->  | R6: =IF(F6="","",RANK(Q11,Q11:Q65,0)) ->  | T6: =IF(F6="","",RANK(AA6,AA6:AA64,0)) ->  | U6: =IF(R6="","",R6) ->  | V6: =IF(D6="","",D6) -> KAČEROV I. | W6: =IF(O11="","",O11) -> 0 | X6: =IF(V6="HOSTIVAŘ I.","GARÁŽ HOSTIVAŘ",IF(V6="VRŠOVICE I.","GARÁŽ VRŠOVICE",IF(V6="KLÍČOV I.","GARÁŽ KLÍČOV",IF(V6="ŘEPY I.","GARÁŽ ŘEPY",IF(V6="KAČEROV I.","GARÁŽ KAČEROV",""))))) -> GARÁŽ KAČEROV | Y6: =MAX(F11:J11,F17:J17)+0.05 -> 0.05 | Z6: =SUM(O11,O17)*1000 -> 0 | AA6: =SUM(Y6:Z6) -> 0.05 | AB6: =IF(AC17="","",AC17) -> 0 | AD6: =IF(T6="","",T6) ->  | AF6: =COUNT(F6:F10,F12:F16,F18:F22,F24:F28,F30:F34,F36:F40,F42:F46,F48:F52,F54:F58,F60:F64) -> 0 | AG6: 1 | AH6: =IF(AF6<1,"",VLOOKUP(1,B6:N65,4,FALSE)) ->  | AI6: =IF(AF6<1,"",VLOOKUP(1,B6:N65,10,FALSE)) ->  | AK6: =COUNT(U6:U16,U18:U28,U30:U40,U42:U52,U54:U64) -> 0 | AL6: POŘADÍ DRUŽSTEV | BA6: HOSTIVAŘ I.
B7: =IF(F7="","",N7) ->  | K7: =SUM(F7:J7) -> 0 | L7: 0 | M7: =SUM(K7*1000)+L7+0.49 -> 0.49 | N7: =IF(F7="","",RANK(M7,M6:M65,0)) ->  | AG7: =SUM(AG6+1) -> 2 | AH7: =IF(AF6<2,"",VLOOKUP(2,B6:N65,4,FALSE)) ->  | AI7: =IF(AF6<2,"",VLOOKUP(2,B6:N65,10,FALSE)) ->  | AL7: 1 | AM7: =IF(AK6<1,"",VLOOKUP(1,U6:W64,2,FALSE)) ->  | AN7: =IF(AK6<1,"",VLOOKUP(1,U6:W64,3,FALSE)) ->  | BA7: VRŠOVICE I.
B8: =IF(F8="","",N8) ->  | K8: =SUM(F8:J8) -> 0 | L8: 0 | M8: =SUM(K8*1000)+L8+0.48 -> 0.48 | N8: =IF(F8="","",RANK(M8,M6:M65,0)) ->  | AG8: =SUM(AG7+1) -> 3 | AH8: =IF(AF6<3,"",VLOOKUP(3,B6:N65,4,FALSE)) ->  | AI8: =IF(AF6<3,"",VLOOKUP(3,B6:N65,10,FALSE)) ->  | AL8: 2 | AM8: =IF(AK6<2,"",VLOOKUP(2,U6:W64,2,FALSE)) ->  | AN8: =IF(AK6<2,"",VLOOKUP(2,U6:W64,3,FALSE)) ->  | BA8: KLÍČOV I.
B9: =IF(F9="","",N9) ->  | K9: =SUM(F9:J9) -> 0 | L9: 0 | M9: =SUM(K9*1000)+L9+0.47 -> 0.47 | N9: =IF(F9="","",RANK(M9,M6:M65,0)) ->  | AG9: 4 | AH9: =IF(AF6<4,"",VLOOKUP(4,B6:N65,4,FALSE)) ->  | AI9: =IF(AF6<4,"",VLOOKUP(4,B6:N65,10,FALSE)) ->  | AL9: 3 | AM9: =IF(AK6<3,"",VLOOKUP(3,U6:W64,2,FALSE)) ->  | AN9: =IF(AK6<3,"",VLOOKUP(3,U6:W64,3,FALSE)) ->  | BA9: ŘEPY I.
B10: =IF(F10="","",N10) ->  | K10: =SUM(F10:J10) -> 0 | L10: 0 | M10: =SUM(K10*1000)+L10+0.46 -> 0.46 | N10: =IF(F10="","",RANK(M10,M6:M65,0)) ->  | AG10: 5 | AH10: =IF(AF6<5,"",VLOOKUP(5,B6:N65,4,FALSE)) ->  | AI10: =IF(AF6<5,"",VLOOKUP(5,B6:N65,10,FALSE)) ->  | AL10: 4 | AM10: =IF(AK6<4,"",VLOOKUP(4,U6:W64,2,FALSE)) ->  | AN10: =IF(AK6<4,"",VLOOKUP(4,U6:W64,3,FALSE)) ->  | BA10: KAČEROV I.
F11: =SUM(F6:F10) -> 0 | G11: =SUM(G6:G10) -> 0 | H11: =SUM(H6:H10) -> 0 | I11: =SUM(I6:I10) -> 0 | J11: =SUM(J6:J10) -> 0 | L11: 0 | O11: =SUM(F11:J11) -> 0 | P11: =MAX(F11:J11)+0.01 -> 0.01 | Q11: =IF(F6="","",SUM(O11*1000)+P11) ->  | AG11: 6 | AH11: =IF(AF6<6,"",VLOOKUP(6,B6:N65,4,FALSE)) ->  | AI11: =IF(AF6<6,"",VLOOKUP(6,B6:N65,10,FALSE)) ->  | AL11: 5 | AM11: =IF(AK6<5,"",VLOOKUP(5,U6:W64,2,FALSE)) ->  | AN11: =IF(AK6<5,"",VLOOKUP(5,U6:W64,3,FALSE)) -> 
B12: =IF(F12="","",N12) ->  | C12: 2 | D12: KAČEROV II. | K12: =SUM(F12:J12) -> 0 | L12: 0 | M12: =SUM(K12*1000)+L12+0.45 -> 0.45 | N12: =IF(F12="","",RANK(M12,M6:M65,0)) ->  | R12: =IF(F12="","",RANK(Q17,Q11:Q65,0)) ->  | U12: =IF(R12="","",R12) ->  | V12: =IF(D12="","",D12) -> KAČEROV II. | W12: =IF(O17="","",O17) -> 0 | AG12: 7 | AH12: =IF(AF6<7,"",VLOOKUP(7,B6:N65,4,FALSE)) ->  | AI12: =IF(AF6<7,"",VLOOKUP(7,B6:N65,10,FALSE)) ->  | AL12: 6 | AM12: =IF(AK6<6,"",VLOOKUP(6,U6:W64,2,FALSE)) ->  | AN12: =IF(AK6<6,"",VLOOKUP(6,U6:W64,3,FALSE)) -> 
B13: =IF(F13="","",N13) ->  | K13: =SUM(F13:J13) -> 0 | L13: 0 | M13: =SUM(K13*1000)+L13+0.44 -> 0.44 | N13: =IF(F13="","",RANK(M13,M6:M65,0)) ->  | AG13: 8 | AH13: =IF(AF6<8,"",VLOOKUP(8,B6:N65,4,FALSE)) ->  | AI13: =IF(AF6<8,"",VLOOKUP(8,B6:N65,10,FALSE)) ->  | AL13: 7 | AM13: =IF(AK6<7,"",VLOOKUP(7,U6:W64,2,FALSE)) ->  | AN13: =IF(AK6<7,"",VLOOKUP(7,U6:W64,3,FALSE)) -> 
B14: =IF(F14="","",N14) ->  | K14: =SUM(F14:J14) -> 0 | L14: 0 | M14: =SUM(K14*1000)+L14+0.43 -> 0.43 | N14: =IF(F14="","",RANK(M14,M6:M65,0)) ->  | AG14: 9 | AH14: =IF(AF6<9,"",VLOOKUP(9,B6:N65,4,FALSE)) ->  | AI14: =IF(AF6<9,"",VLOOKUP(9,B6:N65,10,FALSE)) ->  | AL14: 8 | AM14: =IF(AK6<8,"",VLOOKUP(8,U6:W64,2,FALSE)) ->  | AN14: =IF(AK6<8,"",VLOOKUP(8,U6:W64,3,FALSE)) -> 
B15: =IF(F15="","",N15) ->  | K15: =SUM(F15:J15) -> 0 | L15: 0 | M15: =SUM(K15*1000)+L15+0.42 -> 0.42 | N15: =IF(F15="","",RANK(M15,M6:M65,0)) ->  | AG15: 10 | AH15: =IF(AF6<10,"",VLOOKUP(10,B6:N65,4,FALSE)) ->  | AI15: =IF(AF6<10,"",VLOOKUP(10,B6:N65,10,FALSE)) ->  | AL15: 9 | AM15: =IF(AK6<9,"",VLOOKUP(9,U6:W64,2,FALSE)) ->  | AN15: =IF(AK6<9,"",VLOOKUP(9,U6:W64,3,FALSE)) -> 
B16: =IF(F16="","",N16) ->  | K16: =SUM(F16:J16) -> 0 | L16: 0 | M16: =SUM(K16*1000)+L16+0.41 -> 0.41 | N16: =IF(F16="","",RANK(M16,M6:M65,0)) ->  | AG16: 11 | AH16: =IF(AF6<11,"",VLOOKUP(11,B6:N65,4,FALSE)) ->  | AI16: =IF(AF6<11,"",VLOOKUP(11,B6:N65,10,FALSE)) ->  | AL16: 10 | AM16: =IF(AK6<10,"",VLOOKUP(10,U6:W64,2,FALSE)) ->  | AN16: =IF(AK6<10,"",VLOOKUP(10,U6:W64,3,FALSE)) -> 
F17: =SUM(F12:F16) -> 0 | G17: =SUM(G12:G16) -> 0 | H17: =SUM(H12:H16) -> 0 | I17: =SUM(I12:I16) -> 0 | J17: =SUM(J12:J16) -> 0 | O17: =SUM(F17:J17) -> 0 | P17: =MAX(F17:J17)+0.009 -> 0.009 | Q17: =IF(F12="","",SUM(O17*1000)+P17) ->  | AC17: =SUM(O11,O17) -> 0 | AG17: 12 | AH17: =IF(AF6<12,"",VLOOKUP(12,B6:N65,4,FALSE)) ->  | AI17: =IF(AF6<12,"",VLOOKUP(12,B6:N65,10,FALSE)) -> 
B18: =IF(F18="","",N18) ->  | C18: 3 | D18: HOSTIVAŘ I. | K18: =SUM(F18:J18) -> 0 | L18: =MAX(F18:J18) -> 0 | M18: =SUM(K18*1000)+L18+0.4 -> 0.4 | N18: =IF(F18="","",RANK(M18,M6:M65,0)) ->  | R18: =IF(F18="","",RANK(Q23,Q11:Q65,0)) ->  | T18: =IF(F18="","",RANK(AA18,AA6:AA64,0)) ->  | U18: =IF(R18="","",R18) ->  | V18: =IF(D18="","",D18) -> HOSTIVAŘ I. | W18: =IF(O23="","",O23) -> 0 | X18: =IF(V18="HOSTIVAŘ I.","GARÁŽ HOSTIVAŘ",IF(V18="VRŠOVICE I.","GARÁŽ VRŠOVICE",IF(V18="KLÍČOV I.","GARÁŽ KLÍČOV",IF(V18="ŘEPY I.","GARÁŽ ŘEPY",IF(V18="KAČEROV I.","GARÁŽ KAČEROV",""))))) -> GARÁŽ HOSTIVAŘ | Y18: =MAX(F23:J23,F29:J29)+0.04 -> 0.04 | Z18: =SUM(O23,O29)*1000 -> 0 | AA18: =SUM(Y18:Z18) -> 0.04 | AB18: =IF(AC29="","",AC29) -> 0 | AD18: =IF(T18="","",T18) ->  | AG18: 13 | AH18: =IF(AF6<13,"",VLOOKUP(13,B6:N65,4,FALSE)) ->  | AI18: =IF(AF6<13,"",VLOOKUP(13,B6:N65,10,FALSE)) ->  | AK18: =COUNT(T6:T64) -> 0 | AL18: POŘEDÍ GARÁŽÍ
B19: =IF(F19="","",N19) ->  | K19: =SUM(F19:J19) -> 0 | L19: =MAX(F19:J19) -> 0 | M19: =SUM(K19*1000)+L19+0.39 -> 0.39 | N19: =IF(F19="","",RANK(M19,M6:M65,0)) ->  | AG19: 14 | AH19: =IF(AF6<14,"",VLOOKUP(14,B6:N65,4,FALSE)) ->  | AI19: =IF(AF6<14,"",VLOOKUP(14,B6:N65,10,FALSE)) ->  | AL19: 1 | AM19: =IF(AK18<1,"",VLOOKUP(1,T6:AB64,5,FALSE)) ->  | AN19: =IF(AK18<1,"",VLOOKUP(1,T6:AB64,9,FALSE)) -> 
B20: =IF(F20="","",N20) ->  | K20: =SUM(F20:J20) -> 0 | L20: =MAX(F20:J20) -> 0 | M20: =SUM(K20*1000)+L20+0.38 -> 0.38 | N20: =IF(F20="","",RANK(M20,M6:M65,0)) ->  | AG20: 15 | AH20: =IF(AF6<15,"",VLOOKUP(15,B6:N65,4,FALSE)) ->  | AI20: =IF(AF6<15,"",VLOOKUP(15,B6:N65,10,FALSE)) ->  | AL20: 2 | AM20: =IF(AK18<2,"",VLOOKUP(2,T6:AB64,5,FALSE)) ->  | AN20: =IF(AK18<2,"",VLOOKUP(2,T6:AB64,9,FALSE)) -> 
B21: =IF(F21="","",N21) ->  | K21: =SUM(F21:J21) -> 0 | L21: =MAX(F21:J21) -> 0 | M21: =SUM(K21*1000)+L21+0.37 -> 0.37 | N21: =IF(F21="","",RANK(M21,M6:M65,0)) ->  | AG21: 16 | AH21: =IF(AF6<16,"",VLOOKUP(16,B6:N65,4,FALSE)) ->  | AI21: =IF(AF6<16,"",VLOOKUP(16,B6:N65,10,FALSE)) ->  | AL21: 3 | AM21: =IF(AK18<3,"",VLOOKUP(3,T6:AB64,5,FALSE)) ->  | AN21: =IF(AK18<3,"",VLOOKUP(3,T6:AB64,9,FALSE)) -> 
B22: =IF(F22="","",N22) ->  | K22: =SUM(F22:J22) -> 0 | L22: =MAX(F22:J22) -> 0 | M22: =SUM(K22*1000)+L22+0.36 -> 0.36 | N22: =IF(F22="","",RANK(M22,M6:M65,0)) ->  | AG22: 17 | AH22: =IF(AF6<17,"",VLOOKUP(17,B6:N65,4,FALSE)) ->  | AI22: =IF(AF6<17,"",VLOOKUP(17,B6:N65,10,FALSE)) ->  | AL22: 4 | AM22: =IF(AK18<4,"",VLOOKUP(4,T6:AB64,5,FALSE)) ->  | AN22: =IF(AK18<4,"",VLOOKUP(4,T6:AB64,9,FALSE)) -> 
F23: =SUM(F18:F22) -> 0 | G23: =SUM(G18:G22) -> 0 | H23: =SUM(H18:H22) -> 0 | I23: =SUM(I18:I22) -> 0 | J23: =SUM(J18:J22) -> 0 | O23: =SUM(F23:J23) -> 0 | P23: =MAX(F23:J23)+0.008 -> 0.008 | Q23: =IF(F18="","",SUM(O23*1000)+P23) ->  | AG23: 18 | AH23: =IF(AF6<18,"",VLOOKUP(18,B6:N65,4,FALSE)) ->  | AI23: =IF(AF6<18,"",VLOOKUP(18,B6:N65,10,FALSE)) ->  | AL23: 5 | AM23: =IF(AK18<5,"",VLOOKUP(5,T6:AB64,5,FALSE)) ->  | AN23: =IF(AK18<5,"",VLOOKUP(5,T6:AB64,9,FALSE)) -> 
B24: =IF(F24="","",N24) ->  | C24: 4 | D24: HOSTIVAŘ II. | K24: =SUM(F24:J24) -> 0 | L24: =MAX(F24:J24) -> 0 | M24: =SUM(K24*1000)+L24+0.35 -> 0.35 | N24: =IF(F24="","",RANK(M24,M6:M65,0)) ->  | R24: =IF(F24="","",RANK(Q29,Q11:Q65,0)) ->  | U24: =IF(R24="","",R24) ->  | V24: =IF(D24="","",D24) -> HOSTIVAŘ II. | W24: =IF(O29="","",O29) -> 0 | AG24: 19 | AH24: =IF(AF6<19,"",VLOOKUP(19,B6:N65,4,FALSE)) ->  | AI24: =IF(AF6<19,"",VLOOKUP(19,B6:N65,10,FALSE)) -> 
B25: =IF(F25="","",N25) ->  | K25: =SUM(F25:J25) -> 0 | L25: =MAX(F25:J25) -> 0 | M25: =SUM(K25*1000)+L25+0.34 -> 0.34 | N25: =IF(F25="","",RANK(M25,M6:M65,0)) ->  | AG25: 20 | AH25: =IF(AF6<20,"",VLOOKUP(20,B6:N65,4,FALSE)) ->  | AI25: =IF(AF6<20,"",VLOOKUP(20,B6:N65,10,FALSE)) -> 
B26: =IF(F26="","",N26) ->  | K26: =SUM(F26:J26) -> 0 | L26: =MAX(F26:J26) -> 0 | M26: =SUM(K26*1000)+L26+0.33 -> 0.33 | N26: =IF(F26="","",RANK(M26,M6:M65,0)) ->  | AG26: 21 | AH26: =IF(AF6<21,"",VLOOKUP(21,B6:N65,4,FALSE)) ->  | AI26: =IF(AF6<21,"",VLOOKUP(21,B6:N65,10,FALSE)) -> 
B27: =IF(F27="","",N27) ->  | K27: =SUM(F27:J27) -> 0 | L27: =MAX(F27:J27) -> 0 | M27: =SUM(K27*1000)+L27+0.32 -> 0.32 | N27: =IF(F27="","",RANK(M27,M6:M65,0)) ->  | AG27: 22 | AH27: =IF(AF6<22,"",VLOOKUP(22,B6:N65,4,FALSE)) ->  | AI27: =IF(AF6<22,"",VLOOKUP(22,B6:N65,10,FALSE)) -> 
B28: =IF(F28="","",N28) ->  | K28: =SUM(F28:J28) -> 0 | L28: =MAX(F28:J28) -> 0 | M28: =SUM(K28*1000)+L28+0.31 -> 0.31 | N28: =IF(F28="","",RANK(M28,M6:M65,0)) ->  | AG28: 23 | AH28: =IF(AF6<23,"",VLOOKUP(23,B6:N65,4,FALSE)) ->  | AI28: =IF(AF6<23,"",VLOOKUP(23,B6:N65,10,FALSE)) -> 
F29: =SUM(F24:F28) -> 0 | G29: =SUM(G24:G28) -> 0 | H29: =SUM(H24:H28) -> 0 | I29: =SUM(I24:I28) -> 0 | J29: =SUM(J24:J28) -> 0 | O29: =SUM(F29:J29) -> 0 | P29: =MAX(F29:J29)+0.007 -> 0.007 | Q29: =IF(F24="","",SUM(O29*1000)+P29) ->  | AC29: =SUM(O23,O29) -> 0 | AG29: 24 | AH29: =IF(AF6<24,"",VLOOKUP(24,B6:N65,4,FALSE)) ->  | AI29: =IF(AF6<24,"",VLOOKUP(24,B6:N65,10,FALSE)) -> 
B30: =IF(F30="","",N30) ->  | C30: 5 | D30: VRŠOVICE I. | K30: =SUM(F30:J30) -> 0 | L30: =MAX(F30:J30) -> 0 | M30: =SUM(K30*1000)+L30+0.3 -> 0.3 | N30: =IF(F30="","",RANK(M30,M6:M65,0)) ->  | R30: =IF(F30="","",RANK(Q35,Q11:Q65,0)) ->  | T30: =IF(F30="","",RANK(AA30,AA6:AA64,0)) ->  | U30: =IF(R30="","",R30) ->  | V30: =IF(D30="","",D30) -> VRŠOVICE I. | W30: =IF(O35="","",O35) -> 0 | X30: =IF(V30="HOSTIVAŘ I.","GARÁŽ HOSTIVAŘ",IF(V30="VRŠOVICE I.","GARÁŽ VRŠOVICE",IF(V30="KLÍČOV I.","GARÁŽ KLÍČOV",IF(V30="ŘEPY I.","GARÁŽ ŘEPY",IF(V30="KAČEROV I.","GARÁŽ KAČEROV",""))))) -> GARÁŽ VRŠOVICE | Y30: =MAX(F35:J35,F41:J41)+0.03 -> 0.03 | Z30: =SUM(O35,O41)*1000 -> 0 | AA30: =SUM(Y30:Z30) -> 0.03 | AB30: =IF(AC41="","",AC41) -> 0 | AD30: =IF(T30="","",T30) ->  | AG30: 25 | AH30: =IF(AF6<25,"",VLOOKUP(25,B6:N65,4,FALSE)) ->  | AI30: =IF(AF6<25,"",VLOOKUP(25,B6:N65,10,FALSE)) -> 
B31: =IF(F31="","",N31) ->  | K31: =SUM(F31:J31) -> 0 | L31: =MAX(F31:J31) -> 0 | M31: =SUM(K31*1000)+L31+0.29 -> 0.29 | N31: =IF(F31="","",RANK(M31,M6:M65,0)) ->  | AG31: 26 | AH31: =IF(AF6<26,"",VLOOKUP(26,B6:N65,4,FALSE)) ->  | AI31: =IF(AF6<26,"",VLOOKUP(26,B6:N65,10,FALSE)) -> 
B32: =IF(F32="","",N32) ->  | K32: =SUM(F32:J32) -> 0 | L32: =MAX(F32:J32) -> 0 | M32: =SUM(K32*1000)+L32+0.28 -> 0.28 | N32: =IF(F32="","",RANK(M32,M6:M65,0)) ->  | AG32: 27 | AH32: =IF(AF6<27,"",VLOOKUP(27,B6:N65,4,FALSE)) ->  | AI32: =IF(AF6<27,"",VLOOKUP(27,B6:N65,10,FALSE)) -> 
B33: =IF(F33="","",N33) ->  | K33: =SUM(F33:J33) -> 0 | L33: =MAX(F33:J33) -> 0 | M33: =SUM(K33*1000)+L33+0.27 -> 0.27 | N33: =IF(F33="","",RANK(M33,M6:M65,0)) ->  | AG33: 28 | AH33: =IF(AF6<28,"",VLOOKUP(28,B6:N65,4,FALSE)) ->  | AI33: =IF(AF6<28,"",VLOOKUP(28,B6:N65,10,FALSE)) -> 
B34: =IF(F34="","",N34) ->  | K34: =SUM(F34:J34) -> 0 | L34: =MAX(F34:J34) -> 0 | M34: =SUM(K34*1000)+L34+0.26 -> 0.26 | N34: =IF(F34="","",RANK(M34,M6:M65,0)) ->  | AG34: 29 | AH34: =IF(AF6<29,"",VLOOKUP(29,B6:N65,4,FALSE)) ->  | AI34: =IF(AF6<29,"",VLOOKUP(29,B6:N65,10,FALSE)) -> 
F35: =SUM(F30:F34) -> 0 | G35: =SUM(G30:G34) -> 0 | H35: =SUM(H30:H34) -> 0 | I35: =SUM(I30:I34) -> 0 | J35: =SUM(J30:J34) -> 0 | O35: =SUM(F35:J35) -> 0 | P35: =MAX(F35:J35)+0.006 -> 0.006 | Q35: =IF(F30="","",SUM(O35*1000)+P35) ->  | AG35: 30 | AH35: =IF(AF6<30,"",VLOOKUP(30,B6:N65,4,FALSE)) ->  | AI35: =IF(AF6<30,"",VLOOKUP(30,B6:N65,10,FALSE)) -> 
B36: =IF(F36="","",N36) ->  | C36: 6 | D36: VRŠOVICE II. | K36: =SUM(F36:J36) -> 0 | L36: =MAX(F36:J36) -> 0 | M36: =SUM(K36*1000)+L36+0.25 -> 0.25 | N36: =IF(F36="","",RANK(M36,M6:M65,0)) ->  | R36: =IF(F36="","",RANK(Q41,Q11:Q65,0)) ->  | U36: =IF(R36="","",R36) ->  | V36: =IF(D36="","",D36) -> VRŠOVICE II. | W36: =IF(O41="","",O41) -> 0 | AG36: 31 | AH36: =IF(AF6<31,"",VLOOKUP(31,B6:N65,4,FALSE)) ->  | AI36: =IF(AF6<31,"",VLOOKUP(31,B6:N65,10,FALSE)) -> 
B37: =IF(F37="","",N37) ->  | K37: =SUM(F37:J37) -> 0 | L37: =MAX(F37:J37) -> 0 | M37: =SUM(K37*1000)+L37+0.24 -> 0.24 | N37: =IF(F37="","",RANK(M37,M6:M65,0)) ->  | AG37: 32 | AH37: =IF(AF6<32,"",VLOOKUP(32,B6:N65,4,FALSE)) ->  | AI37: =IF(AF6<32,"",VLOOKUP(32,B6:N65,10,FALSE)) -> 
B38: =IF(F38="","",N38) ->  | K38: =SUM(F38:J38) -> 0 | L38: =MAX(F38:J38) -> 0 | M38: =SUM(K38*1000)+L38+0.23 -> 0.23 | N38: =IF(F38="","",RANK(M38,M6:M65,0)) ->  | AG38: 33 | AH38: =IF(AF6<33,"",VLOOKUP(33,B6:N65,4,FALSE)) ->  | AI38: =IF(AF6<33,"",VLOOKUP(33,B6:N65,10,FALSE)) -> 
B39: =IF(F39="","",N39) ->  | K39: =SUM(F39:J39) -> 0 | L39: =MAX(F39:J39) -> 0 | M39: =SUM(K39*1000)+L39+0.21 -> 0.21 | N39: =IF(F39="","",RANK(M39,M6:M65,0)) ->  | AG39: 34 | AH39: =IF(AF6<34,"",VLOOKUP(34,B6:N65,4,FALSE)) ->  | AI39: =IF(AF6<34,"",VLOOKUP(34,B6:N65,10,FALSE)) -> 
B40: =IF(F40="","",N40) ->  | K40: =SUM(F40:J40) -> 0 | L40: =MAX(F40:J40) -> 0 | M40: =SUM(K40*1000)+L40+0.2 -> 0.2 | N40: =IF(F40="","",RANK(M40,M6:M65,0)) ->  | AG40: 35 | AH40: =IF(AF6<35,"",VLOOKUP(35,B6:N65,4,FALSE)) ->  | AI40: =IF(AF6<35,"",VLOOKUP(35,B6:N65,10,FALSE)) -> 
F41: =SUM(F36:F40) -> 0 | G41: =SUM(G36:G40) -> 0 | H41: =SUM(H36:H40) -> 0 | I41: =SUM(I36:I40) -> 0 | J41: =SUM(J36:J40) -> 0 | O41: =SUM(F41:J41) -> 0 | P41: =MAX(F41:J41)+0.005 -> 0.005 | Q41: =IF(F36="","",SUM(O41*1000)+P41) ->  | AC41: =SUM(O35,O41) -> 0 | AG41: 36 | AH41: =IF(AF6<36,"",VLOOKUP(36,B6:N65,4,FALSE)) ->  | AI41: =IF(AF6<36,"",VLOOKUP(36,B6:N65,10,FALSE)) -> 
B42: =IF(F42="","",N42) ->  | C42: 7 | D42: KLÍČOV I. | K42: =SUM(F42:J42) -> 0 | L42: =MAX(F42:J42) -> 0 | M42: =SUM(K42*1000)+L42+0.19 -> 0.19 | N42: =IF(F42="","",RANK(M42,M6:M65,0)) ->  | R42: =IF(F42="","",RANK(Q47,Q11:Q65,0)) ->  | T42: =IF(F42="","",RANK(AA42,AA6:AA64,0)) ->  | U42: =IF(R42="","",R42) ->  | V42: =IF(D42="","",D42) -> KLÍČOV I. | W42: =IF(O47="","",O47) -> 0 | X42: =IF(V42="HOSTIVAŘ I.","GARÁŽ HOSTIVAŘ",IF(V42="VRŠOVICE I.","GARÁŽ VRŠOVICE",IF(V42="KLÍČOV I.","GARÁŽ KLÍČOV",IF(V42="ŘEPY I.","GARÁŽ ŘEPY",IF(V42="KAČEROV I.","GARÁŽ KAČEROV",""))))) -> GARÁŽ KLÍČOV | Y42: =MAX(F47:J47,F53:J53)+0.02 -> 0.02 | Z42: =SUM(O47,O53)*1000 -> 0 | AA42: =SUM(Y42:Z42) -> 0.02 | AB42: =IF(AC53="","",AC53) -> 0 | AD42: =IF(T42="","",T42) ->  | AG42: 37 | AH42: =IF(AF6<37,"",VLOOKUP(37,B6:N65,4,FALSE)) ->  | AI42: =IF(AF6<37,"",VLOOKUP(37,B6:N65,10,FALSE)) -> 
B43: =IF(F43="","",N43) ->  | K43: =SUM(F43:J43) -> 0 | L43: =MAX(F43:J43) -> 0 | M43: =SUM(K43*1000)+L43+0.18 -> 0.18 | N43: =IF(F43="","",RANK(M43,M6:M65,0)) ->  | AG43: 38 | AH43: =IF(AF6<38,"",VLOOKUP(38,B6:N65,4,FALSE)) ->  | AI43: =IF(AF6<38,"",VLOOKUP(38,B6:N65,10,FALSE)) -> 
B44: =IF(F44="","",N44) ->  | K44: =SUM(F44:J44) -> 0 | L44: =MAX(F44:J44) -> 0 | M44: =SUM(K44*1000)+L44+0.17 -> 0.17 | N44: =IF(F44="","",RANK(M44,M6:M65,0)) ->  | AG44: 39 | AH44: =IF(AF6<39,"",VLOOKUP(39,B6:N65,4,FALSE)) ->  | AI44: =IF(AF6<39,"",VLOOKUP(39,B6:N65,10,FALSE)) -> 
B45: =IF(F45="","",N45) ->  | K45: =SUM(F45:J45) -> 0 | L45: =MAX(F45:J45) -> 0 | M45: =SUM(K45*1000)+L45+0.16 -> 0.16 | N45: =IF(F45="","",RANK(M45,M6:M65,0)) ->  | AG45: 40 | AH45: =IF(AF6<40,"",VLOOKUP(40,B6:N65,4,FALSE)) ->  | AI45: =IF(AF6<40,"",VLOOKUP(40,B6:N65,10,FALSE)) -> 
B46: =IF(F46="","",N46) ->  | K46: =SUM(F46:J46) -> 0 | L46: =MAX(F46:J46) -> 0 | M46: =SUM(K46*1000)+L46+0.15 -> 0.15 | N46: =IF(F46="","",RANK(M46,M6:M65,0)) ->  | AG46: 41 | AH46: =IF(AF6<41,"",VLOOKUP(41,B6:N65,4,FALSE)) ->  | AI46: =IF(AF6<41,"",VLOOKUP(41,B6:N65,10,FALSE)) -> 
F47: =SUM(F42:F46) -> 0 | G47: =SUM(G42:G46) -> 0 | H47: =SUM(H42:H46) -> 0 | I47: =SUM(I42:I46) -> 0 | J47: =SUM(J42:J46) -> 0 | O47: =SUM(F47:J47) -> 0 | P47: =MAX(F47:J47)+0.004 -> 0.004 | Q47: =IF(F42="","",SUM(O47*1000)+P47) ->  | AG47: 42 | AH47: =IF(AF6<42,"",VLOOKUP(42,B6:N65,4,FALSE)) ->  | AI47: =IF(AF6<42,"",VLOOKUP(42,B6:N65,10,FALSE)) -> 
B48: =IF(F48="","",N48) ->  | C48: 8 | D48: KLÍČOV II. | K48: =SUM(F48:J48) -> 0 | L48: =MAX(F48:J48) -> 0 | M48: =SUM(K48*1000)+L48+0.14 -> 0.14 | N48: =IF(F48="","",RANK(M48,M6:M65,0)) ->  | R48: =IF(F48="","",RANK(Q53,Q11:Q65,0)) ->  | U48: =IF(R48="","",R48) ->  | V48: =IF(D48="","",D48) -> KLÍČOV II. | W48: =IF(O53="","",O53) -> 0 | AG48: 43 | AH48: =IF(AF6<43,"",VLOOKUP(43,B6:N65,4,FALSE)) ->  | AI48: =IF(AF6<43,"",VLOOKUP(43,B6:N65,10,FALSE)) -> 
B49: =IF(F49="","",N49) ->  | K49: =SUM(F49:J49) -> 0 | L49: =MAX(F49:J49) -> 0 | M49: =SUM(K49*1000)+L49+0.13 -> 0.13 | N49: =IF(F49="","",RANK(M49,M6:M65,0)) ->  | AG49: 44 | AH49: =IF(AF6<44,"",VLOOKUP(44,B6:N65,4,FALSE)) ->  | AI49: =IF(AF6<44,"",VLOOKUP(44,B6:N65,10,FALSE)) -> 
B50: =IF(F50="","",N50) ->  | K50: =SUM(F50:J50) -> 0 | L50: =MAX(F50:J50) -> 0 | M50: =SUM(K50*1000)+L50+0.12 -> 0.12 | N50: =IF(F50="","",RANK(M50,M6:M65,0)) ->  | AG50: 45 | AH50: =IF(AF6<45,"",VLOOKUP(45,B6:N65,4,FALSE)) ->  | AI50: =IF(AF6<45,"",VLOOKUP(45,B6:N65,10,FALSE)) -> 
B51: =IF(F51="","",N51) ->  | K51: =SUM(F51:J51) -> 0 | L51: =MAX(F51:J51) -> 0 | M51: =SUM(K51*1000)+L51+0.11 -> 0.11 | N51: =IF(F51="","",RANK(M51,M6:M65,0)) ->  | AG51: 46 | AH51: =IF(AF6<46,"",VLOOKUP(46,B6:N65,4,FALSE)) ->  | AI51: =IF(AF6<46,"",VLOOKUP(46,B6:N65,10,FALSE)) -> 
B52: =IF(F52="","",N52) ->  | K52: =SUM(F52:J52) -> 0 | L52: =MAX(F52:J52) -> 0 | M52: =SUM(K52*1000)+L52+0.1 -> 0.1 | N52: =IF(F52="","",RANK(M52,M6:M65,0)) ->  | AG52: 47 | AH52: =IF(AF6<47,"",VLOOKUP(47,B6:N65,4,FALSE)) ->  | AI52: =IF(AF6<47,"",VLOOKUP(47,B6:N65,10,FALSE)) -> 
F53: =SUM(F48:F52) -> 0 | G53: =SUM(G48:G52) -> 0 | H53: =SUM(H48:H52) -> 0 | I53: =SUM(I48:I52) -> 0 | J53: =SUM(J48:J52) -> 0 | O53: =SUM(F53:J53) -> 0 | P53: =MAX(F53:J53)+0.003 -> 0.003 | Q53: =IF(F48="","",SUM(O53*1000)+P53) ->  | AC53: =SUM(O47,O53) -> 0 | AG53: 48 | AH53: =IF(AF6<48,"",VLOOKUP(48,B6:N65,4,FALSE)) ->  | AI53: =IF(AF6<48,"",VLOOKUP(48,B6:N65,10,FALSE)) -> 
B54: =IF(F54="","",N54) ->  | C54: 9 | D54: ŘEPY I. | K54: =SUM(F54:J54) -> 0 | L54: =MAX(F54:J54) -> 0 | M54: =SUM(K54*1000)+L54+0.09 -> 0.09 | N54: =IF(F54="","",RANK(M54,M6:M65,0)) ->  | R54: =IF(F54="","",RANK(Q59,Q11:Q65,0)) ->  | T54: =IF(F54="","",RANK(AA54,AA6:AA64,0)) ->  | U54: =IF(R54="","",R54) ->  | V54: =IF(D54="","",D54) -> ŘEPY I. | W54: =IF(O59="","",O59) -> 0 | X54: =IF(V54="HOSTIVAŘ I.","GARÁŽ HOSTIVAŘ",IF(V54="VRŠOVICE I.","GARÁŽ VRŠOVICE",IF(V54="KLÍČOV I.","GARÁŽ KLÍČOV",IF(V54="ŘEPY I.","GARÁŽ ŘEPY",IF(V54="KAČEROV I.","GARÁŽ KAČEROV",""))))) -> GARÁŽ ŘEPY | Y54: =MAX(F59:J59,F65:J65)+0.01 -> 0.01 | Z54: =SUM(O59,O65)*1000 -> 0 | AA54: =SUM(Y54:Z54) -> 0.01 | AB54: =IF(AC65="","",AC65) -> 0 | AD54: =IF(T54="","",T54) ->  | AG54: 49 | AH54: =IF(AF6<49,"",VLOOKUP(49,B6:N65,4,FALSE)) ->  | AI54: =IF(AF6<49,"",VLOOKUP(49,B6:N65,10,FALSE)) -> 
B55: =IF(F55="","",N55) ->  | K55: =SUM(F55:J55) -> 0 | L55: =MAX(F55:J55) -> 0 | M55: =SUM(K55*1000)+L55+0.08 -> 0.08 | N55: =IF(F55="","",RANK(M55,M6:M65,0)) ->  | AG55: 50 | AH55: =IF(AF6<50,"",VLOOKUP(50,B6:N65,4,FALSE)) ->  | AI55: =IF(AF6<50,"",VLOOKUP(50,B6:N65,10,FALSE)) -> 
B56: =IF(F56="","",N56) ->  | K56: =SUM(F56:J56) -> 0 | L56: =MAX(F56:J56) -> 0 | M56: =SUM(K56*1000)+L56+0.07 -> 0.07 | N56: =IF(F56="","",RANK(M56,M6:M65,0)) -> 
B57: =IF(F57="","",N57) ->  | K57: =SUM(F57:J57) -> 0 | L57: =MAX(F57:J57) -> 0 | M57: =SUM(K57*1000)+L57+0.06 -> 0.06 | N57: =IF(F57="","",RANK(M57,M6:M65,0)) -> 
B58: =IF(F58="","",N58) ->  | K58: =SUM(F58:J58) -> 0 | L58: =MAX(F58:J58) -> 0 | M58: =SUM(K58*1000)+L58+0.05 -> 0.05 | N58: =IF(F58="","",RANK(M58,M6:M65,0)) -> 
F59: =SUM(F54:F58) -> 0 | G59: =SUM(G54:G58) -> 0 | H59: =SUM(H54:H58) -> 0 | I59: =SUM(I54:I58) -> 0 | J59: =SUM(J54:J58) -> 0 | O59: =SUM(F59:J59) -> 0 | P59: =MAX(F59:J59)+0.002 -> 0.002 | Q59: =IF(F54="","",SUM(O59*1000)+P59) -> 
B60: =IF(F60="","",N60) ->  | C60: 10 | D60: ŘEPY II. | K60: =SUM(F60:J60) -> 0 | L60: =MAX(F60:J60) -> 0 | M60: =SUM(K60*1000)+L60+0.04 -> 0.04 | N60: =IF(F60="","",RANK(M60,M6:M65,0)) ->  | R60: =IF(F60="","",RANK(Q65,Q11:Q65,0)) ->  | U60: =IF(R60="","",R60) ->  | V60: =IF(D60="","",D60) -> ŘEPY II. | W60: =IF(O65="","",O65) -> 0
B61: =IF(F61="","",N61) ->  | K61: =SUM(F61:J61) -> 0 | L61: =MAX(F61:J61) -> 0 | M61: =SUM(K61*1000)+L61+0.03 -> 0.03 | N61: =IF(F61="","",RANK(M61,M6:M65,0)) -> 
B62: =IF(F62="","",N62) ->  | K62: =SUM(F62:J62) -> 0 | L62: =MAX(F62:J62) -> 0 | M62: =SUM(K62*1000)+L62+0.02 -> 0.02 | N62: =IF(F62="","",RANK(M62,M6:M65,0)) -> 
B63: =IF(F63="","",N63) ->  | K63: =SUM(F63:J63) -> 0 | L63: =MAX(F63:J63) -> 0 | M63: =SUM(K63*1000)+L63+0.01 -> 0.01 | N63: =IF(F63="","",RANK(M63,M6:M65,0)) -> 
B64: =IF(F64="","",N64) ->  | K64: =SUM(F64:J64) -> 0 | L64: =MAX(F64:J64) -> 0 | M64: =SUM(K64*1000)+L64 -> 0 | N64: =IF(F64="","",RANK(M64,M6:M65,0)) -> 
F65: =SUM(F60:F64) -> 0 | G65: =SUM(G60:G64) -> 0 | H65: =SUM(H60:H64) -> 0 | I65: =SUM(I60:I64) -> 0 | J65: =SUM(J60:J64) -> 0 | L65: =MAX(L12:L64,L6:L10) -> 0 | O65: =SUM(F65:J65) -> 0 | P65: =MAX(F65:J65)+0.001 -> 0.001 | Q65: =IF(F60="","",SUM(O65*1000)+P65) ->  | AC65: =SUM(O59,O65) -> 0

Sheet POHÁR GŘ
A1: ZPĚT
D3: 3. ročník turnaje v bowlingu o "Putovní pohár GŘ DP - Praha, ing. J. Ďuriše", dne _._. 2015
C5: Garáž | E5: Jméno | F5: I. | G5: II. | H5: III. | I5: IV. | J5: V. | K5: Body | N5: Jednotlivci. | R5: Družstva. | AG5: pořadí jednotlivců
B6: =IF(F6="","",N6) ->  | C6: 1 | D6: ŘEPY I. | K6: =SUM(F6:J6) -> 0 | L6: =MAX(F6:J6) -> 0 | M6: =SUM(K6*1000)+L6+0.5 -> 0.5 | N6: =IF(F6="","",RANK(M6,M6:M65,0)) ->  | R6: =IF(F6="","",RANK(Q11,Q11:Q65,0)) ->  | T6: =IF(F6="","",RANK(AA6,AA6:AA64,0)) ->  | U6: =IF(R6="","",R6) ->  | V6: =IF(D6="","",D6) -> ŘEPY I. | W6: =IF(O11="","",O11) -> 0 | X6: =IF(V6="HOSTIVAŘ I.","GARÁŽ HOSTIVAŘ",IF(V6="VRŠOVICE I.","GARÁŽ VRŠOVICE",IF(V6="KLÍČOV I.","GARÁŽ KLÍČOV",IF(V6="ŘEPY I.","GARÁŽ ŘEPY",IF(V6="KAČEROV I.","GARÁŽ KAČEROV",""))))) -> GARÁŽ ŘEPY | Y6: =MAX(F11:J11,F17:J17)+0.05 -> 0.05 | Z6: =SUM(O11,O17)*1000 -> 0 | AA6: =SUM(Y6:Z6) -> 0.05 | AB6: =IF(AC17="","",AC17) -> 0 | AD6: =IF(T6="","",T6) ->  | AF6: =COUNT(F6:F10,F12:F16,F18:F22,F24:F28,F30:F34,F36:F40,F42:F46,F48:F52,F54:F58,F60:F64) -> 0 | AG6: 1 | AH6: =IF(AF6<1,"",VLOOKUP(1,B6:N65,4,FALSE)) ->  | AI6: =IF(AF6<1,"",VLOOKUP(1,B6:N65,10,FALSE)) ->  | AK6: =COUNT(U6:U16,U18:U28,U30:U40,U42:U52,U54:U64) -> 0 | AL6: POŘADÍ DRUŽSTEV | BA6: HOSTIVAŘ I.
B7: =IF(F7="","",N7) ->  | K7: =SUM(F7:J7) -> 0 | L7: 0 | M7: =SUM(K7*1000)+L7+0.49 -> 0.49 | N7: =IF(F7="","",RANK(M7,M6:M65,0)) ->  | AG7: =SUM(AG6+1) -> 2 | AH7: =IF(AF6<2,"",VLOOKUP(2,B6:N65,4,FALSE)) ->  | AI7: =IF(AF6<2,"",VLOOKUP(2,B6:N65,10,FALSE)) ->  | AL7: 1 | AM7: =IF(AK6<1,"",VLOOKUP(1,U6:W64,2,FALSE)) ->  | AN7: =IF(AK6<1,"",VLOOKUP(1,U6:W64,3,FALSE)) ->  | BA7: VRŠOVICE I.
B8: =IF(F8="","",N8) ->  | K8: =SUM(F8:J8) -> 0 | L8: 0 | M8: =SUM(K8*1000)+L8+0.48 -> 0.48 | N8: =IF(F8="","",RANK(M8,M6:M65,0)) ->  | AG8: =SUM(AG7+1) -> 3 | AH8: =IF(AF6<3,"",VLOOKUP(3,B6:N65,4,FALSE)) ->  | AI8: =IF(AF6<3,"",VLOOKUP(3,B6:N65,10,FALSE)) ->  | AL8: 2 | AM8: =IF(AK6<2,"",VLOOKUP(2,U6:W64,2,FALSE)) ->  | AN8: =IF(AK6<2,"",VLOOKUP(2,U6:W64,3,FALSE)) ->  | BA8: KLÍČOV I.
B9: =IF(F9="","",N9) ->  | K9: =SUM(F9:J9) -> 0 | L9: 0 | M9: =SUM(K9*1000)+L9+0.47 -> 0.47 | N9: =IF(F9="","",RANK(M9,M6:M65,0)) ->  | AG9: 4 | AH9: =IF(AF6<4,"",VLOOKUP(4,B6:N65,4,FALSE)) ->  | AI9: =IF(AF6<4,"",VLOOKUP(4,B6:N65,10,FALSE)) ->  | AL9: 3 | AM9: =IF(AK6<3,"",VLOOKUP(3,U6:W64,2,FALSE)) ->  | AN9: =IF(AK6<3,"",VLOOKUP(3,U6:W64,3,FALSE)) ->  | BA9: ŘEPY I.
B10: =IF(F10="","",N10) ->  | K10: =SUM(F10:J10) -> 0 | L10: 0 | M10: =SUM(K10*1000)+L10+0.46 -> 0.46 | N10: =IF(F10="","",RANK(M10,M6:M65,0)) ->  | AG10: 5 | AH10: =IF(AF6<5,"",VLOOKUP(5,B6:N65,4,FALSE)) ->  | AI10: =IF(AF6<5,"",VLOOKUP(5,B6:N65,10,FALSE)) ->  | AL10: 4 | AM10: =IF(AK6<4,"",VLOOKUP(4,U6:W64,2,FALSE)) ->  | AN10: =IF(AK6<4,"",VLOOKUP(4,U6:W64,3,FALSE)) ->  | BA10: KAČEROV I.
F11: =SUM(F6:F10) -> 0 | G11: =SUM(G6:G10) -> 0 | H11: =SUM(H6:H10) -> 0 | I11: =SUM(I6:I10) -> 0 | J11: =SUM(J6:J10) -> 0 | L11: =MAX(F11:J11) -> 0 | O11: =SUM(F11:J11) -> 0 | P11: =MAX(F11:J11)+0.01 -> 0.01 | Q11: =IF(F6="","",SUM(O11*1000)+P11) ->  | AG11: 6 | AH11: =IF(AF6<6,"",VLOOKUP(6,B6:N65,4,FALSE)) ->  | AI11: =IF(AF6<6,"",VLOOKUP(6,B6:N65,10,FALSE)) ->  | AL11: 5 | AM11: =IF(AK6<5,"",VLOOKUP(5,U6:W64,2,FALSE)) ->  | AN11: =IF(AK6<5,"",VLOOKUP(5,U6:W64,3,FALSE)) -> 
B12: =IF(F12="","",N12) ->  | C12: 2 | D12: ŘEPY II. | K12: =SUM(F12:J12) -> 0 | L12: 0 | M12: =SUM(K12*1000)+L12+0.45 -> 0.45 | N12: =IF(F12="","",RANK(M12,M6:M65,0)) ->  | R12: =IF(F12="","",RANK(Q17,Q11:Q65,0)) ->  | U12: =IF(R12="","",R12) ->  | V12: =IF(D12="","",D12) -> ŘEPY II. | W12: =IF(O17="","",O17) -> 0 | AG12: 7 | AH12: =IF(AF6<7,"",VLOOKUP(7,B6:N65,4,FALSE)) ->  | AI12: =IF(AF6<7,"",VLOOKUP(7,B6:N65,10,FALSE)) ->  | AL12: 6 | AM12: =IF(AK6<6,"",VLOOKUP(6,U6:W64,2,FALSE)) ->  | AN12: =IF(AK6<6,"",VLOOKUP(6,U6:W64,3,FALSE)) -> 
B13: =IF(F13="","",N13) ->  | K13: =SUM(F13:J13) -> 0 | L13: 0 | M13: =SUM(K13*1000)+L13+0.44 -> 0.44 | N13: =IF(F13="","",RANK(M13,M6:M65,0)) ->  | AG13: 8 | AH13: =IF(AF6<8,"",VLOOKUP(8,B6:N65,4,FALSE)) ->  | AI13: =IF(AF6<8,"",VLOOKUP(8,B6:N65,10,FALSE)) ->  | AL13: 7 | AM13: =IF(AK6<7,"",VLOOKUP(7,U6:W64,2,FALSE)) ->  | AN13: =IF(AK6<7,"",VLOOKUP(7,U6:W64,3,FALSE)) -> 
B14: =IF(F14="","",N14) ->  | K14: =SUM(F14:J14) -> 0 | L14: 0 | M14: =SUM(K14*1000)+L14+0.43 -> 0.43 | N14: =IF(F14="","",RANK(M14,M6:M65,0)) ->  | AG14: 9 | AH14: =IF(AF6<9,"",VLOOKUP(9,B6:N65,4,FALSE)) ->  | AI14: =IF(AF6<9,"",VLOOKUP(9,B6:N65,10,FALSE)) ->  | AL14: 8 | AM14: =IF(AK6<8,"",VLOOKUP(8,U6:W64,2,FALSE)) ->  | AN14: =IF(AK6<8,"",VLOOKUP(8,U6:W64,3,FALSE)) -> 
B15: =IF(F15="","",N15) ->  | K15: =SUM(F15:J15) -> 0 | L15: 0 | M15: =SUM(K15*1000)+L15+0.42 -> 0.42 | N15: =IF(F15="","",RANK(M15,M6:M65,0)) ->  | AG15: 10 | AH15: =IF(AF6<10,"",VLOOKUP(10,B6:N65,4,FALSE)) ->  | AI15: =IF(AF6<10,"",VLOOKUP(10,B6:N65,10,FALSE)) ->  | AL15: 9 | AM15: =IF(AK6<9,"",VLOOKUP(9,U6:W64,2,FALSE)) ->  | AN15: =IF(AK6<9,"",VLOOKUP(9,U6:W64,3,FALSE)) -> 
B16: =IF(F16="","",N16) ->  | K16: =SUM(F16:J16) -> 0 | L16: 0 | M16: =SUM(K16*1000)+L16+0.41 -> 0.41 | N16: =IF(F16="","",RANK(M16,M6:M65,0)) ->  | AG16: 11 | AH16: =IF(AF6<11,"",VLOOKUP(11,B6:N65,4,FALSE)) ->  | AI16: =IF(AF6<11,"",VLOOKUP(11,B6:N65,10,FALSE)) ->  | AL16: 10 | AM16: =IF(AK6<10,"",VLOOKUP(10,U6:W64,2,FALSE)) ->  | AN16: =IF(AK6<10,"",VLOOKUP(10,U6:W64,3,FALSE)) -> 
F17: =SUM(F12:F16) -> 0 | G17: =SUM(G12:G16) -> 0 | H17: =SUM(H12:H16) -> 0 | I17: =SUM(I12:I16) -> 0 | J17: =SUM(J12:J16) -> 0 | O17: =SUM(F17:J17) -> 0 | P17: =MAX(F17:J17)+0.009 -> 0.009 | Q17: =IF(F12="","",SUM(O17*1000)+P17) ->  | AC17: =SUM(O11,O17) -> 0 | AG17: 12 | AH17: =IF(AF6<12,"",VLOOKUP(12,B6:N65,4,FALSE)) ->  | AI17: =IF(AF6<12,"",VLOOKUP(12,B6:N65,10,FALSE)) -> 
B18: =IF(F18="","",N18) ->  | C18: 3 | D18: KAČEROV I. | K18: =SUM(F18:J18) -> 0 | L18: =MAX(F18:J18) -> 0 | M18: =SUM(K18*1000)+L18+0.4 -> 0.4 | N18: =IF(F18="","",RANK(M18,M6:M65,0)) ->  | R18: =IF(F18="","",RANK(Q23,Q11:Q65,0)) ->  | T18: =IF(F18="","",RANK(AA18,AA6:AA64,0)) ->  | U18: =IF(R18="","",R18) ->  | V18: =IF(D18="","",D18) -> KAČEROV I. | W18: =IF(O23="","",O23) -> 0 | X18: =IF(V18="HOSTIVAŘ I.","GARÁŽ HOSTIVAŘ",IF(V18="VRŠOVICE I.","GARÁŽ VRŠOVICE",IF(V18="KLÍČOV I.","GARÁŽ KLÍČOV",IF(V18="ŘEPY I.","GARÁŽ ŘEPY",IF(V18="KAČEROV I.","GARÁŽ KAČEROV",""))))) -> GARÁŽ KAČEROV | Y18: =MAX(F23:J23,F29:J29)+0.04 -> 0.04 | Z18: =SUM(O23,O29)*1000 -> 0 | AA18: =SUM(Y18:Z18) -> 0.04 | AB18: =IF(AC29="","",AC29) -> 0 | AD18: =IF(T18="","",T18) ->  | AG18: 13 | AH18: =IF(AF6<13,"",VLOOKUP(13,B6:N65,4,FALSE)) ->  | AI18: =IF(AF6<13,"",VLOOKUP(13,B6:N65,10,FALSE)) ->  | AK18: =COUNT(T6:T64) -> 0 | AL18: POŘEDÍ GARÁŽÍ
B19: =IF(F19="","",N19) ->  | K19: =SUM(F19:J19) -> 0 | L19: =MAX(F19:J19) -> 0 | M19: =SUM(K19*1000)+L19+0.39 -> 0.39 | N19: =IF(F19="","",RANK(M19,M6:M65,0)) ->  | AG19: 14 | AH19: =IF(AF6<14,"",VLOOKUP(14,B6:N65,4,FALSE)) ->  | AI19: =IF(AF6<14,"",VLOOKUP(14,B6:N65,10,FALSE)) ->  | AL19: 1 | AM19: =IF(AK18<1,"",VLOOKUP(1,T6:AB64,5,FALSE)) ->  | AN19: =IF(AK18<1,"",VLOOKUP(1,T6:AB64,9,FALSE)) -> 
B20: =IF(F20="","",N20) ->  | K20: =SUM(F20:J20) -> 0 | L20: =MAX(F20:J20) -> 0 | M20: =SUM(K20*1000)+L20+0.38 -> 0.38 | N20: =IF(F20="","",RANK(M20,M6:M65,0)) ->  | AG20: 15 | AH20: =IF(AF6<15,"",VLOOKUP(15,B6:N65,4,FALSE)) ->  | AI20: =IF(AF6<15,"",VLOOKUP(15,B6:N65,10,FALSE)) ->  | AL20: 2 | AM20: =IF(AK18<2,"",VLOOKUP(2,T6:AB64,5,FALSE)) ->  | AN20: =IF(AK18<2,"",VLOOKUP(2,T6:AB64,9,FALSE)) -> 
B21: =IF(F21="","",N21) ->  | K21: =SUM(F21:J21) -> 0 | L21: =MAX(F21:J21) -> 0 | M21: =SUM(K21*1000)+L21+0.37 -> 0.37 | N21: =IF(F21="","",RANK(M21,M6:M65,0)) ->  | AG21: 16 | AH21: =IF(AF6<16,"",VLOOKUP(16,B6:N65,4,FALSE)) ->  | AI21: =IF(AF6<16,"",VLOOKUP(16,B6:N65,10,FALSE)) ->  | AL21: 3 | AM21: =IF(AK18<3,"",VLOOKUP(3,T6:AB64,5,FALSE)) ->  | AN21: =IF(AK18<3,"",VLOOKUP(3,T6:AB64,9,FALSE)) -> 
B22: =IF(F22="","",N22) ->  | K22: =SUM(F22:J22) -> 0 | L22: =MAX(F22:J22) -> 0 | M22: =SUM(K22*1000)+L22+0.36 -> 0.36 | N22: =IF(F22="","",RANK(M22,M6:M65,0)) ->  | AG22: 17 | AH22: =IF(AF6<17,"",VLOOKUP(17,B6:N65,4,FALSE)) ->  | AI22: =IF(AF6<17,"",VLOOKUP(17,B6:N65,10,FALSE)) ->  | AL22: 4 | AM22: =IF(AK18<4,"",VLOOKUP(4,T6:AB64,5,FALSE)) ->  | AN22: =IF(AK18<4,"",VLOOKUP(4,T6:AB64,9,FALSE)) -> 
F23: =SUM(F18:F22) -> 0 | G23: =SUM(G18:G22) -> 0 | H23: =SUM(H18:H22) -> 0 | I23: =SUM(I18:I22) -> 0 | J23: =SUM(J18:J22) -> 0 | O23: =SUM(F23:J23) -> 0 | P23: =MAX(F23:J23)+0.008 -> 0.008 | Q23: =IF(F18="","",SUM(O23*1000)+P23) ->  | AG23: 18 | AH23: =IF(AF6<18,"",VLOOKUP(18,B6:N65,4,FALSE)) ->  | AI23: =IF(AF6<18,"",VLOOKUP(18,B6:N65,10,FALSE)) ->  | AL23: 5 | AM23: =IF(AK18<5,"",VLOOKUP(5,T6:AB64,5,FALSE)) ->  | AN23: =IF(AK18<5,"",VLOOKUP(5,T6:AB64,9,FALSE)) -> 
B24: =IF(F24="","",N24) ->  | C24: 4 | D24: KAČEROV II. | K24: =SUM(F24:J24) -> 0 | L24: =MAX(F24:J24) -> 0 | M24: =SUM(K24*1000)+L24+0.35 -> 0.35 | N24: =IF(F24="","",RANK(M24,M6:M65,0)) ->  | R24: =IF(F24="","",RANK(Q29,Q11:Q65,0)) ->  | U24: =IF(R24="","",R24) ->  | V24: =IF(D24="","",D24) -> KAČEROV II. | W24: =IF(O29="","",O29) -> 0 | AG24: 19 | AH24: =IF(AF6<19,"",VLOOKUP(19,B6:N65,4,FALSE)) ->  | AI24: =IF(AF6<19,"",VLOOKUP(19,B6:N65,10,FALSE)) -> 
B25: =IF(F25="","",N25) ->  | K25: =SUM(F25:J25) -> 0 | L25: =MAX(F25:J25) -> 0 | M25: =SUM(K25*1000)+L25+0.34 -> 0.34 | N25: =IF(F25="","",RANK(M25,M6:M65,0)) ->  | AG25: 20 | AH25: =IF(AF6<20,"",VLOOKUP(20,B6:N65,4,FALSE)) ->  | AI25: =IF(AF6<20,"",VLOOKUP(20,B6:N65,10,FALSE)) -> 
B26: =IF(F26="","",N26) ->  | K26: =SUM(F26:J26) -> 0 | L26: =MAX(F26:J26) -> 0 | M26: =SUM(K26*1000)+L26+0.33 -> 0.33 | N26: =IF(F26="","",RANK(M26,M6:M65,0)) ->  | AG26: 21 | AH26: =IF(AF6<21,"",VLOOKUP(21,B6:N65,4,FALSE)) ->  | AI26: =IF(AF6<21,"",VLOOKUP(21,B6:N65,10,FALSE)) -> 
B27: =IF(F27="","",N27) ->  | K27: =SUM(F27:J27) -> 0 | L27: =MAX(F27:J27) -> 0 | M27: =SUM(K27*1000)+L27+0.32 -> 0.32 | N27: =IF(F27="","",RANK(M27,M6:M65,0)) ->  | AG27: 22 | AH27: =IF(AF6<22,"",VLOOKUP(22,B6:N65,4,FALSE)) ->  | AI27: =IF(AF6<22,"",VLOOKUP(22,B6:N65,10,FALSE)) -> 
B28: =IF(F28="","",N28) ->  | K28: =SUM(F28:J28) -> 0 | L28: =MAX(F28:J28) -> 0 | M28: =SUM(K28*1000)+L28+0.31 -> 0.31 | N28: =IF(F28="","",RANK(M28,M6:M65,0)) ->  | AG28: 23 | AH28: =IF(AF6<23,"",VLOOKUP(23,B6:N65,4,FALSE)) ->  | AI28: =IF(AF6<23,"",VLOOKUP(23,B6:N65,10,FALSE)) -> 
F29: =SUM(F24:F28) -> 0 | G29: =SUM(G24:G28) -> 0 | H29: =SUM(H24:H28) -> 0 | I29: =SUM(I24:I28) -> 0 | J29: =SUM(J24:J28) -> 0 | O29: =SUM(F29:J29) -> 0 | P29: =MAX(F29:J29)+0.007 -> 0.007 | Q29: =IF(F24="","",SUM(O29*1000)+P29) ->  | AC29: =SUM(O23,O29) -> 0 | AG29: 24 | AH29: =IF(AF6<24,"",VLOOKUP(24,B6:N65,4,FALSE)) ->  | AI29: =IF(AF6<24,"",VLOOKUP(24,B6:N65,10,FALSE)) -> 
B30: =IF(F30="","",N30) ->  | C30: 5 | D30: HOSTIVAŘ I. | K30: =SUM(F30:J30) -> 0 | L30: =MAX(F30:J30) -> 0 | M30: =SUM(K30*1000)+L30+0.3 -> 0.3 | N30: =IF(F30="","",RANK(M30,M6:M65,0)) ->  | R30: =IF(F30="","",RANK(Q35,Q11:Q65,0)) ->  | T30: =IF(F30="","",RANK(AA30,AA6:AA64,0)) ->  | U30: =IF(R30="","",R30) ->  | V30: =IF(D30="","",D30) -> HOSTIVAŘ I. | W30: =IF(O35="","",O35) -> 0 | X30: =IF(V30="HOSTIVAŘ I.","GARÁŽ HOSTIVAŘ",IF(V30="VRŠOVICE I.","GARÁŽ VRŠOVICE",IF(V30="KLÍČOV I.","GARÁŽ KLÍČOV",IF(V30="ŘEPY I.","GARÁŽ ŘEPY",IF(V30="KAČEROV I.","GARÁŽ KAČEROV",""))))) -> GARÁŽ HOSTIVAŘ | Y30: =MAX(F35:J35,F41:J41)+0.03 -> 0.03 | Z30: =SUM(O35,O41)*1000 -> 0 | AA30: =SUM(Y30:Z30) -> 0.03 | AB30: =IF(AC41="","",AC41) -> 0 | AD30: =IF(T30="","",T30) ->  | AG30: 25 | AH30: =IF(AF6<25,"",VLOOKUP(25,B6:N65,4,FALSE)) ->  | AI30: =IF(AF6<25,"",VLOOKUP(25,B6:N65,10,FALSE)) -> 
B31: =IF(F31="","",N31) ->  | K31: =SUM(F31:J31) -> 0 | L31: =MAX(F31:J31) -> 0 | M31: =SUM(K31*1000)+L31+0.29 -> 0.29 | N31: =IF(F31="","",RANK(M31,M6:M65,0)) ->  | AG31: 26 | AH31: =IF(AF6<26,"",VLOOKUP(26,B6:N65,4,FALSE)) ->  | AI31: =IF(AF6<26,"",VLOOKUP(26,B6:N65,10,FALSE)) -> 
B32: =IF(F32="","",N32) ->  | K32: =SUM(F32:J32) -> 0 | L32: =MAX(F32:J32) -> 0 | M32: =SUM(K32*1000)+L32+0.28 -> 0.28 | N32: =IF(F32="","",RANK(M32,M6:M65,0)) ->  | AG32: 27 | AH32: =IF(AF6<27,"",VLOOKUP(27,B6:N65,4,FALSE)) ->  | AI32: =IF(AF6<27,"",VLOOKUP(27,B6:N65,10,FALSE)) -> 
B33: =IF(F33="","",N33) ->  | K33: =SUM(F33:J33) -> 0 | L33: =MAX(F33:J33) -> 0 | M33: =SUM(K33*1000)+L33+0.27 -> 0.27 | N33: =IF(F33="","",RANK(M33,M6:M65,0)) ->  | AG33: 28 | AH33: =IF(AF6<28,"",VLOOKUP(28,B6:N65,4,FALSE)) ->  | AI33: =IF(AF6<28,"",VLOOKUP(28,B6:N65,10,FALSE)) -> 
B34: =IF(F34="","",N34) ->  | K34: =SUM(F34:J34) -> 0 | L34: =MAX(F34:J34) -> 0 | M34: =SUM(K34*1000)+L34+0.26 -> 0.26 | N34: =IF(F34="","",RANK(M34,M6:M65,0)) ->  | AG34: 29 | AH34: =IF(AF6<29,"",VLOOKUP(29,B6:N65,4,FALSE)) ->  | AI34: =IF(AF6<29,"",VLOOKUP(29,B6:N65,10,FALSE)) -> 
F35: =SUM(F30:F34) -> 0 | G35: =SUM(G30:G34) -> 0 | H35: =SUM(H30:H34) -> 0 | I35: =SUM(I30:I34) -> 0 | J35: =SUM(J30:J34) -> 0 | O35: =SUM(F35:J35) -> 0 | P35: =MAX(F35:J35)+0.006 -> 0.006 | Q35: =IF(F30="","",SUM(O35*1000)+P35) ->  | AG35: 30 | AH35: =IF(AF6<30,"",VLOOKUP(30,B6:N65,4,FALSE)) ->  | AI35: =IF(AF6<30,"",VLOOKUP(30,B6:N65,10,FALSE)) -> 
B36: =IF(F36="","",N36) ->  | C36: 6 | D36: HOSTIVAŘ II. | K36: =SUM(F36:J36) -> 0 | L36: =MAX(F36:J36) -> 0 | M36: =SUM(K36*1000)+L36+0.25 -> 0.25 | N36: =IF(F36="","",RANK(M36,M6:M65,0)) ->  | R36: =IF(F36="","",RANK(Q41,Q11:Q65,0)) ->  | U36: =IF(R36="","",R36) ->  | V36: =IF(D36="","",D36) -> HOSTIVAŘ II. | W36: =IF(O41="","",O41) -> 0 | AG36: 31 | AH36: =IF(AF6<31,"",VLOOKUP(31,B6:N65,4,FALSE)) ->  | AI36: =IF(AF6<31,"",VLOOKUP(31,B6:N65,10,FALSE)) -> 
B37: =IF(F37="","",N37) ->  | K37: =SUM(F37:J37) -> 0 | L37: =MAX(F37:J37) -> 0 | M37: =SUM(K37*1000)+L37+0.24 -> 0.24 | N37: =IF(F37="","",RANK(M37,M6:M65,0)) ->  | AG37: 32 | AH37: =IF(AF6<32,"",VLOOKUP(32,B6:N65,4,FALSE)) ->  | AI37: =IF(AF6<32,"",VLOOKUP(32,B6:N65,10,FALSE)) -> 
B38: =IF(F38="","",N38) ->  | K38: =SUM(F38:J38) -> 0 | L38: =MAX(F38:J38) -> 0 | M38: =SUM(K38*1000)+L38+0.23 -> 0.23 | N38: =IF(F38="","",RANK(M38,M6:M65,0)) ->  | AG38: 33 | AH38: =IF(AF6<33,"",VLOOKUP(33,B6:N65,4,FALSE)) ->  | AI38: =IF(AF6<33,"",VLOOKUP(33,B6:N65,10,FALSE)) -> 
B39: =IF(F39="","",N39) ->  | K39: =SUM(F39:J39) -> 0 | L39: =MAX(F39:J39) -> 0 | M39: =SUM(K39*1000)+L39+0.21 -> 0.21 | N39: =IF(F39="","",RANK(M39,M6:M65,0)) ->  | AG39: 34 | AH39: =IF(AF6<34,"",VLOOKUP(34,B6:N65,4,FALSE)) ->  | AI39: =IF(AF6<34,"",VLOOKUP(34,B6:N65,10,FALSE)) -> 
B40: =IF(F40="","",N40) ->  | K40: =SUM(F40:J40) -> 0 | L40: =MAX(F40:J40) -> 0 | M40: =SUM(K40*1000)+L40+0.2 -> 0.2 | N40: =IF(F40="","",RANK(M40,M6:M65,0)) ->  | AG40: 35 | AH40: =IF(AF6<35,"",VLOOKUP(35,B6:N65,4,FALSE)) ->  | AI40: =IF(AF6<35,"",VLOOKUP(35,B6:N65,10,FALSE)) -> 
F41: =SUM(F36:F40) -> 0 | G41: =SUM(G36:G40) -> 0 | H41: =SUM(H36:H40) -> 0 | I41: =SUM(I36:I40) -> 0 | J41: =SUM(J36:J40) -> 0 | O41: =SUM(F41:J41) -> 0 | P41: =MAX(F41:J41)+0.005 -> 0.005 | Q41: =IF(F36="","",SUM(O41*1000)+P41) ->  | AC41: =SUM(O35,O41) -> 0 | AG41: 36 | AH41: =IF(AF6<36,"",VLOOKUP(36,B6:N65,4,FALSE)) ->  | AI41: =IF(AF6<36,"",VLOOKUP(36,B6:N65,10,FALSE)) -> 
B42: =IF(F42="","",N42) ->  | C42: 7 | D42: VRŠOVICE I. | K42: =SUM(F42:J42) -> 0 | L42: =MAX(F42:J42) -> 0 | M42: =SUM(K42*1000)+L42+0.19 -> 0.19 | N42: =IF(F42="","",RANK(M42,M6:M65,0)) ->  | R42: =IF(F42="","",RANK(Q47,Q11:Q65,0)) ->  | T42: =IF(F42="","",RANK(AA42,AA6:AA64,0)) ->  | U42: =IF(R42="","",R42) ->  | V42: =IF(D42="","",D42) -> VRŠOVICE I. | W42: =IF(O47="","",O47) -> 0 | X42: =IF(V42="HOSTIVAŘ I.","GARÁŽ HOSTIVAŘ",IF(V42="VRŠOVICE I.","GARÁŽ VRŠOVICE",IF(V42="KLÍČOV I.","GARÁŽ KLÍČOV",IF(V42="ŘEPY I.","GARÁŽ ŘEPY",IF(V42="KAČEROV I.","GARÁŽ KAČEROV",""))))) -> GARÁŽ VRŠOVICE | Y42: =MAX(F47:J47,F53:J53)+0.02 -> 0.02 | Z42: =SUM(O47,O53)*1000 -> 0 | AA42: =SUM(Y42:Z42) -> 0.02 | AB42: =IF(AC53="","",AC53) -> 0 | AD42: =IF(T42="","",T42) ->  | AG42: 37 | AH42: =IF(AF6<37,"",VLOOKUP(37,B6:N65,4,FALSE)) ->  | AI42: =IF(AF6<37,"",VLOOKUP(37,B6:N65,10,FALSE)) ->  | BA42: HOSTIVAŘ I.
B43: =IF(F43="","",N43) ->  | K43: =SUM(F43:J43) -> 0 | L43: =MAX(F43:J43) -> 0 | M43: =SUM(K43*1000)+L43+0.18 -> 0.18 | N43: =IF(F43="","",RANK(M43,M6:M65,0)) ->  | AG43: 38 | AH43: =IF(AF6<38,"",VLOOKUP(38,B6:N65,4,FALSE)) ->  | AI43: =IF(AF6<38,"",VLOOKUP(38,B6:N65,10,FALSE)) ->  | BA43: VRŠOVICE I.
B44: =IF(F44="","",N44) ->  | K44: =SUM(F44:J44) -> 0 | L44: =MAX(F44:J44) -> 0 | M44: =SUM(K44*1000)+L44+0.17 -> 0.17 | N44: =IF(F44="","",RANK(M44,M6:M65,0)) ->  | AG44: 39 | AH44: =IF(AF6<39,"",VLOOKUP(39,B6:N65,4,FALSE)) ->  | AI44: =IF(AF6<39,"",VLOOKUP(39,B6:N65,10,FALSE)) ->  | BA44: KLÍČOV I.
B45: =IF(F45="","",N45) ->  | K45: =SUM(F45:J45) -> 0 | L45: =MAX(F45:J45) -> 0 | M45: =SUM(K45*1000)+L45+0.16 -> 0.16 | N45: =IF(F45="","",RANK(M45,M6:M65,0)) ->  | AG45: 40 | AH45: =IF(AF6<40,"",VLOOKUP(40,B6:N65,4,FALSE)) ->  | AI45: =IF(AF6<40,"",VLOOKUP(40,B6:N65,10,FALSE)) ->  | BA45: ŘEPY I.
B46: =IF(F46="","",N46) ->  | K46: =SUM(F46:J46) -> 0 | L46: =MAX(F46:J46) -> 0 | M46: =SUM(K46*1000)+L46+0.15 -> 0.15 | N46: =IF(F46="","",RANK(M46,M6:M65,0)) ->  | AG46: 41 | AH46: =IF(AF6<41,"",VLOOKUP(41,B6:N65,4,FALSE)) ->  | AI46: =IF(AF6<41,"",VLOOKUP(41,B6:N65,10,FALSE)) ->  | BA46: KAČEROV I.
F47: =SUM(F42:F46) -> 0 | G47: =SUM(G42:G46) -> 0 | H47: =SUM(H42:H46) -> 0 | I47: =SUM(I42:I46) -> 0 | J47: =SUM(J42:J46) -> 0 | O47: =SUM(F47:J47) -> 0 | P47: =MAX(F47:J47)+0.004 -> 0.004 | Q47: =IF(F42="","",SUM(O47*1000)+P47) ->  | AG47: 42 | AH47: =IF(AF6<42,"",VLOOKUP(42,B6:N65,4,FALSE)) ->  | AI47: =IF(AF6<42,"",VLOOKUP(42,B6:N65,10,FALSE)) -> 
B48: =IF(F48="","",N48) ->  | C48: 8 | D48: VRŠOVICE II. | K48: =SUM(F48:J48) -> 0 | L48: =MAX(F48:J48) -> 0 | M48: =SUM(K48*1000)+L48+0.14 -> 0.14 | N48: =IF(F48="","",RANK(M48,M6:M65,0)) ->  | R48: =IF(F48="","",RANK(Q53,Q11:Q65,0)) ->  | U48: =IF(R48="","",R48) ->  | V48: =IF(D48="","",D48) -> VRŠOVICE II. | W48: =IF(O53="","",O53) -> 0 | AG48: 43 | AH48: =IF(AF6<43,"",VLOOKUP(43,B6:N65,4,FALSE)) ->  | AI48: =IF(AF6<43,"",VLOOKUP(43,B6:N65,10,FALSE)) -> 
B49: =IF(F49="","",N49) ->  | K49: =SUM(F49:J49) -> 0 | L49: =MAX(F49:J49) -> 0 | M49: =SUM(K49*1000)+L49+0.13 -> 0.13 | N49: =IF(F49="","",RANK(M49,M6:M65,0)) ->  | AG49: 44 | AH49: =IF(AF6<44,"",VLOOKUP(44,B6:N65,4,FALSE)) ->  | AI49: =IF(AF6<44,"",VLOOKUP(44,B6:N65,10,FALSE)) -> 
B50: =IF(F50="","",N50) ->  | K50: =SUM(F50:J50) -> 0 | L50: =MAX(F50:J50) -> 0 | M50: =SUM(K50*1000)+L50+0.12 -> 0.12 | N50: =IF(F50="","",RANK(M50,M6:M65,0)) ->  | AG50: 45 | AH50: =IF(AF6<45,"",VLOOKUP(45,B6:N65,4,FALSE)) ->  | AI50: =IF(AF6<45,"",VLOOKUP(45,B6:N65,10,FALSE)) -> 
B51: =IF(F51="","",N51) ->  | K51: =SUM(F51:J51) -> 0 | L51: =MAX(F51:J51) -> 0 | M51: =SUM(K51*1000)+L51+0.11 -> 0.11 | N51: =IF(F51="","",RANK(M51,M6:M65,0)) ->  | AG51: 46 | AH51: =IF(AF6<46,"",VLOOKUP(46,B6:N65,4,FALSE)) ->  | AI51: =IF(AF6<46,"",VLOOKUP(46,B6:N65,10,FALSE)) -> 
B52: =IF(F52="","",N52) ->  | K52: =SUM(F52:J52) -> 0 | L52: =MAX(F52:J52) -> 0 | M52: =SUM(K52*1000)+L52+0.1 -> 0.1 | N52: =IF(F52="","",RANK(M52,M6:M65,0)) ->  | AG52: 47 | AH52: =IF(AF6<47,"",VLOOKUP(47,B6:N65,4,FALSE)) ->  | AI52: =IF(AF6<47,"",VLOOKUP(47,B6:N65,10,FALSE)) -> 
F53: =SUM(F48:F52) -> 0 | G53: =SUM(G48:G52) -> 0 | H53: =SUM(H48:H52) -> 0 | I53: =SUM(I48:I52) -> 0 | J53: =SUM(J48:J52) -> 0 | O53: =SUM(F53:J53) -> 0 | P53: =MAX(F53:J53)+0.003 -> 0.003 | Q53: =IF(F48="","",SUM(O53*1000)+P53) ->  | AC53: =SUM(O47,O53) -> 0 | AG53: 48 | AH53: =IF(AF6<48,"",VLOOKUP(48,B6:N65,4,FALSE)) ->  | AI53: =IF(AF6<48,"",VLOOKUP(48,B6:N65,10,FALSE)) -> 
B54: =IF(F54="","",N54) ->  | C54: 9 | D54: KLÍČOV I. | K54: =SUM(F54:J54) -> 0 | L54: =MAX(F54:J54) -> 0 | M54: =SUM(K54*1000)+L54+0.09 -> 0.09 | N54: =IF(F54="","",RANK(M54,M6:M65,0)) ->  | R54: =IF(F54="","",RANK(Q59,Q11:Q65,0)) ->  | T54: =IF(F54="","",RANK(AA54,AA6:AA64,0)) ->  | U54: =IF(R54="","",R54) ->  | V54: =IF(D54="","",D54) -> KLÍČOV I. | W54: =IF(O59="","",O59) -> 0 | X54: =IF(V54="HOSTIVAŘ I.","GARÁŽ HOSTIVAŘ",IF(V54="VRŠOVICE I.","GARÁŽ VRŠOVICE",IF(V54="KLÍČOV I.","GARÁŽ KLÍČOV",IF(V54="ŘEPY I.","GARÁŽ ŘEPY",IF(V54="KAČEROV I.","GARÁŽ KAČEROV",""))))) -> GARÁŽ KLÍČOV | Y54: =MAX(F59:J59,F65:J65)+0.01 -> 0.01 | Z54: =SUM(O59,O65)*1000 -> 0 | AA54: =SUM(Y54:Z54) -> 0.01 | AB54: =IF(AC65="","",AC65) -> 0 | AD54: =IF(T54="","",T54) ->  | AG54: 49 | AH54: =IF(AF6<49,"",VLOOKUP(49,B6:N65,4,FALSE)) ->  | AI54: =IF(AF6<49,"",VLOOKUP(49,B6:N65,10,FALSE)) -> 
B55: =IF(F55="","",N55) ->  | K55: =SUM(F55:J55) -> 0 | L55: =MAX(F55:J55) -> 0 | M55: =SUM(K55*1000)+L55+0.08 -> 0.08 | N55: =IF(F55="","",RANK(M55,M6:M65,0)) ->  | AG55: 50 | AH55: =IF(AF6<50,"",VLOOKUP(50,B6:N65,4,FALSE)) ->  | AI55: =IF(AF6<50,"",VLOOKUP(50,B6:N65,10,FALSE)) -> 
B56: =IF(F56="","",N56) ->  | K56: =SUM(F56:J56) -> 0 | L56: =MAX(F56:J56) -> 0 | M56: =SUM(K56*1000)+L56+0.07 -> 0.07 | N56: =IF(F56="","",RANK(M56,M6:M65,0)) -> 
B57: =IF(F57="","",N57) ->  | K57: =SUM(F57:J57) -> 0 | L57: =MAX(F57:J57) -> 0 | M57: =SUM(K57*1000)+L57+0.06 -> 0.06 | N57: =IF(F57="","",RANK(M57,M6:M65,0)) -> 
B58: =IF(F58="","",N58) ->  | K58: =SUM(F58:J58) -> 0 | L58: =MAX(F58:J58) -> 0 | M58: =SUM(K58*1000)+L58+0.05 -> 0.05 | N58: =IF(F58="","",RANK(M58,M6:M65,0)) -> 
F59: =SUM(F54:F58) -> 0 | G59: =SUM(G54:G58) -> 0 | H59: =SUM(H54:H58) -> 0 | I59: =SUM(I54:I58) -> 0 | J59: =SUM(J54:J58) -> 0 | O59: =SUM(F59:J59) -> 0 | P59: =MAX(F59:J59)+0.002 -> 0.002 | Q59: =IF(F54="","",SUM(O59*1000)+P59) -> 
B60: =IF(F60="","",N60) ->  | C60: 10 | D60: KLÍČOV II. | K60: =SUM(F60:J60) -> 0 | L60: =MAX(F60:J60) -> 0 | M60: =SUM(K60*1000)+L60+0.04 -> 0.04 | N60: =IF(F60="","",RANK(M60,M6:M65,0)) ->  | R60: =IF(F60="","",RANK(Q65,Q11:Q65,0)) ->  | U60: =IF(R60="","",R60) ->  | V60: =IF(D60="","",D60) -> KLÍČOV II. | W60: =IF(O65="","",O65) -> 0
B61: =IF(F61="","",N61) ->  | K61: =SUM(F61:J61) -> 0 | L61: =MAX(F61:J61) -> 0 | M61: =SUM(K61*1000)+L61+0.03 -> 0.03 | N61: =IF(F61="","",RANK(M61,M6:M65,0)) -> 
B62: =IF(F62="","",N62) ->  | K62: =SUM(F62:J62) -> 0 | L62: =MAX(F62:J62) -> 0 | M62: =SUM(K62*1000)+L62+0.02 -> 0.02 | N62: =IF(F62="","",RANK(M62,M6:M65,0)) -> 
B63: =IF(F63="","",N63) ->  | K63: =SUM(F63:J63) -> 0 | L63: =MAX(F63:J63) -> 0 | M63: =SUM(K63*1000)+L63+0.01 -> 0.01 | N63: =IF(F63="","",RANK(M63,M6:M65,0)) -> 
B64: =IF(F64="","",N64) ->  | K64: =SUM(F64:J64) -> 0 | L64: =MAX(F64:J64) -> 0 | M64: =SUM(K64*1000)+L64 -> 0 | N64: =IF(F64="","",RANK(M64,M6:M65,0)) -> 
F65: =SUM(F60:F64) -> 0 | G65: =SUM(G60:G64) -> 0 | H65: =SUM(H60:H64) -> 0 | I65: =SUM(I60:I64) -> 0 | J65: =SUM(J60:J64) -> 0 | L65: =MAX(L12:L64,L6:L10) -> 0 | O65: =SUM(F65:J65) -> 0 | P65: =MAX(F65:J65)+0.001 -> 0.001 | Q65: =IF(F60="","",SUM(O65*1000)+P65) ->  | AC65: =SUM(O59,O65) -> 0

Sheet 11 DRUŽSTEV
A1: ZPĚT
D3: Sportovní turnaj v Bowlingu o pohár ZV-OS ___ dne _. _. 2014
C5: Garáž | E5: Jméno | F5: I. | G5: II. | H5: III. | I5: IV. | J5: V. | K5: Body | N5: Jednotlivci. | R5: Družstva. | AG5: pořadí jednotlivců
B6: =IF(F6="","",N6) ->  | C6: 1 | D6: KLÍČOV I. | K6: =SUM(F6:J6) -> 0 | L6: =MAX(F6:J6) -> 0 | M6: =SUM(K6*1000)+L6+0.055 -> 0.055 | N6: =IF(F6="","",RANK(M6,M6:M70,0)) ->  | R6: =IF(F6="","",RANK(Q11,Q11:Q71,0)) ->  | T6: =IF(F6="","",RANK(AA6,AA6:AA64,0)) ->  | U6: =IF(R6="","",R6) ->  | V6: =IF(D6="","",D6) -> KLÍČOV I. | W6: =IF(O11="","",O11) -> 0 | X6: =IF(V6="HOSTIVAŘ I.","GARÁŽ HOSTIVAŘ",IF(V6="VRŠOVICE I.","GARÁŽ VRŠOVICE",IF(V6="KLÍČOV I.","GARÁŽ KLÍČOV",IF(V6="ŘEPY I.","GARÁŽ ŘEPY",IF(V6="KAČEROV I.","GARÁŽ KAČEROV",""))))) -> GARÁŽ KLÍČOV | Y6: =MAX(F11:J11,F17:J17)+0.05 -> 0.05 | Z6: =SUM(O11,O17)*1000 -> 0 | AA6: =SUM(Y6:Z6) -> 0.05 | AB6: =IF(AC17="","",AC17) -> 0 | AD6: =IF(T6="","",T6) ->  | AF6: =COUNT(F6:F10,F12:F16,F18:F22,F24:F28,F30:F34,F36:F40,F42:F46,F48:F52,F54:F58,F60:F64,F66:F70) -> 0 | AG6: 1 | AH6: =IF(AF6<1,"",VLOOKUP(1,B6:N70,4,FALSE)) ->  | AI6: =IF(AF6<1,"",VLOOKUP(1,B6:N70,10,FALSE)) ->  | AK6: =COUNT(U6:U16,U18:U28,U30:U40,U42:U52,U54:U64,U66) -> 0 | AL6: POŘADÍ DRUŽSTEV | BA6: HOSTIVAŘ I.
B7: =IF(F7="","",N7) ->  | K7: =SUM(F7:J7) -> 0 | L7: 0 | M7: =SUM(K7*1000)+L7+0.054 -> 0.054 | N7: =IF(F7="","",RANK(M7,M6:M70,0)) ->  | AG7: =SUM(AG6+1) -> 2 | AH7: =IF(AF6<2,"",VLOOKUP(2,B6:N70,4,FALSE)) ->  | AI7: =IF(AF6<2,"",VLOOKUP(2,B6:N70,10,FALSE)) ->  | AL7: 1 | AM7: =IF(AK6<1,"",VLOOKUP(1,U6:W70,2,FALSE)) ->  | AN7: =IF(AK6<1,"",VLOOKUP(1,U6:W70,3,FALSE)) ->  | BA7: VRŠOVICE I.
B8: =IF(F8="","",N8) ->  | K8: =SUM(F8:J8) -> 0 | L8: 0 | M8: =SUM(K8*1000)+L8+0.053 -> 0.053 | N8: =IF(F8="","",RANK(M8,M6:M71,0)) ->  | AG8: =SUM(AG7+1) -> 3 | AH8: =IF(AF6<3,"",VLOOKUP(3,B6:N70,4,FALSE)) ->  | AI8: =IF(AF6<3,"",VLOOKUP(3,B6:N70,10,FALSE)) ->  | AL8: 2 | AM8: =IF(AK6<2,"",VLOOKUP(2,U6:W70,2,FALSE)) ->  | AN8: =IF(AK6<2,"",VLOOKUP(2,U6:W70,3,FALSE)) ->  | BA8: KLÍČOV I.
B9: =IF(F9="","",N9) ->  | K9: =SUM(F9:J9) -> 0 | L9: 0 | M9: =SUM(K9*1000)+L9+0.052 -> 0.052 | N9: =IF(F9="","",RANK(M9,M6:M70,0)) ->  | AG9: 4 | AH9: =IF(AF6<4,"",VLOOKUP(4,B6:N70,4,FALSE)) ->  | AI9: =IF(AF6<4,"",VLOOKUP(4,B6:N70,10,FALSE)) ->  | AL9: 3 | AM9: =IF(AK6<3,"",VLOOKUP(3,U6:W70,2,FALSE)) ->  | AN9: =IF(AK6<3,"",VLOOKUP(3,U6:W70,3,FALSE)) ->  | BA9: ŘEPY I.
B10: =IF(F10="","",N10) ->  | K10: =SUM(F10:J10) -> 0 | L10: 0 | M10: =SUM(K10*1000)+L10+0.051 -> 0.051 | N10: =IF(F10="","",RANK(M10,M6:M70,0)) ->  | AG10: 5 | AH10: =IF(AF6<5,"",VLOOKUP(5,B6:N70,4,FALSE)) ->  | AI10: =IF(AF6<5,"",VLOOKUP(5,B6:N70,10,FALSE)) ->  | AL10: 4 | AM10: =IF(AK6<4,"",VLOOKUP(4,U6:W70,2,FALSE)) ->  | AN10: =IF(AK6<4,"",VLOOKUP(4,U6:W70,3,FALSE)) ->  | BA10: KAČEROV I.
F11: =SUM(F6:F10) -> 0 | G11: =SUM(G6:G10) -> 0 | H11: =SUM(H6:H10) -> 0 | I11: =SUM(I6:I10) -> 0 | J11: =SUM(J6:J10) -> 0 | L11: 0 | O11: =SUM(F11:J11) -> 0 | P11: =MAX(F11:J11)+0.01 -> 0.01 | Q11: =IF(F6="","",SUM(O11*1000)+P11) ->  | AG11: 6 | AH11: =IF(AF6<6,"",VLOOKUP(6,B6:N70,4,FALSE)) ->  | AI11: =IF(AF6<6,"",VLOOKUP(6,B6:N70,10,FALSE)) ->  | AL11: 5 | AM11: =IF(AK6<5,"",VLOOKUP(5,U6:W70,2,FALSE)) ->  | AN11: =IF(AK6<5,"",VLOOKUP(5,U6:W70,3,FALSE)) -> 
B12: =IF(F12="","",N12) ->  | C12: 2 | D12: KLÍČOV II. | K12: =SUM(F12:J12) -> 0 | L12: 0 | M12: =SUM(K12*1000)+L12+0.05 -> 0.05 | N12: =IF(F12="","",RANK(M12,M6:M70,0)) ->  | R12: =IF(F12="","",RANK(Q17,Q11:Q71,0)) ->  | U12: =IF(R12="","",R12) ->  | V12: =IF(D12="","",D12) -> KLÍČOV II. | W12: =IF(O17="","",O17) -> 0 | AG12: 7 | AH12: =IF(AF6<7,"",VLOOKUP(7,B6:N70,4,FALSE)) ->  | AI12: =IF(AF6<7,"",VLOOKUP(7,B6:N70,10,FALSE)) ->  | AL12: 6 | AM12: =IF(AK6<6,"",VLOOKUP(6,U6:W70,2,FALSE)) ->  | AN12: =IF(AK6<6,"",VLOOKUP(6,U6:W70,3,FALSE)) -> 
B13: =IF(F13="","",N13) ->  | K13: =SUM(F13:J13) -> 0 | L13: 0 | M13: =SUM(K13*1000)+L13+0.049 -> 0.049 | N13: =IF(F13="","",RANK(M13,M6:M70,0)) ->  | AG13: 8 | AH13: =IF(AF6<8,"",VLOOKUP(8,B6:N70,4,FALSE)) ->  | AI13: =IF(AF6<8,"",VLOOKUP(8,B6:N70,10,FALSE)) ->  | AL13: 7 | AM13: =IF(AK6<7,"",VLOOKUP(7,U6:W70,2,FALSE)) ->  | AN13: =IF(AK6<7,"",VLOOKUP(7,U6:W70,3,FALSE)) -> 
B14: =IF(F14="","",N14) ->  | K14: =SUM(F14:J14) -> 0 | L14: 0 | M14: =SUM(K14*1000)+L14+0.048 -> 0.048 | N14: =IF(F14="","",RANK(M14,M6:M70,0)) ->  | AG14: 9 | AH14: =IF(AF6<9,"",VLOOKUP(9,B6:N70,4,FALSE)) ->  | AI14: =IF(AF6<9,"",VLOOKUP(9,B6:N70,10,FALSE)) ->  | AL14: 8 | AM14: =IF(AK6<8,"",VLOOKUP(8,U6:W70,2,FALSE)) ->  | AN14: =IF(AK6<8,"",VLOOKUP(8,U6:W70,3,FALSE)) -> 
B15: =IF(F15="","",N15) ->  | K15: =SUM(F15:J15) -> 0 | L15: 0 | M15: =SUM(K15*1000)+L15+0.047 -> 0.047 | N15: =IF(F15="","",RANK(M15,M6:M700,0)) ->  | AG15: 10 | AH15: =IF(AF6<10,"",VLOOKUP(10,B6:N70,4,FALSE)) ->  | AI15: =IF(AF6<10,"",VLOOKUP(10,B6:N70,10,FALSE)) ->  | AL15: 9 | AM15: =IF(AK6<9,"",VLOOKUP(9,U6:W70,2,FALSE)) ->  | AN15: =IF(AK6<9,"",VLOOKUP(9,U6:W70,3,FALSE)) -> 
B16: =IF(F16="","",N16) ->  | K16: =SUM(F16:J16) -> 0 | L16: 0 | M16: =SUM(K16*1000)+L16+0.046 -> 0.046 | N16: =IF(F16="","",RANK(M16,M6:M70,0)) ->  | AG16: 11 | AH16: =IF(AF6<11,"",VLOOKUP(11,B6:N70,4,FALSE)) ->  | AI16: =IF(AF6<11,"",VLOOKUP(11,B6:N70,10,FALSE)) ->  | AL16: 10 | AM16: =IF(AK6<10,"",VLOOKUP(10,U6:W70,2,FALSE)) ->  | AN16: =IF(AK6<10,"",VLOOKUP(10,U6:W70,3,FALSE)) -> 
F17: =SUM(F12:F16) -> 0 | G17: =SUM(G12:G16) -> 0 | H17: =SUM(H12:H16) -> 0 | I17: =SUM(I12:I16) -> 0 | J17: =SUM(J12:J16) -> 0 | O17: =SUM(F17:J17) -> 0 | P17: =MAX(F17:J17)+0.009 -> 0.009 | Q17: =IF(F12="","",SUM(O17*1000)+P17) ->  | AC17: =SUM(O11,O17) -> 0 | AG17: 12 | AH17: =IF(AF6<12,"",VLOOKUP(12,B6:N70,4,FALSE)) ->  | AI17: =IF(AF6<12,"",VLOOKUP(12,B6:N70,10,FALSE)) ->  | AL17: 11 | AM17: =IF(AK6<11,"",VLOOKUP(11,U6:W70,2,FALSE)) ->  | AN17: =IF(AK6<11,"",VLOOKUP(11,U6:W70,3,FALSE)) -> 
B18: =IF(F18="","",N18) ->  | C18: 3 | D18: ŘEPY I. | K18: =SUM(F18:J18) -> 0 | L18: =MAX(F18:J18) -> 0 | M18: =SUM(K18*1000)+L18+0.045 -> 0.045 | N18: =IF(F18="","",RANK(M18,M6:M70,0)) ->  | R18: =IF(F18="","",RANK(Q23,Q11:Q71,0)) ->  | T18: =IF(F18="","",RANK(AA18,AA6:AA64,0)) ->  | U18: =IF(R18="","",R18) ->  | V18: =IF(D18="","",D18) -> ŘEPY I. | W18: =IF(O23="","",O23) -> 0 | X18: =IF(V18="HOSTIVAŘ I.","GARÁŽ HOSTIVAŘ",IF(V18="VRŠOVICE I.","GARÁŽ VRŠOVICE",IF(V18="KLÍČOV I.","GARÁŽ KLÍČOV",IF(V18="ŘEPY I.","GARÁŽ ŘEPY",IF(V18="KAČEROV I.","GARÁŽ KAČEROV",""))))) -> GARÁŽ ŘEPY | Y18: =MAX(F23:J23,F29:J29)+0.04 -> 0.04 | Z18: =SUM(O23,O29)*1000 -> 0 | AA18: =SUM(Y18:Z18) -> 0.04 | AB18: =IF(AC29="","",AC29) -> 0 | AD18: =IF(T18="","",T18) ->  | AG18: 13 | AH18: =IF(AF6<13,"",VLOOKUP(13,B6:N70,4,FALSE)) ->  | AI18: =IF(AF6<13,"",VLOOKUP(13,B6:N70,10,FALSE)) -> 
B19: =IF(F19="","",N19) ->  | K19: =SUM(F19:J19) -> 0 | L19: =MAX(F19:J19) -> 0 | M19: =SUM(K19*1000)+L19+0.044 -> 0.044 | N19: =IF(F19="","",RANK(M19,M6:M70,0)) ->  | AG19: 14 | AH19: =IF(AF6<14,"",VLOOKUP(14,B6:N70,4,FALSE)) ->  | AI19: =IF(AF6<14,"",VLOOKUP(14,B6:N70,10,FALSE)) ->  | AK19: =COUNT(T6:T64) -> 0 | AL19: POŘEDÍ GARÁŽÍ
B20: =IF(F20="","",N20) ->  | K20: =SUM(F20:J20) -> 0 | L20: =MAX(F20:J20) -> 0 | M20: =SUM(K20*1000)+L20+0.043 -> 0.043 | N20: =IF(F20="","",RANK(M20,M6:M70,0)) ->  | AG20: 15 | AH20: =IF(AF6<15,"",VLOOKUP(15,B6:N70,4,FALSE)) ->  | AI20: =IF(AF6<15,"",VLOOKUP(15,B6:N70,10,FALSE)) ->  | AL20: 1 | AM20: =IF(AK19<1,"",VLOOKUP(1,T6:AB64,5,FALSE)) ->  | AN20: =IF(AK19<1,"",VLOOKUP(1,T6:AB64,9,FALSE)) -> 
B21: =IF(F21="","",N21) ->  | K21: =SUM(F21:J21) -> 0 | L21: =MAX(F21:J21) -> 0 | M21: =SUM(K21*1000)+L21+0.042 -> 0.042 | N21: =IF(F21="","",RANK(M21,M6:M70,0)) ->  | AG21: 16 | AH21: =IF(AF6<16,"",VLOOKUP(16,B6:N70,4,FALSE)) ->  | AI21: =IF(AF6<16,"",VLOOKUP(16,B6:N70,10,FALSE)) ->  | AL21: 2 | AM21: =IF(AK19<2,"",VLOOKUP(2,T6:AB64,5,FALSE)) ->  | AN21: =IF(AK19<2,"",VLOOKUP(2,T6:AB64,9,FALSE)) -> 
B22: =IF(F22="","",N22) ->  | K22: =SUM(F22:J22) -> 0 | L22: =MAX(F22:J22) -> 0 | M22: =SUM(K22*1000)+L22+0.041 -> 0.041 | N22: =IF(F22="","",RANK(M22,M6:M70,0)) ->  | AG22: 17 | AH22: =IF(AF6<17,"",VLOOKUP(17,B6:N70,4,FALSE)) ->  | AI22: =IF(AF6<17,"",VLOOKUP(17,B6:N70,10,FALSE)) ->  | AL22: 3 | AM22: =IF(AK19<3,"",VLOOKUP(3,T6:AB64,5,FALSE)) ->  | AN22: =IF(AK19<3,"",VLOOKUP(3,T6:AB64,9,FALSE)) -> 
F23: =SUM(F18:F22) -> 0 | G23: =SUM(G18:G22) -> 0 | H23: =SUM(H18:H22) -> 0 | I23: =SUM(I18:I22) -> 0 | J23: =SUM(J18:J22) -> 0 | O23: =SUM(F23:J23) -> 0 | P23: =MAX(F23:J23)+0.008 -> 0.008 | Q23: =IF(F18="","",SUM(O23*1000)+P23) ->  | AG23: 18 | AH23: =IF(AF6<18,"",VLOOKUP(18,B6:N70,4,FALSE)) ->  | AI23: =IF(AF6<18,"",VLOOKUP(18,B6:N70,10,FALSE)) ->  | AL23: 4 | AM23: =IF(AK19<4,"",VLOOKUP(4,T6:AB64,5,FALSE)) ->  | AN23: =IF(AK19<4,"",VLOOKUP(4,T6:AB64,9,FALSE)) -> 
B24: =IF(F24="","",N24) ->  | C24: 4 | D24: ŘEPY II. | K24: =SUM(F24:J24) -> 0 | L24: =MAX(F24:J24) -> 0 | M24: =SUM(K24*1000)+L24+0.04 -> 0.04 | N24: =IF(F24="","",RANK(M24,M6:M70,0)) ->  | R24: =IF(F24="","",RANK(Q29,Q11:Q71,0)) ->  | U24: =IF(R24="","",R24) ->  | V24: =IF(D24="","",D24) -> ŘEPY II. | W24: =IF(O29="","",O29) -> 0 | AG24: 19 | AH24: =IF(AF6<19,"",VLOOKUP(19,B6:N70,4,FALSE)) ->  | AI24: =IF(AF6<19,"",VLOOKUP(19,B6:N70,10,FALSE)) ->  | AL24: 5 | AM24: =IF(AK19<5,"",VLOOKUP(5,T6:AB64,5,FALSE)) ->  | AN24: =IF(AK19<5,"",VLOOKUP(5,T6:AB64,9,FALSE)) -> 
B25: =IF(F25="","",N25) ->  | K25: =SUM(F25:J25) -> 0 | L25: =MAX(F25:J25) -> 0 | M25: =SUM(K25*1000)+L25+0.039 -> 0.039 | N25: =IF(F25="","",RANK(M25,M6:M70,0)) ->  | AG25: 20 | AH25: =IF(AF6<20,"",VLOOKUP(20,B6:N70,4,FALSE)) ->  | AI25: =IF(AF6<20,"",VLOOKUP(20,B6:N70,10,FALSE)) -> 
B26: =IF(F26="","",N26) ->  | K26: =SUM(F26:J26) -> 0 | L26: =MAX(F26:J26) -> 0 | M26: =SUM(K26*1000)+L26+0.038 -> 0.038 | N26: =IF(F26="","",RANK(M26,M6:M70,0)) ->  | AG26: 21 | AH26: =IF(AF6<21,"",VLOOKUP(21,B6:N70,4,FALSE)) ->  | AI26: =IF(AF6<21,"",VLOOKUP(21,B6:N70,10,FALSE)) -> 
B27: =IF(F27="","",N27) ->  | K27: =SUM(F27:J27) -> 0 | L27: =MAX(F27:J27) -> 0 | M27: =SUM(K27*1000)+L27+0.037 -> 0.037 | N27: =IF(F27="","",RANK(M27,M6:M70,0)) ->  | AG27: 22 | AH27: =IF(AF6<22,"",VLOOKUP(22,B6:N70,4,FALSE)) ->  | AI27: =IF(AF6<22,"",VLOOKUP(22,B6:N70,10,FALSE)) -> 
B28: =IF(F28="","",N28) ->  | K28: =SUM(F28:J28) -> 0 | L28: =MAX(F28:J28) -> 0 | M28: =SUM(K28*1000)+L28+0.036 -> 0.036 | N28: =IF(F28="","",RANK(M28,M6:M70,0)) ->  | AG28: 23 | AH28: =IF(AF6<23,"",VLOOKUP(23,B6:N70,4,FALSE)) ->  | AI28: =IF(AF6<23,"",VLOOKUP(23,B6:N70,10,FALSE)) -> 
F29: =SUM(F24:F28) -> 0 | G29: =SUM(G24:G28) -> 0 | H29: =SUM(H24:H28) -> 0 | I29: =SUM(I24:I28) -> 0 | J29: =SUM(J24:J28) -> 0 | O29: =SUM(F29:J29) -> 0 | P29: =MAX(F29:J29)+0.007 -> 0.007 | Q29: =IF(F24="","",SUM(O29*1000)+P29) ->  | AC29: =SUM(O23,O29) -> 0 | AG29: 24 | AH29: =IF(AF6<24,"",VLOOKUP(24,B6:N70,4,FALSE)) ->  | AI29: =IF(AF6<24,"",VLOOKUP(24,B6:N70,10,FALSE)) -> 
B30: =IF(F30="","",N30) ->  | C30: 5 | D30: KAČEROV I. | K30: =SUM(F30:J30) -> 0 | L30: =MAX(F30:J30) -> 0 | M30: =SUM(K30*1000)+L30+0.035 -> 0.035 | N30: =IF(F30="","",RANK(M30,M6:M70,0)) ->  | R30: =IF(F30="","",RANK(Q35,Q11:Q71,0)) ->  | T30: =IF(F30="","",RANK(AA30,AA6:AA64,0)) ->  | U30: =IF(R30="","",R30) ->  | V30: =IF(D30="","",D30) -> KAČEROV I. | W30: =IF(O35="","",O35) -> 0 | X30: =IF(V30="HOSTIVAŘ I.","GARÁŽ HOSTIVAŘ",IF(V30="VRŠOVICE I.","GARÁŽ VRŠOVICE",IF(V30="KLÍČOV I.","GARÁŽ KLÍČOV",IF(V30="ŘEPY I.","GARÁŽ ŘEPY",IF(V30="KAČEROV I.","GARÁŽ KAČEROV",""))))) -> GARÁŽ KAČEROV | Y30: =MAX(F35:J35,F41:J41)+0.03 -> 0.03 | Z30: =SUM(O35,O41)*1000 -> 0 | AA30: =SUM(Y30:Z30) -> 0.03 | AB30: =IF(AC41="","",AC41) -> 0 | AD30: =IF(T30="","",T30) ->  | AG30: 25 | AH30: =IF(AF6<25,"",VLOOKUP(25,B6:N70,4,FALSE)) ->  | AI30: =IF(AF6<25,"",VLOOKUP(25,B6:N70,10,FALSE)) -> 
B31: =IF(F31="","",N31) ->  | K31: =SUM(F31:J31) -> 0 | L31: =MAX(F31:J31) -> 0 | M31: =SUM(K31*1000)+L31+0.034 -> 0.034 | N31: =IF(F31="","",RANK(M31,M6:M70,0)) ->  | AG31: 26 | AH31: =IF(AF6<26,"",VLOOKUP(26,B6:N70,4,FALSE)) ->  | AI31: =IF(AF6<26,"",VLOOKUP(26,B6:N70,10,FALSE)) -> 
B32: =IF(F32="","",N32) ->  | K32: =SUM(F32:J32) -> 0 | L32: =MAX(F32:J32) -> 0 | M32: =SUM(K32*1000)+L32+0.033 -> 0.033 | N32: =IF(F32="","",RANK(M32,M6:M70,0)) ->  | AG32: 27 | AH32: =IF(AF6<27,"",VLOOKUP(27,B6:N70,4,FALSE)) ->  | AI32: =IF(AF6<27,"",VLOOKUP(27,B6:N70,10,FALSE)) -> 
B33: =IF(F33="","",N33) ->  | K33: =SUM(F33:J33) -> 0 | L33: =MAX(F33:J33) -> 0 | M33: =SUM(K33*1000)+L33+0.032 -> 0.032 | N33: =IF(F33="","",RANK(M33,M6:M70,0)) ->  | AG33: 28 | AH33: =IF(AF6<28,"",VLOOKUP(28,B6:N70,4,FALSE)) ->  | AI33: =IF(AF6<28,"",VLOOKUP(28,B6:N70,10,FALSE)) -> 
B34: =IF(F34="","",N34) ->  | K34: =SUM(F34:J34) -> 0 | L34: =MAX(F34:J34) -> 0 | M34: =SUM(K34*1000)+L34+0.031 -> 0.031 | N34: =IF(F34="","",RANK(M34,M6:M70,0)) ->  | AG34: 29 | AH34: =IF(AF6<29,"",VLOOKUP(29,B6:N70,4,FALSE)) ->  | AI34: =IF(AF6<29,"",VLOOKUP(29,B6:N70,10,FALSE)) -> 
F35: =SUM(F30:F34) -> 0 | G35: =SUM(G30:G34) -> 0 | H35: =SUM(H30:H34) -> 0 | I35: =SUM(I30:I34) -> 0 | J35: =SUM(J30:J34) -> 0 | O35: =SUM(F35:J35) -> 0 | P35: =MAX(F35:J35)+0.006 -> 0.006 | Q35: =IF(F30="","",SUM(O35*1000)+P35) ->  | AG35: 30 | AH35: =IF(AF6<30,"",VLOOKUP(30,B6:N70,4,FALSE)) ->  | AI35: =IF(AF6<30,"",VLOOKUP(30,B6:N70,10,FALSE)) -> 
B36: =IF(F36="","",N36) ->  | C36: 6 | D36: KAČEROV II. | K36: =SUM(F36:J36) -> 0 | L36: =MAX(F36:J36) -> 0 | M36: =SUM(K36*1000)+L36+0.03 -> 0.03 | N36: =IF(F36="","",RANK(M36,M6:M70,0)) ->  | R36: =IF(F36="","",RANK(Q41,Q11:Q71,0)) ->  | U36: =IF(R36="","",R36) ->  | V36: =IF(D36="","",D36) -> KAČEROV II. | W36: =IF(O41="","",O41) -> 0 | AG36: 31 | AH36: =IF(AF6<31,"",VLOOKUP(31,B6:N70,4,FALSE)) ->  | AI36: =IF(AF6<31,"",VLOOKUP(31,B6:N70,10,FALSE)) -> 
B37: =IF(F37="","",N37) ->  | K37: =SUM(F37:J37) -> 0 | L37: =MAX(F37:J37) -> 0 | M37: =SUM(K37*1000)+L37+0.029 -> 0.029 | N37: =IF(F37="","",RANK(M37,M6:M70,0)) ->  | AG37: 32 | AH37: =IF(AF6<32,"",VLOOKUP(32,B6:N70,4,FALSE)) ->  | AI37: =IF(AF6<32,"",VLOOKUP(32,B6:N70,10,FALSE)) -> 
B38: =IF(F38="","",N38) ->  | K38: =SUM(F38:J38) -> 0 | L38: =MAX(F38:J38) -> 0 | M38: =SUM(K38*1000)+L38+0.028 -> 0.028 | N38: =IF(F38="","",RANK(M38,M6:M70,0)) ->  | AG38: 33 | AH38: =IF(AF6<33,"",VLOOKUP(33,B6:N70,4,FALSE)) ->  | AI38: =IF(AF6<33,"",VLOOKUP(33,B6:N70,10,FALSE)) -> 
B39: =IF(F39="","",N39) ->  | K39: =SUM(F39:J39) -> 0 | L39: =MAX(F39:J39) -> 0 | M39: =SUM(K39*1000)+L39+0.027 -> 0.027 | N39: =IF(F39="","",RANK(M39,M6:M70,0)) ->  | AG39: 34 | AH39: =IF(AF6<34,"",VLOOKUP(34,B6:N70,4,FALSE)) ->  | AI39: =IF(AF6<34,"",VLOOKUP(34,B6:N70,10,FALSE)) -> 
B40: =IF(F40="","",N40) ->  | K40: =SUM(F40:J40) -> 0 | L40: =MAX(F40:J40) -> 0 | M40: =SUM(K40*1000)+L40+0.026 -> 0.026 | N40: =IF(F40="","",RANK(M40,M6:M70,0)) ->  | AG40: 35 | AH40: =IF(AF6<35,"",VLOOKUP(35,B6:N70,4,FALSE)) ->  | AI40: =IF(AF6<35,"",VLOOKUP(35,B6:N70,10,FALSE)) -> 
F41: =SUM(F36:F40) -> 0 | G41: =SUM(G36:G40) -> 0 | H41: =SUM(H36:H40) -> 0 | I41: =SUM(I36:I40) -> 0 | J41: =SUM(J36:J40) -> 0 | O41: =SUM(F41:J41) -> 0 | P41: =MAX(F41:J41)+0.005 -> 0.005 | Q41: =IF(F36="","",SUM(O41*1000)+P41) ->  | AC41: =SUM(O35,O41) -> 0 | AG41: 36 | AH41: =IF(AF6<36,"",VLOOKUP(36,B6:N70,4,FALSE)) ->  | AI41: =IF(AF6<36,"",VLOOKUP(36,B6:N70,10,FALSE)) -> 
B42: =IF(F42="","",N42) ->  | C42: 7 | D42: HOSTIVAŘ I. | K42: =SUM(F42:J42) -> 0 | L42: =MAX(F42:J42) -> 0 | M42: =SUM(K42*1000)+L42+0.025 -> 0.025 | N42: =IF(F42="","",RANK(M42,M6:M70,0)) ->  | R42: =IF(F42="","",RANK(Q47,Q11:Q71,0)) ->  | T42: =IF(F42="","",RANK(AA42,AA6:AA64,0)) ->  | U42: =IF(R42="","",R42) ->  | V42: =IF(D42="","",D42) -> HOSTIVAŘ I. | W42: =IF(O47="","",O47) -> 0 | X42: =IF(V42="HOSTIVAŘ I.","GARÁŽ HOSTIVAŘ",IF(V42="VRŠOVICE I.","GARÁŽ VRŠOVICE",IF(V42="KLÍČOV I.","GARÁŽ KLÍČOV",IF(V42="ŘEPY I.","GARÁŽ ŘEPY",IF(V42="KAČEROV I.","GARÁŽ KAČEROV",""))))) -> GARÁŽ HOSTIVAŘ | Y42: =MAX(F47:J47,F53:J53)+0.02 -> 0.02 | Z42: =SUM(O47,O53)*1000 -> 0 | AA42: =SUM(Y42:Z42) -> 0.02 | AB42: =IF(AC53="","",AC53) -> 0 | AD42: =IF(T42="","",T42) ->  | AG42: 37 | AH42: =IF(AF6<37,"",VLOOKUP(37,B6:N70,4,FALSE)) ->  | AI42: =IF(AF6<37,"",VLOOKUP(37,B6:N70,10,FALSE)) -> 
B43: =IF(F43="","",N43) ->  | K43: =SUM(F43:J43) -> 0 | L43: =MAX(F43:J43) -> 0 | M43: =SUM(K43*1000)+L43+0.024 -> 0.024 | N43: =IF(F43="","",RANK(M43,M6:M70,0)) ->  | AG43: 38 | AH43: =IF(AF6<38,"",VLOOKUP(38,B6:N70,4,FALSE)) ->  | AI43: =IF(AF6<38,"",VLOOKUP(38,B6:N70,10,FALSE)) -> 
B44: =IF(F44="","",N44) ->  | K44: =SUM(F44:J44) -> 0 | L44: =MAX(F44:J44) -> 0 | M44: =SUM(K44*1000)+L44+0.023 -> 0.023 | N44: =IF(F44="","",RANK(M44,M6:M70,0)) ->  | AG44: 39 | AH44: =IF(AF6<39,"",VLOOKUP(39,B6:N70,4,FALSE)) ->  | AI44: =IF(AF6<39,"",VLOOKUP(39,B6:N70,10,FALSE)) -> 
B45: =IF(F45="","",N45) ->  | K45: =SUM(F45:J45) -> 0 | L45: =MAX(F45:J45) -> 0 | M45: =SUM(K45*1000)+L45+0.022 -> 0.022 | N45: =IF(F45="","",RANK(M45,M6:M70,0)) ->  | AG45: 40 | AH45: =IF(AF6<40,"",VLOOKUP(40,B6:N70,4,FALSE)) ->  | AI45: =IF(AF6<40,"",VLOOKUP(40,B6:N70,10,FALSE)) -> 
B46: =IF(F46="","",N46) ->  | K46: =SUM(F46:J46) -> 0 | L46: =MAX(F46:J46) -> 0 | M46: =SUM(K46*1000)+L46+0.021 -> 0.021 | N46: =IF(F46="","",RANK(M46,M6:M70,0)) ->  | AG46: 41 | AH46: =IF(AF6<41,"",VLOOKUP(41,B6:N70,4,FALSE)) ->  | AI46: =IF(AF6<41,"",VLOOKUP(41,B6:N70,10,FALSE)) -> 
F47: =SUM(F42:F46) -> 0 | G47: =SUM(G42:G46) -> 0 | H47: =SUM(H42:H46) -> 0 | I47: =SUM(I42:I46) -> 0 | J47: =SUM(J42:J46) -> 0 | O47: =SUM(F47:J47) -> 0 | P47: =MAX(F47:J47)+0.004 -> 0.004 | Q47: =IF(F42="","",SUM(O47*1000)+P47) ->  | AG47: 42 | AH47: =IF(AF6<42,"",VLOOKUP(42,B6:N70,4,FALSE)) ->  | AI47: =IF(AF6<42,"",VLOOKUP(42,B6:N70,10,FALSE)) -> 
B48: =IF(F48="","",N48) ->  | C48: 8 | D48: HOSTIVAŘ II. | K48: =SUM(F48:J48) -> 0 | L48: =MAX(F48:J48) -> 0 | M48: =SUM(K48*1000)+L48+0.02 -> 0.02 | N48: =IF(F48="","",RANK(M48,M6:M70,0)) ->  | R48: =IF(F48="","",RANK(Q53,Q11:Q71,0)) ->  | U48: =IF(R48="","",R48) ->  | V48: =IF(D48="","",D48) -> HOSTIVAŘ II. | W48: =IF(O53="","",O53) -> 0 | AG48: 43 | AH48: =IF(AF6<43,"",VLOOKUP(43,B6:N70,4,FALSE)) ->  | AI48: =IF(AF6<43,"",VLOOKUP(43,B6:N70,10,FALSE)) -> 
B49: =IF(F49="","",N49) ->  | K49: =SUM(F49:J49) -> 0 | L49: =MAX(F49:J49) -> 0 | M49: =SUM(K49*1000)+L49+0.019 -> 0.019 | N49: =IF(F49="","",RANK(M49,M6:M70,0)) ->  | AG49: 44 | AH49: =IF(AF6<44,"",VLOOKUP(44,B6:N70,4,FALSE)) ->  | AI49: =IF(AF6<44,"",VLOOKUP(44,B6:N70,10,FALSE)) -> 
B50: =IF(F50="","",N50) ->  | K50: =SUM(F50:J50) -> 0 | L50: =MAX(F50:J50) -> 0 | M50: =SUM(K50*1000)+L50+0.018 -> 0.018 | N50: =IF(F50="","",RANK(M50,M6:M70,0)) ->  | AG50: 45 | AH50: =IF(AF6<45,"",VLOOKUP(45,B6:N70,4,FALSE)) ->  | AI50: =IF(AF6<45,"",VLOOKUP(45,B6:N70,10,FALSE)) -> 
B51: =IF(F51="","",N51) ->  | K51: =SUM(F51:J51) -> 0 | L51: =MAX(F51:J51) -> 0 | M51: =SUM(K51*1000)+L51+0.017 -> 0.017 | N51: =IF(F51="","",RANK(M51,M6:M70,0)) ->  | AG51: 46 | AH51: =IF(AF6<46,"",VLOOKUP(46,B6:N70,4,FALSE)) ->  | AI51: =IF(AF6<46,"",VLOOKUP(46,B6:N70,10,FALSE)) -> 
B52: =IF(F52="","",N52) ->  | K52: =SUM(F52:J52) -> 0 | L52: =MAX(F52:J52) -> 0 | M52: =SUM(K52*1000)+L52+0.016 -> 0.016 | N52: =IF(F52="","",RANK(M52,M6:M70,0)) ->  | AG52: 47 | AH52: =IF(AF6<47,"",VLOOKUP(47,B6:N70,4,FALSE)) ->  | AI52: =IF(AF6<47,"",VLOOKUP(47,B6:N70,10,FALSE)) -> 
F53: =SUM(F48:F52) -> 0 | G53: =SUM(G48:G52) -> 0 | H53: =SUM(H48:H52) -> 0 | I53: =SUM(I48:I52) -> 0 | J53: =SUM(J48:J52) -> 0 | O53: =SUM(F53:J53) -> 0 | P53: =MAX(F53:J53)+0.003 -> 0.003 | Q53: =IF(F48="","",SUM(O53*1000)+P53) ->  | AC53: =SUM(O47,O53) -> 0 | AG53: 48 | AH53: =IF(AF6<48,"",VLOOKUP(48,B6:N70,4,FALSE)) ->  | AI53: =IF(AF6<48,"",VLOOKUP(48,B6:N70,10,FALSE)) -> 
B54: =IF(F54="","",N54) ->  | C54: 9 | D54: VRŠOVICE I. | K54: =SUM(F54:J54) -> 0 | L54: =MAX(F54:J54) -> 0 | M54: =SUM(K54*1000)+L54+0.015 -> 0.015 | N54: =IF(F54="","",RANK(M54,M6:M70,0)) ->  | R54: =IF(F54="","",RANK(Q59,Q11:Q71,0)) ->  | T54: =IF(F54="","",RANK(AA54,AA6:AA64,0)) ->  | U54: =IF(R54="","",R54) ->  | V54: =IF(D54="","",D54) -> VRŠOVICE I. | W54: =IF(O59="","",O59) -> 0 | X54: =IF(V54="HOSTIVAŘ I.","GARÁŽ HOSTIVAŘ",IF(V54="VRŠOVICE I.","GARÁŽ VRŠOVICE",IF(V54="KLÍČOV I.","GARÁŽ KLÍČOV",IF(V54="ŘEPY I.","GARÁŽ ŘEPY",IF(V54="KAČEROV I.","GARÁŽ KAČEROV",""))))) -> GARÁŽ VRŠOVICE | Y54: =MAX(F59:J59,F65:J65)+0.01 -> 0.01 | Z54: =SUM(O59,O65)*1000 -> 0 | AA54: =SUM(Y54:Z54) -> 0.01 | AB54: =IF(AC65="","",AC65) -> 0 | AD54: =IF(T54="","",T54) ->  | AG54: 49 | AH54: =IF(AF6<49,"",VLOOKUP(49,B6:N70,4,FALSE)) ->  | AI54: =IF(AF6<49,"",VLOOKUP(49,B6:N70,10,FALSE)) -> 
B55: =IF(F55="","",N55) ->  | K55: =SUM(F55:J55) -> 0 | L55: =MAX(F55:J55) -> 0 | M55: =SUM(K55*1000)+L55+0.014 -> 0.014 | N55: =IF(F55="","",RANK(M55,M6:M70,0)) ->  | AG55: 50 | AH55: =IF(AF6<50,"",VLOOKUP(50,B6:N70,4,FALSE)) ->  | AI55: =IF(AF6<50,"",VLOOKUP(50,B6:N70,10,FALSE)) -> 
B56: =IF(F56="","",N56) ->  | K56: =SUM(F56:J56) -> 0 | L56: =MAX(F56:J56) -> 0 | M56: =SUM(K56*1000)+L56+0.013 -> 0.013 | N56: =IF(F56="","",RANK(M56,M6:M70,0)) ->  | AG56: 51 | AH56: =IF(AF6<51,"",VLOOKUP(51,B6:N70,4,FALSE)) ->  | AI56: =IF(AF6<51,"",VLOOKUP(51,B6:N70,10,FALSE)) -> 
B57: =IF(F57="","",N57) ->  | K57: =SUM(F57:J57) -> 0 | L57: =MAX(F57:J57) -> 0 | M57: =SUM(K57*1000)+L57+0.012 -> 0.012 | N57: =IF(F57="","",RANK(M57,M6:M70,0)) ->  | AG57: 52 | AH57: =IF(AF6<52,"",VLOOKUP(52,B6:N70,4,FALSE)) ->  | AI57: =IF(AF6<52,"",VLOOKUP(52,B6:N70,10,FALSE)) -> 
B58: =IF(F58="","",N58) ->  | K58: =SUM(F58:J58) -> 0 | L58: =MAX(F58:J58) -> 0 | M58: =SUM(K58*1000)+L58+0.011 -> 0.011 | N58: =IF(F58="","",RANK(M58,M6:M70,0)) ->  | AG58: 53 | AH58: =IF(AF6<53,"",VLOOKUP(53,B6:N70,4,FALSE)) ->  | AI58: =IF(AF6<53,"",VLOOKUP(53,B6:N70,10,FALSE)) -> 
F59: =SUM(F54:F58) -> 0 | G59: =SUM(G54:G58) -> 0 | H59: =SUM(H54:H58) -> 0 | I59: =SUM(I54:I58) -> 0 | J59: =SUM(J54:J58) -> 0 | O59: =SUM(F59:J59) -> 0 | P59: =MAX(F59:J59)+0.002 -> 0.002 | Q59: =IF(F54="","",SUM(O59*1000)+P59) ->  | AG59: 54 | AH59: =IF(AF6<54,"",VLOOKUP(54,B6:N70,4,FALSE)) ->  | AI59: =IF(AF6<54,"",VLOOKUP(54,B6:N70,10,FALSE)) -> 
B60: =IF(F60="","",N60) ->  | C60: 10 | D60: VRŠOVICE II. | K60: =SUM(F60:J60) -> 0 | L60: =MAX(F60:J60) -> 0 | M60: =SUM(K60*1000)+L60+0.01 -> 0.01 | N60: =IF(F60="","",RANK(M60,M6:M70,0)) ->  | R60: =IF(F60="","",RANK(Q65,Q11:Q71,0)) ->  | U60: =IF(R60="","",R60) ->  | V60: =IF(D60="","",D60) -> VRŠOVICE II. | W60: =IF(O65="","",O65) -> 0 | AG60: 55 | AH60: =IF(AF6<55,"",VLOOKUP(55,B6:N70,4,FALSE)) ->  | AI60: =IF(AF6<55,"",VLOOKUP(55,B6:N70,10,FALSE)) -> 
B61: =IF(F61="","",N61) ->  | K61: =SUM(F61:J61) -> 0 | L61: =MAX(F61:J61) -> 0 | M61: =SUM(K61*1000)+L61+0.009 -> 0.009 | N61: =IF(F61="","",RANK(M61,M6:M70,0)) -> 
B62: =IF(F62="","",N62) ->  | K62: =SUM(F62:J62) -> 0 | L62: =MAX(F62:J62) -> 0 | M62: =SUM(K62*1000)+L62+0.008 -> 0.008 | N62: =IF(F62="","",RANK(M62,M6:M70,0)) -> 
B63: =IF(F63="","",N63) ->  | K63: =SUM(F63:J63) -> 0 | L63: =MAX(F63:J63) -> 0 | M63: =SUM(K63*1000)+L63+0.007 -> 0.007 | N63: =IF(F63="","",RANK(M63,M6:M70,0)) -> 
B64: =IF(F64="","",N64) ->  | K64: =SUM(F64:J64) -> 0 | L64: =MAX(F64:J64) -> 0 | M64: =SUM(K64*1000)+L64+0.006 -> 0.006 | N64: =IF(F64="","",RANK(M64,M6:M70,0)) -> 
F65: =SUM(F60:F64) -> 0 | G65: =SUM(G60:G64) -> 0 | H65: =SUM(H60:H64) -> 0 | I65: =SUM(I60:I64) -> 0 | J65: =SUM(J60:J64) -> 0 | O65: =SUM(F65:J65) -> 0 | P65: =MAX(F65:J65)+0.001 -> 0.001 | Q65: =IF(F60="","",SUM(O65*1000)+P65) ->  | AC65: =SUM(O59,O65) -> 0
B66: =IF(F66="","",N66) ->  | C66: 11 | D66: VRŠOVICE III. | K66: =SUM(F66:J66) -> 0 | L66: =MAX(F66:J66) -> 0 | M66: =SUM(K66*1000)+L66-0.005 -> -0.005 | N66: =IF(F66="","",RANK(M66,M6:M70,0)) ->  | R66: =IF(F66="","",RANK(Q71,Q11:Q71,0)) ->  | U66: =IF(R66="","",R66) ->  | V66: =IF(D66="","",D66) -> VRŠOVICE III. | W66: =IF(O71="","",O71) -> 0 | AD66: =IF(E66="","","Mimo soutěž garáží") -> 
B67: =IF(F67="","",N67) ->  | K67: =SUM(F67:J67) -> 0 | L67: =MAX(F67:J67) -> 0 | M67: =SUM(K67*1000)+L67-0.004 -> -0.004 | N67: =IF(F67="","",RANK(M67,M6:M70,0)) -> 
B68: =IF(F68="","",N68) ->  | K68: =SUM(F68:J68) -> 0 | L68: =MAX(F68:J68) -> 0 | M68: =SUM(K68*1000)+L68-0.003 -> -0.003 | N68: =IF(F68="","",RANK(M68,M6:M70,0)) -> 
B69: =IF(F69="","",N69) ->  | K69: =SUM(F69:J69) -> 0 | L69: =MAX(F69:J69) -> 0 | M69: =SUM(K69*1000)+L69+0.002 -> 0.002 | N69: =IF(F69="","",RANK(M69,M6:M70,0)) -> 
B70: =IF(F70="","",N70) ->  | K70: =SUM(F70:J70) -> 0 | L70: =MAX(F70:J70) -> 0 | M70: =SUM(K70*1000)+L70+0.001 -> 0.001 | N70: =IF(F70="","",RANK(M70,M6:M70,0)) -> 
F71: =SUM(F66:F70) -> 0 | G71: =SUM(G66:G70) -> 0 | H71: =SUM(H66:H70) -> 0 | I71: =SUM(I66:I70) -> 0 | J71: =SUM(J66:J70) -> 0 | L71: =MAX(L12:L70,L6:L10) -> 0 | O71: =SUM(F71:J71) -> 0 | P71: =MAX(F71:J71) -> 0 | Q71: =IF(F66="","",SUM(O71*1000)+P71) -> 

Sheet zápis (hidden)
A1: garáž | B1: jméno | H1: 16.2. | N1: 14.3. | T1: 28.3. | Z1: 18.4. | AF1: 12.9. | AL1: 17.10. | AR1: 7.11. | AS1: kuželky | AU1: průměr | AV1: Zpět
A2: Dejvice | B2: Jošt Michal | H2: =SUM(C2+D2+E2+F2+G2) -> 0 | N2: =SUM(I2+J2+K2+L2+M2) -> 0 | T2: =SUM(O2+P2+Q2+R2+S2) -> 0 | Z2: =SUM(U2+V2+W2+X2+Y2) -> 0 | AF2: =SUM(AA2+AB2+AC2+AD2+AE2) -> 0 | AL2: =SUM(AG2+AH2+AI2+AJ2+AK2) -> 0 | AR2: =SUM(AM2+AN2+AO2+AP2+AQ2) -> 0 | AS2: =SUM(N2,H2,T2,Z2,AF2,AL2,AR2) -> 0 | AT2: =COUNT(C2:G2,I2:M2,O2:S2,U2:Y2,AA2:AE2,AG2:AK2,AM2:AQ2) -> 0 | AU2: =IF(AT2=0,"",AS2/AT2) -> 
A3: Dejvice | B3: Pěchočová Soňa | H3: =SUM(C3+D3+E3+F3+G3) -> 0 | N3: =SUM(I3:M3) -> 0 | T3: =SUM(O3:S3) -> 0 | Z3: =SUM(U3:Y3) -> 0 | AF3: =SUM(AA3:AE3) -> 0 | AL3: =SUM(AG3:AK3) -> 0 | AR3: =SUM(AM3:AQ3) -> 0 | AS3: =SUM(N3,H3,T3,Z3,AF3,AL3,AR3) -> 0 | AT3: =COUNT(C3:G3,I3:M3,O3:S3,U3:Y3,AA3:AE3,AG3:AK3,AM3:AQ3) -> 0 | AU3: =IF(AT3=0,"",AS3/AT3) -> 
A4: Dejvice | B4: Joštová Alena | H4: =SUM(C4+D4+E4+F4+G4) -> 0 | N4: =SUM(I4:M4) -> 0 | T4: =SUM(O4:S4) -> 0 | Z4: =SUM(U4:Y4) -> 0 | AF4: =SUM(AA4:AE4) -> 0 | AL4: =SUM(AG4:AK4) -> 0 | AR4: =SUM(AM4:AQ4) -> 0 | AS4: =SUM(N4,H4,T4,Z4,AF4,AL4,AR4) -> 0 | AT4: =COUNT(C4:G4,I4:M4,O4:S4,U4:Y4,AA4:AE4,AG4:AK4,AM4:AQ4) -> 0 | AU4: =IF(AT4=0,"",AS4/AT4) -> 
A5: Dejvice | B5: Štěrba Ladislav | H5: =SUM(C5+D5+E5+F5+G5) -> 0 | N5: =SUM(I5:M5) -> 0 | T5: =SUM(O5:S5) -> 0 | Z5: =SUM(U5:Y5) -> 0 | AF5: =SUM(AA5:AE5) -> 0 | AL5: =SUM(AG5:AK5) -> 0 | AR5: =SUM(AM5:AQ5) -> 0 | AS5: =SUM(N5,H5,T5,Z5,AF5,AL5,AR5) -> 0 | AT5: =COUNT(C5:G5,I5:M5,O5:S5,U5:Y5,AA5:AE5,AG5:AK5,AM5:AQ5) -> 0 | AU5: =IF(AT5=0,"",AS5/AT5) -> 
A6: Dejvice | B6: Novák Antonín | H6: =SUM(C6+D6+E6+F6+G6) -> 0 | N6: =SUM(I6:M6) -> 0 | T6: =SUM(O6:S6) -> 0 | Z6: =SUM(U6:Y6) -> 0 | AF6: =SUM(AA6:AE6) -> 0 | AL6: =SUM(AG6:AK6) -> 0 | AR6: =SUM(AM6:AQ6) -> 0 | AS6: =SUM(N6,H6,T6,Z6,AF6,AL6,AR6) -> 0 | AT6: =COUNT(C6:G6,I6:M6,O6:S6,U6:Y6,AA6:AE6,AG6:AK6,AM6:AQ6) -> 0 | AU6: =IF(AT6=0,"",AS6/AT6) -> 
AS8: =SUM(AS2:AS7) -> 0 | AT8: =SUM(AT2:AT7) -> 0 | AU8: =IF(AT8=0,"",AS8/AT8) -> 
A10: Hostivař | B10: Šafařík Luděk | C10: 160 | D10: 186 | E10: 178 | F10: 138 | G10: 150 | H10: =SUM(C10+D10+E10+F10+G10) -> 812 | N10: =SUM(I10+J10+K10+L10+M10) -> 0 | T10: =SUM(O10+P10+Q10+R10+S10) -> 0 | Z10: =SUM(U10+V10+W10+X10+Y10) -> 0 | AF10: =SUM(AA10+AB10+AC10+AD10+AE10) -> 0 | AL10: =SUM(AG10+AH10+AI10+AJ10+AK10) -> 0 | AR10: =SUM(AM10+AN10+AO10+AP10+AQ10) -> 0 | AS10: =SUM(N10,H10,T10,Z10,AF10,AL10,AR10) -> 812 | AT10: =COUNT(C10:G10,I10:M10,O10:S10,U10:Y10,AA10:AE10,AG10:AK10,AM10:AQ10) -> 5 | AU10: =IF(AT10=0,"",AS10/AT10) -> 162.4
A11: Hostivař | B11: Sláma Karel | H11: 0 | N11: 0 | T11: 0 | Z11: 0 | AF11: 0 | AL11: 0 | AR11: 0 | AS11: 0 | AT11: 0
A12: Hostivař | B12: Jelínek Jan | C12: 114 | D12: 111 | E12: 130 | F12: 138 | G12: 113 | H12: 606 | N12: 0 | T12: 0 | Z12: 0 | AF12: 0 | AL12: 0 | AR12: 0 | AS12: 606 | AT12: 5 | AU12: 121.2
A13: Hostivař | B13: Mysliveček Jaroslav | C13: 159 | D13: 113 | E13: 132 | F13: 147 | G13: 116 | H13: 667 | N13: 0 | T13: 0 | Z13: 0 | AF13: 0 | AL13: 0 | AR13: 0 | AS13: 667 | AT13: 5 | AU13: 133.4
A14: Hostivař | B14: Jirkovská Iveta | H14: 0 | N14: 0 | T14: 0 | Z14: 0 | AF14: 0 | AL14: 0 | AR14: 0 | AS14: 0 | AT14: 0
A15: Hostivař | B15: Křápek Roman | C15: 130 | D15: 132 | E15: 160 | F15: 128 | G15: 129 | H15: 679 | N15: 0 | T15: 0 | Z15: 0 | AF15: 0 | AL15: 0 | AR15: 0 | AS15: 679 | AT15: 5 | AU15: 135.8
A16: Hostivař | B16: Svítil Pavel | H16: 0 | N16: 0 | T16: 0 | Z16: 0 | AF16: 0 | AL16: 0 | AR16: 0 | AS16: 0 | AT16: 0
A17: Hostivař | B17: Čermák Tomáš | C17: 141 | D17: 110 | E17: 168 | F17: 132 | G17: 143 | H17: 694 | N17: 0 | T17: 0 | Z17: 0 | AF17: 0 | AL17: 0 | AR17: 0 | AS17: 694 | AT17: 5 | AU17: 138.8
A18: Hostivař | B18: Buzi Jiří | H18: 0 | N18: 0 | T18: 0 | Z18: 0 | AF18: 0 | AL18: 0 | AR18: 0 | AS18: 0 | AT18: 0
A19: Hostivař | B19: Lazur Ladislav | C19: 151 | D19: 159 | E19: 139 | F19: 157 | G19: 223 | H19: 829 | N19: 0 | T19: 0 | Z19: 0 | AF19: 0 | AL19: 0 | AR19: 0 | AS19: 829 | AT19: 5 | AU19: 165.8
A20: Hostivař | B20: Lazurová Jiřina | C20: 141 | D20: 135 | E20: 122 | F20: 103 | G20: 105 | H20: 606 | N20: 0 | T20: 0 | Z20: 0 | AF20: 0 | AL20: 0 | AR20: 0 | AS20: =SUM(N20,H20,T20,Z20,AF20,AL20,AR20) -> 606 | AT20: =COUNT(C20:G20,I20:M20,O20:S20,U20:Y20,AA20:AE20,AG20:AK20,AM20:AQ20) -> 5 | AU20: =IF(AT20=0,"",AS20/AT20) -> 121.2
A21: Hostivař | B21: Kačena Martin | H21: 0 | N21: 0 | T21: 0 | Z21: 0 | AF21: 0 | AL21: 0 | AR21: 0 | AS21: 0 | AT21: 0
A22: Hostivař | B22: Bulka Miroslav | H22: 0 | N22: 0 | T22: 0 | Z22: 0 | AF22: 0 | AL22: 0 | AR22: 0 | AS22: 0 | AT22: 0
A23: Hostivař | B23: Zelenková Jitka | H23: 0 | N23: 0 | T23: 0 | Z23: 0 | AF23: 0 | AL23: 0 | AR23: 0 | AS23: 0 | AT23: 0
A24: Hostivař | B24: Berger Michal | C24: 166 | D24: 185 | E24: 140 | F24: 145 | G24: 115 | H24: 751 | N24: 0 | T24: 0 | Z24: 0 | AF24: 0 | AL24: 0 | AR24: 0 | AS24: 751 | AT24: 5 | AU24: 150.2
A25: Hostivař | B25: Kollár Pavel | H25: 0 | N25: 0 | T25: 0 | Z25: 0 | AF25: 0 | AL25: 0 | AR25: 0 | AS25: 0 | AT25: 0
A26: Hostivař | B26: Šafář Vladimír | C26: 125 | D26: 123 | E26: 125 | F26: 128 | G26: 121 | H26: 622 | N26: 0 | T26: 0 | Z26: 0 | AF26: 0 | AL26: 0 | AR26: 0 | AS26: =SUM(N26,H26,T26,Z26,AF26,AL26,AR26) -> 622 | AT26: =COUNT(C26:G26,I26:M26,O26:S26,U26:Y26,AA26:AE26,AG26:AK26,AM26:AQ26) -> 5 | AU26: =IF(AT26=0,"",AS26/AT26) -> 124.4
A27: Hostivař | B27: Bergerová Marcela | H27: 0 | N27: 0 | T27: 0 | Z27: 0 | AF27: 0 | AL27: 0 | AR27: 0 | AS27: =SUM(N27,H27,T27,Z27,AF27,AL27,AR27) -> 0 | AT27: =COUNT(C27:G27,I27:M27,O27:S27,U27:Y27,AA27:AE27,AG27:AK27,AM27:AQ27) -> 0 | AU27: =IF(AT27=0,"",AS27/AT27) -> 
A28: Hostivař | B28: Růžička Ladislav | C28: 115 | D28: 190 | E28: 116 | F28: 151 | G28: 140 | H28: 712 | N28: 0 | T28: 0 | Z28: 0 | AF28: 0 | AL28: 0 | AR28: 0 | AS28: =SUM(N28,H28,T28,Z28,AF28,AL28,AR28) -> 712 | AT28: =COUNT(C28:G28,I28:M28,O28:S28,U28:Y28,AA28:AE28,AG28:AK28,AM28:AQ28) -> 5 | AU28: =IF(AT28=0,"",AS28/AT28) -> 142.4
A29: Hostivař | B29: Tóth Lubomír | H29: 0 | N29: 0 | T29: 0 | Z29: 0 | AF29: 0 | AL29: 0 | AR29: 0 | AS29: =SUM(N29,H29,T29,Z29,AF29,AL29,AR29) -> 0 | AT29: =COUNT(C29:G29,I29:M29,O29:S29,U29:Y29,AA29:AE29,AG29:AK29,AM29:AQ29) -> 0 | AU29: =IF(AT29=0,"",AS29/AT29) -> 
AS31: =SUM(AS10:AS27) -> 6266 | AT31: =SUM(AT10:AT27) -> 45 | AU31: =IF(AT31=0,"",AS31/AT31) -> 139.2444444
A33: Kačerov | B33: Carvan Pavel | C33: 113 | D33: 138 | E33: 155 | F33: 159 | G33: 183 | H33: =SUM(C33+D33+E33+F33+G33) -> 748 | N33: =SUM(I33+J33+K33+L33+M33) -> 0 | T33: =SUM(O33+P33+Q33+R33+S33) -> 0 | Z33: =SUM(U33+V33+W33+X33+Y33) -> 0 | AF33: =SUM(AA33+AB33+AC33+AD33+AE33) -> 0 | AL33: =SUM(AG33+AH33+AI33+AJ33+AK33) -> 0 | AR33: =SUM(AM33+AN33+AO33+AP33+AQ33) -> 0 | AS33: =SUM(N33,H33,T33,Z33,AF33,AL33,AR33) -> 748 | AT33: =COUNT(C33:G33,I33:M33,O33:S33,U33:Y33,AA33:AE33,AG33:AK33,AM33:AQ33) -> 5 | AU33: =IF(AT33=0,"",AS33/AT33) -> 149.6
A34: Kačerov | B34: Brož Stanislav | C34: 132 | D34: 174 | E34: 149 | F34: 140 | G34: 162 | H34: 757 | N34: 0 | T34: 0 | Z34: 0 | AF34: 0 | AL34: 0 | AR34: 0 | AS34: 757 | AT34: 5 | AU34: 151.4
A35: Kačerov | B35: Tomášek Zdeněk | C35: 101 | D35: 150 | E35: 169 | F35: 168 | G35: 133 | H35: 721 | N35: 0 | T35: 0 | Z35: 0 | AF35: 0 | AL35: 0 | AR35: 0 | AS35: 721 | AT35: 5 | AU35: 144.2
A36: Kačerov | B36: Mašát Petr | C36: 170 | D36: 166 | E36: 164 | F36: 160 | G36: 192 | H36: 852 | N36: 0 | T36: 0 | Z36: 0 | AF36: 0 | AL36: 0 | AR36: 0 | AS36: 852 | AT36: 5 | AU36: 170.4
A37: Kačerov | B37: Hübner Jiří | C37: 134 | D37: 127 | E37: 138 | F37: 161 | G37: 177 | H37: 737 | N37: 0 | T37: 0 | Z37: 0 | AF37: 0 | AL37: 0 | AR37: 0 | AS37: 737 | AT37: 5 | AU37: 147.4
A38: Kačerov | B38: Douša Adam | C38: 132 | D38: 173 | E38: 137 | F38: 151 | G38: 119 | H38: 712 | N38: 0 | T38: 0 | Z38: 0 | AF38: 0 | AL38: 0 | AR38: 0 | AS38: 712 | AT38: 5 | AU38: 142.4
A39: Kačerov | B39: Turek Stanislav | C39: 140 | D39: 163 | E39: 169 | F39: 100 | G39: 177 | H39: 749 | N39: 0 | T39: 0 | Z39: 0 | AF39: 0 | AL39: 0 | AR39: 0 | AS39: 749 | AT39: 5 | AU39: 149.8
A40: Kačerov | B40: Brejcha Jaroslav | H40: 0 | N40: 0 | T40: 0 | Z40: 0 | AF40: 0 | AL40: 0 | AR40: 0 | AS40: 0 | AT40: 0
A41: Kačerov | B41: Žalud Miroslav | H41: 0 | N41: 0 | T41: 0 | Z41: 0 | AF41: 0 | AL41: 0 | AR41: 0 | AS41: =SUM(N41,H41,T41,Z41,AF41,AL41,AR41) -> 0 | AT41: =COUNT(C41:G41,I41:M41,O41:S41,U41:Y41,AA41:AE41,AG41:AK41,AM41:AQ41) -> 0 | AU41: =IF(AT41=0,"",AS41/AT41) -> 
A42: Kačerov | B42: Bánovský Jaroslav | H42: 0 | N42: 0 | T42: 0 | Z42: 0 | AF42: 0 | AL42: 0 | AR42: 0 | AS42: 0 | AT42: 0
A43: Kačerov | B43: Kutina Pavel | C43: 144 | D43: 99 | E43: 122 | F43: 168 | G43: 118 | H43: 651 | N43: 0 | T43: 0 | Z43: 0 | AF43: 0 | AL43: 0 | AR43: 0 | AS43: 651 | AT43: 5 | AU43: 130.2
A44: Kačerov | B44: Ondřich František | C44: 175 | D44: 163 | E44: 149 | F44: 119 | G44: 143 | H44: 749 | N44: 0 | T44: 0 | Z44: 0 | AF44: 0 | AL44: 0 | AR44: 0 | AS44: 749 | AT44: 5 | AU44: 149.8
A45: Kačerov | B45: Radová Petra | C45: 125 | D45: 158 | E45: 118 | F45: 183 | G45: 132 | H45: 716 | N45: 0 | T45: 0 | Z45: 0 | AF45: 0 | AL45: 0 | AR45: 0 | AS45: 716 | AT45: 5 | AU45: 143.2
A46: Kačerov | B46: Katolický Zdeněk | H46: 0 | N46: 0 | T46: 0 | Z46: 0 | AF46: 0 | AL46: 0 | AR46: 0 | AS46: 0 | AT46: 0
AS48: =SUM(AS33:AS47) -> 7392 | AT48: =SUM(AT33:AT47) -> 50 | AU48: =IF(AT48=0,"",AS48/AT48) -> 147.84
A50: Klíčov | B50: Troller Pavel | C50: 132 | D50: 128 | E50: 141 | F50: 132 | G50: 148 | H50: =SUM(C50+D50+E50+F50+G50) -> 681 | N50: =SUM(I50+J50+K50+L50+M50) -> 0 | T50: =SUM(O50+P50+Q50+R50+S50) -> 0 | Z50: =SUM(U50+V50+W50+X50+Y50) -> 0 | AF50: =SUM(AA50+AB50+AC50+AD50+AE50) -> 0 | AL50: =SUM(AG50+AH50+AI50+AJ50+AK50) -> 0 | AR50: =SUM(AM50+AN50+AO50+AP50+AQ50) -> 0 | AS50: =SUM(N50,H50,T50,Z50,AF50,AL50,AR50) -> 681 | AT50: =COUNT(C50:G50,I50:M50,O50:S50,U50:Y50,AA50:AE50,AG50:AK50,AM50:AQ50) -> 5 | AU50: =IF(AT50=0,"",AS50/AT50) -> 136.2
A51: Klíčov | B51: Pelikán Stanislav | H51: 0 | N51: 0 | T51: 0 | Z51: 0 | AF51: 0 | AL51: 0 | AR51: 0 | AS51: 0 | AT51: 0
A52: Klíčov | B52: Novotná Petra | C52: 91 | D52: 145 | E52: 110 | F52: 130 | G52: 99 | H52: 575 | N52: 0 | T52: 0 | Z52: 0 | AF52: 0 | AL52: 0 | AR52: 0 | AS52: 575 | AT52: 5 | AU52: 115
A53: Klíčov | B53: Novotný Lukáš | C53: 145 | D53: 163 | E53: 148 | F53: 160 | G53: 139 | H53: 755 | N53: 0 | T53: 0 | Z53: 0 | AF53: 0 | AL53: 0 | AR53: 0 | AS53: 755 | AT53: 5 | AU53: 151
A54: Klíčov | B54: Táborský Lukáš | H54: 0 | N54: 0 | T54: 0 | Z54: 0 | AF54: 0 | AL54: 0 | AR54: 0 | AS54: 0 | AT54: 0
A55: Klíčov | B55: Táborský František | H55: 0 | N55: 0 | T55: 0 | Z55: 0 | AF55: 0 | AL55: 0 | AR55: 0 | AS55: 0 | AT55: 0
A56: Klíčov | B56: Pecka Jiří | C56: 154 | D56: 125 | E56: 148 | F56: 138 | G56: 144 | H56: 709 | N56: 0 | T56: 0 | Z56: 0 | AF56: 0 | AL56: 0 | AR56: 0 | AS56: =SUM(N56,H56,T56,Z56,AF56,AL56,AR56) -> 709 | AT56: =COUNT(C56:G56,I56:M56,O56:S56,U56:Y56,AA56:AE56,AG56:AK56,AM56:AQ56) -> 5 | AU56: 141.8
A57: Klíčov | B57: Kalfiřt Petr | C57: 133 | D57: 159 | E57: 155 | F57: 149 | G57: 126 | H57: 722 | N57: 0 | T57: 0 | Z57: 0 | AF57: 0 | AL57: 0 | AR57: 0 | AS57: 722 | AT57: 5 | AU57: 144.4
A58: Klíčov | B58: Novotná Jana | H58: 0 | N58: 0 | T58: 0 | Z58: 0 | AF58: 0 | AL58: 0 | AR58: 0 | AS58: 0 | AT58: 0 | AU58: =IF(AT58=0,"",AS58/AT58) -> 
A59: Klíčov | B59: Šafářová Veronika | H59: 0 | N59: 0 | T59: 0 | Z59: 0 | AF59: 0 | AL59: 0 | AR59: 0 | AS59: 0 | AT59: 0
A60: Klíčov | B60: Novotný Josef | H60: 0 | N60: 0 | T60: 0 | Z60: 0 | AF60: 0 | AL60: 0 | AR60: 0 | AS60: 0 | AT60: 0
A61: Klíčov | B61: Šafrová Martina | H61: 0 | N61: 0 | T61: 0 | Z61: 0 | AF61: 0 | AL61: 0 | AR61: 0 | AS61: 0 | AT61: 0
A62: Klíčov | B62: Lokvenc Jiří | C62: 122 | D62: 146 | E62: 148 | F62: 141 | G62: 127 | H62: 684 | N62: 0 | T62: 0 | Z62: 0 | AF62: 0 | AL62: 0 | AR62: 0 | AS62: 684 | AT62: 5 | AU62: 136.8
A63: Klíčov | B63: Hájek Lukáš | H63: 0 | N63: 0 | T63: 0 | Z63: 0 | AF63: 0 | AL63: 0 | AR63: 0 | AS63: 0 | AT63: 0
A64: Klíčov | B64: Křemenák Petr | H64: 0 | N64: 0 | T64: 0 | Z64: 0 | AF64: 0 | AL64: 0 | AR64: 0 | AS64: 0 | AT64: 0
A65: Klíčov | B65: Vychnerová Michala | H65: 0 | N65: 0 | T65: 0 | Z65: 0 | AF65: 0 | AL65: 0 | AR65: 0 | AS65: 0 | AT65: 0
A66: Klíčov | B66: Doman Marcel | C66: 93 | D66: 99 | E66: 90 | F66: 87 | G66: 123 | H66: 492 | N66: =SUM(I66+J66+K66+L66+M66) -> 0 | T66: =SUM(O66+P66+Q66+R66+S66) -> 0 | Z66: =SUM(U66+V66+W66+X66+Y66) -> 0 | AF66: =SUM(AA66+AB66+AC66+AD66+AE66) -> 0 | AL66: =SUM(AG66+AH66+AI66+AJ66+AK66) -> 0 | AR66: =SUM(AM66+AN66+AO66+AP66+AQ66) -> 0 | AS66: 492 | AT66: 5 | AU66: 98.4
A67: Klíčov | B67: Svoboda Jan | H67: 0 | N67: 0 | T67: 0 | Z67: 0 | AF67: 0 | AL67: 0 | AR67: 0 | AS67: =SUM(N67,H67,T67,Z67,AF67,AL67,AR67) -> 0 | AT67: =COUNT(C67:G67,I67:M67,O67:S67,U67:Y67,AA67:AE67,AG67:AK67,AM67:AQ67) -> 0 | AU67: =IF(AT67=0,"",AS67/AT67) -> 
A68: Klíčov | B68: Křemenák Jakub | H68: =SUM(C68+D68+E68+F68+G68) -> 0 | N68: 0 | T68: 0 | Z68: 0 | AF68: 0 | AL68: 0 | AR68: 0 | AS68: 0 | AT68: 0
A69: Klíčov | B69: Kolář Ladislav | C69: 128 | D69: 171 | E69: 134 | F69: 176 | G69: 217 | H69: =SUM(C69+D69+E69+F69+G69) -> 826 | N69: 0 | T69: 0 | Z69: 0 | AF69: 0 | AL69: 0 | AR69: 0 | AS69: 826 | AT69: 5 | AU69: 165.2
A70: Klíčov | B70: Štěpán Radek | C70: 145 | D70: 129 | E70: 167 | F70: 165 | G70: 170 | H70: =SUM(C70+D70+E70+F70+G70) -> 776 | N70: 0 | T70: 0 | Z70: 0 | AF70: 0 | AL70: 0 | AR70: 0 | AS70: 776 | AT70: 5 | AU70: 155.2
A71: Klíčov | B71: Neshyba Jaroslav | C71: 139 | D71: 94 | E71: 113 | F71: 97 | G71: 144 | H71: =SUM(C71+D71+E71+F71+G71) -> 587 | N71: 0 | T71: 0 | Z71: 0 | AF71: 0 | AL71: 0 | AR71: 0 | AS71: =SUM(N71,H71,T71,Z71,AF71,AL71,AR71) -> 587 | AT71: =COUNT(C71:G71,I71:M71,O71:S71,U71:Y71,AA71:AE71,AG71:AK71,AM71:AQ71) -> 5 | AU71: =IF(AT71=0,"",AS71/AT71) -> 117.4
A72: Klíčov | B72: Pipek Pavel | H72: =SUM(C72+D72+E72+F72+G72) -> 0 | N72: 0 | T72: 0 | Z72: 0 | AF72: 0 | AL72: 0 | AR72: 0 | AS72: =SUM(N72,H72,T72,Z72,AF72,AL72,AR72) -> 0 | AT72: =COUNT(C72:G72,I72:M72,O72:S72,U72:Y72,AA72:AE72,AG72:AK72,AM72:AQ72) -> 0 | AU72: =IF(AT72=0,"",AS72/AT72) -> 
AS74: =SUM(AS50:AS72) -> 6807 | AT74: =SUM(AT50:AT72) -> 50 | AU74: =IF(AT74=0,"",AS74/AT74) -> 136.14
A76: Řepy | B76: Pospíšil Václav | C76: 149 | D76: 144 | E76: 199 | F76: 145 | G76: 154 | H76: =SUM(C76+D76+E76+F76+G76) -> 791 | N76: =SUM(I76+J76+K76+L76+M76) -> 0 | T76: =SUM(O76+P76+Q76+R76+S76) -> 0 | Z76: =SUM(U76+V76+W76+X76+Y76) -> 0 | AF76: =SUM(AA76+AB76+AC76+AD76+AE76) -> 0 | AL76: =SUM(AG76+AH76+AI76+AJ76+AK76) -> 0 | AR76: =SUM(AM76+AN76+AO76+AP76+AQ76) -> 0 | AS76: =SUM(N76,H76,T76,Z76,AF76,AL76,AR76) -> 791 | AT76: =COUNT(C76:G76,I76:M76,O76:S76,U76:Y76,AA76:AE76,AG76:AK76,AM76:AQ76) -> 5 | AU76: =IF(AT76=0,"",AS76/AT76) -> 158.2
A77: Řepy | B77: Kocúr Jaroslav | C77: 163 | D77: 173 | E77: 180 | F77: 154 | G77: 157 | H77: 827 | N77: 0 | T77: 0 | Z77: 0 | AF77: 0 | AL77: 0 | AR77: 0 | AS77: 827 | AT77: 5 | AU77: 165.4
A78: Řepy | B78: Sehnal Ivan | C78: 108 | D78: 104 | E78: 132 | F78: 126 | G78: 133 | H78: 603 | N78: 0 | T78: 0 | Z78: 0 | AF78: 0 | AL78: 0 | AR78: 0 | AS78: 603 | AT78: 5 | AU78: 120.6
A79: Řepy | B79: Plecháček Miroslav | H79: 0 | N79: 0 | T79: 0 | Z79: 0 | AF79: 0 | AL79: 0 | AR79: 0 | AS79: 0 | AT79: 0
A80: Řepy | B80: Sladovník Miloš | C80: 130 | D80: 146 | E80: 176 | F80: 131 | G80: 111 | H80: 694 | N80: 0 | T80: 0 | Z80: 0 | AF80: 0 | AL80: 0 | AR80: 0 | AS80: 694 | AT80: 5 | AU80: 138.8
A81: Řepy | B81: Mottl Pavel | C81: 119 | D81: 111 | E81: 122 | F81: 123 | G81: 146 | H81: 621 | N81: 0 | T81: 0 | Z81: 0 | AF81: 0 | AL81: 0 | AR81: 0 | AS81: 621 | AT81: 5 | AU81: 124.2
A82: Řepy | B82: Číhal František | H82: 0 | N82: 0 | T82: 0 | Z82: 0 | AF82: 0 | AL82: 0 | AR82: 0 | AS82: 0 | AT82: 0
A83: Řepy | B83: Kročil Tomáš | C83: 156 | D83: 147 | E83: 169 | F83: 137 | G83: 112 | H83: 721 | N83: 0 | T83: 0 | Z83: 0 | AF83: 0 | AL83: 0 | AR83: 0 | AS83: 721 | AT83: 5 | AU83: 144.2
A84: Řepy | B84: Alba Vladimír | C84: 133 | D84: 103 | E84: 148 | F84: 142 | G84: 128 | H84: 654 | N84: 0 | T84: 0 | Z84: 0 | AF84: 0 | AL84: 0 | AR84: 0 | AS84: 654 | AT84: 5 | AU84: 130.8
A85: Řepy | B85: Tichý Hugo | H85: 0 | N85: 0 | T85: 0 | Z85: 0 | AF85: 0 | AL85: 0 | AR85: 0 | AS85: 0 | AT85: 0
A86: Řepy | B86: Křikava Miroslav | C86: 121 | D86: 119 | E86: 143 | F86: 156 | G86: 142 | H86: 681 | N86: 0 | T86: 0 | Z86: 0 | AF86: 0 | AL86: 0 | AR86: 0 | AS86: =SUM(N86,H86,T86,Z86,AF86,AL86,AR86) -> 681 | AT86: =COUNT(C86:G86,I86:M86,O86:S86,U86:Y86,AA86:AE86,AG86:AK86,AM86:AQ86) -> 5 | AU86: =IF(AT86=0,"",AS86/AT86) -> 136.2
A87: Řepy | B87: Dvořák Petr | C87: 187 | D87: 144 | E87: 125 | F87: 175 | G87: 168 | H87: 799 | N87: 0 | T87: =SUM(O87+P87+Q87+R87+S87) -> 0 | Z87: =SUM(U87+V87+W87+X87+Y87) -> 0 | AF87: =SUM(AA87+AB87+AC87+AD87+AE87) -> 0 | AL87: =SUM(AG87+AH87+AI87+AJ87+AK87) -> 0 | AR87: =SUM(AM87+AN87+AO87+AP87+AQ87) -> 0 | AS87: 799 | AT87: 5 | AU87: 159.8
A88: Řepy | B88: Froněk Martin | C88: 202 | D88: 170 | E88: 168 | F88: 116 | G88: 116 | H88: 772 | N88: 0 | T88: 0 | Z88: 0 | AF88: 0 | AL88: 0 | AR88: 0 | AS88: 772 | AT88: 5 | AU88: 154.4
A89: Řepy | B89: Kozel Pavel | H89: 0 | N89: 0 | T89: 0 | Z89: 0 | AF89: 0 | AL89: 0 | AR89: 0 | AS89: 0 | AT89: 0
A90: Řepy | B90: Růžička Václav | C90: 132 | D90: 137 | E90: 104 | F90: 167 | G90: 113 | H90: 653 | N90: 0 | T90: 0 | Z90: 0 | AF90: 0 | AL90: 0 | AR90: 0 | AS90: 653 | AT90: 5 | AU90: 130.6
A91: Řepy | B91: Šindelář Karel | C91: 121 | D91: 165 | E91: 139 | F91: 135 | G91: 141 | H91: 701 | N91: 0 | T91: 0 | Z91: 0 | AF91: 0 | AL91: 0 | AR91: 0 | AS91: 701 | AT91: 5 | AU91: 140.2
A92: Řepy | B92: Piešťanský Josef | H92: 0 | N92: 0 | T92: 0 | Z92: 0 | AF92: 0 | AL92: 0 | AR92: 0 | AS92: =SUM(N92,H92,T92,Z92,AF92,AL92,AR92) -> 0 | AT92: =COUNT(C92:G92,I92:M92,O92:S92,U92:Y92,AA92:AE92,AG92:AK92,AM92:AQ92) -> 0 | AU92: =IF(AT92=0,"",AS92/AT92) -> 
A93: Řepy | B93: Erekt Stanislav | C93: 129 | D93: 149 | E93: 194 | F93: 150 | G93: 139 | H93: =SUM(C93+D93+E93+F93+G93) -> 761 | N93: =SUM(I93+J93+K93+L93+M93) -> 0 | T93: =SUM(O93+P93+Q93+R93+S93) -> 0 | Z93: =SUM(U93+V93+W93+X93+Y93) -> 0 | AF93: =SUM(AA93+AB93+AC93+AD93+AE93) -> 0 | AL93: =SUM(AG93+AH93+AI93+AJ93+AK93) -> 0 | AR93: =SUM(AM93+AN93+AO93+AP93+AQ93) -> 0 | AS93: =SUM(N93,H93,T93,Z93,AF93,AL93,AR93) -> 761 | AT93: =COUNT(C93:G93,I93:M93,O93:S93,U93:Y93,AA93:AE93,AG93:AK93,AM93:AQ93) -> 5 | AU93: =IF(AT93=0,"",AS93/AT93) -> 152.2
A94: Řepy | B94: Křikavová Miroslava | C94: 112 | D94: 150 | E94: 148 | F94: 124 | G94: 175 | H94: =SUM(C94+D94+E94+F94+G94) -> 709 | N94: =SUM(I94+J94+K94+L94+M94) -> 0 | T94: =SUM(O94+P94+Q94+R94+S94) -> 0 | Z94: =SUM(U94+V94+W94+X94+Y94) -> 0 | AF94: =SUM(AA94+AB94+AC94+AD94+AE94) -> 0 | AL94: =SUM(AG94+AH94+AI94+AJ94+AK94) -> 0 | AR94: =SUM(AM94+AN94+AO94+AP94+AQ94) -> 0 | AS94: =SUM(N94,H94,T94,Z94,AF94,AL94,AR94) -> 709 | AT94: =COUNT(C94:G94,I94:M94,O94:S94,U94:Y94,AA94:AE94,AG94:AK94,AM94:AQ94) -> 5 | AU94: =IF(AT94=0,"",AS94/AT94) -> 141.8
A95: Řepy | B95: Červenka Ivan | C95: 108 | D95: 133 | E95: 117 | F95: 149 | G95: 161 | H95: =SUM(C95+D95+E95+F95+G95) -> 668 | N95: =SUM(I95+J95+K95+L95+M95) -> 0 | T95: =SUM(O95+P95+Q95+R95+S95) -> 0 | Z95: =SUM(U95+V95+W95+X95+Y95) -> 0 | AF95: =SUM(AA95+AB95+AC95+AD95+AE95) -> 0 | AL95: =SUM(AG95+AH95+AI95+AJ95+AK95) -> 0 | AR95: =SUM(AM95+AN95+AO95+AP95+AQ95) -> 0 | AS95: =SUM(N95,H95,T95,Z95,AF95,AL95,AR95) -> 668 | AT95: =COUNT(C95:G95,I95:M95,O95:S95,U95:Y95,AA95:AE95,AG95:AK95,AM95:AQ95) -> 5 | AU95: =IF(AT95=0,"",AS95/AT95) -> 133.6
AS97: =SUM(AS76:AS91) -> 8517 | AT97: =SUM(AT76:AT91) -> 60 | AU97: =IF(AT97=0,"",AS97/AT97) -> 141.95
A99: Vršovice | B99: Krupa Jozef | C99: 135 | D99: 202 | E99: 188 | F99: 170 | G99: 149 | H99: =SUM(C99+D99+E99+F99+G99) -> 844 | N99: =SUM(I99+J99+K99+L99+M99) -> 0 | T99: =SUM(O99+P99+Q99+R99+S99) -> 0 | Z99: =SUM(U99+V99+W99+X99+Y99) -> 0 | AF99: =SUM(AA99+AB99+AC99+AD99+AE99) -> 0 | AL99: =SUM(AG99+AH99+AI99+AJ99+AK99) -> 0 | AR99: =SUM(AM99+AN99+AO99+AP99+AQ99) -> 0 | AS99: =SUM(N99,H99,T99,Z99,AF99,AL99,AR99) -> 844 | AT99: =COUNT(C99:G99,I99:M99,O99:S99,U99:Y99,AA99:AE99,AG99:AK99,AM99:AQ99) -> 5 | AU99: =IF(AT99=0,"",AS99/AT99) -> 168.8
A100: Vršovice | B100: Pospíšil Lukáš | H100: 0 | N100: 0 | T100: 0 | Z100: 0 | AF100: 0 | AL100: 0 | AR100: 0 | AS100: 0 | AT100: 0
A101: Vršovice | B101: Krupová Martina | H101: 0 | N101: 0 | T101: 0 | Z101: 0 | AF101: 0 | AL101: 0 | AR101: 0 | AS101: 0 | AT101: 0
A102: Vršovice | B102: Krupa Martin | H102: 0 | N102: 0 | T102: 0 | Z102: 0 | AF102: 0 | AL102: 0 | AR102: 0 | AS102: 0 | AT102: 0
A103: Vršovice | B103: Skružná Pavla | C103: 161 | D103: 147 | E103: 134 | F103: 135 | G103: 109 | H103: 686 | N103: 0 | T103: 0 | Z103: 0 | AF103: 0 | AL103: 0 | AR103: 0 | AS103: 686 | AT103: 5 | AU103: 137.2
A104: Vršovice | B104: Aunický František | C104: 77 | D104: 122 | E104: 133 | F104: 104 | G104: 94 | H104: 530 | N104: 0 | T104: 0 | Z104: 0 | AF104: 0 | AL104: 0 | AR104: 0 | AS104: 530 | AT104: 5 | AU104: 106
A105: Vršovice | B105: Kazda Jan | H105: 0 | N105: 0 | T105: 0 | Z105: 0 | AF105: 0 | AL105: 0 | AR105: 0 | AS105: 0 | AT105: 0
A106: Vršovice | B106: Leibichová Inke | C106: 90 | D106: 89 | E106: 69 | F106: 77 | G106: 108 | H106: 433 | N106: 0 | T106: 0 | Z106: 0 | AF106: 0 | AL106: 0 | AR106: 0 | AS106: 433 | AT106: 5 | AU106: 86.6
A107: Vršovice | B107: Leibich František | C107: 159 | D107: 140 | E107: 137 | F107: 149 | G107: 171 | H107: 756 | N107: 0 | T107: 0 | Z107: 0 | AF107: 0 | AL107: 0 | AR107: 0 | AS107: 756 | AT107: 5 | AU107: 151.2
A108: Vršovice | B108: Veselý Vlastimil | C108: 116 | D108: 119 | E108: 176 | F108: 115 | G108: 149 | H108: 675 | N108: 0 | T108: 0 | Z108: 0 | AF108: 0 | AL108: 0 | AR108: 0 | AS108: 675 | AT108: 5 | AU108: 135
A109: Vršovice | B109: Věchtík Antonín | H109: 0 | N109: 0 | T109: 0 | Z109: 0 | AF109: 0 | AL109: 0 | AR109: 0 | AS109: =SUM(N109,H109,T109,Z109,AF109,AL109,AR109) -> 0 | AT109: =COUNT(C109:G109,I109:M109,O109:S109,U109:Y109,AA109:AE109,AG109:AK109,AM109:AQ109) -> 0 | AU109: =IF(AT109=0,"",AS109/AT109) -> 
A110: Vršovice | B110: Podhola Martin | C110: 133 | D110: 162 | E110: 207 | F110: 176 | G110: 179 | H110: 857 | N110: 0 | T110: 0 | Z110: 0 | AF110: 0 | AL110: 0 | AR110: 0 | AS110: 857 | AT110: 5 | AU110: 171.4
A111: Vršovice | B111: Holkup Jan | C111: 91 | D111: 132 | E111: 172 | F111: 190 | G111: 163 | H111: 748 | N111: 0 | T111: 0 | Z111: 0 | AF111: 0 | AL111: 0 | AR111: 0 | AS111: 748 | AT111: 5 | AU111: 149.6
A112: Vršovice | B112: Pokorný Josef | H112: 0 | N112: 0 | T112: =SUM(O112+P112+Q112+R112+S112) -> 0 | Z112: =SUM(U112+V112+W112+X112+Y112) -> 0 | AF112: =SUM(AA112+AB112+AC112+AD112+AE112) -> 0 | AL112: =SUM(AG112+AH112+AI112+AJ112+AK112) -> 0 | AR112: =SUM(AM112+AN112+AO112+AP112+AQ112) -> 0 | AS112: 0 | AT112: 0
A113: Vršovice | B113: Kučera Miroslav | H113: 0 | N113: 0 | T113: 0 | Z113: 0 | AF113: 0 | AL113: 0 | AR113: 0 | AS113: 0 | AT113: 0
A114: Vršovice | B114: Kovář Jaroslav | H114: 0 | N114: 0 | T114: 0 | Z114: 0 | AF114: 0 | AL114: 0 | AR114: 0 | AS114: 0 | AT114: 0
A115: Vršovice | B115: Fay Vlastimil | C115: 112 | D115: 127 | E115: 97 | F115: 138 | G115: 111 | H115: 585 | N115: =SUM(I115+J115+K115+L115+M115) -> 0 | T115: 0 | Z115: 0 | AF115: 0 | AL115: 0 | AR115: 0 | AS115: =SUM(N115,H115,T115,Z115,AF115,AL115,AR115) -> 585 | AT115: =COUNT(C115:G115,I115:M115,O115:S115,U115:Y115,AA115:AE115,AG115:AK115,AM115:AQ115) -> 5 | AU115: =IF(AT115=0,"",AS115/AT115) -> 117
A116: Vršovice | B116: Bošek Jan | C116: 157 | D116: 119 | E116: 139 | F116: 129 | G116: 166 | H116: 710 | N116: =SUM(I116+J116+K116+L116+M116) -> 0 | T116: 0 | Z116: 0 | AF116: 0 | AL116: 0 | AR116: 0 | AS116: =SUM(N116,H116,T116,Z116,AF116,AL116,AR116) -> 710 | AT116: =COUNT(C116:G116,I116:M116,O116:S116,U116:Y116,AA116:AE116,AG116:AK116,AM116:AQ116) -> 5 | AU116: =IF(AT116=0,"",AS116/AT116) -> 142
A117: Vršovice | B117: Pavlíček Rudolf | H117: 0 | N117: =SUM(I117+J117+K117+L117+M117) -> 0 | T117: 0 | Z117: 0 | AF117: 0 | AL117: 0 | AR117: 0 | AS117: =SUM(N117,H117,T117,Z117,AF117,AL117,AR117) -> 0 | AT117: =COUNT(C117:G117,I117:M117,O117:S117,U117:Y117,AA117:AE117,AG117:AK117,AM117:AQ117) -> 0 | AU117: =IF(AT117=0,"",AS117/AT117) -> 
A118: Vršovice | B118: Hrabě Jan | H118: =SUM(C118+D118+E118+F118+G118) -> 0 | N118: =SUM(I118+J118+K118+L118+M118) -> 0 | T118: 0 | Z118: 0 | AF118: 0 | AL118: 0 | AR118: 0 | AS118: =SUM(N118,H118,T118,Z118,AF118,AL118,AR118) -> 0 | AT118: =COUNT(C118:G118,I118:M118,O118:S118,U118:Y118,AA118:AE118,AG118:AK118,AM118:AQ118) -> 0 | AU118: =IF(AT118=0,"",AS118/AT118) -> 
AS120: =SUM(AS99:AS119) -> 6824 | AT120: =SUM(AT99:AT119) -> 50 | AU120: =IF(AT120=0,"",AS120/AT120) -> 136.48
